Workbook

Sheet Control
A1: Sheets | B1: Text File Names | C1: Description | E1: Notes: 50 sheets maximum
A2: Total | B2: Pits\Culpability\EP_Culp_Total.txt | C2: All load added to East Pit, statistics by constituent | E2: Referenced text files must be in same root folder as this spreadsheet
A3: RO | B3: Pits\Culpability\EP_Culp_RO.txt | C3: Runoff load to East Pit, statistics by constituent
A4: GW | B4: Pits\Culpability\EP_Culp_GW.txt | C4: GW load to East Pit, statistics by constituent
A5: CPS | B5: Pits\Culpability\EP_Culp_CPS.txt | C5: WWTF effluent load added to East Pit, statistics by constituent
A6: Blast | B6: Pits\Culpability\EP_Culp_Blast.txt | C6: Load from temp. ore storage to East Pit, statistics by constituent
A7: Cat1SP_leak | B7: Pits\Culpability\EP_Culp_Cat1SP_leak.txt | C7: Load from Cat1 stockpile containment leakage to East Pit, statistics by constituent
A8: Cat1SP | B8: Pits\Culpability\EP_Culp_Cat1SP.txt | C8: Total load from Cat1 stockpile to East Pit, statistics by constituent | F8: Run Time Min: | G8: =MIN(Total!B5,RO!B5,GW!B5,CPS!B5,Blast!B5,Cat1SP!B5,Cat1SP_leak!B5,Cat1wall!B5,Cat23wall!B5,Cat4DCwall!B5,Orewall!B5,Cat4VFwall!B5) -> 2014-12-15T22:56:18
A9: Cat1wall | B9: Pits\Culpability\EP_Culp_Cat1wall.txt | C9: Total load from Cat 1 walls to East Pit, statistics by constituent | F9: Run Time Max: | G9: =MAX(Total!B5,RO!B5,GW!B5,CPS!B5,Blast!B5,Cat1SP!B5,Cat1SP_leak!B5,Cat1wall!B5,Cat23wall!B5,Cat4DCwall!B5,Orewall!B5,Cat4VFwall!B5) -> 2014-12-15T22:56:18
A10: Cat23wall | B10: Pits\Culpability\EP_Culp_Cat23wall.txt | C10: Total load from Cat 2/3 walls to East Pit, statistics by constituent
A11: Cat4DCwall | B11: Pits\Culpability\EP_Culp_Cat4DCwall.txt | C11: Total load from Cat 4 (DC) walls to East Pit, statistics by constituent
A12: Orewall | B12: Pits\Culpability\EP_Culp_Orewall.txt | C12: Total load from ore walls to East Pit, statistics by constituent
A13: Cat4VFwall | B13: Pits\Culpability\EP_Culp_Cat4VFwall.txt | C13: Total load from Cat 4 (VF) walls to East Pit, statistics by constituent
A14: Cat1Bkf | B14: Pits\Culpability\EP_Culp_Cat1Bkf.txt | C14: Total load from Cat 1 backfill to East Pit, statistics by constituent
A15: Cat23Bkf | B15: Pits\Culpability\EP_Culp_Cat23Bkf.txt | C15: Total load from Cat 2/3 backfill to East Pit, statistics by constituent
A16: Cat4DCBkf | B16: Pits\Culpability\EP_Culp_Cat4DCBkf.txt | C16: Total load from Cat 4 (DC) backfill to East Pit, statistics by constituent
A17: Cat4VFBkf | B17: Pits\Culpability\EP_Culp_Cat4VFBkf.txt | C17: Total load from Cat 4 (VF) backfill to East Pit, statistics by constituent

Sheet PlotControl
A2: Model Name: | B2: Mine Site Version 6.0 | C2: =B2 & " Model " & IF(B4="P50", "Median", IF(B4="P10", "10th Percentile", "90th Percentile")) & " Loading Rates - Operations and Reclamation " & B6 & " to the East Pit" -> Mine Site Version 6.0 Model Median Loading Rates - Operations and Reclamation SO4 to the East Pit
C3: =B2 & " Model " & IF(B4="P50", "Median", IF(B4="P10", "10th Percentile", "90th Percentile")) & " Loading Rates - Long-term Closure " & B6 & " to the East Pit" -> Mine Site Version 6.0 Model Median Loading Rates - Long-term Closure SO4 to the East Pit
A4: Plot: | B4: P50 | C4: =MATCH(B4,$B$29:$B$31,0) -> 2 | W4: Directory to save PDFs to: | X4: P:\Mpls\23 MN\69\2369862\WorkFiles\APA\Support Docs\Water Modeling Package Doc\MODEL_RESULTS\MineSite_Results_01Feb2013\Attachment I
W5: Starting figure caption | X5: Figure I-01-27.2
A6: Constituent to Plot (dropdown): | B6: SO4 | C6: =MATCH(B6,$A$29:$A$55,0) -> 24
W7: Note: This loops through the plots, constituent, and location drop down menus.
A8: Year for Post-Closure Plot: | B8: 40
A11: Sources
A12: Total
A13: Runoff
A14: Groundwater
A15: WWTF Return Water
A16: In-pit Blast Ore
A17: Cat 1SP Leakage
A18: Cat 1 Wallrock
A19: Cat 2/3 Wallrock
A20: Cat 4DC Wallrock
A21: Ore Wallrock
A22: Cat 4VF Wallrock
A23: Cat 1 Backfill | K23: SAVE BOTH OF THESE PLOTS
A24: Cat 2/3 Backfill
A25: Cat 4DC Backfill
A26: Cat 4VF Backfill
D27: Annual Project Results (tonne/yr loading) | V27: Annual Project Results (tonne/yr loading) | AM27: Cumulative loading (tonne)
A28: Constituent | B28: Percentile | D28: Time | E28: Total (not plotted) | F28: Runoff | G28: Groundwater | H28: WWTF Return Water | I28: In-pit Blast Ore | J28: Cat 1SP Leakage | K28: Cat 1 Wallrock | L28: Cat 2/3 Wallrock | M28: Cat 4DC Wallrock | N28: Ore Wallrock | O28: Cat 4VF Wallrock | P28: Cat 1 Backfill | Q28: Cat 2/3 Backfill | R28: Cat 4DC Backfill | S28: Cat 4VF Backfill | V28: Time | W28: Total (not plotted) | X28: Runoff | Y28: Groundwater | Z28: WWTF Return Water | AA28: In-pit Blast Ore | AB28: Cat 1SP Leakage | AC28: Cat 1 Wallrock | AD28: Cat 2/3 Wallrock | AE28: Cat 4DC Wallrock | AF28: Ore Wallrock | AG28: Cat 4VF Wallrock | AH28: Cat 1 Backfill | AI28: Cat 2/3 Backfill | AJ28: Cat 4DC Backfill | AK28: Cat 4VF Backfill | AM28: Runoff | AN28: Groundwater | AO28: WWTF Return Water | AP28: In-pit Blast Ore | AQ28: Cat 1SP Leakage | AR28: Cat 1 Wallrock | AS28: Cat 2/3 Wallrock | AT28: Cat 4DC Wallrock | AU28: Ore Wallrock | AV28: Cat 4VF Wallrock | AW28: Cat 1 Backfill | AX28: Cat 2/3 Backfill | AY28: Cat 4DC Backfill | AZ28: Cat 4VF Backfill
A29: Ag | B29: P10 | D29: 0 | V29: =B8 -> 40 | W29: =VLOOKUP($V29,Point_Sources_All!$A$5:$AT$204,$C$4+1)/1000 -> 2.429716667 | X29: =VLOOKUP($V29,Point_Sources_All!$A$5:$AT$204,$C$4+4)/1000 -> 0.4264608333 | Y29: =VLOOKUP($V29,Point_Sources_All!$A$5:$AT$204,$C$4+7)/1000 -> 1.146991667 | Z29: =VLOOKUP($V29,Point_Sources_All!$A$5:$AT$204,$C$4+10)/1000 -> 0 | AA29: =VLOOKUP($V29,Point_Sources_All!$A$5:$AT$204,$C$4+13)/1000 -> 0 | AB29: =VLOOKUP($V29,Point_Sources_All!$A$5:$AT$204,$C$4+16)/1000 -> 0 | AC29: =VLOOKUP($V29,Point_Sources_All!$A$5:$AT$204,$C$4+19)/1000 -> 0.01058703333 | AD29: =VLOOKUP($V29,Point_Sources_All!$A$5:$AT$204,$C$4+22)/1000 -> 0.028332 | AE29: =VLOOKUP($V29,Point_Sources_All!$A$5:$AT$204,$C$4+25)/1000 -> 0.001232808333 | AF29: =VLOOKUP($V29,Point_Sources_All!$A$5:$AT$204,$C$4+28)/1000 -> 0.0384215 | AG29: =VLOOKUP($V29,Point_Sources_All!$A$5:$AT$204,$C$4+31)/1000 -> 0.5118816667 | AH29: =VLOOKUP($V29,Point_Sources_All!$A$5:$AT$204,$C$4+34)/1000 -> 0 | AI29: =VLOOKUP($V29,Point_Sources_All!$A$5:$AT$204,$C$4+37)/1000 -> 0 | AJ29: =VLOOKUP($V29,Point_Sources_All!$A$5:$AT$204,$C$4+40)/1000 -> 0 | AK29: =VLOOKUP($V29,Point_Sources_All!$A$5:$AT$204,$C$4+43)/1000 -> 0
A30: Al | B30: P50 | D30: 1 | E30: =VLOOKUP($D30,Point_Sources_All!$A$5:$AT$204,$C$4+1)/1000 -> 70.15566667 | F30: =VLOOKUP($D30,Point_Sources_All!$A$5:$AT$204,$C$4+4)/1000 -> 0 | G30: =VLOOKUP($D30,Point_Sources_All!$A$5:$AT$204,$C$4+7)/1000 -> 3.219295 | H30: =VLOOKUP($D30,Point_Sources_All!$A$5:$AT$204,$C$4+10)/1000 -> 0 | I30: =VLOOKUP($D30,Point_Sources_All!$A$5:$AT$204,$C$4+13)/1000 -> 17.72323333 | J30: =VLOOKUP($D30,Point_Sources_All!$A$5:$AT$204,$C$4+16)/1000 -> 0.04027214167 | K30: =VLOOKUP($D30,Point_Sources_All!$A$5:$AT$204,$C$4+19)/1000 -> 0.6336591667 | L30: =VLOOKUP($D30,Point_Sources_All!$A$5:$AT$204,$C$4+22)/1000 -> 1.435283333 | M30: =VLOOKUP($D30,Point_Sources_All!$A$5:$AT$204,$C$4+25)/1000 -> 0.2596491667 | N30: =VLOOKUP($D30,Point_Sources_All!$A$5:$AT$204,$C$4+28)/1000 -> 9.263633333 | O30: =VLOOKUP($D30,Point_Sources_All!$A$5:$AT$204,$C$4+31)/1000 -> 34.46141667 | P30: =VLOOKUP($D30,Point_Sources_All!$A$5:$AT$204,$C$4+34)/1000 -> 0 | Q30: =VLOOKUP($D30,Point_Sources_All!$A$5:$AT$204,$C$4+37)/1000 -> 0 | R30: =VLOOKUP($D30,Point_Sources_All!$A$5:$AT$204,$C$4+40)/1000 -> 0 | S30: =VLOOKUP($D30,Point_Sources_All!$A$5:$AT$204,$C$4+43)/1000 -> 0 | V30: =V29+1 -> 41 | W30: =VLOOKUP($V30,Point_Sources_All!$A$5:$AT$204,$C$4+1)/1000 -> 2.42935 | X30: =VLOOKUP($V30,Point_Sources_All!$A$5:$AT$204,$C$4+4)/1000 -> 0.44985 | Y30: =VLOOKUP($V30,Point_Sources_All!$A$5:$AT$204,$C$4+7)/1000 -> 1.14645 | Z30: =VLOOKUP($V30,Point_Sources_All!$A$5:$AT$204,$C$4+10)/1000 -> 0 | AA30: =VLOOKUP($V30,Point_Sources_All!$A$5:$AT$204,$C$4+13)/1000 -> 0 | AB30: =VLOOKUP($V30,Point_Sources_All!$A$5:$AT$204,$C$4+16)/1000 -> 0 | AC30: =VLOOKUP($V30,Point_Sources_All!$A$5:$AT$204,$C$4+19)/1000 -> 0.0103944 | AD30: =VLOOKUP($V30,Point_Sources_All!$A$5:$AT$204,$C$4+22)/1000 -> 0.02636183333 | AE30: =VLOOKUP($V30,Point_Sources_All!$A$5:$AT$204,$C$4+25)/1000 -> 0.00119195 | AF30: =VLOOKUP($V30,Point_Sources_All!$A$5:$AT$204,$C$4+28)/1000 -> 0.03713375 | AG30: =VLOOKUP($V30,Point_Sources_All!$A$5:$AT$204,$C$4+31)/1000 -> 0.50567 | AH30: =VLOOKUP($V30,Point_Sources_All!$A$5:$AT$204,$C$4+34)/1000 -> 0 | AI30: =VLOOKUP($V30,Point_Sources_All!$A$5:$AT$204,$C$4+37)/1000 -> 0 | AJ30: =VLOOKUP($V30,Point_Sources_All!$A$5:$AT$204,$C$4+40)/1000 -> 0 | AK30: =VLOOKUP($V30,Point_Sources_All!$A$5:$AT$204,$C$4+43)/1000 -> 0 | AM30: =SUM(X$30:X30) -> 0.44985 | AN30: =SUM(Y$30:Y30) -> 1.14645 | AO30: =SUM(Z$30:Z30) -> 0 | AP30: =SUM(AA$30:AA30) -> 0 | AQ30: =SUM(AB$30:AB30) -> 0 | AR30: =SUM(AC$30:AC30) -> 0.0103944 | AS30: =SUM(AD$30:AD30) -> 0.02636183333 | AT30: =SUM(AE$30:AE30) -> 0.00119195 | AU30: =SUM(AF$30:AF30) -> 0.03713375 | AV30: =SUM(AG$30:AG30) -> 0.50567 | AW30: =SUM(AH$30:AH30) -> 0 | AX30: =SUM(AI$30:AI30) -> 0 | AY30: =SUM(AJ$30:AJ30) -> 0 | AZ30: =SUM(AK$30:AK30) -> 0
A31: Alkalinity | B31: P90 | D31: 2 | E31: =VLOOKUP($D31,Point_Sources_All!$A$5:$AT$204,$C$4+1)/1000 -> 105.24825 | F31: =VLOOKUP($D31,Point_Sources_All!$A$5:$AT$204,$C$4+4)/1000 -> 0 | G31: =VLOOKUP($D31,Point_Sources_All!$A$5:$AT$204,$C$4+7)/1000 -> 8.466533333 | H31: =VLOOKUP($D31,Point_Sources_All!$A$5:$AT$204,$C$4+10)/1000 -> 0 | I31: =VLOOKUP($D31,Point_Sources_All!$A$5:$AT$204,$C$4+13)/1000 -> 41.80116667 | J31: =VLOOKUP($D31,Point_Sources_All!$A$5:$AT$204,$C$4+16)/1000 -> 0.3088016667 | K31: =VLOOKUP($D31,Point_Sources_All!$A$5:$AT$204,$C$4+19)/1000 -> 0.67403 | L31: =VLOOKUP($D31,Point_Sources_All!$A$5:$AT$204,$C$4+22)/1000 -> 1.526808333 | M31: =VLOOKUP($D31,Point_Sources_All!$A$5:$AT$204,$C$4+25)/1000 -> 0.2789825 | N31: =VLOOKUP($D31,Point_Sources_All!$A$5:$AT$204,$C$4+28)/1000 -> 9.854375 | O31: =VLOOKUP($D31,Point_Sources_All!$A$5:$AT$204,$C$4+31)/1000 -> 36.931 | P31: =VLOOKUP($D31,Point_Sources_All!$A$5:$AT$204,$C$4+34)/1000 -> 0 | Q31: =VLOOKUP($D31,Point_Sources_All!$A$5:$AT$204,$C$4+37)/1000 -> 0 | R31: =VLOOKUP($D31,Point_Sources_All!$A$5:$AT$204,$C$4+40)/1000 -> 0 | S31: =VLOOKUP($D31,Point_Sources_All!$A$5:$AT$204,$C$4+43)/1000 -> 0 | V31: =V30+1 -> 42 | W31: =VLOOKUP($V31,Point_Sources_All!$A$5:$AT$204,$C$4+1)/1000 -> 2.409741667 | X31: =VLOOKUP($V31,Point_Sources_All!$A$5:$AT$204,$C$4+4)/1000 -> 0.4304508333 | Y31: =VLOOKUP($V31,Point_Sources_All!$A$5:$AT$204,$C$4+7)/1000 -> 1.145566667 | Z31: =VLOOKUP($V31,Point_Sources_All!$A$5:$AT$204,$C$4+10)/1000 -> 0 | AA31: =VLOOKUP($V31,Point_Sources_All!$A$5:$AT$204,$C$4+13)/1000 -> 0 | AB31: =VLOOKUP($V31,Point_Sources_All!$A$5:$AT$204,$C$4+16)/1000 -> 0 | AC31: =VLOOKUP($V31,Point_Sources_All!$A$5:$AT$204,$C$4+19)/1000 -> 0.01053129167 | AD31: =VLOOKUP($V31,Point_Sources_All!$A$5:$AT$204,$C$4+22)/1000 -> 0.02498 | AE31: =VLOOKUP($V31,Point_Sources_All!$A$5:$AT$204,$C$4+25)/1000 -> 0.0011062275 | AF31: =VLOOKUP($V31,Point_Sources_All!$A$5:$AT$204,$C$4+28)/1000 -> 0.03447316667 | AG31: =VLOOKUP($V31,Point_Sources_All!$A$5:$AT$204,$C$4+31)/1000 -> 0.5041 | AH31: =VLOOKUP($V31,Point_Sources_All!$A$5:$AT$204,$C$4+34)/1000 -> 0 | AI31: =VLOOKUP($V31,Point_Sources_All!$A$5:$AT$204,$C$4+37)/1000 -> 0 | AJ31: =VLOOKUP($V31,Point_Sources_All!$A$5:$AT$204,$C$4+40)/1000 -> 0 | AK31: =VLOOKUP($V31,Point_Sources_All!$A$5:$AT$204,$C$4+43)/1000 -> 0 | AM31: =SUM(X$30:X31) -> 0.8803008333 | AN31: =SUM(Y$30:Y31) -> 2.292016667 | AO31: =SUM(Z$30:Z31) -> 0 | AP31: =SUM(AA$30:AA31) -> 0 | AQ31: =SUM(AB$30:AB31) -> 0 | AR31: =SUM(AC$30:AC31) -> 0.02092569167 | AS31: =SUM(AD$30:AD31) -> 0.05134183333 | AT31: =SUM(AE$30:AE31) -> 0.0022981775 | AU31: =SUM(AF$30:AF31) -> 0.07160691667 | AV31: =SUM(AG$30:AG31) -> 1.00977 | AW31: =SUM(AH$30:AH31) -> 0 | AX31: =SUM(AI$30:AI31) -> 0 | AY31: =SUM(AJ$30:AJ31) -> 0 | AZ31: =SUM(AK$30:AK31) -> 0
A32: As | D32: 3 | E32: =VLOOKUP($D32,Point_Sources_All!$A$5:$AT$204,$C$4+1)/1000 -> 106.2035 | F32: =VLOOKUP($D32,Point_Sources_All!$A$5:$AT$204,$C$4+4)/1000 -> 0 | G32: =VLOOKUP($D32,Point_Sources_All!$A$5:$AT$204,$C$4+7)/1000 -> 8.470866667 | H32: =VLOOKUP($D32,Point_Sources_All!$A$5:$AT$204,$C$4+10)/1000 -> 0 | I32: =VLOOKUP($D32,Point_Sources_All!$A$5:$AT$204,$C$4+13)/1000 -> 42.07766667 | J32: =VLOOKUP($D32,Point_Sources_All!$A$5:$AT$204,$C$4+16)/1000 -> 0.920885 | K32: =VLOOKUP($D32,Point_Sources_All!$A$5:$AT$204,$C$4+19)/1000 -> 0.694215 | L32: =VLOOKUP($D32,Point_Sources_All!$A$5:$AT$204,$C$4+22)/1000 -> 1.572541667 | M32: =VLOOKUP($D32,Point_Sources_All!$A$5:$AT$204,$C$4+25)/1000 -> 0.2793108333 | N32: =VLOOKUP($D32,Point_Sources_All!$A$5:$AT$204,$C$4+28)/1000 -> 10.14958333 | O32: =VLOOKUP($D32,Point_Sources_All!$A$5:$AT$204,$C$4+31)/1000 -> 37.21416667 | P32: =VLOOKUP($D32,Point_Sources_All!$A$5:$AT$204,$C$4+34)/1000 -> 0 | Q32: =VLOOKUP($D32,Point_Sources_All!$A$5:$AT$204,$C$4+37)/1000 -> 0 | R32: =VLOOKUP($D32,Point_Sources_All!$A$5:$AT$204,$C$4+40)/1000 -> 0 | S32: =VLOOKUP($D32,Point_Sources_All!$A$5:$AT$204,$C$4+43)/1000 -> 0 | V32: 43 | W32: =VLOOKUP($V32,Point_Sources_All!$A$5:$AT$204,$C$4+1)/1000 -> 2.409558333 | X32: =VLOOKUP($V32,Point_Sources_All!$A$5:$AT$204,$C$4+4)/1000 -> 0.4318383333 | Y32: =VLOOKUP($V32,Point_Sources_All!$A$5:$AT$204,$C$4+7)/1000 -> 1.144341667 | Z32: =VLOOKUP($V32,Point_Sources_All!$A$5:$AT$204,$C$4+10)/1000 -> 0 | AA32: =VLOOKUP($V32,Point_Sources_All!$A$5:$AT$204,$C$4+13)/1000 -> 0 | AB32: =VLOOKUP($V32,Point_Sources_All!$A$5:$AT$204,$C$4+16)/1000 -> 0 | AC32: =VLOOKUP($V32,Point_Sources_All!$A$5:$AT$204,$C$4+19)/1000 -> 0.01036603333 | AD32: =VLOOKUP($V32,Point_Sources_All!$A$5:$AT$204,$C$4+22)/1000 -> 0.02421675 | AE32: =VLOOKUP($V32,Point_Sources_All!$A$5:$AT$204,$C$4+25)/1000 -> 0.001088071667 | AF32: =VLOOKUP($V32,Point_Sources_All!$A$5:$AT$204,$C$4+28)/1000 -> 0.03397183333 | AG32: =VLOOKUP($V32,Point_Sources_All!$A$5:$AT$204,$C$4+31)/1000 -> 0.508105 | AH32: =VLOOKUP($V32,Point_Sources_All!$A$5:$AT$204,$C$4+34)/1000 -> 0 | AI32: =VLOOKUP($V32,Point_Sources_All!$A$5:$AT$204,$C$4+37)/1000 -> 0 | AJ32: =VLOOKUP($V32,Point_Sources_All!$A$5:$AT$204,$C$4+40)/1000 -> 0 | AK32: =VLOOKUP($V32,Point_Sources_All!$A$5:$AT$204,$C$4+43)/1000 -> 0 | AM32: =SUM(X$30:X32) -> 1.312139167 | AN32: =SUM(Y$30:Y32) -> 3.436358333 | AO32: =SUM(Z$30:Z32) -> 0 | AP32: =SUM(AA$30:AA32) -> 0 | AQ32: =SUM(AB$30:AB32) -> 0 | AR32: =SUM(AC$30:AC32) -> 0.031291725 | AS32: =SUM(AD$30:AD32) -> 0.07555858333 | AT32: =SUM(AE$30:AE32) -> 0.003386249167 | AU32: =SUM(AF$30:AF32) -> 0.10557875 | AV32: =SUM(AG$30:AG32) -> 1.517875 | AW32: =SUM(AH$30:AH32) -> 0 | AX32: =SUM(AI$30:AI32) -> 0 | AY32: =SUM(AJ$30:AJ32) -> 0 | AZ32: =SUM(AK$30:AK32) -> 0
A33: B | D33: 4 | E33: =VLOOKUP($D33,Point_Sources_All!$A$5:$AT$204,$C$4+1)/1000 -> 109.1298333 | F33: =VLOOKUP($D33,Point_Sources_All!$A$5:$AT$204,$C$4+4)/1000 -> 0 | G33: =VLOOKUP($D33,Point_Sources_All!$A$5:$AT$204,$C$4+7)/1000 -> 9.960175 | H33: =VLOOKUP($D33,Point_Sources_All!$A$5:$AT$204,$C$4+10)/1000 -> 0 | I33: =VLOOKUP($D33,Point_Sources_All!$A$5:$AT$204,$C$4+13)/1000 -> 42.61766667 | J33: =VLOOKUP($D33,Point_Sources_All!$A$5:$AT$204,$C$4+16)/1000 -> 1.577241667 | K33: =VLOOKUP($D33,Point_Sources_All!$A$5:$AT$204,$C$4+19)/1000 -> 0.6875708333 | L33: =VLOOKUP($D33,Point_Sources_All!$A$5:$AT$204,$C$4+22)/1000 -> 1.5575 | M33: =VLOOKUP($D33,Point_Sources_All!$A$5:$AT$204,$C$4+25)/1000 -> 0.2835825 | N33: =VLOOKUP($D33,Point_Sources_All!$A$5:$AT$204,$C$4+28)/1000 -> 10.0525 | O33: =VLOOKUP($D33,Point_Sources_All!$A$5:$AT$204,$C$4+31)/1000 -> 38.08316667 | P33: =VLOOKUP($D33,Point_Sources_All!$A$5:$AT$204,$C$4+34)/1000 -> 0 | Q33: =VLOOKUP($D33,Point_Sources_All!$A$5:$AT$204,$C$4+37)/1000 -> 0 | R33: =VLOOKUP($D33,Point_Sources_All!$A$5:$AT$204,$C$4+40)/1000 -> 0 | S33: =VLOOKUP($D33,Point_Sources_All!$A$5:$AT$204,$C$4+43)/1000 -> 0 | V33: 44 | W33: =VLOOKUP($V33,Point_Sources_All!$A$5:$AT$204,$C$4+1)/1000 -> 2.411166667 | X33: =VLOOKUP($V33,Point_Sources_All!$A$5:$AT$204,$C$4+4)/1000 -> 0.4386733333 | Y33: =VLOOKUP($V33,Point_Sources_All!$A$5:$AT$204,$C$4+7)/1000 -> 1.1461 | Z33: =VLOOKUP($V33,Point_Sources_All!$A$5:$AT$204,$C$4+10)/1000 -> 0 | AA33: =VLOOKUP($V33,Point_Sources_All!$A$5:$AT$204,$C$4+13)/1000 -> 0 | AB33: =VLOOKUP($V33,Point_Sources_All!$A$5:$AT$204,$C$4+16)/1000 -> 0 | AC33: =VLOOKUP($V33,Point_Sources_All!$A$5:$AT$204,$C$4+19)/1000 -> 0.0106535 | AD33: =VLOOKUP($V33,Point_Sources_All!$A$5:$AT$204,$C$4+22)/1000 -> 0.02371741667 | AE33: =VLOOKUP($V33,Point_Sources_All!$A$5:$AT$204,$C$4+25)/1000 -> 0.001066486667 | AF33: =VLOOKUP($V33,Point_Sources_All!$A$5:$AT$204,$C$4+28)/1000 -> 0.03346358333 | AG33: =VLOOKUP($V33,Point_Sources_All!$A$5:$AT$204,$C$4+31)/1000 -> 0.5209666667 | AH33: =VLOOKUP($V33,Point_Sources_All!$A$5:$AT$204,$C$4+34)/1000 -> 0 | AI33: =VLOOKUP($V33,Point_Sources_All!$A$5:$AT$204,$C$4+37)/1000 -> 0 | AJ33: =VLOOKUP($V33,Point_Sources_All!$A$5:$AT$204,$C$4+40)/1000 -> 0 | AK33: =VLOOKUP($V33,Point_Sources_All!$A$5:$AT$204,$C$4+43)/1000 -> 0 | AM33: =SUM(X$30:X33) -> 1.7508125 | AN33: =SUM(Y$30:Y33) -> 4.582458333 | AO33: =SUM(Z$30:Z33) -> 0 | AP33: =SUM(AA$30:AA33) -> 0 | AQ33: =SUM(AB$30:AB33) -> 0 | AR33: =SUM(AC$30:AC33) -> 0.041945225 | AS33: =SUM(AD$30:AD33) -> 0.099276 | AT33: =SUM(AE$30:AE33) -> 0.004452735833 | AU33: =SUM(AF$30:AF33) -> 0.1390423333 | AV33: =SUM(AG$30:AG33) -> 2.038841667 | AW33: =SUM(AH$30:AH33) -> 0 | AX33: =SUM(AI$30:AI33) -> 0 | AY33: =SUM(AJ$30:AJ33) -> 0 | AZ33: =SUM(AK$30:AK33) -> 0
A34: Ba | D34: 5 | E34: =VLOOKUP($D34,Point_Sources_All!$A$5:$AT$204,$C$4+1)/1000 -> 116.6661667 | F34: =VLOOKUP($D34,Point_Sources_All!$A$5:$AT$204,$C$4+4)/1000 -> 0 | G34: =VLOOKUP($D34,Point_Sources_All!$A$5:$AT$204,$C$4+7)/1000 -> 15.21091667 | H34: =VLOOKUP($D34,Point_Sources_All!$A$5:$AT$204,$C$4+10)/1000 -> 0 | I34: =VLOOKUP($D34,Point_Sources_All!$A$5:$AT$204,$C$4+13)/1000 -> 42.58408333 | J34: =VLOOKUP($D34,Point_Sources_All!$A$5:$AT$204,$C$4+16)/1000 -> 2.860725 | K34: =VLOOKUP($D34,Point_Sources_All!$A$5:$AT$204,$C$4+19)/1000 -> 0.6823916667 | L34: =VLOOKUP($D34,Point_Sources_All!$A$5:$AT$204,$C$4+22)/1000 -> 1.545775 | M34: =VLOOKUP($D34,Point_Sources_All!$A$5:$AT$204,$C$4+25)/1000 -> 0.2752025 | N34: =VLOOKUP($D34,Point_Sources_All!$A$5:$AT$204,$C$4+28)/1000 -> 9.976866667 | O34: =VLOOKUP($D34,Point_Sources_All!$A$5:$AT$204,$C$4+31)/1000 -> 38.133 | P34: =VLOOKUP($D34,Point_Sources_All!$A$5:$AT$204,$C$4+34)/1000 -> 0 | Q34: =VLOOKUP($D34,Point_Sources_All!$A$5:$AT$204,$C$4+37)/1000 -> 0 | R34: =VLOOKUP($D34,Point_Sources_All!$A$5:$AT$204,$C$4+40)/1000 -> 0 | S34: =VLOOKUP($D34,Point_Sources_All!$A$5:$AT$204,$C$4+43)/1000 -> 0 | V34: 45 | W34: =VLOOKUP($V34,Point_Sources_All!$A$5:$AT$204,$C$4+1)/1000 -> 2.391341667 | X34: =VLOOKUP($V34,Point_Sources_All!$A$5:$AT$204,$C$4+4)/1000 -> 0.4246141667 | Y34: =VLOOKUP($V34,Point_Sources_All!$A$5:$AT$204,$C$4+7)/1000 -> 1.143933333 | Z34: =VLOOKUP($V34,Point_Sources_All!$A$5:$AT$204,$C$4+10)/1000 -> 0 | AA34: =VLOOKUP($V34,Point_Sources_All!$A$5:$AT$204,$C$4+13)/1000 -> 0 | AB34: =VLOOKUP($V34,Point_Sources_All!$A$5:$AT$204,$C$4+16)/1000 -> 0 | AC34: =VLOOKUP($V34,Point_Sources_All!$A$5:$AT$204,$C$4+19)/1000 -> 0.010510775 | AD34: =VLOOKUP($V34,Point_Sources_All!$A$5:$AT$204,$C$4+22)/1000 -> 0.02188066667 | AE34: =VLOOKUP($V34,Point_Sources_All!$A$5:$AT$204,$C$4+25)/1000 -> 0.0010263225 | AF34: =VLOOKUP($V34,Point_Sources_All!$A$5:$AT$204,$C$4+28)/1000 -> 0.03219525 | AG34: =VLOOKUP($V34,Point_Sources_All!$A$5:$AT$204,$C$4+31)/1000 -> 0.5134016667 | AH34: =VLOOKUP($V34,Point_Sources_All!$A$5:$AT$204,$C$4+34)/1000 -> 0 | AI34: =VLOOKUP($V34,Point_Sources_All!$A$5:$AT$204,$C$4+37)/1000 -> 0 | AJ34: =VLOOKUP($V34,Point_Sources_All!$A$5:$AT$204,$C$4+40)/1000 -> 0 | AK34: =VLOOKUP($V34,Point_Sources_All!$A$5:$AT$204,$C$4+43)/1000 -> 0 | AM34: =SUM(X$30:X34) -> 2.175426667 | AN34: =SUM(Y$30:Y34) -> 5.726391667 | AO34: =SUM(Z$30:Z34) -> 0 | AP34: =SUM(AA$30:AA34) -> 0 | AQ34: =SUM(AB$30:AB34) -> 0 | AR34: =SUM(AC$30:AC34) -> 0.052456 | AS34: =SUM(AD$30:AD34) -> 0.1211566667 | AT34: =SUM(AE$30:AE34) -> 0.005479058333 | AU34: =SUM(AF$30:AF34) -> 0.1712375833 | AV34: =SUM(AG$30:AG34) -> 2.552243333 | AW34: =SUM(AH$30:AH34) -> 0 | AX34: =SUM(AI$30:AI34) -> 0 | AY34: =SUM(AJ$30:AJ34) -> 0 | AZ34: =SUM(AK$30:AK34) -> 0
A35: Be | D35: 6 | E35: =VLOOKUP($D35,Point_Sources_All!$A$5:$AT$204,$C$4+1)/1000 -> 124.0370833 | F35: =VLOOKUP($D35,Point_Sources_All!$A$5:$AT$204,$C$4+4)/1000 -> 0 | G35: =VLOOKUP($D35,Point_Sources_All!$A$5:$AT$204,$C$4+7)/1000 -> 19.83283333 | H35: =VLOOKUP($D35,Point_Sources_All!$A$5:$AT$204,$C$4+10)/1000 -> 0 | I35: =VLOOKUP($D35,Point_Sources_All!$A$5:$AT$204,$C$4+13)/1000 -> 42.1755 | J35: =VLOOKUP($D35,Point_Sources_All!$A$5:$AT$204,$C$4+16)/1000 -> 4.091858333 | K35: =VLOOKUP($D35,Point_Sources_All!$A$5:$AT$204,$C$4+19)/1000 -> 0.7113616667 | L35: =VLOOKUP($D35,Point_Sources_All!$A$5:$AT$204,$C$4+22)/1000 -> 1.611358333 | M35: =VLOOKUP($D35,Point_Sources_All!$A$5:$AT$204,$C$4+25)/1000 -> 0.2788483333 | N35: =VLOOKUP($D35,Point_Sources_All!$A$5:$AT$204,$C$4+28)/1000 -> 10.40033333 | O35: =VLOOKUP($D35,Point_Sources_All!$A$5:$AT$204,$C$4+31)/1000 -> 38.98633333 | P35: =VLOOKUP($D35,Point_Sources_All!$A$5:$AT$204,$C$4+34)/1000 -> 0 | Q35: =VLOOKUP($D35,Point_Sources_All!$A$5:$AT$204,$C$4+37)/1000 -> 0 | R35: =VLOOKUP($D35,Point_Sources_All!$A$5:$AT$204,$C$4+40)/1000 -> 0 | S35: =VLOOKUP($D35,Point_Sources_All!$A$5:$AT$204,$C$4+43)/1000 -> 0 | V35: 46 | W35: =VLOOKUP($V35,Point_Sources_All!$A$5:$AT$204,$C$4+1)/1000 -> 2.399408333 | X35: =VLOOKUP($V35,Point_Sources_All!$A$5:$AT$204,$C$4+4)/1000 -> 0.4264825 | Y35: =VLOOKUP($V35,Point_Sources_All!$A$5:$AT$204,$C$4+7)/1000 -> 1.144891667 | Z35: =VLOOKUP($V35,Point_Sources_All!$A$5:$AT$204,$C$4+10)/1000 -> 0 | AA35: =VLOOKUP($V35,Point_Sources_All!$A$5:$AT$204,$C$4+13)/1000 -> 0 | AB35: =VLOOKUP($V35,Point_Sources_All!$A$5:$AT$204,$C$4+16)/1000 -> 0 | AC35: =VLOOKUP($V35,Point_Sources_All!$A$5:$AT$204,$C$4+19)/1000 -> 0.01053081667 | AD35: =VLOOKUP($V35,Point_Sources_All!$A$5:$AT$204,$C$4+22)/1000 -> 0.02049858333 | AE35: =VLOOKUP($V35,Point_Sources_All!$A$5:$AT$204,$C$4+25)/1000 -> 0.0009687358333 | AF35: =VLOOKUP($V35,Point_Sources_All!$A$5:$AT$204,$C$4+28)/1000 -> 0.03016608333 | AG35: =VLOOKUP($V35,Point_Sources_All!$A$5:$AT$204,$C$4+31)/1000 -> 0.5061808333 | AH35: =VLOOKUP($V35,Point_Sources_All!$A$5:$AT$204,$C$4+34)/1000 -> 0 | AI35: =VLOOKUP($V35,Point_Sources_All!$A$5:$AT$204,$C$4+37)/1000 -> 0 | AJ35: =VLOOKUP($V35,Point_Sources_All!$A$5:$AT$204,$C$4+40)/1000 -> 0 | AK35: =VLOOKUP($V35,Point_Sources_All!$A$5:$AT$204,$C$4+43)/1000 -> 0 | AM35: =SUM(X$30:X35) -> 2.601909167 | AN35: =SUM(Y$30:Y35) -> 6.871283333 | AO35: =SUM(Z$30:Z35) -> 0 | AP35: =SUM(AA$30:AA35) -> 0 | AQ35: =SUM(AB$30:AB35) -> 0 | AR35: =SUM(AC$30:AC35) -> 0.06298681667 | AS35: =SUM(AD$30:AD35) -> 0.14165525 | AT35: =SUM(AE$30:AE35) -> 0.006447794167 | AU35: =SUM(AF$30:AF35) -> 0.2014036667 | AV35: =SUM(AG$30:AG35) -> 3.058424167 | AW35: =SUM(AH$30:AH35) -> 0 | AX35: =SUM(AI$30:AI35) -> 0 | AY35: =SUM(AJ$30:AJ35) -> 0 | AZ35: =SUM(AK$30:AK35) -> 0
A36: Ca | D36: 7 | E36: =VLOOKUP($D36,Point_Sources_All!$A$5:$AT$204,$C$4+1)/1000 -> 124.8230833 | F36: =VLOOKUP($D36,Point_Sources_All!$A$5:$AT$204,$C$4+4)/1000 -> 0 | G36: =VLOOKUP($D36,Point_Sources_All!$A$5:$AT$204,$C$4+7)/1000 -> 19.15916667 | H36: =VLOOKUP($D36,Point_Sources_All!$A$5:$AT$204,$C$4+10)/1000 -> 0 | I36: =VLOOKUP($D36,Point_Sources_All!$A$5:$AT$204,$C$4+13)/1000 -> 42.6005 | J36: =VLOOKUP($D36,Point_Sources_All!$A$5:$AT$204,$C$4+16)/1000 -> 5.589725 | K36: =VLOOKUP($D36,Point_Sources_All!$A$5:$AT$204,$C$4+19)/1000 -> 0.6916483333 | L36: =VLOOKUP($D36,Point_Sources_All!$A$5:$AT$204,$C$4+22)/1000 -> 1.566716667 | M36: =VLOOKUP($D36,Point_Sources_All!$A$5:$AT$204,$C$4+25)/1000 -> 0.2765683333 | N36: =VLOOKUP($D36,Point_Sources_All!$A$5:$AT$204,$C$4+28)/1000 -> 10.11216667 | O36: =VLOOKUP($D36,Point_Sources_All!$A$5:$AT$204,$C$4+31)/1000 -> 37.26075 | P36: =VLOOKUP($D36,Point_Sources_All!$A$5:$AT$204,$C$4+34)/1000 -> 0 | Q36: =VLOOKUP($D36,Point_Sources_All!$A$5:$AT$204,$C$4+37)/1000 -> 0 | R36: =VLOOKUP($D36,Point_Sources_All!$A$5:$AT$204,$C$4+40)/1000 -> 0 | S36: =VLOOKUP($D36,Point_Sources_All!$A$5:$AT$204,$C$4+43)/1000 -> 0 | V36: 47 | W36: =VLOOKUP($V36,Point_Sources_All!$A$5:$AT$204,$C$4+1)/1000 -> 2.402016667 | X36: =VLOOKUP($V36,Point_Sources_All!$A$5:$AT$204,$C$4+4)/1000 -> 0.429795 | Y36: =VLOOKUP($V36,Point_Sources_All!$A$5:$AT$204,$C$4+7)/1000 -> 1.143933333 | Z36: =VLOOKUP($V36,Point_Sources_All!$A$5:$AT$204,$C$4+10)/1000 -> 0 | AA36: =VLOOKUP($V36,Point_Sources_All!$A$5:$AT$204,$C$4+13)/1000 -> 0 | AB36: =VLOOKUP($V36,Point_Sources_All!$A$5:$AT$204,$C$4+16)/1000 -> 0 | AC36: =VLOOKUP($V36,Point_Sources_All!$A$5:$AT$204,$C$4+19)/1000 -> 0.01069586667 | AD36: =VLOOKUP($V36,Point_Sources_All!$A$5:$AT$204,$C$4+22)/1000 -> 0.02056441667 | AE36: =VLOOKUP($V36,Point_Sources_All!$A$5:$AT$204,$C$4+25)/1000 -> 0.0009941291667 | AF36: =VLOOKUP($V36,Point_Sources_All!$A$5:$AT$204,$C$4+28)/1000 -> 0.03108716667 | AG36: =VLOOKUP($V36,Point_Sources_All!$A$5:$AT$204,$C$4+31)/1000 -> 0.51437 | AH36: =VLOOKUP($V36,Point_Sources_All!$A$5:$AT$204,$C$4+34)/1000 -> 0 | AI36: =VLOOKUP($V36,Point_Sources_All!$A$5:$AT$204,$C$4+37)/1000 -> 0 | AJ36: =VLOOKUP($V36,Point_Sources_All!$A$5:$AT$204,$C$4+40)/1000 -> 0 | AK36: =VLOOKUP($V36,Point_Sources_All!$A$5:$AT$204,$C$4+43)/1000 -> 0 | AM36: =SUM(X$30:X36) -> 3.031704167 | AN36: =SUM(Y$30:Y36) -> 8.015216667 | AO36: =SUM(Z$30:Z36) -> 0 | AP36: =SUM(AA$30:AA36) -> 0 | AQ36: =SUM(AB$30:AB36) -> 0 | AR36: =SUM(AC$30:AC36) -> 0.07368268333 | AS36: =SUM(AD$30:AD36) -> 0.1622196667 | AT36: =SUM(AE$30:AE36) -> 0.007441923333 | AU36: =SUM(AF$30:AF36) -> 0.2324908333 | AV36: =SUM(AG$30:AG36) -> 3.572794167 | AW36: =SUM(AH$30:AH36) -> 0 | AX36: =SUM(AI$30:AI36) -> 0 | AY36: =SUM(AJ$30:AJ36) -> 0 | AZ36: =SUM(AK$30:AK36) -> 0
A37: Cd | D37: 8 | E37: =VLOOKUP($D37,Point_Sources_All!$A$5:$AT$204,$C$4+1)/1000 -> 126.3789167 | F37: =VLOOKUP($D37,Point_Sources_All!$A$5:$AT$204,$C$4+4)/1000 -> 0 | G37: =VLOOKUP($D37,Point_Sources_All!$A$5:$AT$204,$C$4+7)/1000 -> 19.76033333 | H37: =VLOOKUP($D37,Point_Sources_All!$A$5:$AT$204,$C$4+10)/1000 -> 0 | I37: =VLOOKUP($D37,Point_Sources_All!$A$5:$AT$204,$C$4+13)/1000 -> 42.41241667 | J37: =VLOOKUP($D37,Point_Sources_All!$A$5:$AT$204,$C$4+16)/1000 -> 7.218675 | K37: =VLOOKUP($D37,Point_Sources_All!$A$5:$AT$204,$C$4+19)/1000 -> 0.7027033333 | L37: =VLOOKUP($D37,Point_Sources_All!$A$5:$AT$204,$C$4+22)/1000 -> 1.59175 | M37: =VLOOKUP($D37,Point_Sources_All!$A$5:$AT$204,$C$4+25)/1000 -> 0.2826658333 | N37: =VLOOKUP($D37,Point_Sources_All!$A$5:$AT$204,$C$4+28)/1000 -> 10.27366667 | O37: =VLOOKUP($D37,Point_Sources_All!$A$5:$AT$204,$C$4+31)/1000 -> 38.13516667 | P37: =VLOOKUP($D37,Point_Sources_All!$A$5:$AT$204,$C$4+34)/1000 -> 0 | Q37: =VLOOKUP($D37,Point_Sources_All!$A$5:$AT$204,$C$4+37)/1000 -> 0 | R37: =VLOOKUP($D37,Point_Sources_All!$A$5:$AT$204,$C$4+40)/1000 -> 0 | S37: =VLOOKUP($D37,Point_Sources_All!$A$5:$AT$204,$C$4+43)/1000 -> 0 | V37: 48 | W37: =VLOOKUP($V37,Point_Sources_All!$A$5:$AT$204,$C$4+1)/1000 -> 2.373966667 | X37: =VLOOKUP($V37,Point_Sources_All!$A$5:$AT$204,$C$4+4)/1000 -> 0.4292675 | Y37: =VLOOKUP($V37,Point_Sources_All!$A$5:$AT$204,$C$4+7)/1000 -> 1.145141667 | Z37: =VLOOKUP($V37,Point_Sources_All!$A$5:$AT$204,$C$4+10)/1000 -> 0 | AA37: =VLOOKUP($V37,Point_Sources_All!$A$5:$AT$204,$C$4+13)/1000 -> 0 | AB37: =VLOOKUP($V37,Point_Sources_All!$A$5:$AT$204,$C$4+16)/1000 -> 0 | AC37: =VLOOKUP($V37,Point_Sources_All!$A$5:$AT$204,$C$4+19)/1000 -> 0.01063800833 | AD37: =VLOOKUP($V37,Point_Sources_All!$A$5:$AT$204,$C$4+22)/1000 -> 0.01932516667 | AE37: =VLOOKUP($V37,Point_Sources_All!$A$5:$AT$204,$C$4+25)/1000 -> 0.00093036 | AF37: =VLOOKUP($V37,Point_Sources_All!$A$5:$AT$204,$C$4+28)/1000 -> 0.02939308333 | AG37: =VLOOKUP($V37,Point_Sources_All!$A$5:$AT$204,$C$4+31)/1000 -> 0.5182133333 | AH37: =VLOOKUP($V37,Point_Sources_All!$A$5:$AT$204,$C$4+34)/1000 -> 0 | AI37: =VLOOKUP($V37,Point_Sources_All!$A$5:$AT$204,$C$4+37)/1000 -> 0 | AJ37: =VLOOKUP($V37,Point_Sources_All!$A$5:$AT$204,$C$4+40)/1000 -> 0 | AK37: =VLOOKUP($V37,Point_Sources_All!$A$5:$AT$204,$C$4+43)/1000 -> 0 | AM37: =SUM(X$30:X37) -> 3.460971667 | AN37: =SUM(Y$30:Y37) -> 9.160358333 | AO37: =SUM(Z$30:Z37) -> 0 | AP37: =SUM(AA$30:AA37) -> 0 | AQ37: =SUM(AB$30:AB37) -> 0 | AR37: =SUM(AC$30:AC37) -> 0.08432069167 | AS37: =SUM(AD$30:AD37) -> 0.1815448333 | AT37: =SUM(AE$30:AE37) -> 0.008372283333 | AU37: =SUM(AF$30:AF37) -> 0.2618839167 | AV37: =SUM(AG$30:AG37) -> 4.0910075 | AW37: =SUM(AH$30:AH37) -> 0 | AX37: =SUM(AI$30:AI37) -> 0 | AY37: =SUM(AJ$30:AJ37) -> 0 | AZ37: =SUM(AK$30:AK37) -> 0
A38: Cl | D38: 9 | E38: =VLOOKUP($D38,Point_Sources_All!$A$5:$AT$204,$C$4+1)/1000 -> 136.1038333 | F38: =VLOOKUP($D38,Point_Sources_All!$A$5:$AT$204,$C$4+4)/1000 -> 0 | G38: =VLOOKUP($D38,Point_Sources_All!$A$5:$AT$204,$C$4+7)/1000 -> 25.56641667 | H38: =VLOOKUP($D38,Point_Sources_All!$A$5:$AT$204,$C$4+10)/1000 -> 0 | I38: =VLOOKUP($D38,Point_Sources_All!$A$5:$AT$204,$C$4+13)/1000 -> 42.25508333 | J38: =VLOOKUP($D38,Point_Sources_All!$A$5:$AT$204,$C$4+16)/1000 -> 9.30345 | K38: =VLOOKUP($D38,Point_Sources_All!$A$5:$AT$204,$C$4+19)/1000 -> 0.6878716667 | L38: =VLOOKUP($D38,Point_Sources_All!$A$5:$AT$204,$C$4+22)/1000 -> 1.558175 | M38: =VLOOKUP($D38,Point_Sources_All!$A$5:$AT$204,$C$4+25)/1000 -> 0.2744158333 | N38: =VLOOKUP($D38,Point_Sources_All!$A$5:$AT$204,$C$4+28)/1000 -> 10.05666667 | O38: =VLOOKUP($D38,Point_Sources_All!$A$5:$AT$204,$C$4+31)/1000 -> 38.36208333 | P38: =VLOOKUP($D38,Point_Sources_All!$A$5:$AT$204,$C$4+34)/1000 -> 0 | Q38: =VLOOKUP($D38,Point_Sources_All!$A$5:$AT$204,$C$4+37)/1000 -> 0 | R38: =VLOOKUP($D38,Point_Sources_All!$A$5:$AT$204,$C$4+40)/1000 -> 0 | S38: =VLOOKUP($D38,Point_Sources_All!$A$5:$AT$204,$C$4+43)/1000 -> 0 | V38: 49 | W38: =VLOOKUP($V38,Point_Sources_All!$A$5:$AT$204,$C$4+1)/1000 -> 2.389916667 | X38: =VLOOKUP($V38,Point_Sources_All!$A$5:$AT$204,$C$4+4)/1000 -> 0.4330783333 | Y38: =VLOOKUP($V38,Point_Sources_All!$A$5:$AT$204,$C$4+7)/1000 -> 1.144608333 | Z38: =VLOOKUP($V38,Point_Sources_All!$A$5:$AT$204,$C$4+10)/1000 -> 0 | AA38: =VLOOKUP($V38,Point_Sources_All!$A$5:$AT$204,$C$4+13)/1000 -> 0 | AB38: =VLOOKUP($V38,Point_Sources_All!$A$5:$AT$204,$C$4+16)/1000 -> 0 | AC38: =VLOOKUP($V38,Point_Sources_All!$A$5:$AT$204,$C$4+19)/1000 -> 0.01050320833 | AD38: =VLOOKUP($V38,Point_Sources_All!$A$5:$AT$204,$C$4+22)/1000 -> 0.01846441667 | AE38: =VLOOKUP($V38,Point_Sources_All!$A$5:$AT$204,$C$4+25)/1000 -> 0.0009169125 | AF38: =VLOOKUP($V38,Point_Sources_All!$A$5:$AT$204,$C$4+28)/1000 -> 0.02860616667 | AG38: =VLOOKUP($V38,Point_Sources_All!$A$5:$AT$204,$C$4+31)/1000 -> 0.504905 | AH38: =VLOOKUP($V38,Point_Sources_All!$A$5:$AT$204,$C$4+34)/1000 -> 0 | AI38: =VLOOKUP($V38,Point_Sources_All!$A$5:$AT$204,$C$4+37)/1000 -> 0 | AJ38: =VLOOKUP($V38,Point_Sources_All!$A$5:$AT$204,$C$4+40)/1000 -> 0 | AK38: =VLOOKUP($V38,Point_Sources_All!$A$5:$AT$204,$C$4+43)/1000 -> 0 | AM38: =SUM(X$30:X38) -> 3.89405 | AN38: =SUM(Y$30:Y38) -> 10.30496667 | AO38: =SUM(Z$30:Z38) -> 0 | AP38: =SUM(AA$30:AA38) -> 0 | AQ38: =SUM(AB$30:AB38) -> 0 | AR38: =SUM(AC$30:AC38) -> 0.0948239 | AS38: =SUM(AD$30:AD38) -> 0.20000925 | AT38: =SUM(AE$30:AE38) -> 0.009289195833 | AU38: =SUM(AF$30:AF38) -> 0.2904900833 | AV38: =SUM(AG$30:AG38) -> 4.5959125 | AW38: =SUM(AH$30:AH38) -> 0 | AX38: =SUM(AI$30:AI38) -> 0 | AY38: =SUM(AJ$30:AJ38) -> 0 | AZ38: =SUM(AK$30:AK38) -> 0
A39: Co | D39: 10 | E39: =VLOOKUP($D39,Point_Sources_All!$A$5:$AT$204,$C$4+1)/1000 -> 145.2975 | F39: =VLOOKUP($D39,Point_Sources_All!$A$5:$AT$204,$C$4+4)/1000 -> 0 | G39: =VLOOKUP($D39,Point_Sources_All!$A$5:$AT$204,$C$4+7)/1000 -> 31.68941667 | H39: =VLOOKUP($D39,Point_Sources_All!$A$5:$AT$204,$C$4+10)/1000 -> 0 | I39: =VLOOKUP($D39,Point_Sources_All!$A$5:$AT$204,$C$4+13)/1000 -> 42.55208333 | J39: =VLOOKUP($D39,Point_Sources_All!$A$5:$AT$204,$C$4+16)/1000 -> 11.02758333 | K39: =VLOOKUP($D39,Point_Sources_All!$A$5:$AT$204,$C$4+19)/1000 -> 0.6894308333 | L39: =VLOOKUP($D39,Point_Sources_All!$A$5:$AT$204,$C$4+22)/1000 -> 1.5617 | M39: =VLOOKUP($D39,Point_Sources_All!$A$5:$AT$204,$C$4+25)/1000 -> 0.2838708333 | N39: =VLOOKUP($D39,Point_Sources_All!$A$5:$AT$204,$C$4+28)/1000 -> 10.0795 | O39: =VLOOKUP($D39,Point_Sources_All!$A$5:$AT$204,$C$4+31)/1000 -> 38.55583333 | P39: =VLOOKUP($D39,Point_Sources_All!$A$5:$AT$204,$C$4+34)/1000 -> 0 | Q39: =VLOOKUP($D39,Point_Sources_All!$A$5:$AT$204,$C$4+37)/1000 -> 0 | R39: =VLOOKUP($D39,Point_Sources_All!$A$5:$AT$204,$C$4+40)/1000 -> 0 | S39: =VLOOKUP($D39,Point_Sources_All!$A$5:$AT$204,$C$4+43)/1000 -> 0 | V39: 50 | W39: =VLOOKUP($V39,Point_Sources_All!$A$5:$AT$204,$C$4+1)/1000 -> 2.411141667 | X39: =VLOOKUP($V39,Point_Sources_All!$A$5:$AT$204,$C$4+4)/1000 -> 0.4265116667 | Y39: =VLOOKUP($V39,Point_Sources_All!$A$5:$AT$204,$C$4+7)/1000 -> 1.140908333 | Z39: =VLOOKUP($V39,Point_Sources_All!$A$5:$AT$204,$C$4+10)/1000 -> 0 | AA39: =VLOOKUP($V39,Point_Sources_All!$A$5:$AT$204,$C$4+13)/1000 -> 0 | AB39: =VLOOKUP($V39,Point_Sources_All!$A$5:$AT$204,$C$4+16)/1000 -> 0 | AC39: =VLOOKUP($V39,Point_Sources_All!$A$5:$AT$204,$C$4+19)/1000 -> 0.01064184167 | AD39: =VLOOKUP($V39,Point_Sources_All!$A$5:$AT$204,$C$4+22)/1000 -> 0.01785508333 | AE39: =VLOOKUP($V39,Point_Sources_All!$A$5:$AT$204,$C$4+25)/1000 -> 0.0008650258333 | AF39: =VLOOKUP($V39,Point_Sources_All!$A$5:$AT$204,$C$4+28)/1000 -> 0.02715916667 | AG39: =VLOOKUP($V39,Point_Sources_All!$A$5:$AT$204,$C$4+31)/1000 -> 0.5150608333 | AH39: =VLOOKUP($V39,Point_Sources_All!$A$5:$AT$204,$C$4+34)/1000 -> 0 | AI39: =VLOOKUP($V39,Point_Sources_All!$A$5:$AT$204,$C$4+37)/1000 -> 0 | AJ39: =VLOOKUP($V39,Point_Sources_All!$A$5:$AT$204,$C$4+40)/1000 -> 0 | AK39: =VLOOKUP($V39,Point_Sources_All!$A$5:$AT$204,$C$4+43)/1000 -> 0 | AM39: =SUM(X$30:X39) -> 4.320561667 | AN39: =SUM(Y$30:Y39) -> 11.445875 | AO39: =SUM(Z$30:Z39) -> 0 | AP39: =SUM(AA$30:AA39) -> 0 | AQ39: =SUM(AB$30:AB39) -> 0 | AR39: =SUM(AC$30:AC39) -> 0.1054657417 | AS39: =SUM(AD$30:AD39) -> 0.2178643333 | AT39: =SUM(AE$30:AE39) -> 0.01015422167 | AU39: =SUM(AF$30:AF39) -> 0.31764925 | AV39: =SUM(AG$30:AG39) -> 5.110973333 | AW39: =SUM(AH$30:AH39) -> 0 | AX39: =SUM(AI$30:AI39) -> 0 | AY39: =SUM(AJ$30:AJ39) -> 0 | AZ39: =SUM(AK$30:AK39) -> 0
A40: Cr | D40: 11 | E40: =VLOOKUP($D40,Point_Sources_All!$A$5:$AT$204,$C$4+1)/1000 -> 34792.00333 | F40: =VLOOKUP($D40,Point_Sources_All!$A$5:$AT$204,$C$4+4)/1000 -> 0 | G40: =VLOOKUP($D40,Point_Sources_All!$A$5:$AT$204,$C$4+7)/1000 -> 37.07325 | H40: =VLOOKUP($D40,Point_Sources_All!$A$5:$AT$204,$C$4+10)/1000 -> 3.009 | I40: =VLOOKUP($D40,Point_Sources_All!$A$5:$AT$204,$C$4+13)/1000 -> 13.0625484 | J40: =VLOOKUP($D40,Point_Sources_All!$A$5:$AT$204,$C$4+16)/1000 -> 12.01858333 | K40: =VLOOKUP($D40,Point_Sources_All!$A$5:$AT$204,$C$4+19)/1000 -> 1.346436667 | L40: =VLOOKUP($D40,Point_Sources_All!$A$5:$AT$204,$C$4+22)/1000 -> 3.131816667 | M40: =VLOOKUP($D40,Point_Sources_All!$A$5:$AT$204,$C$4+25)/1000 -> 0.9597425 | N40: =VLOOKUP($D40,Point_Sources_All!$A$5:$AT$204,$C$4+28)/1000 -> 37.403 | O40: =VLOOKUP($D40,Point_Sources_All!$A$5:$AT$204,$C$4+31)/1000 -> 61.76283333 | P40: =VLOOKUP($D40,Point_Sources_All!$A$5:$AT$204,$C$4+34)/1000 -> 0 | Q40: =VLOOKUP($D40,Point_Sources_All!$A$5:$AT$204,$C$4+37)/1000 -> 0 | R40: =VLOOKUP($D40,Point_Sources_All!$A$5:$AT$204,$C$4+40)/1000 -> 1663.841667 | S40: =VLOOKUP($D40,Point_Sources_All!$A$5:$AT$204,$C$4+43)/1000 -> 30581.75 | V40: 51 | W40: =VLOOKUP($V40,Point_Sources_All!$A$5:$AT$204,$C$4+1)/1000 -> 2.396308333 | X40: =VLOOKUP($V40,Point_Sources_All!$A$5:$AT$204,$C$4+4)/1000 -> 0.4319625 | Y40: =VLOOKUP($V40,Point_Sources_All!$A$5:$AT$204,$C$4+7)/1000 -> 1.143916667 | Z40: =VLOOKUP($V40,Point_Sources_All!$A$5:$AT$204,$C$4+10)/1000 -> 0 | AA40: =VLOOKUP($V40,Point_Sources_All!$A$5:$AT$204,$C$4+13)/1000 -> 0 | AB40: =VLOOKUP($V40,Point_Sources_All!$A$5:$AT$204,$C$4+16)/1000 -> 0 | AC40: =VLOOKUP($V40,Point_Sources_All!$A$5:$AT$204,$C$4+19)/1000 -> 0.01074330833 | AD40: =VLOOKUP($V40,Point_Sources_All!$A$5:$AT$204,$C$4+22)/1000 -> 0.01782875 | AE40: =VLOOKUP($V40,Point_Sources_All!$A$5:$AT$204,$C$4+25)/1000 -> 0.000874845 | AF40: =VLOOKUP($V40,Point_Sources_All!$A$5:$AT$204,$C$4+28)/1000 -> 0.02757358333 | AG40: =VLOOKUP($V40,Point_Sources_All!$A$5:$AT$204,$C$4+31)/1000 -> 0.5189066667 | AH40: =VLOOKUP($V40,Point_Sources_All!$A$5:$AT$204,$C$4+34)/1000 -> 0 | AI40: =VLOOKUP($V40,Point_Sources_All!$A$5:$AT$204,$C$4+37)/1000 -> 0 | AJ40: =VLOOKUP($V40,Point_Sources_All!$A$5:$AT$204,$C$4+40)/1000 -> 0 | AK40: =VLOOKUP($V40,Point_Sources_All!$A$5:$AT$204,$C$4+43)/1000 -> 0 | AM40: =SUM(X$30:X40) -> 4.752524167 | AN40: =SUM(Y$30:Y40) -> 12.58979167 | AO40: =SUM(Z$30:Z40) -> 0 | AP40: =SUM(AA$30:AA40) -> 0 | AQ40: =SUM(AB$30:AB40) -> 0 | AR40: =SUM(AC$30:AC40) -> 0.11620905 | AS40: =SUM(AD$30:AD40) -> 0.2356930833 | AT40: =SUM(AE$30:AE40) -> 0.01102906667 | AU40: =SUM(AF$30:AF40) -> 0.3452228333 | AV40: =SUM(AG$30:AG40) -> 5.62988 | AW40: =SUM(AH$30:AH40) -> 0 | AX40: =SUM(AI$30:AI40) -> 0 | AY40: =SUM(AJ$30:AJ40) -> 0 | AZ40: =SUM(AK$30:AK40) -> 0
A41: Cu | D41: 12 | E41: =VLOOKUP($D41,Point_Sources_All!$A$5:$AT$204,$C$4+1)/1000 -> 11659.51667 | F41: =VLOOKUP($D41,Point_Sources_All!$A$5:$AT$204,$C$4+4)/1000 -> 0 | G41: =VLOOKUP($D41,Point_Sources_All!$A$5:$AT$204,$C$4+7)/1000 -> 38.46833333 | H41: =VLOOKUP($D41,Point_Sources_All!$A$5:$AT$204,$C$4+10)/1000 -> 4.90575 | I41: =VLOOKUP($D41,Point_Sources_All!$A$5:$AT$204,$C$4+13)/1000 -> 1.106696024e-11 | J41: =VLOOKUP($D41,Point_Sources_All!$A$5:$AT$204,$C$4+16)/1000 -> 11.60266667 | K41: =VLOOKUP($D41,Point_Sources_All!$A$5:$AT$204,$C$4+19)/1000 -> 1.697984167 | L41: =VLOOKUP($D41,Point_Sources_All!$A$5:$AT$204,$C$4+22)/1000 -> 2.515416667 | M41: =VLOOKUP($D41,Point_Sources_All!$A$5:$AT$204,$C$4+25)/1000 -> 0.6919175 | N41: =VLOOKUP($D41,Point_Sources_All!$A$5:$AT$204,$C$4+28)/1000 -> 24.08508333 | O41: =VLOOKUP($D41,Point_Sources_All!$A$5:$AT$204,$C$4+31)/1000 -> 75.07 | P41: =VLOOKUP($D41,Point_Sources_All!$A$5:$AT$204,$C$4+34)/1000 -> 0 | Q41: =VLOOKUP($D41,Point_Sources_All!$A$5:$AT$204,$C$4+37)/1000 -> 1903.141667 | R41: =VLOOKUP($D41,Point_Sources_All!$A$5:$AT$204,$C$4+40)/1000 -> 457.8054942 | S41: =VLOOKUP($D41,Point_Sources_All!$A$5:$AT$204,$C$4+43)/1000 -> 8378.833383 | V41: 52 | W41: =VLOOKUP($V41,Point_Sources_All!$A$5:$AT$204,$C$4+1)/1000 -> 2.383291667 | X41: =VLOOKUP($V41,Point_Sources_All!$A$5:$AT$204,$C$4+4)/1000 -> 0.4057241667 | Y41: =VLOOKUP($V41,Point_Sources_All!$A$5:$AT$204,$C$4+7)/1000 -> 1.144716667 | Z41: =VLOOKUP($V41,Point_Sources_All!$A$5:$AT$204,$C$4+10)/1000 -> 0 | AA41: =VLOOKUP($V41,Point_Sources_All!$A$5:$AT$204,$C$4+13)/1000 -> 0 | AB41: =VLOOKUP($V41,Point_Sources_All!$A$5:$AT$204,$C$4+16)/1000 -> 0 | AC41: =VLOOKUP($V41,Point_Sources_All!$A$5:$AT$204,$C$4+19)/1000 -> 0.0104677 | AD41: =VLOOKUP($V41,Point_Sources_All!$A$5:$AT$204,$C$4+22)/1000 -> 0.01652183333 | AE41: =VLOOKUP($V41,Point_Sources_All!$A$5:$AT$204,$C$4+25)/1000 -> 0.0008309941667 | AF41: =VLOOKUP($V41,Point_Sources_All!$A$5:$AT$204,$C$4+28)/1000 -> 0.0259575 | AG41: =VLOOKUP($V41,Point_Sources_All!$A$5:$AT$204,$C$4+31)/1000 -> 0.5045891667 | AH41: =VLOOKUP($V41,Point_Sources_All!$A$5:$AT$204,$C$4+34)/1000 -> 0 | AI41: =VLOOKUP($V41,Point_Sources_All!$A$5:$AT$204,$C$4+37)/1000 -> 0 | AJ41: =VLOOKUP($V41,Point_Sources_All!$A$5:$AT$204,$C$4+40)/1000 -> 0 | AK41: =VLOOKUP($V41,Point_Sources_All!$A$5:$AT$204,$C$4+43)/1000 -> 0
A42: F | D42: 13 | E42: =VLOOKUP($D42,Point_Sources_All!$A$5:$AT$204,$C$4+1)/1000 -> 1530.9475 | F42: =VLOOKUP($D42,Point_Sources_All!$A$5:$AT$204,$C$4+4)/1000 -> 0 | G42: =VLOOKUP($D42,Point_Sources_All!$A$5:$AT$204,$C$4+7)/1000 -> 35.75908333 | H42: =VLOOKUP($D42,Point_Sources_All!$A$5:$AT$204,$C$4+10)/1000 -> 5.651 | I42: =VLOOKUP($D42,Point_Sources_All!$A$5:$AT$204,$C$4+13)/1000 -> 0 | J42: =VLOOKUP($D42,Point_Sources_All!$A$5:$AT$204,$C$4+16)/1000 -> 10.966925 | K42: =VLOOKUP($D42,Point_Sources_All!$A$5:$AT$204,$C$4+19)/1000 -> 1.0682525 | L42: =VLOOKUP($D42,Point_Sources_All!$A$5:$AT$204,$C$4+22)/1000 -> 2.801058333 | M42: =VLOOKUP($D42,Point_Sources_All!$A$5:$AT$204,$C$4+25)/1000 -> 0.7273525 | N42: =VLOOKUP($D42,Point_Sources_All!$A$5:$AT$204,$C$4+28)/1000 -> 12.23599167 | O42: =VLOOKUP($D42,Point_Sources_All!$A$5:$AT$204,$C$4+31)/1000 -> 74.17883333 | P42: =VLOOKUP($D42,Point_Sources_All!$A$5:$AT$204,$C$4+34)/1000 -> 0.9441041667 | Q42: =VLOOKUP($D42,Point_Sources_All!$A$5:$AT$204,$C$4+37)/1000 -> 1374.328583 | R42: =VLOOKUP($D42,Point_Sources_All!$A$5:$AT$204,$C$4+40)/1000 -> 0.3530575 | S42: =VLOOKUP($D42,Point_Sources_All!$A$5:$AT$204,$C$4+43)/1000 -> 0.1350151083 | V42: 53 | W42: =VLOOKUP($V42,Point_Sources_All!$A$5:$AT$204,$C$4+1)/1000 -> 2.396516667 | X42: =VLOOKUP($V42,Point_Sources_All!$A$5:$AT$204,$C$4+4)/1000 -> 0.4269416667 | Y42: =VLOOKUP($V42,Point_Sources_All!$A$5:$AT$204,$C$4+7)/1000 -> 1.142408333 | Z42: =VLOOKUP($V42,Point_Sources_All!$A$5:$AT$204,$C$4+10)/1000 -> 0 | AA42: =VLOOKUP($V42,Point_Sources_All!$A$5:$AT$204,$C$4+13)/1000 -> 0 | AB42: =VLOOKUP($V42,Point_Sources_All!$A$5:$AT$204,$C$4+16)/1000 -> 0 | AC42: =VLOOKUP($V42,Point_Sources_All!$A$5:$AT$204,$C$4+19)/1000 -> 0.0109895 | AD42: =VLOOKUP($V42,Point_Sources_All!$A$5:$AT$204,$C$4+22)/1000 -> 0.01730966667 | AE42: =VLOOKUP($V42,Point_Sources_All!$A$5:$AT$204,$C$4+25)/1000 -> 0.0008424441667 | AF42: =VLOOKUP($V42,Point_Sources_All!$A$5:$AT$204,$C$4+28)/1000 -> 0.02636183333 | AG42: =VLOOKUP($V42,Point_Sources_All!$A$5:$AT$204,$C$4+31)/1000 -> 0.5191375 | AH42: =VLOOKUP($V42,Point_Sources_All!$A$5:$AT$204,$C$4+34)/1000 -> 0 | AI42: =VLOOKUP($V42,Point_Sources_All!$A$5:$AT$204,$C$4+37)/1000 -> 0 | AJ42: =VLOOKUP($V42,Point_Sources_All!$A$5:$AT$204,$C$4+40)/1000 -> 0 | AK42: =VLOOKUP($V42,Point_Sources_All!$A$5:$AT$204,$C$4+43)/1000 -> 0
A43: Fe | D43: 14 | E43: =VLOOKUP($D43,Point_Sources_All!$A$5:$AT$204,$C$4+1)/1000 -> 223.0433333 | F43: =VLOOKUP($D43,Point_Sources_All!$A$5:$AT$204,$C$4+4)/1000 -> 0 | G43: =VLOOKUP($D43,Point_Sources_All!$A$5:$AT$204,$C$4+7)/1000 -> 33.52716667 | H43: =VLOOKUP($D43,Point_Sources_All!$A$5:$AT$204,$C$4+10)/1000 -> 0 | I43: =VLOOKUP($D43,Point_Sources_All!$A$5:$AT$204,$C$4+13)/1000 -> 0 | J43: =VLOOKUP($D43,Point_Sources_All!$A$5:$AT$204,$C$4+16)/1000 -> 9.024541667 | K43: =VLOOKUP($D43,Point_Sources_All!$A$5:$AT$204,$C$4+19)/1000 -> 0.4926208333 | L43: =VLOOKUP($D43,Point_Sources_All!$A$5:$AT$204,$C$4+22)/1000 -> 1.211383333 | M43: =VLOOKUP($D43,Point_Sources_All!$A$5:$AT$204,$C$4+25)/1000 -> 0.1228966667 | N43: =VLOOKUP($D43,Point_Sources_All!$A$5:$AT$204,$C$4+28)/1000 -> 5.040666667 | O43: =VLOOKUP($D43,Point_Sources_All!$A$5:$AT$204,$C$4+31)/1000 -> 28.562 | P43: =VLOOKUP($D43,Point_Sources_All!$A$5:$AT$204,$C$4+34)/1000 -> 5.676208333 | Q43: =VLOOKUP($D43,Point_Sources_All!$A$5:$AT$204,$C$4+37)/1000 -> 125.0901667 | R43: =VLOOKUP($D43,Point_Sources_All!$A$5:$AT$204,$C$4+40)/1000 -> 0.602855 | S43: =VLOOKUP($D43,Point_Sources_All!$A$5:$AT$204,$C$4+43)/1000 -> 0 | V43: 54 | W43: =VLOOKUP($V43,Point_Sources_All!$A$5:$AT$204,$C$4+1)/1000 -> 2.404791667 | X43: =VLOOKUP($V43,Point_Sources_All!$A$5:$AT$204,$C$4+4)/1000 -> 0.4272808333 | Y43: =VLOOKUP($V43,Point_Sources_All!$A$5:$AT$204,$C$4+7)/1000 -> 1.143975 | Z43: =VLOOKUP($V43,Point_Sources_All!$A$5:$AT$204,$C$4+10)/1000 -> 0 | AA43: =VLOOKUP($V43,Point_Sources_All!$A$5:$AT$204,$C$4+13)/1000 -> 0 | AB43: =VLOOKUP($V43,Point_Sources_All!$A$5:$AT$204,$C$4+16)/1000 -> 0 | AC43: =VLOOKUP($V43,Point_Sources_All!$A$5:$AT$204,$C$4+19)/1000 -> 0.01066539167 | AD43: =VLOOKUP($V43,Point_Sources_All!$A$5:$AT$204,$C$4+22)/1000 -> 0.016762 | AE43: =VLOOKUP($V43,Point_Sources_All!$A$5:$AT$204,$C$4+25)/1000 -> 0.0008360875 | AF43: =VLOOKUP($V43,Point_Sources_All!$A$5:$AT$204,$C$4+28)/1000 -> 0.02639408333 | AG43: =VLOOKUP($V43,Point_Sources_All!$A$5:$AT$204,$C$4+31)/1000 -> 0.5232925 | AH43: =VLOOKUP($V43,Point_Sources_All!$A$5:$AT$204,$C$4+34)/1000 -> 0 | AI43: =VLOOKUP($V43,Point_Sources_All!$A$5:$AT$204,$C$4+37)/1000 -> 0 | AJ43: =VLOOKUP($V43,Point_Sources_All!$A$5:$AT$204,$C$4+40)/1000 -> 0 | AK43: =VLOOKUP($V43,Point_Sources_All!$A$5:$AT$204,$C$4+43)/1000 -> 0
A44: K | D44: 15 | E44: =VLOOKUP($D44,Point_Sources_All!$A$5:$AT$204,$C$4+1)/1000 -> 234.4283333 | F44: =VLOOKUP($D44,Point_Sources_All!$A$5:$AT$204,$C$4+4)/1000 -> 0 | G44: =VLOOKUP($D44,Point_Sources_All!$A$5:$AT$204,$C$4+7)/1000 -> 33.12041667 | H44: =VLOOKUP($D44,Point_Sources_All!$A$5:$AT$204,$C$4+10)/1000 -> 0 | I44: =VLOOKUP($D44,Point_Sources_All!$A$5:$AT$204,$C$4+13)/1000 -> 0 | J44: =VLOOKUP($D44,Point_Sources_All!$A$5:$AT$204,$C$4+16)/1000 -> 6.940158333 | K44: =VLOOKUP($D44,Point_Sources_All!$A$5:$AT$204,$C$4+19)/1000 -> 0.49011 | L44: =VLOOKUP($D44,Point_Sources_All!$A$5:$AT$204,$C$4+22)/1000 -> 1.205208333 | M44: =VLOOKUP($D44,Point_Sources_All!$A$5:$AT$204,$C$4+25)/1000 -> 0.1214283333 | N44: =VLOOKUP($D44,Point_Sources_All!$A$5:$AT$204,$C$4+28)/1000 -> 5.014983333 | O44: =VLOOKUP($D44,Point_Sources_All!$A$5:$AT$204,$C$4+31)/1000 -> 28.11466667 | P44: =VLOOKUP($D44,Point_Sources_All!$A$5:$AT$204,$C$4+34)/1000 -> 11.61554167 | Q44: =VLOOKUP($D44,Point_Sources_All!$A$5:$AT$204,$C$4+37)/1000 -> 133.30225 | R44: =VLOOKUP($D44,Point_Sources_All!$A$5:$AT$204,$C$4+40)/1000 -> 0.8204533333 | S44: =VLOOKUP($D44,Point_Sources_All!$A$5:$AT$204,$C$4+43)/1000 -> 0 | V44: 55 | W44: =VLOOKUP($V44,Point_Sources_All!$A$5:$AT$204,$C$4+1)/1000 -> 2.4057 | X44: =VLOOKUP($V44,Point_Sources_All!$A$5:$AT$204,$C$4+4)/1000 -> 0.4387933333 | Y44: =VLOOKUP($V44,Point_Sources_All!$A$5:$AT$204,$C$4+7)/1000 -> 1.140966667 | Z44: =VLOOKUP($V44,Point_Sources_All!$A$5:$AT$204,$C$4+10)/1000 -> 0 | AA44: =VLOOKUP($V44,Point_Sources_All!$A$5:$AT$204,$C$4+13)/1000 -> 0 | AB44: =VLOOKUP($V44,Point_Sources_All!$A$5:$AT$204,$C$4+16)/1000 -> 0 | AC44: =VLOOKUP($V44,Point_Sources_All!$A$5:$AT$204,$C$4+19)/1000 -> 0.01047508333 | AD44: =VLOOKUP($V44,Point_Sources_All!$A$5:$AT$204,$C$4+22)/1000 -> 0.01582033333 | AE44: =VLOOKUP($V44,Point_Sources_All!$A$5:$AT$204,$C$4+25)/1000 -> 0.0007820216667 | AF44: =VLOOKUP($V44,Point_Sources_All!$A$5:$AT$204,$C$4+28)/1000 -> 0.02456675 | AG44: =VLOOKUP($V44,Point_Sources_All!$A$5:$AT$204,$C$4+31)/1000 -> 0.5150666667 | AH44: =VLOOKUP($V44,Point_Sources_All!$A$5:$AT$204,$C$4+34)/1000 -> 0 | AI44: =VLOOKUP($V44,Point_Sources_All!$A$5:$AT$204,$C$4+37)/1000 -> 0 | AJ44: =VLOOKUP($V44,Point_Sources_All!$A$5:$AT$204,$C$4+40)/1000 -> 0 | AK44: =VLOOKUP($V44,Point_Sources_All!$A$5:$AT$204,$C$4+43)/1000 -> 0
A45: Mg | D45: 16 | E45: =VLOOKUP($D45,Point_Sources_All!$A$5:$AT$204,$C$4+1)/1000 -> 8788.4825 | F45: =VLOOKUP($D45,Point_Sources_All!$A$5:$AT$204,$C$4+4)/1000 -> 0 | G45: =VLOOKUP($D45,Point_Sources_All!$A$5:$AT$204,$C$4+7)/1000 -> 33.62225 | H45: =VLOOKUP($D45,Point_Sources_All!$A$5:$AT$204,$C$4+10)/1000 -> 359.5366667 | I45: =VLOOKUP($D45,Point_Sources_All!$A$5:$AT$204,$C$4+13)/1000 -> 0 | J45: =VLOOKUP($D45,Point_Sources_All!$A$5:$AT$204,$C$4+16)/1000 -> 4.847125 | K45: =VLOOKUP($D45,Point_Sources_All!$A$5:$AT$204,$C$4+19)/1000 -> 2.750511667 | L45: =VLOOKUP($D45,Point_Sources_All!$A$5:$AT$204,$C$4+22)/1000 -> 4.48455 | M45: =VLOOKUP($D45,Point_Sources_All!$A$5:$AT$204,$C$4+25)/1000 -> 0.4847666667 | N45: =VLOOKUP($D45,Point_Sources_All!$A$5:$AT$204,$C$4+28)/1000 -> 27.772925 | O45: =VLOOKUP($D45,Point_Sources_All!$A$5:$AT$204,$C$4+31)/1000 -> 153.0325833 | P45: =VLOOKUP($D45,Point_Sources_All!$A$5:$AT$204,$C$4+34)/1000 -> 45.30183333 | Q45: =VLOOKUP($D45,Point_Sources_All!$A$5:$AT$204,$C$4+37)/1000 -> 8100.742917 | R45: =VLOOKUP($D45,Point_Sources_All!$A$5:$AT$204,$C$4+40)/1000 -> 46.7068625 | S45: =VLOOKUP($D45,Point_Sources_All!$A$5:$AT$204,$C$4+43)/1000 -> 0.000493865 | V45: 56 | W45: =VLOOKUP($V45,Point_Sources_All!$A$5:$AT$204,$C$4+1)/1000 -> 2.377675 | X45: =VLOOKUP($V45,Point_Sources_All!$A$5:$AT$204,$C$4+4)/1000 -> 0.4092941667 | Y45: =VLOOKUP($V45,Point_Sources_All!$A$5:$AT$204,$C$4+7)/1000 -> 1.140791667 | Z45: =VLOOKUP($V45,Point_Sources_All!$A$5:$AT$204,$C$4+10)/1000 -> 0 | AA45: =VLOOKUP($V45,Point_Sources_All!$A$5:$AT$204,$C$4+13)/1000 -> 0 | AB45: =VLOOKUP($V45,Point_Sources_All!$A$5:$AT$204,$C$4+16)/1000 -> 0 | AC45: =VLOOKUP($V45,Point_Sources_All!$A$5:$AT$204,$C$4+19)/1000 -> 0.01070815833 | AD45: =VLOOKUP($V45,Point_Sources_All!$A$5:$AT$204,$C$4+22)/1000 -> 0.01585016667 | AE45: =VLOOKUP($V45,Point_Sources_All!$A$5:$AT$204,$C$4+25)/1000 -> 0.000792965 | AF45: =VLOOKUP($V45,Point_Sources_All!$A$5:$AT$204,$C$4+28)/1000 -> 0.0250505 | AG45: =VLOOKUP($V45,Point_Sources_All!$A$5:$AT$204,$C$4+31)/1000 -> 0.522025 | AH45: =VLOOKUP($V45,Point_Sources_All!$A$5:$AT$204,$C$4+34)/1000 -> 0 | AI45: =VLOOKUP($V45,Point_Sources_All!$A$5:$AT$204,$C$4+37)/1000 -> 0 | AJ45: =VLOOKUP($V45,Point_Sources_All!$A$5:$AT$204,$C$4+40)/1000 -> 0 | AK45: =VLOOKUP($V45,Point_Sources_All!$A$5:$AT$204,$C$4+43)/1000 -> 0
A46: Mn | D46: 17 | E46: =VLOOKUP($D46,Point_Sources_All!$A$5:$AT$204,$C$4+1)/1000 -> 11371.43333 | F46: =VLOOKUP($D46,Point_Sources_All!$A$5:$AT$204,$C$4+4)/1000 -> 0 | G46: =VLOOKUP($D46,Point_Sources_All!$A$5:$AT$204,$C$4+7)/1000 -> 31.84258333 | H46: =VLOOKUP($D46,Point_Sources_All!$A$5:$AT$204,$C$4+10)/1000 -> 350.3116667 | I46: =VLOOKUP($D46,Point_Sources_All!$A$5:$AT$204,$C$4+13)/1000 -> 0 | J46: =VLOOKUP($D46,Point_Sources_All!$A$5:$AT$204,$C$4+16)/1000 -> 3.264116667 | K46: =VLOOKUP($D46,Point_Sources_All!$A$5:$AT$204,$C$4+19)/1000 -> 1.663373333 | L46: =VLOOKUP($D46,Point_Sources_All!$A$5:$AT$204,$C$4+22)/1000 -> 6.611816667 | M46: =VLOOKUP($D46,Point_Sources_All!$A$5:$AT$204,$C$4+25)/1000 -> 0.8134783333 | N46: =VLOOKUP($D46,Point_Sources_All!$A$5:$AT$204,$C$4+28)/1000 -> 30.338 | O46: =VLOOKUP($D46,Point_Sources_All!$A$5:$AT$204,$C$4+31)/1000 -> 116.6253333 | P46: =VLOOKUP($D46,Point_Sources_All!$A$5:$AT$204,$C$4+34)/1000 -> 43.21583333 | Q46: =VLOOKUP($D46,Point_Sources_All!$A$5:$AT$204,$C$4+37)/1000 -> 10580.25833 | R46: =VLOOKUP($D46,Point_Sources_All!$A$5:$AT$204,$C$4+40)/1000 -> 104.1834167 | S46: =VLOOKUP($D46,Point_Sources_All!$A$5:$AT$204,$C$4+43)/1000 -> 0.00035689 | V46: 57 | W46: =VLOOKUP($V46,Point_Sources_All!$A$5:$AT$204,$C$4+1)/1000 -> 2.395575 | X46: =VLOOKUP($V46,Point_Sources_All!$A$5:$AT$204,$C$4+4)/1000 -> 0.4315641667 | Y46: =VLOOKUP($V46,Point_Sources_All!$A$5:$AT$204,$C$4+7)/1000 -> 1.14105 | Z46: =VLOOKUP($V46,Point_Sources_All!$A$5:$AT$204,$C$4+10)/1000 -> 0 | AA46: =VLOOKUP($V46,Point_Sources_All!$A$5:$AT$204,$C$4+13)/1000 -> 0 | AB46: =VLOOKUP($V46,Point_Sources_All!$A$5:$AT$204,$C$4+16)/1000 -> 0 | AC46: =VLOOKUP($V46,Point_Sources_All!$A$5:$AT$204,$C$4+19)/1000 -> 0.01077680833 | AD46: =VLOOKUP($V46,Point_Sources_All!$A$5:$AT$204,$C$4+22)/1000 -> 0.0156345 | AE46: =VLOOKUP($V46,Point_Sources_All!$A$5:$AT$204,$C$4+25)/1000 -> 0.0007802175 | AF46: =VLOOKUP($V46,Point_Sources_All!$A$5:$AT$204,$C$4+28)/1000 -> 0.02457908333 | AG46: =VLOOKUP($V46,Point_Sources_All!$A$5:$AT$204,$C$4+31)/1000 -> 0.5134025 | AH46: =VLOOKUP($V46,Point_Sources_All!$A$5:$AT$204,$C$4+34)/1000 -> 0 | AI46: =VLOOKUP($V46,Point_Sources_All!$A$5:$AT$204,$C$4+37)/1000 -> 0 | AJ46: =VLOOKUP($V46,Point_Sources_All!$A$5:$AT$204,$C$4+40)/1000 -> 0 | AK46: =VLOOKUP($V46,Point_Sources_All!$A$5:$AT$204,$C$4+43)/1000 -> 0
A47: Na | D47: 18 | E47: =VLOOKUP($D47,Point_Sources_All!$A$5:$AT$204,$C$4+1)/1000 -> 8851.083333 | F47: =VLOOKUP($D47,Point_Sources_All!$A$5:$AT$204,$C$4+4)/1000 -> 0 | G47: =VLOOKUP($D47,Point_Sources_All!$A$5:$AT$204,$C$4+7)/1000 -> 22.57608333 | H47: =VLOOKUP($D47,Point_Sources_All!$A$5:$AT$204,$C$4+10)/1000 -> 240.6905833 | I47: =VLOOKUP($D47,Point_Sources_All!$A$5:$AT$204,$C$4+13)/1000 -> 0 | J47: =VLOOKUP($D47,Point_Sources_All!$A$5:$AT$204,$C$4+16)/1000 -> 2.1601 | K47: =VLOOKUP($D47,Point_Sources_All!$A$5:$AT$204,$C$4+19)/1000 -> 1.60963 | L47: =VLOOKUP($D47,Point_Sources_All!$A$5:$AT$204,$C$4+22)/1000 -> 4.74535 | M47: =VLOOKUP($D47,Point_Sources_All!$A$5:$AT$204,$C$4+25)/1000 -> 0.226546 | N47: =VLOOKUP($D47,Point_Sources_All!$A$5:$AT$204,$C$4+28)/1000 -> 14.96678333 | O47: =VLOOKUP($D47,Point_Sources_All!$A$5:$AT$204,$C$4+31)/1000 -> 88.69783333 | P47: =VLOOKUP($D47,Point_Sources_All!$A$5:$AT$204,$C$4+34)/1000 -> 15.58518333 | Q47: =VLOOKUP($D47,Point_Sources_All!$A$5:$AT$204,$C$4+37)/1000 -> 8343.108333 | R47: =VLOOKUP($D47,Point_Sources_All!$A$5:$AT$204,$C$4+40)/1000 -> 45.57083333 | S47: =VLOOKUP($D47,Point_Sources_All!$A$5:$AT$204,$C$4+43)/1000 -> 8.041216667e-05 | V47: 58 | W47: =VLOOKUP($V47,Point_Sources_All!$A$5:$AT$204,$C$4+1)/1000 -> 2.38425 | X47: =VLOOKUP($V47,Point_Sources_All!$A$5:$AT$204,$C$4+4)/1000 -> 0.4120625 | Y47: =VLOOKUP($V47,Point_Sources_All!$A$5:$AT$204,$C$4+7)/1000 -> 1.141166667 | Z47: =VLOOKUP($V47,Point_Sources_All!$A$5:$AT$204,$C$4+10)/1000 -> 0 | AA47: =VLOOKUP($V47,Point_Sources_All!$A$5:$AT$204,$C$4+13)/1000 -> 0 | AB47: =VLOOKUP($V47,Point_Sources_All!$A$5:$AT$204,$C$4+16)/1000 -> 0 | AC47: =VLOOKUP($V47,Point_Sources_All!$A$5:$AT$204,$C$4+19)/1000 -> 0.0107503 | AD47: =VLOOKUP($V47,Point_Sources_All!$A$5:$AT$204,$C$4+22)/1000 -> 0.01531416667 | AE47: =VLOOKUP($V47,Point_Sources_All!$A$5:$AT$204,$C$4+25)/1000 -> 0.0007770991667 | AF47: =VLOOKUP($V47,Point_Sources_All!$A$5:$AT$204,$C$4+28)/1000 -> 0.02450275 | AG47: =VLOOKUP($V47,Point_Sources_All!$A$5:$AT$204,$C$4+31)/1000 -> 0.5271225 | AH47: =VLOOKUP($V47,Point_Sources_All!$A$5:$AT$204,$C$4+34)/1000 -> 0 | AI47: =VLOOKUP($V47,Point_Sources_All!$A$5:$AT$204,$C$4+37)/1000 -> 0 | AJ47: =VLOOKUP($V47,Point_Sources_All!$A$5:$AT$204,$C$4+40)/1000 -> 0 | AK47: =VLOOKUP($V47,Point_Sources_All!$A$5:$AT$204,$C$4+43)/1000 -> 0
A48: Ni | D48: 19 | E48: =VLOOKUP($D48,Point_Sources_All!$A$5:$AT$204,$C$4+1)/1000 -> 5687.591667 | F48: =VLOOKUP($D48,Point_Sources_All!$A$5:$AT$204,$C$4+4)/1000 -> 0 | G48: =VLOOKUP($D48,Point_Sources_All!$A$5:$AT$204,$C$4+7)/1000 -> 13.15016667 | H48: =VLOOKUP($D48,Point_Sources_All!$A$5:$AT$204,$C$4+10)/1000 -> 163.0716667 | I48: =VLOOKUP($D48,Point_Sources_All!$A$5:$AT$204,$C$4+13)/1000 -> 0 | J48: =VLOOKUP($D48,Point_Sources_All!$A$5:$AT$204,$C$4+16)/1000 -> 1.14646 | K48: =VLOOKUP($D48,Point_Sources_All!$A$5:$AT$204,$C$4+19)/1000 -> 1.0010925 | L48: =VLOOKUP($D48,Point_Sources_All!$A$5:$AT$204,$C$4+22)/1000 -> 2.147283333 | M48: =VLOOKUP($D48,Point_Sources_All!$A$5:$AT$204,$C$4+25)/1000 -> 0.2898658333 | N48: =VLOOKUP($D48,Point_Sources_All!$A$5:$AT$204,$C$4+28)/1000 -> 6.063441667 | O48: =VLOOKUP($D48,Point_Sources_All!$A$5:$AT$204,$C$4+31)/1000 -> 50.37125 | P48: =VLOOKUP($D48,Point_Sources_All!$A$5:$AT$204,$C$4+34)/1000 -> 3.797566667 | Q48: =VLOOKUP($D48,Point_Sources_All!$A$5:$AT$204,$C$4+37)/1000 -> 5386.9 | R48: =VLOOKUP($D48,Point_Sources_All!$A$5:$AT$204,$C$4+40)/1000 -> 8.152516667 | S48: =VLOOKUP($D48,Point_Sources_All!$A$5:$AT$204,$C$4+43)/1000 -> 2.087416667e-06 | V48: 59 | W48: =VLOOKUP($V48,Point_Sources_All!$A$5:$AT$204,$C$4+1)/1000 -> 2.402958333 | X48: =VLOOKUP($V48,Point_Sources_All!$A$5:$AT$204,$C$4+4)/1000 -> 0.4149416667 | Y48: =VLOOKUP($V48,Point_Sources_All!$A$5:$AT$204,$C$4+7)/1000 -> 1.139775 | Z48: =VLOOKUP($V48,Point_Sources_All!$A$5:$AT$204,$C$4+10)/1000 -> 0 | AA48: =VLOOKUP($V48,Point_Sources_All!$A$5:$AT$204,$C$4+13)/1000 -> 0 | AB48: =VLOOKUP($V48,Point_Sources_All!$A$5:$AT$204,$C$4+16)/1000 -> 0 | AC48: =VLOOKUP($V48,Point_Sources_All!$A$5:$AT$204,$C$4+19)/1000 -> 0.01077675833 | AD48: =VLOOKUP($V48,Point_Sources_All!$A$5:$AT$204,$C$4+22)/1000 -> 0.01492575 | AE48: =VLOOKUP($V48,Point_Sources_All!$A$5:$AT$204,$C$4+25)/1000 -> 0.0007568866667 | AF48: =VLOOKUP($V48,Point_Sources_All!$A$5:$AT$204,$C$4+28)/1000 -> 0.0238515 | AG48: =VLOOKUP($V48,Point_Sources_All!$A$5:$AT$204,$C$4+31)/1000 -> 0.5323958333 | AH48: =VLOOKUP($V48,Point_Sources_All!$A$5:$AT$204,$C$4+34)/1000 -> 0 | AI48: =VLOOKUP($V48,Point_Sources_All!$A$5:$AT$204,$C$4+37)/1000 -> 0 | AJ48: =VLOOKUP($V48,Point_Sources_All!$A$5:$AT$204,$C$4+40)/1000 -> 0 | AK48: =VLOOKUP($V48,Point_Sources_All!$A$5:$AT$204,$C$4+43)/1000 -> 0
A49: Pb | D49: 20 | E49: =VLOOKUP($D49,Point_Sources_All!$A$5:$AT$204,$C$4+1)/1000 -> 1487.823333 | F49: =VLOOKUP($D49,Point_Sources_All!$A$5:$AT$204,$C$4+4)/1000 -> 0 | G49: =VLOOKUP($D49,Point_Sources_All!$A$5:$AT$204,$C$4+7)/1000 -> 7.46645 | H49: =VLOOKUP($D49,Point_Sources_All!$A$5:$AT$204,$C$4+10)/1000 -> 161.2461667 | I49: =VLOOKUP($D49,Point_Sources_All!$A$5:$AT$204,$C$4+13)/1000 -> 0 | J49: =VLOOKUP($D49,Point_Sources_All!$A$5:$AT$204,$C$4+16)/1000 -> 0.4487075 | K49: =VLOOKUP($D49,Point_Sources_All!$A$5:$AT$204,$C$4+19)/1000 -> 0.8423675 | L49: =VLOOKUP($D49,Point_Sources_All!$A$5:$AT$204,$C$4+22)/1000 -> 1.353039167 | M49: =VLOOKUP($D49,Point_Sources_All!$A$5:$AT$204,$C$4+25)/1000 -> 0.1853921667 | N49: =VLOOKUP($D49,Point_Sources_All!$A$5:$AT$204,$C$4+28)/1000 -> 6.237783333 | O49: =VLOOKUP($D49,Point_Sources_All!$A$5:$AT$204,$C$4+31)/1000 -> 37.36875 | P49: =VLOOKUP($D49,Point_Sources_All!$A$5:$AT$204,$C$4+34)/1000 -> 4.155316667 | Q49: =VLOOKUP($D49,Point_Sources_All!$A$5:$AT$204,$C$4+37)/1000 -> 1244.25 | R49: =VLOOKUP($D49,Point_Sources_All!$A$5:$AT$204,$C$4+40)/1000 -> 6.9971 | S49: =VLOOKUP($D49,Point_Sources_All!$A$5:$AT$204,$C$4+43)/1000 -> 2.361071667e-08 | V49: 60 | W49: =VLOOKUP($V49,Point_Sources_All!$A$5:$AT$204,$C$4+1)/1000 -> 2.394833333 | X49: =VLOOKUP($V49,Point_Sources_All!$A$5:$AT$204,$C$4+4)/1000 -> 0.42041 | Y49: =VLOOKUP($V49,Point_Sources_All!$A$5:$AT$204,$C$4+7)/1000 -> 1.138625 | Z49: =VLOOKUP($V49,Point_Sources_All!$A$5:$AT$204,$C$4+10)/1000 -> 0 | AA49: =VLOOKUP($V49,Point_Sources_All!$A$5:$AT$204,$C$4+13)/1000 -> 0 | AB49: =VLOOKUP($V49,Point_Sources_All!$A$5:$AT$204,$C$4+16)/1000 -> 0 | AC49: =VLOOKUP($V49,Point_Sources_All!$A$5:$AT$204,$C$4+19)/1000 -> 0.0106904 | AD49: =VLOOKUP($V49,Point_Sources_All!$A$5:$AT$204,$C$4+22)/1000 -> 0.01412733333 | AE49: =VLOOKUP($V49,Point_Sources_All!$A$5:$AT$204,$C$4+25)/1000 -> 0.0007196008333 | AF49: =VLOOKUP($V49,Point_Sources_All!$A$5:$AT$204,$C$4+28)/1000 -> 0.02285691667 | AG49: =VLOOKUP($V49,Point_Sources_All!$A$5:$AT$204,$C$4+31)/1000 -> 0.5194991667 | AH49: =VLOOKUP($V49,Point_Sources_All!$A$5:$AT$204,$C$4+34)/1000 -> 0 | AI49: =VLOOKUP($V49,Point_Sources_All!$A$5:$AT$204,$C$4+37)/1000 -> 0 | AJ49: =VLOOKUP($V49,Point_Sources_All!$A$5:$AT$204,$C$4+40)/1000 -> 0 | AK49: =VLOOKUP($V49,Point_Sources_All!$A$5:$AT$204,$C$4+43)/1000 -> 0
A50: Sb | D50: 21 | E50: =VLOOKUP($D50,Point_Sources_All!$A$5:$AT$204,$C$4+1)/1000 -> 300.3086833 | F50: =VLOOKUP($D50,Point_Sources_All!$A$5:$AT$204,$C$4+4)/1000 -> 0.4196516667 | G50: =VLOOKUP($D50,Point_Sources_All!$A$5:$AT$204,$C$4+7)/1000 -> 2.15385 | H50: =VLOOKUP($D50,Point_Sources_All!$A$5:$AT$204,$C$4+10)/1000 -> 226.5781667 | I50: =VLOOKUP($D50,Point_Sources_All!$A$5:$AT$204,$C$4+13)/1000 -> 0 | J50: =VLOOKUP($D50,Point_Sources_All!$A$5:$AT$204,$C$4+16)/1000 -> 0.082752875 | K50: =VLOOKUP($D50,Point_Sources_All!$A$5:$AT$204,$C$4+19)/1000 -> 0.33692525 | L50: =VLOOKUP($D50,Point_Sources_All!$A$5:$AT$204,$C$4+22)/1000 -> 0.6285295833 | M50: =VLOOKUP($D50,Point_Sources_All!$A$5:$AT$204,$C$4+25)/1000 -> 0.035674975 | N50: =VLOOKUP($D50,Point_Sources_All!$A$5:$AT$204,$C$4+28)/1000 -> 2.724533333 | O50: =VLOOKUP($D50,Point_Sources_All!$A$5:$AT$204,$C$4+31)/1000 -> 13.74619833 | P50: =VLOOKUP($D50,Point_Sources_All!$A$5:$AT$204,$C$4+34)/1000 -> 1.858111759 | Q50: =VLOOKUP($D50,Point_Sources_All!$A$5:$AT$204,$C$4+37)/1000 -> 43.37189167 | R50: =VLOOKUP($D50,Point_Sources_All!$A$5:$AT$204,$C$4+40)/1000 -> 2.747246833 | S50: =VLOOKUP($D50,Point_Sources_All!$A$5:$AT$204,$C$4+43)/1000 -> 5.161975e-10 | V50: 61 | W50: =VLOOKUP($V50,Point_Sources_All!$A$5:$AT$204,$C$4+1)/1000 -> 2.383183333 | X50: =VLOOKUP($V50,Point_Sources_All!$A$5:$AT$204,$C$4+4)/1000 -> 0.4162575 | Y50: =VLOOKUP($V50,Point_Sources_All!$A$5:$AT$204,$C$4+7)/1000 -> 1.140833333 | Z50: =VLOOKUP($V50,Point_Sources_All!$A$5:$AT$204,$C$4+10)/1000 -> 0 | AA50: =VLOOKUP($V50,Point_Sources_All!$A$5:$AT$204,$C$4+13)/1000 -> 0 | AB50: =VLOOKUP($V50,Point_Sources_All!$A$5:$AT$204,$C$4+16)/1000 -> 0 | AC50: =VLOOKUP($V50,Point_Sources_All!$A$5:$AT$204,$C$4+19)/1000 -> 0.01076763333 | AD50: =VLOOKUP($V50,Point_Sources_All!$A$5:$AT$204,$C$4+22)/1000 -> 0.01425983333 | AE50: =VLOOKUP($V50,Point_Sources_All!$A$5:$AT$204,$C$4+25)/1000 -> 0.0007398841667 | AF50: =VLOOKUP($V50,Point_Sources_All!$A$5:$AT$204,$C$4+28)/1000 -> 0.02307866667 | AG50: =VLOOKUP($V50,Point_Sources_All!$A$5:$AT$204,$C$4+31)/1000 -> 0.52876 | AH50: =VLOOKUP($V50,Point_Sources_All!$A$5:$AT$204,$C$4+34)/1000 -> 0 | AI50: =VLOOKUP($V50,Point_Sources_All!$A$5:$AT$204,$C$4+37)/1000 -> 0 | AJ50: =VLOOKUP($V50,Point_Sources_All!$A$5:$AT$204,$C$4+40)/1000 -> 0 | AK50: =VLOOKUP($V50,Point_Sources_All!$A$5:$AT$204,$C$4+43)/1000 -> 0
A51: Se | D51: 22 | E51: =VLOOKUP($D51,Point_Sources_All!$A$5:$AT$204,$C$4+1)/1000 -> 3.734233333 | F51: =VLOOKUP($D51,Point_Sources_All!$A$5:$AT$204,$C$4+4)/1000 -> 0.4199933333 | G51: =VLOOKUP($D51,Point_Sources_All!$A$5:$AT$204,$C$4+7)/1000 -> 1.423675 | H51: =VLOOKUP($D51,Point_Sources_All!$A$5:$AT$204,$C$4+10)/1000 -> 0 | I51: =VLOOKUP($D51,Point_Sources_All!$A$5:$AT$204,$C$4+13)/1000 -> 0 | J51: =VLOOKUP($D51,Point_Sources_All!$A$5:$AT$204,$C$4+16)/1000 -> 7.026666667e-05 | K51: =VLOOKUP($D51,Point_Sources_All!$A$5:$AT$204,$C$4+19)/1000 -> 0.02756591667 | L51: =VLOOKUP($D51,Point_Sources_All!$A$5:$AT$204,$C$4+22)/1000 -> 0.03589695833 | M51: =VLOOKUP($D51,Point_Sources_All!$A$5:$AT$204,$C$4+25)/1000 -> 0.004493991667 | N51: =VLOOKUP($D51,Point_Sources_All!$A$5:$AT$204,$C$4+28)/1000 -> 0.2167618333 | O51: =VLOOKUP($D51,Point_Sources_All!$A$5:$AT$204,$C$4+31)/1000 -> 1.2600025 | P51: =VLOOKUP($D51,Point_Sources_All!$A$5:$AT$204,$C$4+34)/1000 -> 1.75051555e-16 | Q51: =VLOOKUP($D51,Point_Sources_All!$A$5:$AT$204,$C$4+37)/1000 -> 0 | R51: =VLOOKUP($D51,Point_Sources_All!$A$5:$AT$204,$C$4+40)/1000 -> 0 | S51: =VLOOKUP($D51,Point_Sources_All!$A$5:$AT$204,$C$4+43)/1000 -> 0 | V51: 62 | W51: =VLOOKUP($V51,Point_Sources_All!$A$5:$AT$204,$C$4+1)/1000 -> 2.387616667 | X51: =VLOOKUP($V51,Point_Sources_All!$A$5:$AT$204,$C$4+4)/1000 -> 0.4252758333 | Y51: =VLOOKUP($V51,Point_Sources_All!$A$5:$AT$204,$C$4+7)/1000 -> 1.142725 | Z51: =VLOOKUP($V51,Point_Sources_All!$A$5:$AT$204,$C$4+10)/1000 -> 0 | AA51: =VLOOKUP($V51,Point_Sources_All!$A$5:$AT$204,$C$4+13)/1000 -> 0 | AB51: =VLOOKUP($V51,Point_Sources_All!$A$5:$AT$204,$C$4+16)/1000 -> 0 | AC51: =VLOOKUP($V51,Point_Sources_All!$A$5:$AT$204,$C$4+19)/1000 -> 0.01079263333 | AD51: =VLOOKUP($V51,Point_Sources_All!$A$5:$AT$204,$C$4+22)/1000 -> 0.01349341667 | AE51: =VLOOKUP($V51,Point_Sources_All!$A$5:$AT$204,$C$4+25)/1000 -> 0.0006957883333 | AF51: =VLOOKUP($V51,Point_Sources_All!$A$5:$AT$204,$C$4+28)/1000 -> 0.02196566667 | AG51: =VLOOKUP($V51,Point_Sources_All!$A$5:$AT$204,$C$4+31)/1000 -> 0.5221066667 | AH51: =VLOOKUP($V51,Point_Sources_All!$A$5:$AT$204,$C$4+34)/1000 -> 0 | AI51: =VLOOKUP($V51,Point_Sources_All!$A$5:$AT$204,$C$4+37)/1000 -> 0 | AJ51: =VLOOKUP($V51,Point_Sources_All!$A$5:$AT$204,$C$4+40)/1000 -> 0 | AK51: =VLOOKUP($V51,Point_Sources_All!$A$5:$AT$204,$C$4+43)/1000 -> 0
A52: SO4 | D52: 23 | E52: =VLOOKUP($D52,Point_Sources_All!$A$5:$AT$204,$C$4+1)/1000 -> 3.45855 | F52: =VLOOKUP($D52,Point_Sources_All!$A$5:$AT$204,$C$4+4)/1000 -> 0.4417366667 | G52: =VLOOKUP($D52,Point_Sources_All!$A$5:$AT$204,$C$4+7)/1000 -> 1.310016667 | H52: =VLOOKUP($D52,Point_Sources_All!$A$5:$AT$204,$C$4+10)/1000 -> 0 | I52: =VLOOKUP($D52,Point_Sources_All!$A$5:$AT$204,$C$4+13)/1000 -> 0 | J52: =VLOOKUP($D52,Point_Sources_All!$A$5:$AT$204,$C$4+16)/1000 -> 0 | K52: =VLOOKUP($D52,Point_Sources_All!$A$5:$AT$204,$C$4+19)/1000 -> 0.02457341667 | L52: =VLOOKUP($D52,Point_Sources_All!$A$5:$AT$204,$C$4+22)/1000 -> 0.03073356667 | M52: =VLOOKUP($D52,Point_Sources_All!$A$5:$AT$204,$C$4+25)/1000 -> 0.0043419 | N52: =VLOOKUP($D52,Point_Sources_All!$A$5:$AT$204,$C$4+28)/1000 -> 0.1962479167 | O52: =VLOOKUP($D52,Point_Sources_All!$A$5:$AT$204,$C$4+31)/1000 -> 1.148149167 | P52: =VLOOKUP($D52,Point_Sources_All!$A$5:$AT$204,$C$4+34)/1000 -> 0 | Q52: =VLOOKUP($D52,Point_Sources_All!$A$5:$AT$204,$C$4+37)/1000 -> 0 | R52: =VLOOKUP($D52,Point_Sources_All!$A$5:$AT$204,$C$4+40)/1000 -> 0 | S52: =VLOOKUP($D52,Point_Sources_All!$A$5:$AT$204,$C$4+43)/1000 -> 0 | V52: 63 | W52: =VLOOKUP($V52,Point_Sources_All!$A$5:$AT$204,$C$4+1)/1000 -> 2.386125 | X52: =VLOOKUP($V52,Point_Sources_All!$A$5:$AT$204,$C$4+4)/1000 -> 0.421985 | Y52: =VLOOKUP($V52,Point_Sources_All!$A$5:$AT$204,$C$4+7)/1000 -> 1.1399 | Z52: =VLOOKUP($V52,Point_Sources_All!$A$5:$AT$204,$C$4+10)/1000 -> 0 | AA52: =VLOOKUP($V52,Point_Sources_All!$A$5:$AT$204,$C$4+13)/1000 -> 0 | AB52: =VLOOKUP($V52,Point_Sources_All!$A$5:$AT$204,$C$4+16)/1000 -> 0 | AC52: =VLOOKUP($V52,Point_Sources_All!$A$5:$AT$204,$C$4+19)/1000 -> 0.01067608333 | AD52: =VLOOKUP($V52,Point_Sources_All!$A$5:$AT$204,$C$4+22)/1000 -> 0.0138135 | AE52: =VLOOKUP($V52,Point_Sources_All!$A$5:$AT$204,$C$4+25)/1000 -> 0.0007092516667 | AF52: =VLOOKUP($V52,Point_Sources_All!$A$5:$AT$204,$C$4+28)/1000 -> 0.022244 | AG52: =VLOOKUP($V52,Point_Sources_All!$A$5:$AT$204,$C$4+31)/1000 -> 0.5112591667 | AH52: =VLOOKUP($V52,Point_Sources_All!$A$5:$AT$204,$C$4+34)/1000 -> 0 | AI52: =VLOOKUP($V52,Point_Sources_All!$A$5:$AT$204,$C$4+37)/1000 -> 0 | AJ52: =VLOOKUP($V52,Point_Sources_All!$A$5:$AT$204,$C$4+40)/1000 -> 0 | AK52: =VLOOKUP($V52,Point_Sources_All!$A$5:$AT$204,$C$4+43)/1000 -> 0
A53: Tl | D53: 24 | E53: =VLOOKUP($D53,Point_Sources_All!$A$5:$AT$204,$C$4+1)/1000 -> 3.195133333 | F53: =VLOOKUP($D53,Point_Sources_All!$A$5:$AT$204,$C$4+4)/1000 -> 0.4164775 | G53: =VLOOKUP($D53,Point_Sources_All!$A$5:$AT$204,$C$4+7)/1000 -> 1.242008333 | H53: =VLOOKUP($D53,Point_Sources_All!$A$5:$AT$204,$C$4+10)/1000 -> 0 | I53: =VLOOKUP($D53,Point_Sources_All!$A$5:$AT$204,$C$4+13)/1000 -> 0 | J53: =VLOOKUP($D53,Point_Sources_All!$A$5:$AT$204,$C$4+16)/1000 -> 0 | K53: =VLOOKUP($D53,Point_Sources_All!$A$5:$AT$204,$C$4+19)/1000 -> 0.0211509 | L53: =VLOOKUP($D53,Point_Sources_All!$A$5:$AT$204,$C$4+22)/1000 -> 0.02642288333 | M53: =VLOOKUP($D53,Point_Sources_All!$A$5:$AT$204,$C$4+25)/1000 -> 0.004267983333 | N53: =VLOOKUP($D53,Point_Sources_All!$A$5:$AT$204,$C$4+28)/1000 -> 0.1756810833 | O53: =VLOOKUP($D53,Point_Sources_All!$A$5:$AT$204,$C$4+31)/1000 -> 1.0154525 | P53: =VLOOKUP($D53,Point_Sources_All!$A$5:$AT$204,$C$4+34)/1000 -> 0 | Q53: =VLOOKUP($D53,Point_Sources_All!$A$5:$AT$204,$C$4+37)/1000 -> 0 | R53: =VLOOKUP($D53,Point_Sources_All!$A$5:$AT$204,$C$4+40)/1000 -> 0 | S53: =VLOOKUP($D53,Point_Sources_All!$A$5:$AT$204,$C$4+43)/1000 -> 0 | V53: 64 | W53: =VLOOKUP($V53,Point_Sources_All!$A$5:$AT$204,$C$4+1)/1000 -> 2.390908333 | X53: =VLOOKUP($V53,Point_Sources_All!$A$5:$AT$204,$C$4+4)/1000 -> 0.4212766667 | Y53: =VLOOKUP($V53,Point_Sources_All!$A$5:$AT$204,$C$4+7)/1000 -> 1.140291667 | Z53: =VLOOKUP($V53,Point_Sources_All!$A$5:$AT$204,$C$4+10)/1000 -> 0 | AA53: =VLOOKUP($V53,Point_Sources_All!$A$5:$AT$204,$C$4+13)/1000 -> 0 | AB53: =VLOOKUP($V53,Point_Sources_All!$A$5:$AT$204,$C$4+16)/1000 -> 0 | AC53: =VLOOKUP($V53,Point_Sources_All!$A$5:$AT$204,$C$4+19)/1000 -> 0.010885925 | AD53: =VLOOKUP($V53,Point_Sources_All!$A$5:$AT$204,$C$4+22)/1000 -> 0.01378275 | AE53: =VLOOKUP($V53,Point_Sources_All!$A$5:$AT$204,$C$4+25)/1000 -> 0.0007149508333 | AF53: =VLOOKUP($V53,Point_Sources_All!$A$5:$AT$204,$C$4+28)/1000 -> 0.02243625 | AG53: =VLOOKUP($V53,Point_Sources_All!$A$5:$AT$204,$C$4+31)/1000 -> 0.5243033333 | AH53: =VLOOKUP($V53,Point_Sources_All!$A$5:$AT$204,$C$4+34)/1000 -> 0 | AI53: =VLOOKUP($V53,Point_Sources_All!$A$5:$AT$204,$C$4+37)/1000 -> 0 | AJ53: =VLOOKUP($V53,Point_Sources_All!$A$5:$AT$204,$C$4+40)/1000 -> 0 | AK53: =VLOOKUP($V53,Point_Sources_All!$A$5:$AT$204,$C$4+43)/1000 -> 0
A54: V | D54: 25 | E54: =VLOOKUP($D54,Point_Sources_All!$A$5:$AT$204,$C$4+1)/1000 -> 3.03255 | F54: =VLOOKUP($D54,Point_Sources_All!$A$5:$AT$204,$C$4+4)/1000 -> 0.4055033333 | G54: =VLOOKUP($D54,Point_Sources_All!$A$5:$AT$204,$C$4+7)/1000 -> 1.212583333 | H54: =VLOOKUP($D54,Point_Sources_All!$A$5:$AT$204,$C$4+10)/1000 -> 0 | I54: =VLOOKUP($D54,Point_Sources_All!$A$5:$AT$204,$C$4+13)/1000 -> 0 | J54: =VLOOKUP($D54,Point_Sources_All!$A$5:$AT$204,$C$4+16)/1000 -> 0 | K54: =VLOOKUP($D54,Point_Sources_All!$A$5:$AT$204,$C$4+19)/1000 -> 0.01881389167 | L54: =VLOOKUP($D54,Point_Sources_All!$A$5:$AT$204,$C$4+22)/1000 -> 0.023602375 | M54: =VLOOKUP($D54,Point_Sources_All!$A$5:$AT$204,$C$4+25)/1000 -> 0.004120516667 | N54: =VLOOKUP($D54,Point_Sources_All!$A$5:$AT$204,$C$4+28)/1000 -> 0.16022925 | O54: =VLOOKUP($D54,Point_Sources_All!$A$5:$AT$204,$C$4+31)/1000 -> 0.895905 | P54: =VLOOKUP($D54,Point_Sources_All!$A$5:$AT$204,$C$4+34)/1000 -> 0 | Q54: =VLOOKUP($D54,Point_Sources_All!$A$5:$AT$204,$C$4+37)/1000 -> 0 | R54: =VLOOKUP($D54,Point_Sources_All!$A$5:$AT$204,$C$4+40)/1000 -> 0 | S54: =VLOOKUP($D54,Point_Sources_All!$A$5:$AT$204,$C$4+43)/1000 -> 0 | V54: 65 | W54: =VLOOKUP($V54,Point_Sources_All!$A$5:$AT$204,$C$4+1)/1000 -> 2.390333333 | X54: =VLOOKUP($V54,Point_Sources_All!$A$5:$AT$204,$C$4+4)/1000 -> 0.4323758333 | Y54: =VLOOKUP($V54,Point_Sources_All!$A$5:$AT$204,$C$4+7)/1000 -> 1.140591667 | Z54: =VLOOKUP($V54,Point_Sources_All!$A$5:$AT$204,$C$4+10)/1000 -> 0 | AA54: =VLOOKUP($V54,Point_Sources_All!$A$5:$AT$204,$C$4+13)/1000 -> 0 | AB54: =VLOOKUP($V54,Point_Sources_All!$A$5:$AT$204,$C$4+16)/1000 -> 0 | AC54: =VLOOKUP($V54,Point_Sources_All!$A$5:$AT$204,$C$4+19)/1000 -> 0.0105669 | AD54: =VLOOKUP($V54,Point_Sources_All!$A$5:$AT$204,$C$4+22)/1000 -> 0.0130495 | AE54: =VLOOKUP($V54,Point_Sources_All!$A$5:$AT$204,$C$4+25)/1000 -> 0.0006719216667 | AF54: =VLOOKUP($V54,Point_Sources_All!$A$5:$AT$204,$C$4+28)/1000 -> 0.02109225 | AG54: =VLOOKUP($V54,Point_Sources_All!$A$5:$AT$204,$C$4+31)/1000 -> 0.5143116667 | AH54: =VLOOKUP($V54,Point_Sources_All!$A$5:$AT$204,$C$4+34)/1000 -> 0 | AI54: =VLOOKUP($V54,Point_Sources_All!$A$5:$AT$204,$C$4+37)/1000 -> 0 | AJ54: =VLOOKUP($V54,Point_Sources_All!$A$5:$AT$204,$C$4+40)/1000 -> 0 | AK54: =VLOOKUP($V54,Point_Sources_All!$A$5:$AT$204,$C$4+43)/1000 -> 0
A55: Zn | D55: 26 | E55: =VLOOKUP($D55,Point_Sources_All!$A$5:$AT$204,$C$4+1)/1000 -> 2.917416667 | F55: =VLOOKUP($D55,Point_Sources_All!$A$5:$AT$204,$C$4+4)/1000 -> 0.4059425 | G55: =VLOOKUP($D55,Point_Sources_All!$A$5:$AT$204,$C$4+7)/1000 -> 1.205266667 | H55: =VLOOKUP($D55,Point_Sources_All!$A$5:$AT$204,$C$4+10)/1000 -> 0 | I55: =VLOOKUP($D55,Point_Sources_All!$A$5:$AT$204,$C$4+13)/1000 -> 0 | J55: =VLOOKUP($D55,Point_Sources_All!$A$5:$AT$204,$C$4+16)/1000 -> 0 | K55: =VLOOKUP($D55,Point_Sources_All!$A$5:$AT$204,$C$4+19)/1000 -> 0.01741388333 | L55: =VLOOKUP($D55,Point_Sources_All!$A$5:$AT$204,$C$4+22)/1000 -> 0.02143306667 | M55: =VLOOKUP($D55,Point_Sources_All!$A$5:$AT$204,$C$4+25)/1000 -> 0.004079708333 | N55: =VLOOKUP($D55,Point_Sources_All!$A$5:$AT$204,$C$4+28)/1000 -> 0.1514959167 | O55: =VLOOKUP($D55,Point_Sources_All!$A$5:$AT$204,$C$4+31)/1000 -> 0.8270791667 | P55: =VLOOKUP($D55,Point_Sources_All!$A$5:$AT$204,$C$4+34)/1000 -> 0 | Q55: =VLOOKUP($D55,Point_Sources_All!$A$5:$AT$204,$C$4+37)/1000 -> 0 | R55: =VLOOKUP($D55,Point_Sources_All!$A$5:$AT$204,$C$4+40)/1000 -> 0 | S55: =VLOOKUP($D55,Point_Sources_All!$A$5:$AT$204,$C$4+43)/1000 -> 0 | V55: 66 | W55: =VLOOKUP($V55,Point_Sources_All!$A$5:$AT$204,$C$4+1)/1000 -> 2.397541667 | X55: =VLOOKUP($V55,Point_Sources_All!$A$5:$AT$204,$C$4+4)/1000 -> 0.4129666667 | Y55: =VLOOKUP($V55,Point_Sources_All!$A$5:$AT$204,$C$4+7)/1000 -> 1.141158333 | Z55: =VLOOKUP($V55,Point_Sources_All!$A$5:$AT$204,$C$4+10)/1000 -> 0 | AA55: =VLOOKUP($V55,Point_Sources_All!$A$5:$AT$204,$C$4+13)/1000 -> 0 | AB55: =VLOOKUP($V55,Point_Sources_All!$A$5:$AT$204,$C$4+16)/1000 -> 0 | AC55: =VLOOKUP($V55,Point_Sources_All!$A$5:$AT$204,$C$4+19)/1000 -> 0.0108688 | AD55: =VLOOKUP($V55,Point_Sources_All!$A$5:$AT$204,$C$4+22)/1000 -> 0.01300408333 | AE55: =VLOOKUP($V55,Point_Sources_All!$A$5:$AT$204,$C$4+25)/1000 -> 0.0006569175 | AF55: =VLOOKUP($V55,Point_Sources_All!$A$5:$AT$204,$C$4+28)/1000 -> 0.02092591667 | AG55: =VLOOKUP($V55,Point_Sources_All!$A$5:$AT$204,$C$4+31)/1000 -> 0.5267166667 | AH55: =VLOOKUP($V55,Point_Sources_All!$A$5:$AT$204,$C$4+34)/1000 -> 0 | AI55: =VLOOKUP($V55,Point_Sources_All!$A$5:$AT$204,$C$4+37)/1000 -> 0 | AJ55: =VLOOKUP($V55,Point_Sources_All!$A$5:$AT$204,$C$4+40)/1000 -> 0 | AK55: =VLOOKUP($V55,Point_Sources_All!$A$5:$AT$204,$C$4+43)/1000 -> 0
D56: 27 | E56: =VLOOKUP($D56,Point_Sources_All!$A$5:$AT$204,$C$4+1)/1000 -> 2.880558333 | F56: =VLOOKUP($D56,Point_Sources_All!$A$5:$AT$204,$C$4+4)/1000 -> 0.4274316667 | G56: =VLOOKUP($D56,Point_Sources_All!$A$5:$AT$204,$C$4+7)/1000 -> 1.189775 | H56: =VLOOKUP($D56,Point_Sources_All!$A$5:$AT$204,$C$4+10)/1000 -> 0 | I56: =VLOOKUP($D56,Point_Sources_All!$A$5:$AT$204,$C$4+13)/1000 -> 0 | J56: =VLOOKUP($D56,Point_Sources_All!$A$5:$AT$204,$C$4+16)/1000 -> 0 | K56: =VLOOKUP($D56,Point_Sources_All!$A$5:$AT$204,$C$4+19)/1000 -> 0.01600001667 | L56: =VLOOKUP($D56,Point_Sources_All!$A$5:$AT$204,$C$4+22)/1000 -> 0.02127933333 | M56: =VLOOKUP($D56,Point_Sources_All!$A$5:$AT$204,$C$4+25)/1000 -> 0.00390775 | N56: =VLOOKUP($D56,Point_Sources_All!$A$5:$AT$204,$C$4+28)/1000 -> 0.1401133333 | O56: =VLOOKUP($D56,Point_Sources_All!$A$5:$AT$204,$C$4+31)/1000 -> 0.77157 | P56: =VLOOKUP($D56,Point_Sources_All!$A$5:$AT$204,$C$4+34)/1000 -> 0 | Q56: =VLOOKUP($D56,Point_Sources_All!$A$5:$AT$204,$C$4+37)/1000 -> 0 | R56: =VLOOKUP($D56,Point_Sources_All!$A$5:$AT$204,$C$4+40)/1000 -> 0 | S56: =VLOOKUP($D56,Point_Sources_All!$A$5:$AT$204,$C$4+43)/1000 -> 0 | V56: 67 | W56: =VLOOKUP($V56,Point_Sources_All!$A$5:$AT$204,$C$4+1)/1000 -> 2.398291667 | X56: =VLOOKUP($V56,Point_Sources_All!$A$5:$AT$204,$C$4+4)/1000 -> 0.4305566667 | Y56: =VLOOKUP($V56,Point_Sources_All!$A$5:$AT$204,$C$4+7)/1000 -> 1.140758333 | Z56: =VLOOKUP($V56,Point_Sources_All!$A$5:$AT$204,$C$4+10)/1000 -> 0 | AA56: =VLOOKUP($V56,Point_Sources_All!$A$5:$AT$204,$C$4+13)/1000 -> 0 | AB56: =VLOOKUP($V56,Point_Sources_All!$A$5:$AT$204,$C$4+16)/1000 -> 0 | AC56: =VLOOKUP($V56,Point_Sources_All!$A$5:$AT$204,$C$4+19)/1000 -> 0.01083438333 | AD56: =VLOOKUP($V56,Point_Sources_All!$A$5:$AT$204,$C$4+22)/1000 -> 0.012609 | AE56: =VLOOKUP($V56,Point_Sources_All!$A$5:$AT$204,$C$4+25)/1000 -> 0.0006603833333 | AF56: =VLOOKUP($V56,Point_Sources_All!$A$5:$AT$204,$C$4+28)/1000 -> 0.02078216667 | AG56: =VLOOKUP($V56,Point_Sources_All!$A$5:$AT$204,$C$4+31)/1000 -> 0.5228441667 | AH56: =VLOOKUP($V56,Point_Sources_All!$A$5:$AT$204,$C$4+34)/1000 -> 0 | AI56: =VLOOKUP($V56,Point_Sources_All!$A$5:$AT$204,$C$4+37)/1000 -> 0 | AJ56: =VLOOKUP($V56,Point_Sources_All!$A$5:$AT$204,$C$4+40)/1000 -> 0 | AK56: =VLOOKUP($V56,Point_Sources_All!$A$5:$AT$204,$C$4+43)/1000 -> 0
D57: 28 | E57: =VLOOKUP($D57,Point_Sources_All!$A$5:$AT$204,$C$4+1)/1000 -> 2.818291667 | F57: =VLOOKUP($D57,Point_Sources_All!$A$5:$AT$204,$C$4+4)/1000 -> 0.406915 | G57: =VLOOKUP($D57,Point_Sources_All!$A$5:$AT$204,$C$4+7)/1000 -> 1.179775 | H57: =VLOOKUP($D57,Point_Sources_All!$A$5:$AT$204,$C$4+10)/1000 -> 0 | I57: =VLOOKUP($D57,Point_Sources_All!$A$5:$AT$204,$C$4+13)/1000 -> 0 | J57: =VLOOKUP($D57,Point_Sources_All!$A$5:$AT$204,$C$4+16)/1000 -> 0 | K57: =VLOOKUP($D57,Point_Sources_All!$A$5:$AT$204,$C$4+19)/1000 -> 0.01516061667 | L57: =VLOOKUP($D57,Point_Sources_All!$A$5:$AT$204,$C$4+22)/1000 -> 0.02178716667 | M57: =VLOOKUP($D57,Point_Sources_All!$A$5:$AT$204,$C$4+25)/1000 -> 0.003777608333 | N57: =VLOOKUP($D57,Point_Sources_All!$A$5:$AT$204,$C$4+28)/1000 -> 0.13087325 | O57: =VLOOKUP($D57,Point_Sources_All!$A$5:$AT$204,$C$4+31)/1000 -> 0.7319658333 | P57: =VLOOKUP($D57,Point_Sources_All!$A$5:$AT$204,$C$4+34)/1000 -> 0 | Q57: =VLOOKUP($D57,Point_Sources_All!$A$5:$AT$204,$C$4+37)/1000 -> 0 | R57: =VLOOKUP($D57,Point_Sources_All!$A$5:$AT$204,$C$4+40)/1000 -> 0 | S57: =VLOOKUP($D57,Point_Sources_All!$A$5:$AT$204,$C$4+43)/1000 -> 0 | V57: 68 | W57: =VLOOKUP($V57,Point_Sources_All!$A$5:$AT$204,$C$4+1)/1000 -> 2.392075 | X57: =VLOOKUP($V57,Point_Sources_All!$A$5:$AT$204,$C$4+4)/1000 -> 0.4441783333 | Y57: =VLOOKUP($V57,Point_Sources_All!$A$5:$AT$204,$C$4+7)/1000 -> 1.140258333 | Z57: =VLOOKUP($V57,Point_Sources_All!$A$5:$AT$204,$C$4+10)/1000 -> 0 | AA57: =VLOOKUP($V57,Point_Sources_All!$A$5:$AT$204,$C$4+13)/1000 -> 0 | AB57: =VLOOKUP($V57,Point_Sources_All!$A$5:$AT$204,$C$4+16)/1000 -> 0 | AC57: =VLOOKUP($V57,Point_Sources_All!$A$5:$AT$204,$C$4+19)/1000 -> 0.01051274167 | AD57: =VLOOKUP($V57,Point_Sources_All!$A$5:$AT$204,$C$4+22)/1000 -> 0.01211058333 | AE57: =VLOOKUP($V57,Point_Sources_All!$A$5:$AT$204,$C$4+25)/1000 -> 0.0006238625 | AF57: =VLOOKUP($V57,Point_Sources_All!$A$5:$AT$204,$C$4+28)/1000 -> 0.01968741667 | AG57: =VLOOKUP($V57,Point_Sources_All!$A$5:$AT$204,$C$4+31)/1000 -> 0.5196066667 | AH57: =VLOOKUP($V57,Point_Sources_All!$A$5:$AT$204,$C$4+34)/1000 -> 0 | AI57: =VLOOKUP($V57,Point_Sources_All!$A$5:$AT$204,$C$4+37)/1000 -> 0 | AJ57: =VLOOKUP($V57,Point_Sources_All!$A$5:$AT$204,$C$4+40)/1000 -> 0 | AK57: =VLOOKUP($V57,Point_Sources_All!$A$5:$AT$204,$C$4+43)/1000 -> 0
D58: 29 | E58: =VLOOKUP($D58,Point_Sources_All!$A$5:$AT$204,$C$4+1)/1000 -> 2.769825 | F58: =VLOOKUP($D58,Point_Sources_All!$A$5:$AT$204,$C$4+4)/1000 -> 0.4236833333 | G58: =VLOOKUP($D58,Point_Sources_All!$A$5:$AT$204,$C$4+7)/1000 -> 1.179666667 | H58: =VLOOKUP($D58,Point_Sources_All!$A$5:$AT$204,$C$4+10)/1000 -> 0 | I58: =VLOOKUP($D58,Point_Sources_All!$A$5:$AT$204,$C$4+13)/1000 -> 0 | J58: =VLOOKUP($D58,Point_Sources_All!$A$5:$AT$204,$C$4+16)/1000 -> 0 | K58: =VLOOKUP($D58,Point_Sources_All!$A$5:$AT$204,$C$4+19)/1000 -> 0.01420934167 | L58: =VLOOKUP($D58,Point_Sources_All!$A$5:$AT$204,$C$4+22)/1000 -> 0.02317258333 | M58: =VLOOKUP($D58,Point_Sources_All!$A$5:$AT$204,$C$4+25)/1000 -> 0.003458841667 | N58: =VLOOKUP($D58,Point_Sources_All!$A$5:$AT$204,$C$4+28)/1000 -> 0.11913375 | O58: =VLOOKUP($D58,Point_Sources_All!$A$5:$AT$204,$C$4+31)/1000 -> 0.6858725 | P58: =VLOOKUP($D58,Point_Sources_All!$A$5:$AT$204,$C$4+34)/1000 -> 0 | Q58: =VLOOKUP($D58,Point_Sources_All!$A$5:$AT$204,$C$4+37)/1000 -> 0 | R58: =VLOOKUP($D58,Point_Sources_All!$A$5:$AT$204,$C$4+40)/1000 -> 0 | S58: =VLOOKUP($D58,Point_Sources_All!$A$5:$AT$204,$C$4+43)/1000 -> 0 | V58: 69 | W58: =VLOOKUP($V58,Point_Sources_All!$A$5:$AT$204,$C$4+1)/1000 -> 2.398958333 | X58: =VLOOKUP($V58,Point_Sources_All!$A$5:$AT$204,$C$4+4)/1000 -> 0.4171633333 | Y58: =VLOOKUP($V58,Point_Sources_All!$A$5:$AT$204,$C$4+7)/1000 -> 1.14195 | Z58: =VLOOKUP($V58,Point_Sources_All!$A$5:$AT$204,$C$4+10)/1000 -> 0 | AA58: =VLOOKUP($V58,Point_Sources_All!$A$5:$AT$204,$C$4+13)/1000 -> 0 | AB58: =VLOOKUP($V58,Point_Sources_All!$A$5:$AT$204,$C$4+16)/1000 -> 0 | AC58: =VLOOKUP($V58,Point_Sources_All!$A$5:$AT$204,$C$4+19)/1000 -> 0.01085545833 | AD58: =VLOOKUP($V58,Point_Sources_All!$A$5:$AT$204,$C$4+22)/1000 -> 0.01233166667 | AE58: =VLOOKUP($V58,Point_Sources_All!$A$5:$AT$204,$C$4+25)/1000 -> 0.0006432716667 | AF58: =VLOOKUP($V58,Point_Sources_All!$A$5:$AT$204,$C$4+28)/1000 -> 0.020389 | AG58: =VLOOKUP($V58,Point_Sources_All!$A$5:$AT$204,$C$4+31)/1000 -> 0.5184566667 | AH58: =VLOOKUP($V58,Point_Sources_All!$A$5:$AT$204,$C$4+34)/1000 -> 0 | AI58: =VLOOKUP($V58,Point_Sources_All!$A$5:$AT$204,$C$4+37)/1000 -> 0 | AJ58: =VLOOKUP($V58,Point_Sources_All!$A$5:$AT$204,$C$4+40)/1000 -> 0 | AK58: =VLOOKUP($V58,Point_Sources_All!$A$5:$AT$204,$C$4+43)/1000 -> 0
D59: 30 | E59: =VLOOKUP($D59,Point_Sources_All!$A$5:$AT$204,$C$4+1)/1000 -> 2.728841667 | F59: =VLOOKUP($D59,Point_Sources_All!$A$5:$AT$204,$C$4+4)/1000 -> 0.4269633333 | G59: =VLOOKUP($D59,Point_Sources_All!$A$5:$AT$204,$C$4+7)/1000 -> 1.174925 | H59: =VLOOKUP($D59,Point_Sources_All!$A$5:$AT$204,$C$4+10)/1000 -> 0 | I59: =VLOOKUP($D59,Point_Sources_All!$A$5:$AT$204,$C$4+13)/1000 -> 0 | J59: =VLOOKUP($D59,Point_Sources_All!$A$5:$AT$204,$C$4+16)/1000 -> 0 | K59: =VLOOKUP($D59,Point_Sources_All!$A$5:$AT$204,$C$4+19)/1000 -> 0.01390303333 | L59: =VLOOKUP($D59,Point_Sources_All!$A$5:$AT$204,$C$4+22)/1000 -> 0.02787025 | M59: =VLOOKUP($D59,Point_Sources_All!$A$5:$AT$204,$C$4+25)/1000 -> 0.003273041667 | N59: =VLOOKUP($D59,Point_Sources_All!$A$5:$AT$204,$C$4+28)/1000 -> 0.1122769167 | O59: =VLOOKUP($D59,Point_Sources_All!$A$5:$AT$204,$C$4+31)/1000 -> 0.6687783333 | P59: =VLOOKUP($D59,Point_Sources_All!$A$5:$AT$204,$C$4+34)/1000 -> 0 | Q59: =VLOOKUP($D59,Point_Sources_All!$A$5:$AT$204,$C$4+37)/1000 -> 0 | R59: =VLOOKUP($D59,Point_Sources_All!$A$5:$AT$204,$C$4+40)/1000 -> 0 | S59: =VLOOKUP($D59,Point_Sources_All!$A$5:$AT$204,$C$4+43)/1000 -> 0 | V59: 70 | W59: =VLOOKUP($V59,Point_Sources_All!$A$5:$AT$204,$C$4+1)/1000 -> 2.406083333 | X59: =VLOOKUP($V59,Point_Sources_All!$A$5:$AT$204,$C$4+4)/1000 -> 0.4279958333 | Y59: =VLOOKUP($V59,Point_Sources_All!$A$5:$AT$204,$C$4+7)/1000 -> 1.139691667 | Z59: =VLOOKUP($V59,Point_Sources_All!$A$5:$AT$204,$C$4+10)/1000 -> 0 | AA59: =VLOOKUP($V59,Point_Sources_All!$A$5:$AT$204,$C$4+13)/1000 -> 0 | AB59: =VLOOKUP($V59,Point_Sources_All!$A$5:$AT$204,$C$4+16)/1000 -> 0 | AC59: =VLOOKUP($V59,Point_Sources_All!$A$5:$AT$204,$C$4+19)/1000 -> 0.01094735833 | AD59: =VLOOKUP($V59,Point_Sources_All!$A$5:$AT$204,$C$4+22)/1000 -> 0.012069475 | AE59: =VLOOKUP($V59,Point_Sources_All!$A$5:$AT$204,$C$4+25)/1000 -> 0.000616975 | AF59: =VLOOKUP($V59,Point_Sources_All!$A$5:$AT$204,$C$4+28)/1000 -> 0.01941858333 | AG59: =VLOOKUP($V59,Point_Sources_All!$A$5:$AT$204,$C$4+31)/1000 -> 0.53557 | AH59: =VLOOKUP($V59,Point_Sources_All!$A$5:$AT$204,$C$4+34)/1000 -> 0 | AI59: =VLOOKUP($V59,Point_Sources_All!$A$5:$AT$204,$C$4+37)/1000 -> 0 | AJ59: =VLOOKUP($V59,Point_Sources_All!$A$5:$AT$204,$C$4+40)/1000 -> 0 | AK59: =VLOOKUP($V59,Point_Sources_All!$A$5:$AT$204,$C$4+43)/1000 -> 0
D60: 31 | E60: =VLOOKUP($D60,Point_Sources_All!$A$5:$AT$204,$C$4+1)/1000 -> 2.678008333 | F60: =VLOOKUP($D60,Point_Sources_All!$A$5:$AT$204,$C$4+4)/1000 -> 0.4262075 | G60: =VLOOKUP($D60,Point_Sources_All!$A$5:$AT$204,$C$4+7)/1000 -> 1.171025 | H60: =VLOOKUP($D60,Point_Sources_All!$A$5:$AT$204,$C$4+10)/1000 -> 0 | I60: =VLOOKUP($D60,Point_Sources_All!$A$5:$AT$204,$C$4+13)/1000 -> 0 | J60: =VLOOKUP($D60,Point_Sources_All!$A$5:$AT$204,$C$4+16)/1000 -> 0 | K60: =VLOOKUP($D60,Point_Sources_All!$A$5:$AT$204,$C$4+19)/1000 -> 0.01327828333 | L60: =VLOOKUP($D60,Point_Sources_All!$A$5:$AT$204,$C$4+22)/1000 -> 0.03655983333 | M60: =VLOOKUP($D60,Point_Sources_All!$A$5:$AT$204,$C$4+25)/1000 -> 0.0029118 | N60: =VLOOKUP($D60,Point_Sources_All!$A$5:$AT$204,$C$4+28)/1000 -> 0.1012545 | O60: =VLOOKUP($D60,Point_Sources_All!$A$5:$AT$204,$C$4+31)/1000 -> 0.6271916667 | P60: =VLOOKUP($D60,Point_Sources_All!$A$5:$AT$204,$C$4+34)/1000 -> 0 | Q60: =VLOOKUP($D60,Point_Sources_All!$A$5:$AT$204,$C$4+37)/1000 -> 0 | R60: =VLOOKUP($D60,Point_Sources_All!$A$5:$AT$204,$C$4+40)/1000 -> 0 | S60: =VLOOKUP($D60,Point_Sources_All!$A$5:$AT$204,$C$4+43)/1000 -> 0 | V60: 71 | W60: =VLOOKUP($V60,Point_Sources_All!$A$5:$AT$204,$C$4+1)/1000 -> 2.416733333 | X60: =VLOOKUP($V60,Point_Sources_All!$A$5:$AT$204,$C$4+4)/1000 -> 0.4461208333 | Y60: =VLOOKUP($V60,Point_Sources_All!$A$5:$AT$204,$C$4+7)/1000 -> 1.139508333 | Z60: =VLOOKUP($V60,Point_Sources_All!$A$5:$AT$204,$C$4+10)/1000 -> 0 | AA60: =VLOOKUP($V60,Point_Sources_All!$A$5:$AT$204,$C$4+13)/1000 -> 0 | AB60: =VLOOKUP($V60,Point_Sources_All!$A$5:$AT$204,$C$4+16)/1000 -> 0 | AC60: =VLOOKUP($V60,Point_Sources_All!$A$5:$AT$204,$C$4+19)/1000 -> 0.01084374167 | AD60: =VLOOKUP($V60,Point_Sources_All!$A$5:$AT$204,$C$4+22)/1000 -> 0.01221025 | AE60: =VLOOKUP($V60,Point_Sources_All!$A$5:$AT$204,$C$4+25)/1000 -> 0.000632315 | AF60: =VLOOKUP($V60,Point_Sources_All!$A$5:$AT$204,$C$4+28)/1000 -> 0.01977233333 | AG60: =VLOOKUP($V60,Point_Sources_All!$A$5:$AT$204,$C$4+31)/1000 -> 0.5251441667 | AH60: =VLOOKUP($V60,Point_Sources_All!$A$5:$AT$204,$C$4+34)/1000 -> 0 | AI60: =VLOOKUP($V60,Point_Sources_All!$A$5:$AT$204,$C$4+37)/1000 -> 0 | AJ60: =VLOOKUP($V60,Point_Sources_All!$A$5:$AT$204,$C$4+40)/1000 -> 0 | AK60: =VLOOKUP($V60,Point_Sources_All!$A$5:$AT$204,$C$4+43)/1000 -> 0
D61: 32 | E61: =VLOOKUP($D61,Point_Sources_All!$A$5:$AT$204,$C$4+1)/1000 -> 2.623291667 | F61: =VLOOKUP($D61,Point_Sources_All!$A$5:$AT$204,$C$4+4)/1000 -> 0.4196341667 | G61: =VLOOKUP($D61,Point_Sources_All!$A$5:$AT$204,$C$4+7)/1000 -> 1.171208333 | H61: =VLOOKUP($D61,Point_Sources_All!$A$5:$AT$204,$C$4+10)/1000 -> 0 | I61: =VLOOKUP($D61,Point_Sources_All!$A$5:$AT$204,$C$4+13)/1000 -> 0 | J61: =VLOOKUP($D61,Point_Sources_All!$A$5:$AT$204,$C$4+16)/1000 -> 0 | K61: =VLOOKUP($D61,Point_Sources_All!$A$5:$AT$204,$C$4+19)/1000 -> 0.01255684167 | L61: =VLOOKUP($D61,Point_Sources_All!$A$5:$AT$204,$C$4+22)/1000 -> 0.039821 | M61: =VLOOKUP($D61,Point_Sources_All!$A$5:$AT$204,$C$4+25)/1000 -> 0.002580433333 | N61: =VLOOKUP($D61,Point_Sources_All!$A$5:$AT$204,$C$4+28)/1000 -> 0.08721016667 | O61: =VLOOKUP($D61,Point_Sources_All!$A$5:$AT$204,$C$4+31)/1000 -> 0.6004075 | P61: =VLOOKUP($D61,Point_Sources_All!$A$5:$AT$204,$C$4+34)/1000 -> 0 | Q61: =VLOOKUP($D61,Point_Sources_All!$A$5:$AT$204,$C$4+37)/1000 -> 0 | R61: =VLOOKUP($D61,Point_Sources_All!$A$5:$AT$204,$C$4+40)/1000 -> 0 | S61: =VLOOKUP($D61,Point_Sources_All!$A$5:$AT$204,$C$4+43)/1000 -> 0 | V61: 72 | W61: =VLOOKUP($V61,Point_Sources_All!$A$5:$AT$204,$C$4+1)/1000 -> 2.396025 | X61: =VLOOKUP($V61,Point_Sources_All!$A$5:$AT$204,$C$4+4)/1000 -> 0.4178133333 | Y61: =VLOOKUP($V61,Point_Sources_All!$A$5:$AT$204,$C$4+7)/1000 -> 1.141241667 | Z61: =VLOOKUP($V61,Point_Sources_All!$A$5:$AT$204,$C$4+10)/1000 -> 0 | AA61: =VLOOKUP($V61,Point_Sources_All!$A$5:$AT$204,$C$4+13)/1000 -> 0 | AB61: =VLOOKUP($V61,Point_Sources_All!$A$5:$AT$204,$C$4+16)/1000 -> 0 | AC61: =VLOOKUP($V61,Point_Sources_All!$A$5:$AT$204,$C$4+19)/1000 -> 0.01085615 | AD61: =VLOOKUP($V61,Point_Sources_All!$A$5:$AT$204,$C$4+22)/1000 -> 0.01195500833 | AE61: =VLOOKUP($V61,Point_Sources_All!$A$5:$AT$204,$C$4+25)/1000 -> 0.0006103541667 | AF61: =VLOOKUP($V61,Point_Sources_All!$A$5:$AT$204,$C$4+28)/1000 -> 0.01938158333 | AG61: =VLOOKUP($V61,Point_Sources_All!$A$5:$AT$204,$C$4+31)/1000 -> 0.5261116667 | AH61: =VLOOKUP($V61,Point_Sources_All!$A$5:$AT$204,$C$4+34)/1000 -> 0 | AI61: =VLOOKUP($V61,Point_Sources_All!$A$5:$AT$204,$C$4+37)/1000 -> 0 | AJ61: =VLOOKUP($V61,Point_Sources_All!$A$5:$AT$204,$C$4+40)/1000 -> 0 | AK61: =VLOOKUP($V61,Point_Sources_All!$A$5:$AT$204,$C$4+43)/1000 -> 0
D62: 33 | E62: =VLOOKUP($D62,Point_Sources_All!$A$5:$AT$204,$C$4+1)/1000 -> 2.582483333 | F62: =VLOOKUP($D62,Point_Sources_All!$A$5:$AT$204,$C$4+4)/1000 -> 0.4198708333 | G62: =VLOOKUP($D62,Point_Sources_All!$A$5:$AT$204,$C$4+7)/1000 -> 1.1649 | H62: =VLOOKUP($D62,Point_Sources_All!$A$5:$AT$204,$C$4+10)/1000 -> 0 | I62: =VLOOKUP($D62,Point_Sources_All!$A$5:$AT$204,$C$4+13)/1000 -> 0 | J62: =VLOOKUP($D62,Point_Sources_All!$A$5:$AT$204,$C$4+16)/1000 -> 0 | K62: =VLOOKUP($D62,Point_Sources_All!$A$5:$AT$204,$C$4+19)/1000 -> 0.01211428333 | L62: =VLOOKUP($D62,Point_Sources_All!$A$5:$AT$204,$C$4+22)/1000 -> 0.04037441667 | M62: =VLOOKUP($D62,Point_Sources_All!$A$5:$AT$204,$C$4+25)/1000 -> 0.002291491667 | N62: =VLOOKUP($D62,Point_Sources_All!$A$5:$AT$204,$C$4+28)/1000 -> 0.07601741667 | O62: =VLOOKUP($D62,Point_Sources_All!$A$5:$AT$204,$C$4+31)/1000 -> 0.5852475 | P62: =VLOOKUP($D62,Point_Sources_All!$A$5:$AT$204,$C$4+34)/1000 -> 0 | Q62: =VLOOKUP($D62,Point_Sources_All!$A$5:$AT$204,$C$4+37)/1000 -> 0 | R62: =VLOOKUP($D62,Point_Sources_All!$A$5:$AT$204,$C$4+40)/1000 -> 0 | S62: =VLOOKUP($D62,Point_Sources_All!$A$5:$AT$204,$C$4+43)/1000 -> 0 | V62: 73 | W62: =VLOOKUP($V62,Point_Sources_All!$A$5:$AT$204,$C$4+1)/1000 -> 2.390016667 | X62: =VLOOKUP($V62,Point_Sources_All!$A$5:$AT$204,$C$4+4)/1000 -> 0.4269941667 | Y62: =VLOOKUP($V62,Point_Sources_All!$A$5:$AT$204,$C$4+7)/1000 -> 1.1405 | Z62: =VLOOKUP($V62,Point_Sources_All!$A$5:$AT$204,$C$4+10)/1000 -> 0 | AA62: =VLOOKUP($V62,Point_Sources_All!$A$5:$AT$204,$C$4+13)/1000 -> 0 | AB62: =VLOOKUP($V62,Point_Sources_All!$A$5:$AT$204,$C$4+16)/1000 -> 0 | AC62: =VLOOKUP($V62,Point_Sources_All!$A$5:$AT$204,$C$4+19)/1000 -> 0.01065780833 | AD62: =VLOOKUP($V62,Point_Sources_All!$A$5:$AT$204,$C$4+22)/1000 -> 0.01161740833 | AE62: =VLOOKUP($V62,Point_Sources_All!$A$5:$AT$204,$C$4+25)/1000 -> 0.0006079158333 | AF62: =VLOOKUP($V62,Point_Sources_All!$A$5:$AT$204,$C$4+28)/1000 -> 0.01905358333 | AG62: =VLOOKUP($V62,Point_Sources_All!$A$5:$AT$204,$C$4+31)/1000 -> 0.5163816667 | AH62: =VLOOKUP($V62,Point_Sources_All!$A$5:$AT$204,$C$4+34)/1000 -> 0 | AI62: =VLOOKUP($V62,Point_Sources_All!$A$5:$AT$204,$C$4+37)/1000 -> 0 | AJ62: =VLOOKUP($V62,Point_Sources_All!$A$5:$AT$204,$C$4+40)/1000 -> 0 | AK62: =VLOOKUP($V62,Point_Sources_All!$A$5:$AT$204,$C$4+43)/1000 -> 0
D63: 34 | E63: =VLOOKUP($D63,Point_Sources_All!$A$5:$AT$204,$C$4+1)/1000 -> 2.579016667 | F63: =VLOOKUP($D63,Point_Sources_All!$A$5:$AT$204,$C$4+4)/1000 -> 0.4352133333 | G63: =VLOOKUP($D63,Point_Sources_All!$A$5:$AT$204,$C$4+7)/1000 -> 1.158666667 | H63: =VLOOKUP($D63,Point_Sources_All!$A$5:$AT$204,$C$4+10)/1000 -> 0 | I63: =VLOOKUP($D63,Point_Sources_All!$A$5:$AT$204,$C$4+13)/1000 -> 0 | J63: =VLOOKUP($D63,Point_Sources_All!$A$5:$AT$204,$C$4+16)/1000 -> 0 | K63: =VLOOKUP($D63,Point_Sources_All!$A$5:$AT$204,$C$4+19)/1000 -> 0.011759125 | L63: =VLOOKUP($D63,Point_Sources_All!$A$5:$AT$204,$C$4+22)/1000 -> 0.03962658333 | M63: =VLOOKUP($D63,Point_Sources_All!$A$5:$AT$204,$C$4+25)/1000 -> 0.002061908333 | N63: =VLOOKUP($D63,Point_Sources_All!$A$5:$AT$204,$C$4+28)/1000 -> 0.06563525 | O63: =VLOOKUP($D63,Point_Sources_All!$A$5:$AT$204,$C$4+31)/1000 -> 0.5576258333 | P63: =VLOOKUP($D63,Point_Sources_All!$A$5:$AT$204,$C$4+34)/1000 -> 0 | Q63: =VLOOKUP($D63,Point_Sources_All!$A$5:$AT$204,$C$4+37)/1000 -> 0 | R63: =VLOOKUP($D63,Point_Sources_All!$A$5:$AT$204,$C$4+40)/1000 -> 0 | S63: =VLOOKUP($D63,Point_Sources_All!$A$5:$AT$204,$C$4+43)/1000 -> 0 | V63: 74 | W63: =VLOOKUP($V63,Point_Sources_All!$A$5:$AT$204,$C$4+1)/1000 -> 2.40015 | X63: =VLOOKUP($V63,Point_Sources_All!$A$5:$AT$204,$C$4+4)/1000 -> 0.4255933333 | Y63: =VLOOKUP($V63,Point_Sources_All!$A$5:$AT$204,$C$4+7)/1000 -> 1.141433333 | Z63: =VLOOKUP($V63,Point_Sources_All!$A$5:$AT$204,$C$4+10)/1000 -> 0 | AA63: =VLOOKUP($V63,Point_Sources_All!$A$5:$AT$204,$C$4+13)/1000 -> 0 | AB63: =VLOOKUP($V63,Point_Sources_All!$A$5:$AT$204,$C$4+16)/1000 -> 0 | AC63: =VLOOKUP($V63,Point_Sources_All!$A$5:$AT$204,$C$4+19)/1000 -> 0.010742975 | AD63: =VLOOKUP($V63,Point_Sources_All!$A$5:$AT$204,$C$4+22)/1000 -> 0.01138104167 | AE63: =VLOOKUP($V63,Point_Sources_All!$A$5:$AT$204,$C$4+25)/1000 -> 0.0005917158333 | AF63: =VLOOKUP($V63,Point_Sources_All!$A$5:$AT$204,$C$4+28)/1000 -> 0.01862691667 | AG63: =VLOOKUP($V63,Point_Sources_All!$A$5:$AT$204,$C$4+31)/1000 -> 0.5215158333 | AH63: =VLOOKUP($V63,Point_Sources_All!$A$5:$AT$204,$C$4+34)/1000 -> 0 | AI63: =VLOOKUP($V63,Point_Sources_All!$A$5:$AT$204,$C$4+37)/1000 -> 0 | AJ63: =VLOOKUP($V63,Point_Sources_All!$A$5:$AT$204,$C$4+40)/1000 -> 0 | AK63: =VLOOKUP($V63,Point_Sources_All!$A$5:$AT$204,$C$4+43)/1000 -> 0
D64: 35 | E64: =VLOOKUP($D64,Point_Sources_All!$A$5:$AT$204,$C$4+1)/1000 -> 2.500016667 | F64: =VLOOKUP($D64,Point_Sources_All!$A$5:$AT$204,$C$4+4)/1000 -> 0.4297516667 | G64: =VLOOKUP($D64,Point_Sources_All!$A$5:$AT$204,$C$4+7)/1000 -> 1.157041667 | H64: =VLOOKUP($D64,Point_Sources_All!$A$5:$AT$204,$C$4+10)/1000 -> 0 | I64: =VLOOKUP($D64,Point_Sources_All!$A$5:$AT$204,$C$4+13)/1000 -> 0 | J64: =VLOOKUP($D64,Point_Sources_All!$A$5:$AT$204,$C$4+16)/1000 -> 0 | K64: =VLOOKUP($D64,Point_Sources_All!$A$5:$AT$204,$C$4+19)/1000 -> 0.01094968333 | L64: =VLOOKUP($D64,Point_Sources_All!$A$5:$AT$204,$C$4+22)/1000 -> 0.03795183333 | M64: =VLOOKUP($D64,Point_Sources_All!$A$5:$AT$204,$C$4+25)/1000 -> 0.001827491667 | N64: =VLOOKUP($D64,Point_Sources_All!$A$5:$AT$204,$C$4+28)/1000 -> 0.0578775 | O64: =VLOOKUP($D64,Point_Sources_All!$A$5:$AT$204,$C$4+31)/1000 -> 0.5283025 | P64: =VLOOKUP($D64,Point_Sources_All!$A$5:$AT$204,$C$4+34)/1000 -> 0 | Q64: =VLOOKUP($D64,Point_Sources_All!$A$5:$AT$204,$C$4+37)/1000 -> 0 | R64: =VLOOKUP($D64,Point_Sources_All!$A$5:$AT$204,$C$4+40)/1000 -> 0 | S64: =VLOOKUP($D64,Point_Sources_All!$A$5:$AT$204,$C$4+43)/1000 -> 0 | V64: 75 | W64: =VLOOKUP($V64,Point_Sources_All!$A$5:$AT$204,$C$4+1)/1000 -> 2.399875 | X64: =VLOOKUP($V64,Point_Sources_All!$A$5:$AT$204,$C$4+4)/1000 -> 0.4300233333 | Y64: =VLOOKUP($V64,Point_Sources_All!$A$5:$AT$204,$C$4+7)/1000 -> 1.141491667 | Z64: =VLOOKUP($V64,Point_Sources_All!$A$5:$AT$204,$C$4+10)/1000 -> 0 | AA64: =VLOOKUP($V64,Point_Sources_All!$A$5:$AT$204,$C$4+13)/1000 -> 0 | AB64: =VLOOKUP($V64,Point_Sources_All!$A$5:$AT$204,$C$4+16)/1000 -> 0 | AC64: =VLOOKUP($V64,Point_Sources_All!$A$5:$AT$204,$C$4+19)/1000 -> 0.0108739 | AD64: =VLOOKUP($V64,Point_Sources_All!$A$5:$AT$204,$C$4+22)/1000 -> 0.01135704167 | AE64: =VLOOKUP($V64,Point_Sources_All!$A$5:$AT$204,$C$4+25)/1000 -> 0.0005887608333 | AF64: =VLOOKUP($V64,Point_Sources_All!$A$5:$AT$204,$C$4+28)/1000 -> 0.01857566667 | AG64: =VLOOKUP($V64,Point_Sources_All!$A$5:$AT$204,$C$4+31)/1000 -> 0.5226891667 | AH64: =VLOOKUP($V64,Point_Sources_All!$A$5:$AT$204,$C$4+34)/1000 -> 0 | AI64: =VLOOKUP($V64,Point_Sources_All!$A$5:$AT$204,$C$4+37)/1000 -> 0 | AJ64: =VLOOKUP($V64,Point_Sources_All!$A$5:$AT$204,$C$4+40)/1000 -> 0 | AK64: =VLOOKUP($V64,Point_Sources_All!$A$5:$AT$204,$C$4+43)/1000 -> 0
D65: 36 | E65: =VLOOKUP($D65,Point_Sources_All!$A$5:$AT$204,$C$4+1)/1000 -> 2.472541667 | F65: =VLOOKUP($D65,Point_Sources_All!$A$5:$AT$204,$C$4+4)/1000 -> 0.42832 | G65: =VLOOKUP($D65,Point_Sources_All!$A$5:$AT$204,$C$4+7)/1000 -> 1.150225 | H65: =VLOOKUP($D65,Point_Sources_All!$A$5:$AT$204,$C$4+10)/1000 -> 0 | I65: =VLOOKUP($D65,Point_Sources_All!$A$5:$AT$204,$C$4+13)/1000 -> 0 | J65: =VLOOKUP($D65,Point_Sources_All!$A$5:$AT$204,$C$4+16)/1000 -> 0 | K65: =VLOOKUP($D65,Point_Sources_All!$A$5:$AT$204,$C$4+19)/1000 -> 0.01090554167 | L65: =VLOOKUP($D65,Point_Sources_All!$A$5:$AT$204,$C$4+22)/1000 -> 0.03665016667 | M65: =VLOOKUP($D65,Point_Sources_All!$A$5:$AT$204,$C$4+25)/1000 -> 0.001660666667 | N65: =VLOOKUP($D65,Point_Sources_All!$A$5:$AT$204,$C$4+28)/1000 -> 0.05166708333 | O65: =VLOOKUP($D65,Point_Sources_All!$A$5:$AT$204,$C$4+31)/1000 -> 0.5259358333 | P65: =VLOOKUP($D65,Point_Sources_All!$A$5:$AT$204,$C$4+34)/1000 -> 0 | Q65: =VLOOKUP($D65,Point_Sources_All!$A$5:$AT$204,$C$4+37)/1000 -> 0 | R65: =VLOOKUP($D65,Point_Sources_All!$A$5:$AT$204,$C$4+40)/1000 -> 0 | S65: =VLOOKUP($D65,Point_Sources_All!$A$5:$AT$204,$C$4+43)/1000 -> 0 | V65: 76 | W65: =VLOOKUP($V65,Point_Sources_All!$A$5:$AT$204,$C$4+1)/1000 -> 2.374625 | X65: =VLOOKUP($V65,Point_Sources_All!$A$5:$AT$204,$C$4+4)/1000 -> 0.4219925 | Y65: =VLOOKUP($V65,Point_Sources_All!$A$5:$AT$204,$C$4+7)/1000 -> 1.139141667 | Z65: =VLOOKUP($V65,Point_Sources_All!$A$5:$AT$204,$C$4+10)/1000 -> 0 | AA65: =VLOOKUP($V65,Point_Sources_All!$A$5:$AT$204,$C$4+13)/1000 -> 0 | AB65: =VLOOKUP($V65,Point_Sources_All!$A$5:$AT$204,$C$4+16)/1000 -> 0 | AC65: =VLOOKUP($V65,Point_Sources_All!$A$5:$AT$204,$C$4+19)/1000 -> 0.0108507 | AD65: =VLOOKUP($V65,Point_Sources_All!$A$5:$AT$204,$C$4+22)/1000 -> 0.01121555 | AE65: =VLOOKUP($V65,Point_Sources_All!$A$5:$AT$204,$C$4+25)/1000 -> 0.0005861258333 | AF65: =VLOOKUP($V65,Point_Sources_All!$A$5:$AT$204,$C$4+28)/1000 -> 0.01842991667 | AG65: =VLOOKUP($V65,Point_Sources_All!$A$5:$AT$204,$C$4+31)/1000 -> 0.52126 | AH65: =VLOOKUP($V65,Point_Sources_All!$A$5:$AT$204,$C$4+34)/1000 -> 0 | AI65: =VLOOKUP($V65,Point_Sources_All!$A$5:$AT$204,$C$4+37)/1000 -> 0 | AJ65: =VLOOKUP($V65,Point_Sources_All!$A$5:$AT$204,$C$4+40)/1000 -> 0 | AK65: =VLOOKUP($V65,Point_Sources_All!$A$5:$AT$204,$C$4+43)/1000 -> 0
D66: 37 | E66: =VLOOKUP($D66,Point_Sources_All!$A$5:$AT$204,$C$4+1)/1000 -> 2.439141667 | F66: =VLOOKUP($D66,Point_Sources_All!$A$5:$AT$204,$C$4+4)/1000 -> 0.4175991667 | G66: =VLOOKUP($D66,Point_Sources_All!$A$5:$AT$204,$C$4+7)/1000 -> 1.149525 | H66: =VLOOKUP($D66,Point_Sources_All!$A$5:$AT$204,$C$4+10)/1000 -> 0 | I66: =VLOOKUP($D66,Point_Sources_All!$A$5:$AT$204,$C$4+13)/1000 -> 0 | J66: =VLOOKUP($D66,Point_Sources_All!$A$5:$AT$204,$C$4+16)/1000 -> 0 | K66: =VLOOKUP($D66,Point_Sources_All!$A$5:$AT$204,$C$4+19)/1000 -> 0.01090838333 | L66: =VLOOKUP($D66,Point_Sources_All!$A$5:$AT$204,$C$4+22)/1000 -> 0.03454508333 | M66: =VLOOKUP($D66,Point_Sources_All!$A$5:$AT$204,$C$4+25)/1000 -> 0.001517216667 | N66: =VLOOKUP($D66,Point_Sources_All!$A$5:$AT$204,$C$4+28)/1000 -> 0.04749666667 | O66: =VLOOKUP($D66,Point_Sources_All!$A$5:$AT$204,$C$4+31)/1000 -> 0.523695 | P66: =VLOOKUP($D66,Point_Sources_All!$A$5:$AT$204,$C$4+34)/1000 -> 0 | Q66: =VLOOKUP($D66,Point_Sources_All!$A$5:$AT$204,$C$4+37)/1000 -> 0 | R66: =VLOOKUP($D66,Point_Sources_All!$A$5:$AT$204,$C$4+40)/1000 -> 0 | S66: =VLOOKUP($D66,Point_Sources_All!$A$5:$AT$204,$C$4+43)/1000 -> 0 | V66: 77 | W66: =VLOOKUP($V66,Point_Sources_All!$A$5:$AT$204,$C$4+1)/1000 -> 2.400025 | X66: =VLOOKUP($V66,Point_Sources_All!$A$5:$AT$204,$C$4+4)/1000 -> 0.4288241667 | Y66: =VLOOKUP($V66,Point_Sources_All!$A$5:$AT$204,$C$4+7)/1000 -> 1.142291667 | Z66: =VLOOKUP($V66,Point_Sources_All!$A$5:$AT$204,$C$4+10)/1000 -> 0 | AA66: =VLOOKUP($V66,Point_Sources_All!$A$5:$AT$204,$C$4+13)/1000 -> 0 | AB66: =VLOOKUP($V66,Point_Sources_All!$A$5:$AT$204,$C$4+16)/1000 -> 0 | AC66: =VLOOKUP($V66,Point_Sources_All!$A$5:$AT$204,$C$4+19)/1000 -> 0.010855375 | AD66: =VLOOKUP($V66,Point_Sources_All!$A$5:$AT$204,$C$4+22)/1000 -> 0.01136634167 | AE66: =VLOOKUP($V66,Point_Sources_All!$A$5:$AT$204,$C$4+25)/1000 -> 0.0005955116667 | AF66: =VLOOKUP($V66,Point_Sources_All!$A$5:$AT$204,$C$4+28)/1000 -> 0.01873333333 | AG66: =VLOOKUP($V66,Point_Sources_All!$A$5:$AT$204,$C$4+31)/1000 -> 0.5201575 | AH66: =VLOOKUP($V66,Point_Sources_All!$A$5:$AT$204,$C$4+34)/1000 -> 0 | AI66: =VLOOKUP($V66,Point_Sources_All!$A$5:$AT$204,$C$4+37)/1000 -> 0 | AJ66: =VLOOKUP($V66,Point_Sources_All!$A$5:$AT$204,$C$4+40)/1000 -> 0 | AK66: =VLOOKUP($V66,Point_Sources_All!$A$5:$AT$204,$C$4+43)/1000 -> 0
D67: 38 | E67: =VLOOKUP($D67,Point_Sources_All!$A$5:$AT$204,$C$4+1)/1000 -> 2.444175 | F67: =VLOOKUP($D67,Point_Sources_All!$A$5:$AT$204,$C$4+4)/1000 -> 0.4137133333 | G67: =VLOOKUP($D67,Point_Sources_All!$A$5:$AT$204,$C$4+7)/1000 -> 1.147233333 | H67: =VLOOKUP($D67,Point_Sources_All!$A$5:$AT$204,$C$4+10)/1000 -> 0 | I67: =VLOOKUP($D67,Point_Sources_All!$A$5:$AT$204,$C$4+13)/1000 -> 0 | J67: =VLOOKUP($D67,Point_Sources_All!$A$5:$AT$204,$C$4+16)/1000 -> 0 | K67: =VLOOKUP($D67,Point_Sources_All!$A$5:$AT$204,$C$4+19)/1000 -> 0.01067349167 | L67: =VLOOKUP($D67,Point_Sources_All!$A$5:$AT$204,$C$4+22)/1000 -> 0.03288125 | M67: =VLOOKUP($D67,Point_Sources_All!$A$5:$AT$204,$C$4+25)/1000 -> 0.001414591667 | N67: =VLOOKUP($D67,Point_Sources_All!$A$5:$AT$204,$C$4+28)/1000 -> 0.04454375 | O67: =VLOOKUP($D67,Point_Sources_All!$A$5:$AT$204,$C$4+31)/1000 -> 0.522855 | P67: =VLOOKUP($D67,Point_Sources_All!$A$5:$AT$204,$C$4+34)/1000 -> 0 | Q67: =VLOOKUP($D67,Point_Sources_All!$A$5:$AT$204,$C$4+37)/1000 -> 0 | R67: =VLOOKUP($D67,Point_Sources_All!$A$5:$AT$204,$C$4+40)/1000 -> 0 | S67: =VLOOKUP($D67,Point_Sources_All!$A$5:$AT$204,$C$4+43)/1000 -> 0 | V67: =V66+1 -> 78 | W67: =VLOOKUP($V67,Point_Sources_All!$A$5:$AT$204,$C$4+1)/1000 -> 2.390025 | X67: =VLOOKUP($V67,Point_Sources_All!$A$5:$AT$204,$C$4+4)/1000 -> 0.4321216667 | Y67: =VLOOKUP($V67,Point_Sources_All!$A$5:$AT$204,$C$4+7)/1000 -> 1.1418 | Z67: =VLOOKUP($V67,Point_Sources_All!$A$5:$AT$204,$C$4+10)/1000 -> 0 | AA67: =VLOOKUP($V67,Point_Sources_All!$A$5:$AT$204,$C$4+13)/1000 -> 0 | AB67: =VLOOKUP($V67,Point_Sources_All!$A$5:$AT$204,$C$4+16)/1000 -> 0 | AC67: =VLOOKUP($V67,Point_Sources_All!$A$5:$AT$204,$C$4+19)/1000 -> 0.01049175 | AD67: =VLOOKUP($V67,Point_Sources_All!$A$5:$AT$204,$C$4+22)/1000 -> 0.01080830833 | AE67: =VLOOKUP($V67,Point_Sources_All!$A$5:$AT$204,$C$4+25)/1000 -> 0.0005768225 | AF67: =VLOOKUP($V67,Point_Sources_All!$A$5:$AT$204,$C$4+28)/1000 -> 0.01804566667 | AG67: =VLOOKUP($V67,Point_Sources_All!$A$5:$AT$204,$C$4+31)/1000 -> 0.5186933333 | AH67: =VLOOKUP($V67,Point_Sources_All!$A$5:$AT$204,$C$4+34)/1000 -> 0 | AI67: =VLOOKUP($V67,Point_Sources_All!$A$5:$AT$204,$C$4+37)/1000 -> 0 | AJ67: =VLOOKUP($V67,Point_Sources_All!$A$5:$AT$204,$C$4+40)/1000 -> 0 | AK67: =VLOOKUP($V67,Point_Sources_All!$A$5:$AT$204,$C$4+43)/1000 -> 0
D68: 39 | E68: =VLOOKUP($D68,Point_Sources_All!$A$5:$AT$204,$C$4+1)/1000 -> 2.435916667 | F68: =VLOOKUP($D68,Point_Sources_All!$A$5:$AT$204,$C$4+4)/1000 -> 0.4227891667 | G68: =VLOOKUP($D68,Point_Sources_All!$A$5:$AT$204,$C$4+7)/1000 -> 1.146183333 | H68: =VLOOKUP($D68,Point_Sources_All!$A$5:$AT$204,$C$4+10)/1000 -> 0 | I68: =VLOOKUP($D68,Point_Sources_All!$A$5:$AT$204,$C$4+13)/1000 -> 0 | J68: =VLOOKUP($D68,Point_Sources_All!$A$5:$AT$204,$C$4+16)/1000 -> 0 | K68: =VLOOKUP($D68,Point_Sources_All!$A$5:$AT$204,$C$4+19)/1000 -> 0.01074421667 | L68: =VLOOKUP($D68,Point_Sources_All!$A$5:$AT$204,$C$4+22)/1000 -> 0.03035341667 | M68: =VLOOKUP($D68,Point_Sources_All!$A$5:$AT$204,$C$4+25)/1000 -> 0.001339383333 | N68: =VLOOKUP($D68,Point_Sources_All!$A$5:$AT$204,$C$4+28)/1000 -> 0.04185875 | O68: =VLOOKUP($D68,Point_Sources_All!$A$5:$AT$204,$C$4+31)/1000 -> 0.5264383333 | P68: =VLOOKUP($D68,Point_Sources_All!$A$5:$AT$204,$C$4+34)/1000 -> 0 | Q68: =VLOOKUP($D68,Point_Sources_All!$A$5:$AT$204,$C$4+37)/1000 -> 0 | R68: =VLOOKUP($D68,Point_Sources_All!$A$5:$AT$204,$C$4+40)/1000 -> 0 | S68: =VLOOKUP($D68,Point_Sources_All!$A$5:$AT$204,$C$4+43)/1000 -> 0 | V68: =V67+1 -> 79 | W68: =VLOOKUP($V68,Point_Sources_All!$A$5:$AT$204,$C$4+1)/1000 -> 2.391425 | X68: =VLOOKUP($V68,Point_Sources_All!$A$5:$AT$204,$C$4+4)/1000 -> 0.4452966667 | Y68: =VLOOKUP($V68,Point_Sources_All!$A$5:$AT$204,$C$4+7)/1000 -> 1.140641667 | Z68: =VLOOKUP($V68,Point_Sources_All!$A$5:$AT$204,$C$4+10)/1000 -> 0 | AA68: =VLOOKUP($V68,Point_Sources_All!$A$5:$AT$204,$C$4+13)/1000 -> 0 | AB68: =VLOOKUP($V68,Point_Sources_All!$A$5:$AT$204,$C$4+16)/1000 -> 0 | AC68: =VLOOKUP($V68,Point_Sources_All!$A$5:$AT$204,$C$4+19)/1000 -> 0.01065704167 | AD68: =VLOOKUP($V68,Point_Sources_All!$A$5:$AT$204,$C$4+22)/1000 -> 0.010877825 | AE68: =VLOOKUP($V68,Point_Sources_All!$A$5:$AT$204,$C$4+25)/1000 -> 0.00056512 | AF68: =VLOOKUP($V68,Point_Sources_All!$A$5:$AT$204,$C$4+28)/1000 -> 0.01784583333 | AG68: =VLOOKUP($V68,Point_Sources_All!$A$5:$AT$204,$C$4+31)/1000 -> 0.516855 | AH68: =VLOOKUP($V68,Point_Sources_All!$A$5:$AT$204,$C$4+34)/1000 -> 0 | AI68: =VLOOKUP($V68,Point_Sources_All!$A$5:$AT$204,$C$4+37)/1000 -> 0 | AJ68: =VLOOKUP($V68,Point_Sources_All!$A$5:$AT$204,$C$4+40)/1000 -> 0 | AK68: =VLOOKUP($V68,Point_Sources_All!$A$5:$AT$204,$C$4+43)/1000 -> 0
D69: 40 | E69: =VLOOKUP($D69,Point_Sources_All!$A$5:$AT$204,$C$4+1)/1000 -> 2.429716667 | F69: =VLOOKUP($D69,Point_Sources_All!$A$5:$AT$204,$C$4+4)/1000 -> 0.4264608333 | G69: =VLOOKUP($D69,Point_Sources_All!$A$5:$AT$204,$C$4+7)/1000 -> 1.146991667 | H69: =VLOOKUP($D69,Point_Sources_All!$A$5:$AT$204,$C$4+10)/1000 -> 0 | I69: =VLOOKUP($D69,Point_Sources_All!$A$5:$AT$204,$C$4+13)/1000 -> 0 | J69: =VLOOKUP($D69,Point_Sources_All!$A$5:$AT$204,$C$4+16)/1000 -> 0 | K69: =VLOOKUP($D69,Point_Sources_All!$A$5:$AT$204,$C$4+19)/1000 -> 0.01058703333 | L69: =VLOOKUP($D69,Point_Sources_All!$A$5:$AT$204,$C$4+22)/1000 -> 0.028332 | M69: =VLOOKUP($D69,Point_Sources_All!$A$5:$AT$204,$C$4+25)/1000 -> 0.001232808333 | N69: =VLOOKUP($D69,Point_Sources_All!$A$5:$AT$204,$C$4+28)/1000 -> 0.0384215 | O69: =VLOOKUP($D69,Point_Sources_All!$A$5:$AT$204,$C$4+31)/1000 -> 0.5118816667 | P69: =VLOOKUP($D69,Point_Sources_All!$A$5:$AT$204,$C$4+34)/1000 -> 0 | Q69: =VLOOKUP($D69,Point_Sources_All!$A$5:$AT$204,$C$4+37)/1000 -> 0 | R69: =VLOOKUP($D69,Point_Sources_All!$A$5:$AT$204,$C$4+40)/1000 -> 0 | S69: =VLOOKUP($D69,Point_Sources_All!$A$5:$AT$204,$C$4+43)/1000 -> 0 | V69: 80 | W69: =VLOOKUP($V69,Point_Sources_All!$A$5:$AT$204,$C$4+1)/1000 -> 2.382458333 | X69: =VLOOKUP($V69,Point_Sources_All!$A$5:$AT$204,$C$4+4)/1000 -> 0.4108341667 | Y69: =VLOOKUP($V69,Point_Sources_All!$A$5:$AT$204,$C$4+7)/1000 -> 1.140675 | Z69: =VLOOKUP($V69,Point_Sources_All!$A$5:$AT$204,$C$4+10)/1000 -> 0 | AA69: =VLOOKUP($V69,Point_Sources_All!$A$5:$AT$204,$C$4+13)/1000 -> 0 | AB69: =VLOOKUP($V69,Point_Sources_All!$A$5:$AT$204,$C$4+16)/1000 -> 0 | AC69: =VLOOKUP($V69,Point_Sources_All!$A$5:$AT$204,$C$4+19)/1000 -> 0.01089650833 | AD69: =VLOOKUP($V69,Point_Sources_All!$A$5:$AT$204,$C$4+22)/1000 -> 0.01086316667 | AE69: =VLOOKUP($V69,Point_Sources_All!$A$5:$AT$204,$C$4+25)/1000 -> 0.0005666866667 | AF69: =VLOOKUP($V69,Point_Sources_All!$A$5:$AT$204,$C$4+28)/1000 -> 0.01796675 | AG69: =VLOOKUP($V69,Point_Sources_All!$A$5:$AT$204,$C$4+31)/1000 -> 0.5265725 | AH69: =VLOOKUP($V69,Point_Sources_All!$A$5:$AT$204,$C$4+34)/1000 -> 0 | AI69: =VLOOKUP($V69,Point_Sources_All!$A$5:$AT$204,$C$4+37)/1000 -> 0 | AJ69: =VLOOKUP($V69,Point_Sources_All!$A$5:$AT$204,$C$4+40)/1000 -> 0 | AK69: =VLOOKUP($V69,Point_Sources_All!$A$5:$AT$204,$C$4+43)/1000 -> 0

Sheet Point_Sources_All
B1: Values shown for constituent selected on PlotControl tab
B2: Total | E2: Runoff | H2: Groundwater | K2: CPS Return Water | N2: In-pit Blasted Ore | Q2: Cat 1 Stockpile leakage | T2: Cat 1 Wallrock | W2: Cat 2/3 Wallrock | Z2: Cat 4 DC Wallrock | AC2: Ore Wallrock | AF2: Cat 4 VF Wallrock | AI2: Cat 1 Backfill | AL2: Cat 2/3 Backfill | AO2: Cat 4 DC Backfill | AR2: Cat 4 VF Backfill
B3: Annual Constituent Loading | E3: Annual Constituent Loading | H3: Annual Constituent Loading | K3: Annual Constituent Loading | N3: Annual Constituent Loading | Q3: Annual Constituent Loading | T3: Annual Constituent Loading | W3: Annual Constituent Loading | Z3: Annual Constituent Loading | AC3: Annual Constituent Loading | AF3: Annual Constituent Loading | AI3: Annual Constituent Loading | AL3: Annual Constituent Loading | AO3: Annual Constituent Loading | AR3: Annual Constituent Loading
A4: Time | B4: P10 | C4: P50 | D4: P90 | E4: P10 | F4: P50 | G4: P90 | H4: P10 | I4: P50 | J4: P90 | K4: P10 | L4: P50 | M4: P90 | N4: P10 | O4: P50 | P4: P90 | Q4: P10 | R4: P50 | S4: P90 | T4: P10 | U4: P50 | V4: P90 | W4: P10 | X4: P50 | Y4: P90 | Z4: P10 | AA4: P50 | AB4: P90 | AC4: P10 | AD4: P50 | AE4: P90 | AF4: P10 | AG4: P50 | AH4: P90 | AI4: P10 | AJ4: P50 | AK4: P90 | AL4: P10 | AM4: P50 | AN4: P90 | AO4: P10 | AP4: P50 | AQ4: P90 | AR4: P10 | AS4: P50 | AT4: P90
A5: 1 | B5: =AVERAGE(OFFSET(Total!$C$10,12*($A5-1),4*(PlotControl!$C$6-1),12,1)) -> 37996.33333 | C5: =AVERAGE(OFFSET(Total!$D$10,12*($A5-1),4*(PlotControl!$C$6-1),12,1)) -> 70155.66667 | D5: =AVERAGE(OFFSET(Total!$E$10,12*($A5-1),4*(PlotControl!$C$6-1),12,1)) -> 113217 | E5: =AVERAGE(OFFSET(RO!$C$10,12*($A5-1),4*(PlotControl!$C$6-1),12,1)) -> 0 | F5: =AVERAGE(OFFSET(RO!$D$10,12*($A5-1),4*(PlotControl!$C$6-1),12,1)) -> 0 | G5: =AVERAGE(OFFSET(RO!$E$10,12*($A5-1),4*(PlotControl!$C$6-1),12,1)) -> 0 | H5: =AVERAGE(OFFSET(GW!$C$10,12*($A5-1),4*(PlotControl!$C$6-1),12,1)) -> 2650.9025 | I5: =AVERAGE(OFFSET(GW!$D$10,12*($A5-1),4*(PlotControl!$C$6-1),12,1)) -> 3219.295 | J5: =AVERAGE(OFFSET(GW!$E$10,12*($A5-1),4*(PlotControl!$C$6-1),12,1)) -> 4759.475833 | K5: =AVERAGE(OFFSET(CPS!$C$10,12*($A5-1),4*(PlotControl!$C$6-1),12,1)) -> 0 | L5: =AVERAGE(OFFSET(CPS!$D$10,12*($A5-1),4*(PlotControl!$C$6-1),12,1)) -> 0 | M5: =AVERAGE(OFFSET(CPS!$E$10,12*($A5-1),4*(PlotControl!$C$6-1),12,1)) -> 0 | N5: =AVERAGE(OFFSET(Blast!$C$10,12*($A5-1),4*(PlotControl!$C$6-1),12,1)) -> 9571.783333 | O5: =AVERAGE(OFFSET(Blast!$D$10,12*($A5-1),4*(PlotControl!$C$6-1),12,1)) -> 17723.23333 | P5: =AVERAGE(OFFSET(Blast!$E$10,12*($A5-1),4*(PlotControl!$C$6-1),12,1)) -> 31233.04167 | Q5: =AVERAGE(OFFSET(Cat1SP_leak!$C$10,12*($A5-1),4*(PlotControl!$C$6-1),12,1)) -> 14.13569083 | R5: =AVERAGE(OFFSET(Cat1SP_leak!$D$10,12*($A5-1),4*(PlotControl!$C$6-1),12,1)) -> 40.27214167 | S5: =AVERAGE(OFFSET(Cat1SP_leak!$E$10,12*($A5-1),4*(PlotControl!$C$6-1),12,1)) -> 95.72168333 | T5: =AVERAGE(OFFSET(Cat1wall!$C$10,12*($A5-1),4*(PlotControl!$C$6-1),12,1)) -> 289.9183333 | U5: =AVERAGE(OFFSET(Cat1wall!$D$10,12*($A5-1),4*(PlotControl!$C$6-1),12,1)) -> 633.6591667 | V5: =AVERAGE(OFFSET(Cat1wall!$E$10,12*($A5-1),4*(PlotControl!$C$6-1),12,1)) -> 1229.25 | W5: =AVERAGE(OFFSET(Cat23wall!$C$10,12*($A5-1),4*(PlotControl!$C$6-1),12,1)) -> 656.7041667 | X5: =AVERAGE(OFFSET(Cat23wall!$D$10,12*($A5-1),4*(PlotControl!$C$6-1),12,1)) -> 1435.283333 | Y5: =AVERAGE(OFFSET(Cat23wall!$E$10,12*($A5-1),4*(PlotControl!$C$6-1),12,1)) -> 2784.258333 | Z5: =AVERAGE(OFFSET(Cat4DCwall!$C$10,12*($A5-1),4*(PlotControl!$C$6-1),12,1)) -> 91.52491667 | AA5: =AVERAGE(OFFSET(Cat4DCwall!$D$10,12*($A5-1),4*(PlotControl!$C$6-1),12,1)) -> 259.6491667 | AB5: =AVERAGE(OFFSET(Cat4DCwall!$E$10,12*($A5-1),4*(PlotControl!$C$6-1),12,1)) -> 832.535 | AC5: =AVERAGE(OFFSET(Orewall!$C$10,12*($A5-1),4*(PlotControl!$C$6-1),12,1)) -> 4238.541667 | AD5: =AVERAGE(OFFSET(Orewall!$D$10,12*($A5-1),4*(PlotControl!$C$6-1),12,1)) -> 9263.633333 | AE5: =AVERAGE(OFFSET(Orewall!$E$10,12*($A5-1),4*(PlotControl!$C$6-1),12,1)) -> 17970.58333 | AF5: =AVERAGE(OFFSET(Cat4VFwall!$C$10,12*($A5-1),4*(PlotControl!$C$6-1),12,1)) -> 15993.66667 | AG5: =AVERAGE(OFFSET(Cat4VFwall!$D$10,12*($A5-1),4*(PlotControl!$C$6-1),12,1)) -> 34461.41667 | AH5: =AVERAGE(OFFSET(Cat4VFwall!$E$10,12*($A5-1),4*(PlotControl!$C$6-1),12,1)) -> 65009.33333 | AI5: =AVERAGE(OFFSET(Cat1Bkf!$C$10,12*($A5-1),4*(PlotControl!$C$6-1),12,1)) -> 0 | AJ5: =AVERAGE(OFFSET(Cat1Bkf!$D$10,12*($A5-1),4*(PlotControl!$C$6-1),12,1)) -> 0 | AK5: =AVERAGE(OFFSET(Cat1Bkf!$E$10,12*($A5-1),4*(PlotControl!$C$6-1),12,1)) -> 0 | AL5: =AVERAGE(OFFSET(Cat23Bkf!$C$10,12*($A5-1),4*(PlotControl!$C$6-1),12,1)) -> 0 | AM5: =AVERAGE(OFFSET(Cat23Bkf!$D$10,12*($A5-1),4*(PlotControl!$C$6-1),12,1)) -> 0 | AN5: =AVERAGE(OFFSET(Cat23Bkf!$E$10,12*($A5-1),4*(PlotControl!$C$6-1),12,1)) -> 0 | AO5: =AVERAGE(OFFSET(Cat4DCBkf!$C$10,12*($A5-1),4*(PlotControl!$C$6-1),12,1)) -> 0 | AP5: =AVERAGE(OFFSET(Cat4DCBkf!$D$10,12*($A5-1),4*(PlotControl!$C$6-1),12,1)) -> 0 | AQ5: =AVERAGE(OFFSET(Cat4DCBkf!$E$10,12*($A5-1),4*(PlotControl!$C$6-1),12,1)) -> 0 | AR5: =AVERAGE(OFFSET(Cat4VFBkf!$C$10,12*($A5-1),4*(PlotControl!$C$6-1),12,1)) -> 0 | AS5: =AVERAGE(OFFSET(Cat4VFBkf!$D$10,12*($A5-1),4*(PlotControl!$C$6-1),12,1)) -> 0 | AT5: =AVERAGE(OFFSET(Cat4VFBkf!$E$10,12*($A5-1),4*(PlotControl!$C$6-1),12,1)) -> 0
A6: 2 | B6: =AVERAGE(OFFSET(Total!$C$10,12*($A6-1),4*(PlotControl!$C$6-1),12,1)) -> 62042.58333 | C6: =AVERAGE(OFFSET(Total!$D$10,12*($A6-1),4*(PlotControl!$C$6-1),12,1)) -> 105248.25 | D6: =AVERAGE(OFFSET(Total!$E$10,12*($A6-1),4*(PlotControl!$C$6-1),12,1)) -> 159563.3333 | E6: =AVERAGE(OFFSET(RO!$C$10,12*($A6-1),4*(PlotControl!$C$6-1),12,1)) -> 0 | F6: =AVERAGE(OFFSET(RO!$D$10,12*($A6-1),4*(PlotControl!$C$6-1),12,1)) -> 0 | G6: =AVERAGE(OFFSET(RO!$E$10,12*($A6-1),4*(PlotControl!$C$6-1),12,1)) -> 0 | H6: =AVERAGE(OFFSET(GW!$C$10,12*($A6-1),4*(PlotControl!$C$6-1),12,1)) -> 6811.95 | I6: =AVERAGE(OFFSET(GW!$D$10,12*($A6-1),4*(PlotControl!$C$6-1),12,1)) -> 8466.533333 | J6: =AVERAGE(OFFSET(GW!$E$10,12*($A6-1),4*(PlotControl!$C$6-1),12,1)) -> 12636 | K6: =AVERAGE(OFFSET(CPS!$C$10,12*($A6-1),4*(PlotControl!$C$6-1),12,1)) -> 0 | L6: =AVERAGE(OFFSET(CPS!$D$10,12*($A6-1),4*(PlotControl!$C$6-1),12,1)) -> 0 | M6: =AVERAGE(OFFSET(CPS!$E$10,12*($A6-1),4*(PlotControl!$C$6-1),12,1)) -> 0 | N6: =AVERAGE(OFFSET(Blast!$C$10,12*($A6-1),4*(PlotControl!$C$6-1),12,1)) -> 22030.75 | O6: =AVERAGE(OFFSET(Blast!$D$10,12*($A6-1),4*(PlotControl!$C$6-1),12,1)) -> 41801.16667 | P6: =AVERAGE(OFFSET(Blast!$E$10,12*($A6-1),4*(PlotControl!$C$6-1),12,1)) -> 64320.25 | Q6: =AVERAGE(OFFSET(Cat1SP_leak!$C$10,12*($A6-1),4*(PlotControl!$C$6-1),12,1)) -> 119.40525 | R6: =AVERAGE(OFFSET(Cat1SP_leak!$D$10,12*($A6-1),4*(PlotControl!$C$6-1),12,1)) -> 308.8016667 | S6: =AVERAGE(OFFSET(Cat1SP_leak!$E$10,12*($A6-1),4*(PlotControl!$C$6-1),12,1)) -> 715.0758333 | T6: =AVERAGE(OFFSET(Cat1wall!$C$10,12*($A6-1),4*(PlotControl!$C$6-1),12,1)) -> 324.7608333 | U6: =AVERAGE(OFFSET(Cat1wall!$D$10,12*($A6-1),4*(PlotControl!$C$6-1),12,1)) -> 674.03 | V6: =AVERAGE(OFFSET(Cat1wall!$E$10,12*($A6-1),4*(PlotControl!$C$6-1),12,1)) -> 1393.466667 | W6: =AVERAGE(OFFSET(Cat23wall!$C$10,12*($A6-1),4*(PlotControl!$C$6-1),12,1)) -> 735.6458333 | X6: =AVERAGE(OFFSET(Cat23wall!$D$10,12*($A6-1),4*(PlotControl!$C$6-1),12,1)) -> 1526.808333 | Y6: =AVERAGE(OFFSET(Cat23wall!$E$10,12*($A6-1),4*(PlotControl!$C$6-1),12,1)) -> 3156.458333 | Z6: =AVERAGE(OFFSET(Cat4DCwall!$C$10,12*($A6-1),4*(PlotControl!$C$6-1),12,1)) -> 98.79408333 | AA6: =AVERAGE(OFFSET(Cat4DCwall!$D$10,12*($A6-1),4*(PlotControl!$C$6-1),12,1)) -> 278.9825 | AB6: =AVERAGE(OFFSET(Cat4DCwall!$E$10,12*($A6-1),4*(PlotControl!$C$6-1),12,1)) -> 908.9116667 | AC6: =AVERAGE(OFFSET(Orewall!$C$10,12*($A6-1),4*(PlotControl!$C$6-1),12,1)) -> 4748.041667 | AD6: =AVERAGE(OFFSET(Orewall!$D$10,12*($A6-1),4*(PlotControl!$C$6-1),12,1)) -> 9854.375 | AE6: =AVERAGE(OFFSET(Orewall!$E$10,12*($A6-1),4*(PlotControl!$C$6-1),12,1)) -> 20372.75 | AF6: =AVERAGE(OFFSET(Cat4VFwall!$C$10,12*($A6-1),4*(PlotControl!$C$6-1),12,1)) -> 17453.75 | AG6: =AVERAGE(OFFSET(Cat4VFwall!$D$10,12*($A6-1),4*(PlotControl!$C$6-1),12,1)) -> 36931 | AH6: =AVERAGE(OFFSET(Cat4VFwall!$E$10,12*($A6-1),4*(PlotControl!$C$6-1),12,1)) -> 71791.83333 | AI6: =AVERAGE(OFFSET(Cat1Bkf!$C$10,12*($A6-1),4*(PlotControl!$C$6-1),12,1)) -> 0 | AJ6: =AVERAGE(OFFSET(Cat1Bkf!$D$10,12*($A6-1),4*(PlotControl!$C$6-1),12,1)) -> 0 | AK6: =AVERAGE(OFFSET(Cat1Bkf!$E$10,12*($A6-1),4*(PlotControl!$C$6-1),12,1)) -> 0 | AL6: =AVERAGE(OFFSET(Cat23Bkf!$C$10,12*($A6-1),4*(PlotControl!$C$6-1),12,1)) -> 0 | AM6: =AVERAGE(OFFSET(Cat23Bkf!$D$10,12*($A6-1),4*(PlotControl!$C$6-1),12,1)) -> 0 | AN6: =AVERAGE(OFFSET(Cat23Bkf!$E$10,12*($A6-1),4*(PlotControl!$C$6-1),12,1)) -> 0 | AO6: =AVERAGE(OFFSET(Cat4DCBkf!$C$10,12*($A6-1),4*(PlotControl!$C$6-1),12,1)) -> 0 | AP6: =AVERAGE(OFFSET(Cat4DCBkf!$D$10,12*($A6-1),4*(PlotControl!$C$6-1),12,1)) -> 0 | AQ6: =AVERAGE(OFFSET(Cat4DCBkf!$E$10,12*($A6-1),4*(PlotControl!$C$6-1),12,1)) -> 0 | AR6: =AVERAGE(OFFSET(Cat4VFBkf!$C$10,12*($A6-1),4*(PlotControl!$C$6-1),12,1)) -> 0 | AS6: =AVERAGE(OFFSET(Cat4VFBkf!$D$10,12*($A6-1),4*(PlotControl!$C$6-1),12,1)) -> 0 | AT6: =AVERAGE(OFFSET(Cat4VFBkf!$E$10,12*($A6-1),4*(PlotControl!$C$6-1),12,1)) -> 0
A7: 3 | B7: =AVERAGE(OFFSET(Total!$C$10,12*($A7-1),4*(PlotControl!$C$6-1),12,1)) -> 62131.5 | C7: =AVERAGE(OFFSET(Total!$D$10,12*($A7-1),4*(PlotControl!$C$6-1),12,1)) -> 106203.5 | D7: =AVERAGE(OFFSET(Total!$E$10,12*($A7-1),4*(PlotControl!$C$6-1),12,1)) -> 159935.8333 | E7: =AVERAGE(OFFSET(RO!$C$10,12*($A7-1),4*(PlotControl!$C$6-1),12,1)) -> 0 | F7: =AVERAGE(OFFSET(RO!$D$10,12*($A7-1),4*(PlotControl!$C$6-1),12,1)) -> 0 | G7: =AVERAGE(OFFSET(RO!$E$10,12*($A7-1),4*(PlotControl!$C$6-1),12,1)) -> 0 | H7: =AVERAGE(OFFSET(GW!$C$10,12*($A7-1),4*(PlotControl!$C$6-1),12,1)) -> 6803.483333 | I7: =AVERAGE(OFFSET(GW!$D$10,12*($A7-1),4*(PlotControl!$C$6-1),12,1)) -> 8470.866667 | J7: =AVERAGE(OFFSET(GW!$E$10,12*($A7-1),4*(PlotControl!$C$6-1),12,1)) -> 12685.33333 | K7: =AVERAGE(OFFSET(CPS!$C$10,12*($A7-1),4*(PlotControl!$C$6-1),12,1)) -> 0 | L7: =AVERAGE(OFFSET(CPS!$D$10,12*($A7-1),4*(PlotControl!$C$6-1),12,1)) -> 0 | M7: =AVERAGE(OFFSET(CPS!$E$10,12*($A7-1),4*(PlotControl!$C$6-1),12,1)) -> 0 | N7: =AVERAGE(OFFSET(Blast!$C$10,12*($A7-1),4*(PlotControl!$C$6-1),12,1)) -> 21989.33333 | O7: =AVERAGE(OFFSET(Blast!$D$10,12*($A7-1),4*(PlotControl!$C$6-1),12,1)) -> 42077.66667 | P7: =AVERAGE(OFFSET(Blast!$E$10,12*($A7-1),4*(PlotControl!$C$6-1),12,1)) -> 64681 | Q7: =AVERAGE(OFFSET(Cat1SP_leak!$C$10,12*($A7-1),4*(PlotControl!$C$6-1),12,1)) -> 325.145 | R7: =AVERAGE(OFFSET(Cat1SP_leak!$D$10,12*($A7-1),4*(PlotControl!$C$6-1),12,1)) -> 920.885 | S7: =AVERAGE(OFFSET(Cat1SP_leak!$E$10,12*($A7-1),4*(PlotControl!$C$6-1),12,1)) -> 1938.7125 | T7: =AVERAGE(OFFSET(Cat1wall!$C$10,12*($A7-1),4*(PlotControl!$C$6-1),12,1)) -> 317.7891667 | U7: =AVERAGE(OFFSET(Cat1wall!$D$10,12*($A7-1),4*(PlotControl!$C$6-1),12,1)) -> 694.215 | V7: =AVERAGE(OFFSET(Cat1wall!$E$10,12*($A7-1),4*(PlotControl!$C$6-1),12,1)) -> 1391.583333 | W7: =AVERAGE(OFFSET(Cat23wall!$C$10,12*($A7-1),4*(PlotControl!$C$6-1),12,1)) -> 719.8591667 | X7: =AVERAGE(OFFSET(Cat23wall!$D$10,12*($A7-1),4*(PlotControl!$C$6-1),12,1)) -> 1572.541667 | Y7: =AVERAGE(OFFSET(Cat23wall!$E$10,12*($A7-1),4*(PlotControl!$C$6-1),12,1)) -> 3152.208333 | Z7: =AVERAGE(OFFSET(Cat4DCwall!$C$10,12*($A7-1),4*(PlotControl!$C$6-1),12,1)) -> 99.144 | AA7: =AVERAGE(OFFSET(Cat4DCwall!$D$10,12*($A7-1),4*(PlotControl!$C$6-1),12,1)) -> 279.3108333 | AB7: =AVERAGE(OFFSET(Cat4DCwall!$E$10,12*($A7-1),4*(PlotControl!$C$6-1),12,1)) -> 919.0841667 | AC7: =AVERAGE(OFFSET(Orewall!$C$10,12*($A7-1),4*(PlotControl!$C$6-1),12,1)) -> 4646.158333 | AD7: =AVERAGE(OFFSET(Orewall!$D$10,12*($A7-1),4*(PlotControl!$C$6-1),12,1)) -> 10149.58333 | AE7: =AVERAGE(OFFSET(Orewall!$E$10,12*($A7-1),4*(PlotControl!$C$6-1),12,1)) -> 20345.41667 | AF7: =AVERAGE(OFFSET(Cat4VFwall!$C$10,12*($A7-1),4*(PlotControl!$C$6-1),12,1)) -> 16736.66667 | AG7: =AVERAGE(OFFSET(Cat4VFwall!$D$10,12*($A7-1),4*(PlotControl!$C$6-1),12,1)) -> 37214.16667 | AH7: =AVERAGE(OFFSET(Cat4VFwall!$E$10,12*($A7-1),4*(PlotControl!$C$6-1),12,1)) -> 72009.08333 | AI7: =AVERAGE(OFFSET(Cat1Bkf!$C$10,12*($A7-1),4*(PlotControl!$C$6-1),12,1)) -> 0 | AJ7: =AVERAGE(OFFSET(Cat1Bkf!$D$10,12*($A7-1),4*(PlotControl!$C$6-1),12,1)) -> 0 | AK7: =AVERAGE(OFFSET(Cat1Bkf!$E$10,12*($A7-1),4*(PlotControl!$C$6-1),12,1)) -> 0 | AL7: =AVERAGE(OFFSET(Cat23Bkf!$C$10,12*($A7-1),4*(PlotControl!$C$6-1),12,1)) -> 0 | AM7: =AVERAGE(OFFSET(Cat23Bkf!$D$10,12*($A7-1),4*(PlotControl!$C$6-1),12,1)) -> 0 | AN7: =AVERAGE(OFFSET(Cat23Bkf!$E$10,12*($A7-1),4*(PlotControl!$C$6-1),12,1)) -> 0 | AO7: =AVERAGE(OFFSET(Cat4DCBkf!$C$10,12*($A7-1),4*(PlotControl!$C$6-1),12,1)) -> 0 | AP7: =AVERAGE(OFFSET(Cat4DCBkf!$D$10,12*($A7-1),4*(PlotControl!$C$6-1),12,1)) -> 0 | AQ7: =AVERAGE(OFFSET(Cat4DCBkf!$E$10,12*($A7-1),4*(PlotControl!$C$6-1),12,1)) -> 0 | AR7: =AVERAGE(OFFSET(Cat4VFBkf!$C$10,12*($A7-1),4*(PlotControl!$C$6-1),12,1)) -> 0 | AS7: =AVERAGE(OFFSET(Cat4VFBkf!$D$10,12*($A7-1),4*(PlotControl!$C$6-1),12,1)) -> 0 | AT7: =AVERAGE(OFFSET(Cat4VFBkf!$E$10,12*($A7-1),4*(PlotControl!$C$6-1),12,1)) -> 0
A8: 4 | B8: =AVERAGE(OFFSET(Total!$C$10,12*($A8-1),4*(PlotControl!$C$6-1),12,1)) -> 65063.5 | C8: =AVERAGE(OFFSET(Total!$D$10,12*($A8-1),4*(PlotControl!$C$6-1),12,1)) -> 109129.8333 | D8: =AVERAGE(OFFSET(Total!$E$10,12*($A8-1),4*(PlotControl!$C$6-1),12,1)) -> 162579.1667 | E8: =AVERAGE(OFFSET(RO!$C$10,12*($A8-1),4*(PlotControl!$C$6-1),12,1)) -> 0 | F8: =AVERAGE(OFFSET(RO!$D$10,12*($A8-1),4*(PlotControl!$C$6-1),12,1)) -> 0 | G8: =AVERAGE(OFFSET(RO!$E$10,12*($A8-1),4*(PlotControl!$C$6-1),12,1)) -> 0 | H8: =AVERAGE(OFFSET(GW!$C$10,12*($A8-1),4*(PlotControl!$C$6-1),12,1)) -> 7982.95 | I8: =AVERAGE(OFFSET(GW!$D$10,12*($A8-1),4*(PlotControl!$C$6-1),12,1)) -> 9960.175 | J8: =AVERAGE(OFFSET(GW!$E$10,12*($A8-1),4*(PlotControl!$C$6-1),12,1)) -> 14943.41667 | K8: =AVERAGE(OFFSET(CPS!$C$10,12*($A8-1),4*(PlotControl!$C$6-1),12,1)) -> 0 | L8: =AVERAGE(OFFSET(CPS!$D$10,12*($A8-1),4*(PlotControl!$C$6-1),12,1)) -> 0 | M8: =AVERAGE(OFFSET(CPS!$E$10,12*($A8-1),4*(PlotControl!$C$6-1),12,1)) -> 0 | N8: =AVERAGE(OFFSET(Blast!$C$10,12*($A8-1),4*(PlotControl!$C$6-1),12,1)) -> 22011.5 | O8: =AVERAGE(OFFSET(Blast!$D$10,12*($A8-1),4*(PlotControl!$C$6-1),12,1)) -> 42617.66667 | P8: =AVERAGE(OFFSET(Blast!$E$10,12*($A8-1),4*(PlotControl!$C$6-1),12,1)) -> 65910.5 | Q8: =AVERAGE(OFFSET(Cat1SP_leak!$C$10,12*($A8-1),4*(PlotControl!$C$6-1),12,1)) -> 567.4125 | R8: =AVERAGE(OFFSET(Cat1SP_leak!$D$10,12*($A8-1),4*(PlotControl!$C$6-1),12,1)) -> 1577.241667 | S8: =AVERAGE(OFFSET(Cat1SP_leak!$E$10,12*($A8-1),4*(PlotControl!$C$6-1),12,1)) -> 3843.233333 | T8: =AVERAGE(OFFSET(Cat1wall!$C$10,12*($A8-1),4*(PlotControl!$C$6-1),12,1)) -> 312.7216667 | U8: =AVERAGE(OFFSET(Cat1wall!$D$10,12*($A8-1),4*(PlotControl!$C$6-1),12,1)) -> 687.5708333 | V8: =AVERAGE(OFFSET(Cat1wall!$E$10,12*($A8-1),4*(PlotControl!$C$6-1),12,1)) -> 1337.383333 | W8: =AVERAGE(OFFSET(Cat23wall!$C$10,12*($A8-1),4*(PlotControl!$C$6-1),12,1)) -> 708.3858333 | X8: =AVERAGE(OFFSET(Cat23wall!$D$10,12*($A8-1),4*(PlotControl!$C$6-1),12,1)) -> 1557.5 | Y8: =AVERAGE(OFFSET(Cat23wall!$E$10,12*($A8-1),4*(PlotControl!$C$6-1),12,1)) -> 3029.491667 | Z8: =AVERAGE(OFFSET(Cat4DCwall!$C$10,12*($A8-1),4*(PlotControl!$C$6-1),12,1)) -> 99.97366667 | AA8: =AVERAGE(OFFSET(Cat4DCwall!$D$10,12*($A8-1),4*(PlotControl!$C$6-1),12,1)) -> 283.5825 | AB8: =AVERAGE(OFFSET(Cat4DCwall!$E$10,12*($A8-1),4*(PlotControl!$C$6-1),12,1)) -> 951.2708333 | AC8: =AVERAGE(OFFSET(Orewall!$C$10,12*($A8-1),4*(PlotControl!$C$6-1),12,1)) -> 4572.091667 | AD8: =AVERAGE(OFFSET(Orewall!$D$10,12*($A8-1),4*(PlotControl!$C$6-1),12,1)) -> 10052.5 | AE8: =AVERAGE(OFFSET(Orewall!$E$10,12*($A8-1),4*(PlotControl!$C$6-1),12,1)) -> 19553.33333 | AF8: =AVERAGE(OFFSET(Cat4VFwall!$C$10,12*($A8-1),4*(PlotControl!$C$6-1),12,1)) -> 16968.33333 | AG8: =AVERAGE(OFFSET(Cat4VFwall!$D$10,12*($A8-1),4*(PlotControl!$C$6-1),12,1)) -> 38083.16667 | AH8: =AVERAGE(OFFSET(Cat4VFwall!$E$10,12*($A8-1),4*(PlotControl!$C$6-1),12,1)) -> 70126.66667 | AI8: =AVERAGE(OFFSET(Cat1Bkf!$C$10,12*($A8-1),4*(PlotControl!$C$6-1),12,1)) -> 0 | AJ8: =AVERAGE(OFFSET(Cat1Bkf!$D$10,12*($A8-1),4*(PlotControl!$C$6-1),12,1)) -> 0 | AK8: =AVERAGE(OFFSET(Cat1Bkf!$E$10,12*($A8-1),4*(PlotControl!$C$6-1),12,1)) -> 0 | AL8: =AVERAGE(OFFSET(Cat23Bkf!$C$10,12*($A8-1),4*(PlotControl!$C$6-1),12,1)) -> 0 | AM8: =AVERAGE(OFFSET(Cat23Bkf!$D$10,12*($A8-1),4*(PlotControl!$C$6-1),12,1)) -> 0 | AN8: =AVERAGE(OFFSET(Cat23Bkf!$E$10,12*($A8-1),4*(PlotControl!$C$6-1),12,1)) -> 0 | AO8: =AVERAGE(OFFSET(Cat4DCBkf!$C$10,12*($A8-1),4*(PlotControl!$C$6-1),12,1)) -> 0 | AP8: =AVERAGE(OFFSET(Cat4DCBkf!$D$10,12*($A8-1),4*(PlotControl!$C$6-1),12,1)) -> 0 | AQ8: =AVERAGE(OFFSET(Cat4DCBkf!$E$10,12*($A8-1),4*(PlotControl!$C$6-1),12,1)) -> 0 | AR8: =AVERAGE(OFFSET(Cat4VFBkf!$C$10,12*($A8-1),4*(PlotControl!$C$6-1),12,1)) -> 0 | AS8: =AVERAGE(OFFSET(Cat4VFBkf!$D$10,12*($A8-1),4*(PlotControl!$C$6-1),12,1)) -> 0 | AT8: =AVERAGE(OFFSET(Cat4VFBkf!$E$10,12*($A8-1),4*(PlotControl!$C$6-1),12,1)) -> 0
A9: 5 | B9: =AVERAGE(OFFSET(Total!$C$10,12*($A9-1),4*(PlotControl!$C$6-1),12,1)) -> 71885.5 | C9: =AVERAGE(OFFSET(Total!$D$10,12*($A9-1),4*(PlotControl!$C$6-1),12,1)) -> 116666.1667 | D9: =AVERAGE(OFFSET(Total!$E$10,12*($A9-1),4*(PlotControl!$C$6-1),12,1)) -> 171238.3333 | E9: =AVERAGE(OFFSET(RO!$C$10,12*($A9-1),4*(PlotControl!$C$6-1),12,1)) -> 0 | F9: =AVERAGE(OFFSET(RO!$D$10,12*($A9-1),4*(PlotControl!$C$6-1),12,1)) -> 0 | G9: =AVERAGE(OFFSET(RO!$E$10,12*($A9-1),4*(PlotControl!$C$6-1),12,1)) -> 0 | H9: =AVERAGE(OFFSET(GW!$C$10,12*($A9-1),4*(PlotControl!$C$6-1),12,1)) -> 12148.15833 | I9: =AVERAGE(OFFSET(GW!$D$10,12*($A9-1),4*(PlotControl!$C$6-1),12,1)) -> 15210.91667 | J9: =AVERAGE(OFFSET(GW!$E$10,12*($A9-1),4*(PlotControl!$C$6-1),12,1)) -> 22857.25 | K9: =AVERAGE(OFFSET(CPS!$C$10,12*($A9-1),4*(PlotControl!$C$6-1),12,1)) -> 0 | L9: =AVERAGE(OFFSET(CPS!$D$10,12*($A9-1),4*(PlotControl!$C$6-1),12,1)) -> 0 | M9: =AVERAGE(OFFSET(CPS!$E$10,12*($A9-1),4*(PlotControl!$C$6-1),12,1)) -> 0 | N9: =AVERAGE(OFFSET(Blast!$C$10,12*($A9-1),4*(PlotControl!$C$6-1),12,1)) -> 22331.58333 | O9: =AVERAGE(OFFSET(Blast!$D$10,12*($A9-1),4*(PlotControl!$C$6-1),12,1)) -> 42584.08333 | P9: =AVERAGE(OFFSET(Blast!$E$10,12*($A9-1),4*(PlotControl!$C$6-1),12,1)) -> 64452.5 | Q9: =AVERAGE(OFFSET(Cat1SP_leak!$C$10,12*($A9-1),4*(PlotControl!$C$6-1),12,1)) -> 1000.434167 | R9: =AVERAGE(OFFSET(Cat1SP_leak!$D$10,12*($A9-1),4*(PlotControl!$C$6-1),12,1)) -> 2860.725 | S9: =AVERAGE(OFFSET(Cat1SP_leak!$E$10,12*($A9-1),4*(PlotControl!$C$6-1),12,1)) -> 6398.666667 | T9: =AVERAGE(OFFSET(Cat1wall!$C$10,12*($A9-1),4*(PlotControl!$C$6-1),12,1)) -> 313.3775 | U9: =AVERAGE(OFFSET(Cat1wall!$D$10,12*($A9-1),4*(PlotControl!$C$6-1),12,1)) -> 682.3916667 | V9: =AVERAGE(OFFSET(Cat1wall!$E$10,12*($A9-1),4*(PlotControl!$C$6-1),12,1)) -> 1382.258333 | W9: =AVERAGE(OFFSET(Cat23wall!$C$10,12*($A9-1),4*(PlotControl!$C$6-1),12,1)) -> 709.8691667 | X9: =AVERAGE(OFFSET(Cat23wall!$D$10,12*($A9-1),4*(PlotControl!$C$6-1),12,1)) -> 1545.775 | Y9: =AVERAGE(OFFSET(Cat23wall!$E$10,12*($A9-1),4*(PlotControl!$C$6-1),12,1)) -> 3131.091667 | Z9: =AVERAGE(OFFSET(Cat4DCwall!$C$10,12*($A9-1),4*(PlotControl!$C$6-1),12,1)) -> 101.2433333 | AA9: =AVERAGE(OFFSET(Cat4DCwall!$D$10,12*($A9-1),4*(PlotControl!$C$6-1),12,1)) -> 275.2025 | AB9: =AVERAGE(OFFSET(Cat4DCwall!$E$10,12*($A9-1),4*(PlotControl!$C$6-1),12,1)) -> 899.4183333 | AC9: =AVERAGE(OFFSET(Orewall!$C$10,12*($A9-1),4*(PlotControl!$C$6-1),12,1)) -> 4581.666667 | AD9: =AVERAGE(OFFSET(Orewall!$D$10,12*($A9-1),4*(PlotControl!$C$6-1),12,1)) -> 9976.866667 | AE9: =AVERAGE(OFFSET(Orewall!$E$10,12*($A9-1),4*(PlotControl!$C$6-1),12,1)) -> 20209.16667 | AF9: =AVERAGE(OFFSET(Cat4VFwall!$C$10,12*($A9-1),4*(PlotControl!$C$6-1),12,1)) -> 16415.08333 | AG9: =AVERAGE(OFFSET(Cat4VFwall!$D$10,12*($A9-1),4*(PlotControl!$C$6-1),12,1)) -> 38133 | AH9: =AVERAGE(OFFSET(Cat4VFwall!$E$10,12*($A9-1),4*(PlotControl!$C$6-1),12,1)) -> 71040.91667 | AI9: =AVERAGE(OFFSET(Cat1Bkf!$C$10,12*($A9-1),4*(PlotControl!$C$6-1),12,1)) -> 0 | AJ9: =AVERAGE(OFFSET(Cat1Bkf!$D$10,12*($A9-1),4*(PlotControl!$C$6-1),12,1)) -> 0 | AK9: =AVERAGE(OFFSET(Cat1Bkf!$E$10,12*($A9-1),4*(PlotControl!$C$6-1),12,1)) -> 0 | AL9: =AVERAGE(OFFSET(Cat23Bkf!$C$10,12*($A9-1),4*(PlotControl!$C$6-1),12,1)) -> 0 | AM9: =AVERAGE(OFFSET(Cat23Bkf!$D$10,12*($A9-1),4*(PlotControl!$C$6-1),12,1)) -> 0 | AN9: =AVERAGE(OFFSET(Cat23Bkf!$E$10,12*($A9-1),4*(PlotControl!$C$6-1),12,1)) -> 0 | AO9: =AVERAGE(OFFSET(Cat4DCBkf!$C$10,12*($A9-1),4*(PlotControl!$C$6-1),12,1)) -> 0 | AP9: =AVERAGE(OFFSET(Cat4DCBkf!$D$10,12*($A9-1),4*(PlotControl!$C$6-1),12,1)) -> 0 | AQ9: =AVERAGE(OFFSET(Cat4DCBkf!$E$10,12*($A9-1),4*(PlotControl!$C$6-1),12,1)) -> 0 | AR9: =AVERAGE(OFFSET(Cat4VFBkf!$C$10,12*($A9-1),4*(PlotControl!$C$6-1),12,1)) -> 0 | AS9: =AVERAGE(OFFSET(Cat4VFBkf!$D$10,12*($A9-1),4*(PlotControl!$C$6-1),12,1)) -> 0 | AT9: =AVERAGE(OFFSET(Cat4VFBkf!$E$10,12*($A9-1),4*(PlotControl!$C$6-1),12,1)) -> 0
A10: 6 | B10: =AVERAGE(OFFSET(Total!$C$10,12*($A10-1),4*(PlotControl!$C$6-1),12,1)) -> 78411.33333 | C10: =AVERAGE(OFFSET(Total!$D$10,12*($A10-1),4*(PlotControl!$C$6-1),12,1)) -> 124037.0833 | D10: =AVERAGE(OFFSET(Total!$E$10,12*($A10-1),4*(PlotControl!$C$6-1),12,1)) -> 178272.5 | E10: =AVERAGE(OFFSET(RO!$C$10,12*($A10-1),4*(PlotControl!$C$6-1),12,1)) -> 0 | F10: =AVERAGE(OFFSET(RO!$D$10,12*($A10-1),4*(PlotControl!$C$6-1),12,1)) -> 0 | G10: =AVERAGE(OFFSET(RO!$E$10,12*($A10-1),4*(PlotControl!$C$6-1),12,1)) -> 0 | H10: =AVERAGE(OFFSET(GW!$C$10,12*($A10-1),4*(PlotControl!$C$6-1),12,1)) -> 15805.33333 | I10: =AVERAGE(OFFSET(GW!$D$10,12*($A10-1),4*(PlotControl!$C$6-1),12,1)) -> 19832.83333 | J10: =AVERAGE(OFFSET(GW!$E$10,12*($A10-1),4*(PlotControl!$C$6-1),12,1)) -> 29820.75 | K10: =AVERAGE(OFFSET(CPS!$C$10,12*($A10-1),4*(PlotControl!$C$6-1),12,1)) -> 0 | L10: =AVERAGE(OFFSET(CPS!$D$10,12*($A10-1),4*(PlotControl!$C$6-1),12,1)) -> 0 | M10: =AVERAGE(OFFSET(CPS!$E$10,12*($A10-1),4*(PlotControl!$C$6-1),12,1)) -> 0 | N10: =AVERAGE(OFFSET(Blast!$C$10,12*($A10-1),4*(PlotControl!$C$6-1),12,1)) -> 22089.5 | O10: =AVERAGE(OFFSET(Blast!$D$10,12*($A10-1),4*(PlotControl!$C$6-1),12,1)) -> 42175.5 | P10: =AVERAGE(OFFSET(Blast!$E$10,12*($A10-1),4*(PlotControl!$C$6-1),12,1)) -> 66112.25 | Q10: =AVERAGE(OFFSET(Cat1SP_leak!$C$10,12*($A10-1),4*(PlotControl!$C$6-1),12,1)) -> 1620.033333 | R10: =AVERAGE(OFFSET(Cat1SP_leak!$D$10,12*($A10-1),4*(PlotControl!$C$6-1),12,1)) -> 4091.858333 | S10: =AVERAGE(OFFSET(Cat1SP_leak!$E$10,12*($A10-1),4*(PlotControl!$C$6-1),12,1)) -> 8957.991667 | T10: =AVERAGE(OFFSET(Cat1wall!$C$10,12*($A10-1),4*(PlotControl!$C$6-1),12,1)) -> 331.7241667 | U10: =AVERAGE(OFFSET(Cat1wall!$D$10,12*($A10-1),4*(PlotControl!$C$6-1),12,1)) -> 711.3616667 | V10: =AVERAGE(OFFSET(Cat1wall!$E$10,12*($A10-1),4*(PlotControl!$C$6-1),12,1)) -> 1391.558333 | W10: =AVERAGE(OFFSET(Cat23wall!$C$10,12*($A10-1),4*(PlotControl!$C$6-1),12,1)) -> 751.4191667 | X10: =AVERAGE(OFFSET(Cat23wall!$D$10,12*($A10-1),4*(PlotControl!$C$6-1),12,1)) -> 1611.358333 | Y10: =AVERAGE(OFFSET(Cat23wall!$E$10,12*($A10-1),4*(PlotControl!$C$6-1),12,1)) -> 3152.108333 | Z10: =AVERAGE(OFFSET(Cat4DCwall!$C$10,12*($A10-1),4*(PlotControl!$C$6-1),12,1)) -> 100.7816667 | AA10: =AVERAGE(OFFSET(Cat4DCwall!$D$10,12*($A10-1),4*(PlotControl!$C$6-1),12,1)) -> 278.8483333 | AB10: =AVERAGE(OFFSET(Cat4DCwall!$E$10,12*($A10-1),4*(PlotControl!$C$6-1),12,1)) -> 902.4025 | AC10: =AVERAGE(OFFSET(Orewall!$C$10,12*($A10-1),4*(PlotControl!$C$6-1),12,1)) -> 4849.85 | AD10: =AVERAGE(OFFSET(Orewall!$D$10,12*($A10-1),4*(PlotControl!$C$6-1),12,1)) -> 10400.33333 | AE10: =AVERAGE(OFFSET(Orewall!$E$10,12*($A10-1),4*(PlotControl!$C$6-1),12,1)) -> 20344.75 | AF10: =AVERAGE(OFFSET(Cat4VFwall!$C$10,12*($A10-1),4*(PlotControl!$C$6-1),12,1)) -> 18045.58333 | AG10: =AVERAGE(OFFSET(Cat4VFwall!$D$10,12*($A10-1),4*(PlotControl!$C$6-1),12,1)) -> 38986.33333 | AH10: =AVERAGE(OFFSET(Cat4VFwall!$E$10,12*($A10-1),4*(PlotControl!$C$6-1),12,1)) -> 72112 | AI10: =AVERAGE(OFFSET(Cat1Bkf!$C$10,12*($A10-1),4*(PlotControl!$C$6-1),12,1)) -> 0 | AJ10: =AVERAGE(OFFSET(Cat1Bkf!$D$10,12*($A10-1),4*(PlotControl!$C$6-1),12,1)) -> 0 | AK10: =AVERAGE(OFFSET(Cat1Bkf!$E$10,12*($A10-1),4*(PlotControl!$C$6-1),12,1)) -> 0 | AL10: =AVERAGE(OFFSET(Cat23Bkf!$C$10,12*($A10-1),4*(PlotControl!$C$6-1),12,1)) -> 0 | AM10: =AVERAGE(OFFSET(Cat23Bkf!$D$10,12*($A10-1),4*(PlotControl!$C$6-1),12,1)) -> 0 | AN10: =AVERAGE(OFFSET(Cat23Bkf!$E$10,12*($A10-1),4*(PlotControl!$C$6-1),12,1)) -> 0 | AO10: =AVERAGE(OFFSET(Cat4DCBkf!$C$10,12*($A10-1),4*(PlotControl!$C$6-1),12,1)) -> 0 | AP10: =AVERAGE(OFFSET(Cat4DCBkf!$D$10,12*($A10-1),4*(PlotControl!$C$6-1),12,1)) -> 0 | AQ10: =AVERAGE(OFFSET(Cat4DCBkf!$E$10,12*($A10-1),4*(PlotControl!$C$6-1),12,1)) -> 0 | AR10: =AVERAGE(OFFSET(Cat4VFBkf!$C$10,12*($A10-1),4*(PlotControl!$C$6-1),12,1)) -> 0 | AS10: =AVERAGE(OFFSET(Cat4VFBkf!$D$10,12*($A10-1),4*(PlotControl!$C$6-1),12,1)) -> 0 | AT10: =AVERAGE(OFFSET(Cat4VFBkf!$E$10,12*($A10-1),4*(PlotControl!$C$6-1),12,1)) -> 0
A11: 7 | B11: =AVERAGE(OFFSET(Total!$C$10,12*($A11-1),4*(PlotControl!$C$6-1),12,1)) -> 78925.41667 | C11: =AVERAGE(OFFSET(Total!$D$10,12*($A11-1),4*(PlotControl!$C$6-1),12,1)) -> 124823.0833 | D11: =AVERAGE(OFFSET(Total!$E$10,12*($A11-1),4*(PlotControl!$C$6-1),12,1)) -> 177196.6667 | E11: =AVERAGE(OFFSET(RO!$C$10,12*($A11-1),4*(PlotControl!$C$6-1),12,1)) -> 0 | F11: =AVERAGE(OFFSET(RO!$D$10,12*($A11-1),4*(PlotControl!$C$6-1),12,1)) -> 0 | G11: =AVERAGE(OFFSET(RO!$E$10,12*($A11-1),4*(PlotControl!$C$6-1),12,1)) -> 0 | H11: =AVERAGE(OFFSET(GW!$C$10,12*($A11-1),4*(PlotControl!$C$6-1),12,1)) -> 15264.75 | I11: =AVERAGE(OFFSET(GW!$D$10,12*($A11-1),4*(PlotControl!$C$6-1),12,1)) -> 19159.16667 | J11: =AVERAGE(OFFSET(GW!$E$10,12*($A11-1),4*(PlotControl!$C$6-1),12,1)) -> 28808.25 | K11: =AVERAGE(OFFSET(CPS!$C$10,12*($A11-1),4*(PlotControl!$C$6-1),12,1)) -> 0 | L11: =AVERAGE(OFFSET(CPS!$D$10,12*($A11-1),4*(PlotControl!$C$6-1),12,1)) -> 0 | M11: =AVERAGE(OFFSET(CPS!$E$10,12*($A11-1),4*(PlotControl!$C$6-1),12,1)) -> 0 | N11: =AVERAGE(OFFSET(Blast!$C$10,12*($A11-1),4*(PlotControl!$C$6-1),12,1)) -> 22102.41667 | O11: =AVERAGE(OFFSET(Blast!$D$10,12*($A11-1),4*(PlotControl!$C$6-1),12,1)) -> 42600.5 | P11: =AVERAGE(OFFSET(Blast!$E$10,12*($A11-1),4*(PlotControl!$C$6-1),12,1)) -> 64521.66667 | Q11: =AVERAGE(OFFSET(Cat1SP_leak!$C$10,12*($A11-1),4*(PlotControl!$C$6-1),12,1)) -> 2331.25 | R11: =AVERAGE(OFFSET(Cat1SP_leak!$D$10,12*($A11-1),4*(PlotControl!$C$6-1),12,1)) -> 5589.725 | S11: =AVERAGE(OFFSET(Cat1SP_leak!$E$10,12*($A11-1),4*(PlotControl!$C$6-1),12,1)) -> 12422.70833 | T11: =AVERAGE(OFFSET(Cat1wall!$C$10,12*($A11-1),4*(PlotControl!$C$6-1),12,1)) -> 313.1441667 | U11: =AVERAGE(OFFSET(Cat1wall!$D$10,12*($A11-1),4*(PlotControl!$C$6-1),12,1)) -> 691.6483333 | V11: =AVERAGE(OFFSET(Cat1wall!$E$10,12*($A11-1),4*(PlotControl!$C$6-1),12,1)) -> 1384.3 | W11: =AVERAGE(OFFSET(Cat23wall!$C$10,12*($A11-1),4*(PlotControl!$C$6-1),12,1)) -> 709.3366667 | X11: =AVERAGE(OFFSET(Cat23wall!$D$10,12*($A11-1),4*(PlotControl!$C$6-1),12,1)) -> 1566.716667 | Y11: =AVERAGE(OFFSET(Cat23wall!$E$10,12*($A11-1),4*(PlotControl!$C$6-1),12,1)) -> 3135.683333 | Z11: =AVERAGE(OFFSET(Cat4DCwall!$C$10,12*($A11-1),4*(PlotControl!$C$6-1),12,1)) -> 100.9716667 | AA11: =AVERAGE(OFFSET(Cat4DCwall!$D$10,12*($A11-1),4*(PlotControl!$C$6-1),12,1)) -> 276.5683333 | AB11: =AVERAGE(OFFSET(Cat4DCwall!$E$10,12*($A11-1),4*(PlotControl!$C$6-1),12,1)) -> 923.325 | AC11: =AVERAGE(OFFSET(Orewall!$C$10,12*($A11-1),4*(PlotControl!$C$6-1),12,1)) -> 4578.225 | AD11: =AVERAGE(OFFSET(Orewall!$D$10,12*($A11-1),4*(PlotControl!$C$6-1),12,1)) -> 10112.16667 | AE11: =AVERAGE(OFFSET(Orewall!$E$10,12*($A11-1),4*(PlotControl!$C$6-1),12,1)) -> 20238.83333 | AF11: =AVERAGE(OFFSET(Cat4VFwall!$C$10,12*($A11-1),4*(PlotControl!$C$6-1),12,1)) -> 17204.5 | AG11: =AVERAGE(OFFSET(Cat4VFwall!$D$10,12*($A11-1),4*(PlotControl!$C$6-1),12,1)) -> 37260.75 | AH11: =AVERAGE(OFFSET(Cat4VFwall!$E$10,12*($A11-1),4*(PlotControl!$C$6-1),12,1)) -> 72294.41667 | AI11: =AVERAGE(OFFSET(Cat1Bkf!$C$10,12*($A11-1),4*(PlotControl!$C$6-1),12,1)) -> 0 | AJ11: =AVERAGE(OFFSET(Cat1Bkf!$D$10,12*($A11-1),4*(PlotControl!$C$6-1),12,1)) -> 0 | AK11: =AVERAGE(OFFSET(Cat1Bkf!$E$10,12*($A11-1),4*(PlotControl!$C$6-1),12,1)) -> 0 | AL11: =AVERAGE(OFFSET(Cat23Bkf!$C$10,12*($A11-1),4*(PlotControl!$C$6-1),12,1)) -> 0 | AM11: =AVERAGE(OFFSET(Cat23Bkf!$D$10,12*($A11-1),4*(PlotControl!$C$6-1),12,1)) -> 0 | AN11: =AVERAGE(OFFSET(Cat23Bkf!$E$10,12*($A11-1),4*(PlotControl!$C$6-1),12,1)) -> 0 | AO11: =AVERAGE(OFFSET(Cat4DCBkf!$C$10,12*($A11-1),4*(PlotControl!$C$6-1),12,1)) -> 0 | AP11: =AVERAGE(OFFSET(Cat4DCBkf!$D$10,12*($A11-1),4*(PlotControl!$C$6-1),12,1)) -> 0 | AQ11: =AVERAGE(OFFSET(Cat4DCBkf!$E$10,12*($A11-1),4*(PlotControl!$C$6-1),12,1)) -> 0 | AR11: =AVERAGE(OFFSET(Cat4VFBkf!$C$10,12*($A11-1),4*(PlotControl!$C$6-1),12,1)) -> 0 | AS11: =AVERAGE(OFFSET(Cat4VFBkf!$D$10,12*($A11-1),4*(PlotControl!$C$6-1),12,1)) -> 0 | AT11: =AVERAGE(OFFSET(Cat4VFBkf!$E$10,12*($A11-1),4*(PlotControl!$C$6-1),12,1)) -> 0
A12: 8 | B12: =AVERAGE(OFFSET(Total!$C$10,12*($A12-1),4*(PlotControl!$C$6-1),12,1)) -> 82722.66667 | C12: =AVERAGE(OFFSET(Total!$D$10,12*($A12-1),4*(PlotControl!$C$6-1),12,1)) -> 126378.9167 | D12: =AVERAGE(OFFSET(Total!$E$10,12*($A12-1),4*(PlotControl!$C$6-1),12,1)) -> 180768.3333 | E12: =AVERAGE(OFFSET(RO!$C$10,12*($A12-1),4*(PlotControl!$C$6-1),12,1)) -> 0 | F12: =AVERAGE(OFFSET(RO!$D$10,12*($A12-1),4*(PlotControl!$C$6-1),12,1)) -> 0 | G12: =AVERAGE(OFFSET(RO!$E$10,12*($A12-1),4*(PlotControl!$C$6-1),12,1)) -> 0 | H12: =AVERAGE(OFFSET(GW!$C$10,12*($A12-1),4*(PlotControl!$C$6-1),12,1)) -> 15740.16667 | I12: =AVERAGE(OFFSET(GW!$D$10,12*($A12-1),4*(PlotControl!$C$6-1),12,1)) -> 19760.33333 | J12: =AVERAGE(OFFSET(GW!$E$10,12*($A12-1),4*(PlotControl!$C$6-1),12,1)) -> 29712.58333 | K12: =AVERAGE(OFFSET(CPS!$C$10,12*($A12-1),4*(PlotControl!$C$6-1),12,1)) -> 0 | L12: =AVERAGE(OFFSET(CPS!$D$10,12*($A12-1),4*(PlotControl!$C$6-1),12,1)) -> 0 | M12: =AVERAGE(OFFSET(CPS!$E$10,12*($A12-1),4*(PlotControl!$C$6-1),12,1)) -> 0 | N12: =AVERAGE(OFFSET(Blast!$C$10,12*($A12-1),4*(PlotControl!$C$6-1),12,1)) -> 22081.5 | O12: =AVERAGE(OFFSET(Blast!$D$10,12*($A12-1),4*(PlotControl!$C$6-1),12,1)) -> 42412.41667 | P12: =AVERAGE(OFFSET(Blast!$E$10,12*($A12-1),4*(PlotControl!$C$6-1),12,1)) -> 65276 | Q12: =AVERAGE(OFFSET(Cat1SP_leak!$C$10,12*($A12-1),4*(PlotControl!$C$6-1),12,1)) -> 2353.808333 | R12: =AVERAGE(OFFSET(Cat1SP_leak!$D$10,12*($A12-1),4*(PlotControl!$C$6-1),12,1)) -> 7218.675 | S12: =AVERAGE(OFFSET(Cat1SP_leak!$E$10,12*($A12-1),4*(PlotControl!$C$6-1),12,1)) -> 16727.11667 | T12: =AVERAGE(OFFSET(Cat1wall!$C$10,12*($A12-1),4*(PlotControl!$C$6-1),12,1)) -> 334.7658333 | U12: =AVERAGE(OFFSET(Cat1wall!$D$10,12*($A12-1),4*(PlotControl!$C$6-1),12,1)) -> 702.7033333 | V12: =AVERAGE(OFFSET(Cat1wall!$E$10,12*($A12-1),4*(PlotControl!$C$6-1),12,1)) -> 1366.716667 | W12: =AVERAGE(OFFSET(Cat23wall!$C$10,12*($A12-1),4*(PlotControl!$C$6-1),12,1)) -> 758.3108333 | X12: =AVERAGE(OFFSET(Cat23wall!$D$10,12*($A12-1),4*(PlotControl!$C$6-1),12,1)) -> 1591.75 | Y12: =AVERAGE(OFFSET(Cat23wall!$E$10,12*($A12-1),4*(PlotControl!$C$6-1),12,1)) -> 3095.883333 | Z12: =AVERAGE(OFFSET(Cat4DCwall!$C$10,12*($A12-1),4*(PlotControl!$C$6-1),12,1)) -> 102.5241667 | AA12: =AVERAGE(OFFSET(Cat4DCwall!$D$10,12*($A12-1),4*(PlotControl!$C$6-1),12,1)) -> 282.6658333 | AB12: =AVERAGE(OFFSET(Cat4DCwall!$E$10,12*($A12-1),4*(PlotControl!$C$6-1),12,1)) -> 905.6716667 | AC12: =AVERAGE(OFFSET(Orewall!$C$10,12*($A12-1),4*(PlotControl!$C$6-1),12,1)) -> 4894.316667 | AD12: =AVERAGE(OFFSET(Orewall!$D$10,12*($A12-1),4*(PlotControl!$C$6-1),12,1)) -> 10273.66667 | AE12: =AVERAGE(OFFSET(Orewall!$E$10,12*($A12-1),4*(PlotControl!$C$6-1),12,1)) -> 19981.66667 | AF12: =AVERAGE(OFFSET(Cat4VFwall!$C$10,12*($A12-1),4*(PlotControl!$C$6-1),12,1)) -> 18456.33333 | AG12: =AVERAGE(OFFSET(Cat4VFwall!$D$10,12*($A12-1),4*(PlotControl!$C$6-1),12,1)) -> 38135.16667 | AH12: =AVERAGE(OFFSET(Cat4VFwall!$E$10,12*($A12-1),4*(PlotControl!$C$6-1),12,1)) -> 69771.58333 | AI12: =AVERAGE(OFFSET(Cat1Bkf!$C$10,12*($A12-1),4*(PlotControl!$C$6-1),12,1)) -> 0 | AJ12: =AVERAGE(OFFSET(Cat1Bkf!$D$10,12*($A12-1),4*(PlotControl!$C$6-1),12,1)) -> 0 | AK12: =AVERAGE(OFFSET(Cat1Bkf!$E$10,12*($A12-1),4*(PlotControl!$C$6-1),12,1)) -> 0 | AL12: =AVERAGE(OFFSET(Cat23Bkf!$C$10,12*($A12-1),4*(PlotControl!$C$6-1),12,1)) -> 0 | AM12: =AVERAGE(OFFSET(Cat23Bkf!$D$10,12*($A12-1),4*(PlotControl!$C$6-1),12,1)) -> 0 | AN12: =AVERAGE(OFFSET(Cat23Bkf!$E$10,12*($A12-1),4*(PlotControl!$C$6-1),12,1)) -> 0 | AO12: =AVERAGE(OFFSET(Cat4DCBkf!$C$10,12*($A12-1),4*(PlotControl!$C$6-1),12,1)) -> 0 | AP12: =AVERAGE(OFFSET(Cat4DCBkf!$D$10,12*($A12-1),4*(PlotControl!$C$6-1),12,1)) -> 0 | AQ12: =AVERAGE(OFFSET(Cat4DCBkf!$E$10,12*($A12-1),4*(PlotControl!$C$6-1),12,1)) -> 0 | AR12: =AVERAGE(OFFSET(Cat4VFBkf!$C$10,12*($A12-1),4*(PlotControl!$C$6-1),12,1)) -> 0 | AS12: =AVERAGE(OFFSET(Cat4VFBkf!$D$10,12*($A12-1),4*(PlotControl!$C$6-1),12,1)) -> 0 | AT12: =AVERAGE(OFFSET(Cat4VFBkf!$E$10,12*($A12-1),4*(PlotControl!$C$6-1),12,1)) -> 0
A13: 9 | B13: =AVERAGE(OFFSET(Total!$C$10,12*($A13-1),4*(PlotControl!$C$6-1),12,1)) -> 90141.08333 | C13: =AVERAGE(OFFSET(Total!$D$10,12*($A13-1),4*(PlotControl!$C$6-1),12,1)) -> 136103.8333 | D13: =AVERAGE(OFFSET(Total!$E$10,12*($A13-1),4*(PlotControl!$C$6-1),12,1)) -> 191973.3333 | E13: =AVERAGE(OFFSET(RO!$C$10,12*($A13-1),4*(PlotControl!$C$6-1),12,1)) -> 0 | F13: =AVERAGE(OFFSET(RO!$D$10,12*($A13-1),4*(PlotControl!$C$6-1),12,1)) -> 0 | G13: =AVERAGE(OFFSET(RO!$E$10,12*($A13-1),4*(PlotControl!$C$6-1),12,1)) -> 0 | H13: =AVERAGE(OFFSET(GW!$C$10,12*($A13-1),4*(PlotControl!$C$6-1),12,1)) -> 20350.41667 | I13: =AVERAGE(OFFSET(GW!$D$10,12*($A13-1),4*(PlotControl!$C$6-1),12,1)) -> 25566.41667 | J13: =AVERAGE(OFFSET(GW!$E$10,12*($A13-1),4*(PlotControl!$C$6-1),12,1)) -> 38443.58333 | K13: =AVERAGE(OFFSET(CPS!$C$10,12*($A13-1),4*(PlotControl!$C$6-1),12,1)) -> 0 | L13: =AVERAGE(OFFSET(CPS!$D$10,12*($A13-1),4*(PlotControl!$C$6-1),12,1)) -> 0 | M13: =AVERAGE(OFFSET(CPS!$E$10,12*($A13-1),4*(PlotControl!$C$6-1),12,1)) -> 0 | N13: =AVERAGE(OFFSET(Blast!$C$10,12*($A13-1),4*(PlotControl!$C$6-1),12,1)) -> 22035.16667 | O13: =AVERAGE(OFFSET(Blast!$D$10,12*($A13-1),4*(PlotControl!$C$6-1),12,1)) -> 42255.08333 | P13: =AVERAGE(OFFSET(Blast!$E$10,12*($A13-1),4*(PlotControl!$C$6-1),12,1)) -> 64070.83333 | Q13: =AVERAGE(OFFSET(Cat1SP_leak!$C$10,12*($A13-1),4*(PlotControl!$C$6-1),12,1)) -> 3397.216667 | R13: =AVERAGE(OFFSET(Cat1SP_leak!$D$10,12*($A13-1),4*(PlotControl!$C$6-1),12,1)) -> 9303.45 | S13: =AVERAGE(OFFSET(Cat1SP_leak!$E$10,12*($A13-1),4*(PlotControl!$C$6-1),12,1)) -> 21998.75 | T13: =AVERAGE(OFFSET(Cat1wall!$C$10,12*($A13-1),4*(PlotControl!$C$6-1),12,1)) -> 323.7733333 | U13: =AVERAGE(OFFSET(Cat1wall!$D$10,12*($A13-1),4*(PlotControl!$C$6-1),12,1)) -> 687.8716667 | V13: =AVERAGE(OFFSET(Cat1wall!$E$10,12*($A13-1),4*(PlotControl!$C$6-1),12,1)) -> 1407.433333 | W13: =AVERAGE(OFFSET(Cat23wall!$C$10,12*($A13-1),4*(PlotControl!$C$6-1),12,1)) -> 733.4158333 | X13: =AVERAGE(OFFSET(Cat23wall!$D$10,12*($A13-1),4*(PlotControl!$C$6-1),12,1)) -> 1558.175 | Y13: =AVERAGE(OFFSET(Cat23wall!$E$10,12*($A13-1),4*(PlotControl!$C$6-1),12,1)) -> 3188.116667 | Z13: =AVERAGE(OFFSET(Cat4DCwall!$C$10,12*($A13-1),4*(PlotControl!$C$6-1),12,1)) -> 102.6566667 | AA13: =AVERAGE(OFFSET(Cat4DCwall!$D$10,12*($A13-1),4*(PlotControl!$C$6-1),12,1)) -> 274.4158333 | AB13: =AVERAGE(OFFSET(Cat4DCwall!$E$10,12*($A13-1),4*(PlotControl!$C$6-1),12,1)) -> 963.9733333 | AC13: =AVERAGE(OFFSET(Orewall!$C$10,12*($A13-1),4*(PlotControl!$C$6-1),12,1)) -> 4733.625 | AD13: =AVERAGE(OFFSET(Orewall!$D$10,12*($A13-1),4*(PlotControl!$C$6-1),12,1)) -> 10056.66667 | AE13: =AVERAGE(OFFSET(Orewall!$E$10,12*($A13-1),4*(PlotControl!$C$6-1),12,1)) -> 20576.83333 | AF13: =AVERAGE(OFFSET(Cat4VFwall!$C$10,12*($A13-1),4*(PlotControl!$C$6-1),12,1)) -> 17986.08333 | AG13: =AVERAGE(OFFSET(Cat4VFwall!$D$10,12*($A13-1),4*(PlotControl!$C$6-1),12,1)) -> 38362.08333 | AH13: =AVERAGE(OFFSET(Cat4VFwall!$E$10,12*($A13-1),4*(PlotControl!$C$6-1),12,1)) -> 72325.66667 | AI13: =AVERAGE(OFFSET(Cat1Bkf!$C$10,12*($A13-1),4*(PlotControl!$C$6-1),12,1)) -> 0 | AJ13: =AVERAGE(OFFSET(Cat1Bkf!$D$10,12*($A13-1),4*(PlotControl!$C$6-1),12,1)) -> 0 | AK13: =AVERAGE(OFFSET(Cat1Bkf!$E$10,12*($A13-1),4*(PlotControl!$C$6-1),12,1)) -> 0 | AL13: =AVERAGE(OFFSET(Cat23Bkf!$C$10,12*($A13-1),4*(PlotControl!$C$6-1),12,1)) -> 0 | AM13: =AVERAGE(OFFSET(Cat23Bkf!$D$10,12*($A13-1),4*(PlotControl!$C$6-1),12,1)) -> 0 | AN13: =AVERAGE(OFFSET(Cat23Bkf!$E$10,12*($A13-1),4*(PlotControl!$C$6-1),12,1)) -> 0 | AO13: =AVERAGE(OFFSET(Cat4DCBkf!$C$10,12*($A13-1),4*(PlotControl!$C$6-1),12,1)) -> 0 | AP13: =AVERAGE(OFFSET(Cat4DCBkf!$D$10,12*($A13-1),4*(PlotControl!$C$6-1),12,1)) -> 0 | AQ13: =AVERAGE(OFFSET(Cat4DCBkf!$E$10,12*($A13-1),4*(PlotControl!$C$6-1),12,1)) -> 0 | AR13: =AVERAGE(OFFSET(Cat4VFBkf!$C$10,12*($A13-1),4*(PlotControl!$C$6-1),12,1)) -> 0 | AS13: =AVERAGE(OFFSET(Cat4VFBkf!$D$10,12*($A13-1),4*(PlotControl!$C$6-1),12,1)) -> 0 | AT13: =AVERAGE(OFFSET(Cat4VFBkf!$E$10,12*($A13-1),4*(PlotControl!$C$6-1),12,1)) -> 0
A14: 10 | B14: =AVERAGE(OFFSET(Total!$C$10,12*($A14-1),4*(PlotControl!$C$6-1),12,1)) -> 97968.75 | C14: =AVERAGE(OFFSET(Total!$D$10,12*($A14-1),4*(PlotControl!$C$6-1),12,1)) -> 145297.5 | D14: =AVERAGE(OFFSET(Total!$E$10,12*($A14-1),4*(PlotControl!$C$6-1),12,1)) -> 202544.1667 | E14: =AVERAGE(OFFSET(RO!$C$10,12*($A14-1),4*(PlotControl!$C$6-1),12,1)) -> 0 | F14: =AVERAGE(OFFSET(RO!$D$10,12*($A14-1),4*(PlotControl!$C$6-1),12,1)) -> 0 | G14: =AVERAGE(OFFSET(RO!$E$10,12*($A14-1),4*(PlotControl!$C$6-1),12,1)) -> 0 | H14: =AVERAGE(OFFSET(GW!$C$10,12*($A14-1),4*(PlotControl!$C$6-1),12,1)) -> 25210.16667 | I14: =AVERAGE(OFFSET(GW!$D$10,12*($A14-1),4*(PlotControl!$C$6-1),12,1)) -> 31689.41667 | J14: =AVERAGE(OFFSET(GW!$E$10,12*($A14-1),4*(PlotControl!$C$6-1),12,1)) -> 47647.75 | K14: =AVERAGE(OFFSET(CPS!$C$10,12*($A14-1),4*(PlotControl!$C$6-1),12,1)) -> 0 | L14: =AVERAGE(OFFSET(CPS!$D$10,12*($A14-1),4*(PlotControl!$C$6-1),12,1)) -> 0 | M14: =AVERAGE(OFFSET(CPS!$E$10,12*($A14-1),4*(PlotControl!$C$6-1),12,1)) -> 0 | N14: =AVERAGE(OFFSET(Blast!$C$10,12*($A14-1),4*(PlotControl!$C$6-1),12,1)) -> 22143.41667 | O14: =AVERAGE(OFFSET(Blast!$D$10,12*($A14-1),4*(PlotControl!$C$6-1),12,1)) -> 42552.08333 | P14: =AVERAGE(OFFSET(Blast!$E$10,12*($A14-1),4*(PlotControl!$C$6-1),12,1)) -> 64955.08333 | Q14: =AVERAGE(OFFSET(Cat1SP_leak!$C$10,12*($A14-1),4*(PlotControl!$C$6-1),12,1)) -> 3834.975 | R14: =AVERAGE(OFFSET(Cat1SP_leak!$D$10,12*($A14-1),4*(PlotControl!$C$6-1),12,1)) -> 11027.58333 | S14: =AVERAGE(OFFSET(Cat1SP_leak!$E$10,12*($A14-1),4*(PlotControl!$C$6-1),12,1)) -> 26172 | T14: =AVERAGE(OFFSET(Cat1wall!$C$10,12*($A14-1),4*(PlotControl!$C$6-1),12,1)) -> 326.4125 | U14: =AVERAGE(OFFSET(Cat1wall!$D$10,12*($A14-1),4*(PlotControl!$C$6-1),12,1)) -> 689.4308333 | V14: =AVERAGE(OFFSET(Cat1wall!$E$10,12*($A14-1),4*(PlotControl!$C$6-1),12,1)) -> 1374.891667 | W14: =AVERAGE(OFFSET(Cat23wall!$C$10,12*($A14-1),4*(PlotControl!$C$6-1),12,1)) -> 739.3908333 | X14: =AVERAGE(OFFSET(Cat23wall!$D$10,12*($A14-1),4*(PlotControl!$C$6-1),12,1)) -> 1561.7 | Y14: =AVERAGE(OFFSET(Cat23wall!$E$10,12*($A14-1),4*(PlotControl!$C$6-1),12,1)) -> 3114.4 | Z14: =AVERAGE(OFFSET(Cat4DCwall!$C$10,12*($A14-1),4*(PlotControl!$C$6-1),12,1)) -> 101.6766667 | AA14: =AVERAGE(OFFSET(Cat4DCwall!$D$10,12*($A14-1),4*(PlotControl!$C$6-1),12,1)) -> 283.8708333 | AB14: =AVERAGE(OFFSET(Cat4DCwall!$E$10,12*($A14-1),4*(PlotControl!$C$6-1),12,1)) -> 946.4008333 | AC14: =AVERAGE(OFFSET(Orewall!$C$10,12*($A14-1),4*(PlotControl!$C$6-1),12,1)) -> 4772.2 | AD14: =AVERAGE(OFFSET(Orewall!$D$10,12*($A14-1),4*(PlotControl!$C$6-1),12,1)) -> 10079.5 | AE14: =AVERAGE(OFFSET(Orewall!$E$10,12*($A14-1),4*(PlotControl!$C$6-1),12,1)) -> 20101.08333 | AF14: =AVERAGE(OFFSET(Cat4VFwall!$C$10,12*($A14-1),4*(PlotControl!$C$6-1),12,1)) -> 16769.41667 | AG14: =AVERAGE(OFFSET(Cat4VFwall!$D$10,12*($A14-1),4*(PlotControl!$C$6-1),12,1)) -> 38555.83333 | AH14: =AVERAGE(OFFSET(Cat4VFwall!$E$10,12*($A14-1),4*(PlotControl!$C$6-1),12,1)) -> 71520.25 | AI14: =AVERAGE(OFFSET(Cat1Bkf!$C$10,12*($A14-1),4*(PlotControl!$C$6-1),12,1)) -> 0 | AJ14: =AVERAGE(OFFSET(Cat1Bkf!$D$10,12*($A14-1),4*(PlotControl!$C$6-1),12,1)) -> 0 | AK14: =AVERAGE(OFFSET(Cat1Bkf!$E$10,12*($A14-1),4*(PlotControl!$C$6-1),12,1)) -> 0 | AL14: =AVERAGE(OFFSET(Cat23Bkf!$C$10,12*($A14-1),4*(PlotControl!$C$6-1),12,1)) -> 0 | AM14: =AVERAGE(OFFSET(Cat23Bkf!$D$10,12*($A14-1),4*(PlotControl!$C$6-1),12,1)) -> 0 | AN14: =AVERAGE(OFFSET(Cat23Bkf!$E$10,12*($A14-1),4*(PlotControl!$C$6-1),12,1)) -> 0 | AO14: =AVERAGE(OFFSET(Cat4DCBkf!$C$10,12*($A14-1),4*(PlotControl!$C$6-1),12,1)) -> 0 | AP14: =AVERAGE(OFFSET(Cat4DCBkf!$D$10,12*($A14-1),4*(PlotControl!$C$6-1),12,1)) -> 0 | AQ14: =AVERAGE(OFFSET(Cat4DCBkf!$E$10,12*($A14-1),4*(PlotControl!$C$6-1),12,1)) -> 0 | AR14: =AVERAGE(OFFSET(Cat4VFBkf!$C$10,12*($A14-1),4*(PlotControl!$C$6-1),12,1)) -> 0 | AS14: =AVERAGE(OFFSET(Cat4VFBkf!$D$10,12*($A14-1),4*(PlotControl!$C$6-1),12,1)) -> 0 | AT14: =AVERAGE(OFFSET(Cat4VFBkf!$E$10,12*($A14-1),4*(PlotControl!$C$6-1),12,1)) -> 0
A15: 11 | B15: =AVERAGE(OFFSET(Total!$C$10,12*($A15-1),4*(PlotControl!$C$6-1),12,1)) -> 16966916.58 | C15: =AVERAGE(OFFSET(Total!$D$10,12*($A15-1),4*(PlotControl!$C$6-1),12,1)) -> 34792003.33 | D15: =AVERAGE(OFFSET(Total!$E$10,12*($A15-1),4*(PlotControl!$C$6-1),12,1)) -> 59580923.33 | E15: =AVERAGE(OFFSET(RO!$C$10,12*($A15-1),4*(PlotControl!$C$6-1),12,1)) -> 0 | F15: =AVERAGE(OFFSET(RO!$D$10,12*($A15-1),4*(PlotControl!$C$6-1),12,1)) -> 0 | G15: =AVERAGE(OFFSET(RO!$E$10,12*($A15-1),4*(PlotControl!$C$6-1),12,1)) -> 0 | H15: =AVERAGE(OFFSET(GW!$C$10,12*($A15-1),4*(PlotControl!$C$6-1),12,1)) -> 29544.75 | I15: =AVERAGE(OFFSET(GW!$D$10,12*($A15-1),4*(PlotControl!$C$6-1),12,1)) -> 37073.25 | J15: =AVERAGE(OFFSET(GW!$E$10,12*($A15-1),4*(PlotControl!$C$6-1),12,1)) -> 55730.08333 | K15: =AVERAGE(OFFSET(CPS!$C$10,12*($A15-1),4*(PlotControl!$C$6-1),12,1)) -> 0 | L15: =AVERAGE(OFFSET(CPS!$D$10,12*($A15-1),4*(PlotControl!$C$6-1),12,1)) -> 3009 | M15: =AVERAGE(OFFSET(CPS!$E$10,12*($A15-1),4*(PlotControl!$C$6-1),12,1)) -> 17620.25 | N15: =AVERAGE(OFFSET(Blast!$C$10,12*($A15-1),4*(PlotControl!$C$6-1),12,1)) -> 6752.857288 | O15: =AVERAGE(OFFSET(Blast!$D$10,12*($A15-1),4*(PlotControl!$C$6-1),12,1)) -> 13062.5484 | P15: =AVERAGE(OFFSET(Blast!$E$10,12*($A15-1),4*(PlotControl!$C$6-1),12,1)) -> 27681.29763 | Q15: =AVERAGE(OFFSET(Cat1SP_leak!$C$10,12*($A15-1),4*(PlotControl!$C$6-1),12,1)) -> 4362.233333 | R15: =AVERAGE(OFFSET(Cat1SP_leak!$D$10,12*($A15-1),4*(PlotControl!$C$6-1),12,1)) -> 12018.58333 | S15: =AVERAGE(OFFSET(Cat1SP_leak!$E$10,12*($A15-1),4*(PlotControl!$C$6-1),12,1)) -> 28389.66667 | T15: =AVERAGE(OFFSET(Cat1wall!$C$10,12*($A15-1),4*(PlotControl!$C$6-1),12,1)) -> 694.7608333 | U15: =AVERAGE(OFFSET(Cat1wall!$D$10,12*($A15-1),4*(PlotControl!$C$6-1),12,1)) -> 1346.436667 | V15: =AVERAGE(OFFSET(Cat1wall!$E$10,12*($A15-1),4*(PlotControl!$C$6-1),12,1)) -> 2393.908333 | W15: =AVERAGE(OFFSET(Cat23wall!$C$10,12*($A15-1),4*(PlotControl!$C$6-1),12,1)) -> 1615.808333 | X15: =AVERAGE(OFFSET(Cat23wall!$D$10,12*($A15-1),4*(PlotControl!$C$6-1),12,1)) -> 3131.816667 | Y15: =AVERAGE(OFFSET(Cat23wall!$E$10,12*($A15-1),4*(PlotControl!$C$6-1),12,1)) -> 5556.2 | Z15: =AVERAGE(OFFSET(Cat4DCwall!$C$10,12*($A15-1),4*(PlotControl!$C$6-1),12,1)) -> 341.38275 | AA15: =AVERAGE(OFFSET(Cat4DCwall!$D$10,12*($A15-1),4*(PlotControl!$C$6-1),12,1)) -> 959.7425 | AB15: =AVERAGE(OFFSET(Cat4DCwall!$E$10,12*($A15-1),4*(PlotControl!$C$6-1),12,1)) -> 2996.168333 | AC15: =AVERAGE(OFFSET(Orewall!$C$10,12*($A15-1),4*(PlotControl!$C$6-1),12,1)) -> 18576.43333 | AD15: =AVERAGE(OFFSET(Orewall!$D$10,12*($A15-1),4*(PlotControl!$C$6-1),12,1)) -> 37403 | AE15: =AVERAGE(OFFSET(Orewall!$E$10,12*($A15-1),4*(PlotControl!$C$6-1),12,1)) -> 68673.16667 | AF15: =AVERAGE(OFFSET(Cat4VFwall!$C$10,12*($A15-1),4*(PlotControl!$C$6-1),12,1)) -> 31729.25 | AG15: =AVERAGE(OFFSET(Cat4VFwall!$D$10,12*($A15-1),4*(PlotControl!$C$6-1),12,1)) -> 61762.83333 | AH15: =AVERAGE(OFFSET(Cat4VFwall!$E$10,12*($A15-1),4*(PlotControl!$C$6-1),12,1)) -> 109206.4167 | AI15: =AVERAGE(OFFSET(Cat1Bkf!$C$10,12*($A15-1),4*(PlotControl!$C$6-1),12,1)) -> 0 | AJ15: =AVERAGE(OFFSET(Cat1Bkf!$D$10,12*($A15-1),4*(PlotControl!$C$6-1),12,1)) -> 0 | AK15: =AVERAGE(OFFSET(Cat1Bkf!$E$10,12*($A15-1),4*(PlotControl!$C$6-1),12,1)) -> 0 | AL15: =AVERAGE(OFFSET(Cat23Bkf!$C$10,12*($A15-1),4*(PlotControl!$C$6-1),12,1)) -> 0 | AM15: =AVERAGE(OFFSET(Cat23Bkf!$D$10,12*($A15-1),4*(PlotControl!$C$6-1),12,1)) -> 0 | AN15: =AVERAGE(OFFSET(Cat23Bkf!$E$10,12*($A15-1),4*(PlotControl!$C$6-1),12,1)) -> 0 | AO15: =AVERAGE(OFFSET(Cat4DCBkf!$C$10,12*($A15-1),4*(PlotControl!$C$6-1),12,1)) -> 204407.5 | AP15: =AVERAGE(OFFSET(Cat4DCBkf!$D$10,12*($A15-1),4*(PlotControl!$C$6-1),12,1)) -> 1663841.667 | AQ15: =AVERAGE(OFFSET(Cat4DCBkf!$E$10,12*($A15-1),4*(PlotControl!$C$6-1),12,1)) -> 12276333.33 | AR15: =AVERAGE(OFFSET(Cat4VFBkf!$C$10,12*($A15-1),4*(PlotControl!$C$6-1),12,1)) -> 15203000 | AS15: =AVERAGE(OFFSET(Cat4VFBkf!$D$10,12*($A15-1),4*(PlotControl!$C$6-1),12,1)) -> 30581750 | AT15: =AVERAGE(OFFSET(Cat4VFBkf!$E$10,12*($A15-1),4*(PlotControl!$C$6-1),12,1)) -> 53153333.33
A16: 12 | B16: =AVERAGE(OFFSET(Total!$C$10,12*($A16-1),4*(PlotControl!$C$6-1),12,1)) -> 5575273.333 | C16: =AVERAGE(OFFSET(Total!$D$10,12*($A16-1),4*(PlotControl!$C$6-1),12,1)) -> 11659516.67 | D16: =AVERAGE(OFFSET(Total!$E$10,12*($A16-1),4*(PlotControl!$C$6-1),12,1)) -> 22715216.67 | E16: =AVERAGE(OFFSET(RO!$C$10,12*($A16-1),4*(PlotControl!$C$6-1),12,1)) -> 0 | F16: =AVERAGE(OFFSET(RO!$D$10,12*($A16-1),4*(PlotControl!$C$6-1),12,1)) -> 0 | G16: =AVERAGE(OFFSET(RO!$E$10,12*($A16-1),4*(PlotControl!$C$6-1),12,1)) -> 0 | H16: =AVERAGE(OFFSET(GW!$C$10,12*($A16-1),4*(PlotControl!$C$6-1),12,1)) -> 30724.41667 | I16: =AVERAGE(OFFSET(GW!$D$10,12*($A16-1),4*(PlotControl!$C$6-1),12,1)) -> 38468.33333 | J16: =AVERAGE(OFFSET(GW!$E$10,12*($A16-1),4*(PlotControl!$C$6-1),12,1)) -> 57804.33333 | K16: =AVERAGE(OFFSET(CPS!$C$10,12*($A16-1),4*(PlotControl!$C$6-1),12,1)) -> 0 | L16: =AVERAGE(OFFSET(CPS!$D$10,12*($A16-1),4*(PlotControl!$C$6-1),12,1)) -> 4905.75 | M16: =AVERAGE(OFFSET(CPS!$E$10,12*($A16-1),4*(PlotControl!$C$6-1),12,1)) -> 10075 | N16: =AVERAGE(OFFSET(Blast!$C$10,12*($A16-1),4*(PlotControl!$C$6-1),12,1)) -> 4.649592224e-09 | O16: =AVERAGE(OFFSET(Blast!$D$10,12*($A16-1),4*(PlotControl!$C$6-1),12,1)) -> 1.106696024e-08 | P16: =AVERAGE(OFFSET(Blast!$E$10,12*($A16-1),4*(PlotControl!$C$6-1),12,1)) -> 2.101619828e-07 | Q16: =AVERAGE(OFFSET(Cat1SP_leak!$C$10,12*($A16-1),4*(PlotControl!$C$6-1),12,1)) -> 4435.8 | R16: =AVERAGE(OFFSET(Cat1SP_leak!$D$10,12*($A16-1),4*(PlotControl!$C$6-1),12,1)) -> 11602.66667 | S16: =AVERAGE(OFFSET(Cat1SP_leak!$E$10,12*($A16-1),4*(PlotControl!$C$6-1),12,1)) -> 27200.75 | T16: =AVERAGE(OFFSET(Cat1wall!$C$10,12*($A16-1),4*(PlotControl!$C$6-1),12,1)) -> 913.9741667 | U16: =AVERAGE(OFFSET(Cat1wall!$D$10,12*($A16-1),4*(PlotControl!$C$6-1),12,1)) -> 1697.984167 | V16: =AVERAGE(OFFSET(Cat1wall!$E$10,12*($A16-1),4*(PlotControl!$C$6-1),12,1)) -> 2819.616667 | W16: =AVERAGE(OFFSET(Cat23wall!$C$10,12*($A16-1),4*(PlotControl!$C$6-1),12,1)) -> 1268.578333 | X16: =AVERAGE(OFFSET(Cat23wall!$D$10,12*($A16-1),4*(PlotControl!$C$6-1),12,1)) -> 2515.416667 | Y16: =AVERAGE(OFFSET(Cat23wall!$E$10,12*($A16-1),4*(PlotControl!$C$6-1),12,1)) -> 4461.091667 | Z16: =AVERAGE(OFFSET(Cat4DCwall!$C$10,12*($A16-1),4*(PlotControl!$C$6-1),12,1)) -> 256.0613333 | AA16: =AVERAGE(OFFSET(Cat4DCwall!$D$10,12*($A16-1),4*(PlotControl!$C$6-1),12,1)) -> 691.9175 | AB16: =AVERAGE(OFFSET(Cat4DCwall!$E$10,12*($A16-1),4*(PlotControl!$C$6-1),12,1)) -> 2113.619167 | AC16: =AVERAGE(OFFSET(Orewall!$C$10,12*($A16-1),4*(PlotControl!$C$6-1),12,1)) -> 12694.86667 | AD16: =AVERAGE(OFFSET(Orewall!$D$10,12*($A16-1),4*(PlotControl!$C$6-1),12,1)) -> 24085.08333 | AE16: =AVERAGE(OFFSET(Orewall!$E$10,12*($A16-1),4*(PlotControl!$C$6-1),12,1)) -> 40138.41667 | AF16: =AVERAGE(OFFSET(Cat4VFwall!$C$10,12*($A16-1),4*(PlotControl!$C$6-1),12,1)) -> 40629 | AG16: =AVERAGE(OFFSET(Cat4VFwall!$D$10,12*($A16-1),4*(PlotControl!$C$6-1),12,1)) -> 75070 | AH16: =AVERAGE(OFFSET(Cat4VFwall!$E$10,12*($A16-1),4*(PlotControl!$C$6-1),12,1)) -> 129298.9167 | AI16: =AVERAGE(OFFSET(Cat1Bkf!$C$10,12*($A16-1),4*(PlotControl!$C$6-1),12,1)) -> 0 | AJ16: =AVERAGE(OFFSET(Cat1Bkf!$D$10,12*($A16-1),4*(PlotControl!$C$6-1),12,1)) -> 0 | AK16: =AVERAGE(OFFSET(Cat1Bkf!$E$10,12*($A16-1),4*(PlotControl!$C$6-1),12,1)) -> 0 | AL16: =AVERAGE(OFFSET(Cat23Bkf!$C$10,12*($A16-1),4*(PlotControl!$C$6-1),12,1)) -> 713766.6667 | AM16: =AVERAGE(OFFSET(Cat23Bkf!$D$10,12*($A16-1),4*(PlotControl!$C$6-1),12,1)) -> 1903141.667 | AN16: =AVERAGE(OFFSET(Cat23Bkf!$E$10,12*($A16-1),4*(PlotControl!$C$6-1),12,1)) -> 6497475 | AO16: =AVERAGE(OFFSET(Cat4DCBkf!$C$10,12*($A16-1),4*(PlotControl!$C$6-1),12,1)) -> 56622.99833 | AP16: =AVERAGE(OFFSET(Cat4DCBkf!$D$10,12*($A16-1),4*(PlotControl!$C$6-1),12,1)) -> 457805.4942 | AQ16: =AVERAGE(OFFSET(Cat4DCBkf!$E$10,12*($A16-1),4*(PlotControl!$C$6-1),12,1)) -> 3383745.342 | AR16: =AVERAGE(OFFSET(Cat4VFBkf!$C$10,12*($A16-1),4*(PlotControl!$C$6-1),12,1)) -> 4157761.081 | AS16: =AVERAGE(OFFSET(Cat4VFBkf!$D$10,12*($A16-1),4*(PlotControl!$C$6-1),12,1)) -> 8378833.383 | AT16: =AVERAGE(OFFSET(Cat4VFBkf!$E$10,12*($A16-1),4*(PlotControl!$C$6-1),12,1)) -> 14595130.35
A17: 13 | B17: =AVERAGE(OFFSET(Total!$C$10,12*($A17-1),4*(PlotControl!$C$6-1),12,1)) -> 615073.9167 | C17: =AVERAGE(OFFSET(Total!$D$10,12*($A17-1),4*(PlotControl!$C$6-1),12,1)) -> 1530947.5 | D17: =AVERAGE(OFFSET(Total!$E$10,12*($A17-1),4*(PlotControl!$C$6-1),12,1)) -> 4984176.667 | E17: =AVERAGE(OFFSET(RO!$C$10,12*($A17-1),4*(PlotControl!$C$6-1),12,1)) -> 0 | F17: =AVERAGE(OFFSET(RO!$D$10,12*($A17-1),4*(PlotControl!$C$6-1),12,1)) -> 0 | G17: =AVERAGE(OFFSET(RO!$E$10,12*($A17-1),4*(PlotControl!$C$6-1),12,1)) -> 0 | H17: =AVERAGE(OFFSET(GW!$C$10,12*($A17-1),4*(PlotControl!$C$6-1),12,1)) -> 28527.08333 | I17: =AVERAGE(OFFSET(GW!$D$10,12*($A17-1),4*(PlotControl!$C$6-1),12,1)) -> 35759.08333 | J17: =AVERAGE(OFFSET(GW!$E$10,12*($A17-1),4*(PlotControl!$C$6-1),12,1)) -> 53754.5 | K17: =AVERAGE(OFFSET(CPS!$C$10,12*($A17-1),4*(PlotControl!$C$6-1),12,1)) -> 0 | L17: =AVERAGE(OFFSET(CPS!$D$10,12*($A17-1),4*(PlotControl!$C$6-1),12,1)) -> 5651 | M17: =AVERAGE(OFFSET(CPS!$E$10,12*($A17-1),4*(PlotControl!$C$6-1),12,1)) -> 19715.25 | N17: =AVERAGE(OFFSET(Blast!$C$10,12*($A17-1),4*(PlotControl!$C$6-1),12,1)) -> 0 | O17: =AVERAGE(OFFSET(Blast!$D$10,12*($A17-1),4*(PlotControl!$C$6-1),12,1)) -> 0 | P17: =AVERAGE(OFFSET(Blast!$E$10,12*($A17-1),4*(PlotControl!$C$6-1),12,1)) -> 0 | Q17: =AVERAGE(OFFSET(Cat1SP_leak!$C$10,12*($A17-1),4*(PlotControl!$C$6-1),12,1)) -> 4226.916667 | R17: =AVERAGE(OFFSET(Cat1SP_leak!$D$10,12*($A17-1),4*(PlotControl!$C$6-1),12,1)) -> 10966.925 | S17: =AVERAGE(OFFSET(Cat1SP_leak!$E$10,12*($A17-1),4*(PlotControl!$C$6-1),12,1)) -> 25610.5 | T17: =AVERAGE(OFFSET(Cat1wall!$C$10,12*($A17-1),4*(PlotControl!$C$6-1),12,1)) -> 552.7958333 | U17: =AVERAGE(OFFSET(Cat1wall!$D$10,12*($A17-1),4*(PlotControl!$C$6-1),12,1)) -> 1068.2525 | V17: =AVERAGE(OFFSET(Cat1wall!$E$10,12*($A17-1),4*(PlotControl!$C$6-1),12,1)) -> 1884.163333 | W17: =AVERAGE(OFFSET(Cat23wall!$C$10,12*($A17-1),4*(PlotControl!$C$6-1),12,1)) -> 1451.980833 | X17: =AVERAGE(OFFSET(Cat23wall!$D$10,12*($A17-1),4*(PlotControl!$C$6-1),12,1)) -> 2801.058333 | Y17: =AVERAGE(OFFSET(Cat23wall!$E$10,12*($A17-1),4*(PlotControl!$C$6-1),12,1)) -> 4913.383333 | Z17: =AVERAGE(OFFSET(Cat4DCwall!$C$10,12*($A17-1),4*(PlotControl!$C$6-1),12,1)) -> 265.3155 | AA17: =AVERAGE(OFFSET(Cat4DCwall!$D$10,12*($A17-1),4*(PlotControl!$C$6-1),12,1)) -> 727.3525 | AB17: =AVERAGE(OFFSET(Cat4DCwall!$E$10,12*($A17-1),4*(PlotControl!$C$6-1),12,1)) -> 2258.348333 | AC17: =AVERAGE(OFFSET(Orewall!$C$10,12*($A17-1),4*(PlotControl!$C$6-1),12,1)) -> 6308.875 | AD17: =AVERAGE(OFFSET(Orewall!$D$10,12*($A17-1),4*(PlotControl!$C$6-1),12,1)) -> 12235.99167 | AE17: =AVERAGE(OFFSET(Orewall!$E$10,12*($A17-1),4*(PlotControl!$C$6-1),12,1)) -> 21556.24167 | AF17: =AVERAGE(OFFSET(Cat4VFwall!$C$10,12*($A17-1),4*(PlotControl!$C$6-1),12,1)) -> 39700.16667 | AG17: =AVERAGE(OFFSET(Cat4VFwall!$D$10,12*($A17-1),4*(PlotControl!$C$6-1),12,1)) -> 74178.83333 | AH17: =AVERAGE(OFFSET(Cat4VFwall!$E$10,12*($A17-1),4*(PlotControl!$C$6-1),12,1)) -> 128137.8333 | AI17: =AVERAGE(OFFSET(Cat1Bkf!$C$10,12*($A17-1),4*(PlotControl!$C$6-1),12,1)) -> 507.5325 | AJ17: =AVERAGE(OFFSET(Cat1Bkf!$D$10,12*($A17-1),4*(PlotControl!$C$6-1),12,1)) -> 944.1041667 | AK17: =AVERAGE(OFFSET(Cat1Bkf!$E$10,12*($A17-1),4*(PlotControl!$C$6-1),12,1)) -> 1662.315833 | AL17: =AVERAGE(OFFSET(Cat23Bkf!$C$10,12*($A17-1),4*(PlotControl!$C$6-1),12,1)) -> 481383.5 | AM17: =AVERAGE(OFFSET(Cat23Bkf!$D$10,12*($A17-1),4*(PlotControl!$C$6-1),12,1)) -> 1374328.583 | AN17: =AVERAGE(OFFSET(Cat23Bkf!$E$10,12*($A17-1),4*(PlotControl!$C$6-1),12,1)) -> 4803357.5 | AO17: =AVERAGE(OFFSET(Cat4DCBkf!$C$10,12*($A17-1),4*(PlotControl!$C$6-1),12,1)) -> 148.1524167 | AP17: =AVERAGE(OFFSET(Cat4DCBkf!$D$10,12*($A17-1),4*(PlotControl!$C$6-1),12,1)) -> 353.0575 | AQ17: =AVERAGE(OFFSET(Cat4DCBkf!$E$10,12*($A17-1),4*(PlotControl!$C$6-1),12,1)) -> 831.6041667 | AR17: =AVERAGE(OFFSET(Cat4VFBkf!$C$10,12*($A17-1),4*(PlotControl!$C$6-1),12,1)) -> 66.910475 | AS17: =AVERAGE(OFFSET(Cat4VFBkf!$D$10,12*($A17-1),4*(PlotControl!$C$6-1),12,1)) -> 135.0151083 | AT17: =AVERAGE(OFFSET(Cat4VFBkf!$E$10,12*($A17-1),4*(PlotControl!$C$6-1),12,1)) -> 235.2529167
A18: 14 | B18: =AVERAGE(OFFSET(Total!$C$10,12*($A18-1),4*(PlotControl!$C$6-1),12,1)) -> 146828.8333 | C18: =AVERAGE(OFFSET(Total!$D$10,12*($A18-1),4*(PlotControl!$C$6-1),12,1)) -> 223043.3333 | D18: =AVERAGE(OFFSET(Total!$E$10,12*($A18-1),4*(PlotControl!$C$6-1),12,1)) -> 310968.3333 | E18: =AVERAGE(OFFSET(RO!$C$10,12*($A18-1),4*(PlotControl!$C$6-1),12,1)) -> 0 | F18: =AVERAGE(OFFSET(RO!$D$10,12*($A18-1),4*(PlotControl!$C$6-1),12,1)) -> 0 | G18: =AVERAGE(OFFSET(RO!$E$10,12*($A18-1),4*(PlotControl!$C$6-1),12,1)) -> 0 | H18: =AVERAGE(OFFSET(GW!$C$10,12*($A18-1),4*(PlotControl!$C$6-1),12,1)) -> 26720.41667 | I18: =AVERAGE(OFFSET(GW!$D$10,12*($A18-1),4*(PlotControl!$C$6-1),12,1)) -> 33527.16667 | J18: =AVERAGE(OFFSET(GW!$E$10,12*($A18-1),4*(PlotControl!$C$6-1),12,1)) -> 50411.41667 | K18: =AVERAGE(OFFSET(CPS!$C$10,12*($A18-1),4*(PlotControl!$C$6-1),12,1)) -> 0 | L18: =AVERAGE(OFFSET(CPS!$D$10,12*($A18-1),4*(PlotControl!$C$6-1),12,1)) -> 0 | M18: =AVERAGE(OFFSET(CPS!$E$10,12*($A18-1),4*(PlotControl!$C$6-1),12,1)) -> 0 | N18: =AVERAGE(OFFSET(Blast!$C$10,12*($A18-1),4*(PlotControl!$C$6-1),12,1)) -> 0 | O18: =AVERAGE(OFFSET(Blast!$D$10,12*($A18-1),4*(PlotControl!$C$6-1),12,1)) -> 0 | P18: =AVERAGE(OFFSET(Blast!$E$10,12*($A18-1),4*(PlotControl!$C$6-1),12,1)) -> 0 | Q18: =AVERAGE(OFFSET(Cat1SP_leak!$C$10,12*($A18-1),4*(PlotControl!$C$6-1),12,1)) -> 3201.3 | R18: =AVERAGE(OFFSET(Cat1SP_leak!$D$10,12*($A18-1),4*(PlotControl!$C$6-1),12,1)) -> 9024.541667 | S18: =AVERAGE(OFFSET(Cat1SP_leak!$E$10,12*($A18-1),4*(PlotControl!$C$6-1),12,1)) -> 21476.25833 | T18: =AVERAGE(OFFSET(Cat1wall!$C$10,12*($A18-1),4*(PlotControl!$C$6-1),12,1)) -> 228.9008333 | U18: =AVERAGE(OFFSET(Cat1wall!$D$10,12*($A18-1),4*(PlotControl!$C$6-1),12,1)) -> 492.6208333 | V18: =AVERAGE(OFFSET(Cat1wall!$E$10,12*($A18-1),4*(PlotControl!$C$6-1),12,1)) -> 965.415 | W18: =AVERAGE(OFFSET(Cat23wall!$C$10,12*($A18-1),4*(PlotControl!$C$6-1),12,1)) -> 562.88 | X18: =AVERAGE(OFFSET(Cat23wall!$D$10,12*($A18-1),4*(PlotControl!$C$6-1),12,1)) -> 1211.383333 | Y18: =AVERAGE(OFFSET(Cat23wall!$E$10,12*($A18-1),4*(PlotControl!$C$6-1),12,1)) -> 2373.983333 | Z18: =AVERAGE(OFFSET(Cat4DCwall!$C$10,12*($A18-1),4*(PlotControl!$C$6-1),12,1)) -> 46.26383333 | AA18: =AVERAGE(OFFSET(Cat4DCwall!$D$10,12*($A18-1),4*(PlotControl!$C$6-1),12,1)) -> 122.8966667 | AB18: =AVERAGE(OFFSET(Cat4DCwall!$E$10,12*($A18-1),4*(PlotControl!$C$6-1),12,1)) -> 408.6516667 | AC18: =AVERAGE(OFFSET(Orewall!$C$10,12*($A18-1),4*(PlotControl!$C$6-1),12,1)) -> 2342.225 | AD18: =AVERAGE(OFFSET(Orewall!$D$10,12*($A18-1),4*(PlotControl!$C$6-1),12,1)) -> 5040.666667 | AE18: =AVERAGE(OFFSET(Orewall!$E$10,12*($A18-1),4*(PlotControl!$C$6-1),12,1)) -> 9878.566667 | AF18: =AVERAGE(OFFSET(Cat4VFwall!$C$10,12*($A18-1),4*(PlotControl!$C$6-1),12,1)) -> 13165.33333 | AG18: =AVERAGE(OFFSET(Cat4VFwall!$D$10,12*($A18-1),4*(PlotControl!$C$6-1),12,1)) -> 28562 | AH18: =AVERAGE(OFFSET(Cat4VFwall!$E$10,12*($A18-1),4*(PlotControl!$C$6-1),12,1)) -> 54907.33333 | AI18: =AVERAGE(OFFSET(Cat1Bkf!$C$10,12*($A18-1),4*(PlotControl!$C$6-1),12,1)) -> 2842.158333 | AJ18: =AVERAGE(OFFSET(Cat1Bkf!$D$10,12*($A18-1),4*(PlotControl!$C$6-1),12,1)) -> 5676.208333 | AK18: =AVERAGE(OFFSET(Cat1Bkf!$E$10,12*($A18-1),4*(PlotControl!$C$6-1),12,1)) -> 10775.53333 | AL18: =AVERAGE(OFFSET(Cat23Bkf!$C$10,12*($A18-1),4*(PlotControl!$C$6-1),12,1)) -> 72301.66667 | AM18: =AVERAGE(OFFSET(Cat23Bkf!$D$10,12*($A18-1),4*(PlotControl!$C$6-1),12,1)) -> 125090.1667 | AN18: =AVERAGE(OFFSET(Cat23Bkf!$E$10,12*($A18-1),4*(PlotControl!$C$6-1),12,1)) -> 204569.5 | AO18: =AVERAGE(OFFSET(Cat4DCBkf!$C$10,12*($A18-1),4*(PlotControl!$C$6-1),12,1)) -> 432.3975 | AP18: =AVERAGE(OFFSET(Cat4DCBkf!$D$10,12*($A18-1),4*(PlotControl!$C$6-1),12,1)) -> 602.855 | AQ18: =AVERAGE(OFFSET(Cat4DCBkf!$E$10,12*($A18-1),4*(PlotControl!$C$6-1),12,1)) -> 936.8608333 | AR18: =AVERAGE(OFFSET(Cat4VFBkf!$C$10,12*($A18-1),4*(PlotControl!$C$6-1),12,1)) -> 0 | AS18: =AVERAGE(OFFSET(Cat4VFBkf!$D$10,12*($A18-1),4*(PlotControl!$C$6-1),12,1)) -> 0 | AT18: =AVERAGE(OFFSET(Cat4VFBkf!$E$10,12*($A18-1),4*(PlotControl!$C$6-1),12,1)) -> 0
A19: 15 | B19: =AVERAGE(OFFSET(Total!$C$10,12*($A19-1),4*(PlotControl!$C$6-1),12,1)) -> 174531.6667 | C19: =AVERAGE(OFFSET(Total!$D$10,12*($A19-1),4*(PlotControl!$C$6-1),12,1)) -> 234428.3333 | D19: =AVERAGE(OFFSET(Total!$E$10,12*($A19-1),4*(PlotControl!$C$6-1),12,1)) -> 311933.3333 | E19: =AVERAGE(OFFSET(RO!$C$10,12*($A19-1),4*(PlotControl!$C$6-1),12,1)) -> 0 | F19: =AVERAGE(OFFSET(RO!$D$10,12*($A19-1),4*(PlotControl!$C$6-1),12,1)) -> 0 | G19: =AVERAGE(OFFSET(RO!$E$10,12*($A19-1),4*(PlotControl!$C$6-1),12,1)) -> 0 | H19: =AVERAGE(OFFSET(GW!$C$10,12*($A19-1),4*(PlotControl!$C$6-1),12,1)) -> 26388.25 | I19: =AVERAGE(OFFSET(GW!$D$10,12*($A19-1),4*(PlotControl!$C$6-1),12,1)) -> 33120.41667 | J19: =AVERAGE(OFFSET(GW!$E$10,12*($A19-1),4*(PlotControl!$C$6-1),12,1)) -> 49800.83333 | K19: =AVERAGE(OFFSET(CPS!$C$10,12*($A19-1),4*(PlotControl!$C$6-1),12,1)) -> 0 | L19: =AVERAGE(OFFSET(CPS!$D$10,12*($A19-1),4*(PlotControl!$C$6-1),12,1)) -> 0 | M19: =AVERAGE(OFFSET(CPS!$E$10,12*($A19-1),4*(PlotControl!$C$6-1),12,1)) -> 0 | N19: =AVERAGE(OFFSET(Blast!$C$10,12*($A19-1),4*(PlotControl!$C$6-1),12,1)) -> 0 | O19: =AVERAGE(OFFSET(Blast!$D$10,12*($A19-1),4*(PlotControl!$C$6-1),12,1)) -> 0 | P19: =AVERAGE(OFFSET(Blast!$E$10,12*($A19-1),4*(PlotControl!$C$6-1),12,1)) -> 0 | Q19: =AVERAGE(OFFSET(Cat1SP_leak!$C$10,12*($A19-1),4*(PlotControl!$C$6-1),12,1)) -> 2628.425 | R19: =AVERAGE(OFFSET(Cat1SP_leak!$D$10,12*($A19-1),4*(PlotControl!$C$6-1),12,1)) -> 6940.158333 | S19: =AVERAGE(OFFSET(Cat1SP_leak!$E$10,12*($A19-1),4*(PlotControl!$C$6-1),12,1)) -> 16164.675 | T19: =AVERAGE(OFFSET(Cat1wall!$C$10,12*($A19-1),4*(PlotControl!$C$6-1),12,1)) -> 224.6291667 | U19: =AVERAGE(OFFSET(Cat1wall!$D$10,12*($A19-1),4*(PlotControl!$C$6-1),12,1)) -> 490.11 | V19: =AVERAGE(OFFSET(Cat1wall!$E$10,12*($A19-1),4*(PlotControl!$C$6-1),12,1)) -> 975.0841667 | W19: =AVERAGE(OFFSET(Cat23wall!$C$10,12*($A19-1),4*(PlotControl!$C$6-1),12,1)) -> 552.375 | X19: =AVERAGE(OFFSET(Cat23wall!$D$10,12*($A19-1),4*(PlotControl!$C$6-1),12,1)) -> 1205.208333 | Y19: =AVERAGE(OFFSET(Cat23wall!$E$10,12*($A19-1),4*(PlotControl!$C$6-1),12,1)) -> 2397.775 | Z19: =AVERAGE(OFFSET(Cat4DCwall!$C$10,12*($A19-1),4*(PlotControl!$C$6-1),12,1)) -> 43.067 | AA19: =AVERAGE(OFFSET(Cat4DCwall!$D$10,12*($A19-1),4*(PlotControl!$C$6-1),12,1)) -> 121.4283333 | AB19: =AVERAGE(OFFSET(Cat4DCwall!$E$10,12*($A19-1),4*(PlotControl!$C$6-1),12,1)) -> 403.8866667 | AC19: =AVERAGE(OFFSET(Orewall!$C$10,12*($A19-1),4*(PlotControl!$C$6-1),12,1)) -> 2298.5 | AD19: =AVERAGE(OFFSET(Orewall!$D$10,12*($A19-1),4*(PlotControl!$C$6-1),12,1)) -> 5014.983333 | AE19: =AVERAGE(OFFSET(Orewall!$E$10,12*($A19-1),4*(PlotControl!$C$6-1),12,1)) -> 9977.516667 | AF19: =AVERAGE(OFFSET(Cat4VFwall!$C$10,12*($A19-1),4*(PlotControl!$C$6-1),12,1)) -> 12887.25 | AG19: =AVERAGE(OFFSET(Cat4VFwall!$D$10,12*($A19-1),4*(PlotControl!$C$6-1),12,1)) -> 28114.66667 | AH19: =AVERAGE(OFFSET(Cat4VFwall!$E$10,12*($A19-1),4*(PlotControl!$C$6-1),12,1)) -> 55439.08333 | AI19: =AVERAGE(OFFSET(Cat1Bkf!$C$10,12*($A19-1),4*(PlotControl!$C$6-1),12,1)) -> 6072.316667 | AJ19: =AVERAGE(OFFSET(Cat1Bkf!$D$10,12*($A19-1),4*(PlotControl!$C$6-1),12,1)) -> 11615.54167 | AK19: =AVERAGE(OFFSET(Cat1Bkf!$E$10,12*($A19-1),4*(PlotControl!$C$6-1),12,1)) -> 22568.75 | AL19: =AVERAGE(OFFSET(Cat23Bkf!$C$10,12*($A19-1),4*(PlotControl!$C$6-1),12,1)) -> 92949.83333 | AM19: =AVERAGE(OFFSET(Cat23Bkf!$D$10,12*($A19-1),4*(PlotControl!$C$6-1),12,1)) -> 133302.25 | AN19: =AVERAGE(OFFSET(Cat23Bkf!$E$10,12*($A19-1),4*(PlotControl!$C$6-1),12,1)) -> 202397.4167 | AO19: =AVERAGE(OFFSET(Cat4DCBkf!$C$10,12*($A19-1),4*(PlotControl!$C$6-1),12,1)) -> 593.0075 | AP19: =AVERAGE(OFFSET(Cat4DCBkf!$D$10,12*($A19-1),4*(PlotControl!$C$6-1),12,1)) -> 820.4533333 | AQ19: =AVERAGE(OFFSET(Cat4DCBkf!$E$10,12*($A19-1),4*(PlotControl!$C$6-1),12,1)) -> 1246.484167 | AR19: =AVERAGE(OFFSET(Cat4VFBkf!$C$10,12*($A19-1),4*(PlotControl!$C$6-1),12,1)) -> 0 | AS19: =AVERAGE(OFFSET(Cat4VFBkf!$D$10,12*($A19-1),4*(PlotControl!$C$6-1),12,1)) -> 0 | AT19: =AVERAGE(OFFSET(Cat4VFBkf!$E$10,12*($A19-1),4*(PlotControl!$C$6-1),12,1)) -> 0
A20: 16 | B20: =AVERAGE(OFFSET(Total!$C$10,12*($A20-1),4*(PlotControl!$C$6-1),12,1)) -> 3650497.5 | C20: =AVERAGE(OFFSET(Total!$D$10,12*($A20-1),4*(PlotControl!$C$6-1),12,1)) -> 8788482.5 | D20: =AVERAGE(OFFSET(Total!$E$10,12*($A20-1),4*(PlotControl!$C$6-1),12,1)) -> 29536896.67 | E20: =AVERAGE(OFFSET(RO!$C$10,12*($A20-1),4*(PlotControl!$C$6-1),12,1)) -> 0 | F20: =AVERAGE(OFFSET(RO!$D$10,12*($A20-1),4*(PlotControl!$C$6-1),12,1)) -> 0 | G20: =AVERAGE(OFFSET(RO!$E$10,12*($A20-1),4*(PlotControl!$C$6-1),12,1)) -> 0 | H20: =AVERAGE(OFFSET(GW!$C$10,12*($A20-1),4*(PlotControl!$C$6-1),12,1)) -> 26758.83333 | I20: =AVERAGE(OFFSET(GW!$D$10,12*($A20-1),4*(PlotControl!$C$6-1),12,1)) -> 33622.25 | J20: =AVERAGE(OFFSET(GW!$E$10,12*($A20-1),4*(PlotControl!$C$6-1),12,1)) -> 50319 | K20: =AVERAGE(OFFSET(CPS!$C$10,12*($A20-1),4*(PlotControl!$C$6-1),12,1)) -> 303935 | L20: =AVERAGE(OFFSET(CPS!$D$10,12*($A20-1),4*(PlotControl!$C$6-1),12,1)) -> 359536.6667 | M20: =AVERAGE(OFFSET(CPS!$E$10,12*($A20-1),4*(PlotControl!$C$6-1),12,1)) -> 436883.3333 | N20: =AVERAGE(OFFSET(Blast!$C$10,12*($A20-1),4*(PlotControl!$C$6-1),12,1)) -> 0 | O20: =AVERAGE(OFFSET(Blast!$D$10,12*($A20-1),4*(PlotControl!$C$6-1),12,1)) -> 0 | P20: =AVERAGE(OFFSET(Blast!$E$10,12*($A20-1),4*(PlotControl!$C$6-1),12,1)) -> 0 | Q20: =AVERAGE(OFFSET(Cat1SP_leak!$C$10,12*($A20-1),4*(PlotControl!$C$6-1),12,1)) -> 1894.791667 | R20: =AVERAGE(OFFSET(Cat1SP_leak!$D$10,12*($A20-1),4*(PlotControl!$C$6-1),12,1)) -> 4847.125 | S20: =AVERAGE(OFFSET(Cat1SP_leak!$E$10,12*($A20-1),4*(PlotControl!$C$6-1),12,1)) -> 11229.85833 | T20: =AVERAGE(OFFSET(Cat1wall!$C$10,12*($A20-1),4*(PlotControl!$C$6-1),12,1)) -> 1234.2475 | U20: =AVERAGE(OFFSET(Cat1wall!$D$10,12*($A20-1),4*(PlotControl!$C$6-1),12,1)) -> 2750.511667 | V20: =AVERAGE(OFFSET(Cat1wall!$E$10,12*($A20-1),4*(PlotControl!$C$6-1),12,1)) -> 5507.761667 | W20: =AVERAGE(OFFSET(Cat23wall!$C$10,12*($A20-1),4*(PlotControl!$C$6-1),12,1)) -> 1708.751667 | X20: =AVERAGE(OFFSET(Cat23wall!$D$10,12*($A20-1),4*(PlotControl!$C$6-1),12,1)) -> 4484.55 | Y20: =AVERAGE(OFFSET(Cat23wall!$E$10,12*($A20-1),4*(PlotControl!$C$6-1),12,1)) -> 10243.58333 | Z20: =AVERAGE(OFFSET(Cat4DCwall!$C$10,12*($A20-1),4*(PlotControl!$C$6-1),12,1)) -> 136.0320833 | AA20: =AVERAGE(OFFSET(Cat4DCwall!$D$10,12*($A20-1),4*(PlotControl!$C$6-1),12,1)) -> 484.7666667 | AB20: =AVERAGE(OFFSET(Cat4DCwall!$E$10,12*($A20-1),4*(PlotControl!$C$6-1),12,1)) -> 1936.9375 | AC20: =AVERAGE(OFFSET(Orewall!$C$10,12*($A20-1),4*(PlotControl!$C$6-1),12,1)) -> 12268.20833 | AD20: =AVERAGE(OFFSET(Orewall!$D$10,12*($A20-1),4*(PlotControl!$C$6-1),12,1)) -> 27772.925 | AE20: =AVERAGE(OFFSET(Orewall!$E$10,12*($A20-1),4*(PlotControl!$C$6-1),12,1)) -> 60523.45833 | AF20: =AVERAGE(OFFSET(Cat4VFwall!$C$10,12*($A20-1),4*(PlotControl!$C$6-1),12,1)) -> 71061.25 | AG20: =AVERAGE(OFFSET(Cat4VFwall!$D$10,12*($A20-1),4*(PlotControl!$C$6-1),12,1)) -> 153032.5833 | AH20: =AVERAGE(OFFSET(Cat4VFwall!$E$10,12*($A20-1),4*(PlotControl!$C$6-1),12,1)) -> 315118.5833 | AI20: =AVERAGE(OFFSET(Cat1Bkf!$C$10,12*($A20-1),4*(PlotControl!$C$6-1),12,1)) -> 25047.7 | AJ20: =AVERAGE(OFFSET(Cat1Bkf!$D$10,12*($A20-1),4*(PlotControl!$C$6-1),12,1)) -> 45301.83333 | AK20: =AVERAGE(OFFSET(Cat1Bkf!$E$10,12*($A20-1),4*(PlotControl!$C$6-1),12,1)) -> 76474 | AL20: =AVERAGE(OFFSET(Cat23Bkf!$C$10,12*($A20-1),4*(PlotControl!$C$6-1),12,1)) -> 3006749 | AM20: =AVERAGE(OFFSET(Cat23Bkf!$D$10,12*($A20-1),4*(PlotControl!$C$6-1),12,1)) -> 8100742.917 | AN20: =AVERAGE(OFFSET(Cat23Bkf!$E$10,12*($A20-1),4*(PlotControl!$C$6-1),12,1)) -> 28756851.75 | AO20: =AVERAGE(OFFSET(Cat4DCBkf!$C$10,12*($A20-1),4*(PlotControl!$C$6-1),12,1)) -> 17545.35083 | AP20: =AVERAGE(OFFSET(Cat4DCBkf!$D$10,12*($A20-1),4*(PlotControl!$C$6-1),12,1)) -> 46706.8625 | AQ20: =AVERAGE(OFFSET(Cat4DCBkf!$E$10,12*($A20-1),4*(PlotControl!$C$6-1),12,1)) -> 124445.7567 | AR20: =AVERAGE(OFFSET(Cat4VFBkf!$C$10,12*($A20-1),4*(PlotControl!$C$6-1),12,1)) -> 0.2334033333 | AS20: =AVERAGE(OFFSET(Cat4VFBkf!$D$10,12*($A20-1),4*(PlotControl!$C$6-1),12,1)) -> 0.493865 | AT20: =AVERAGE(OFFSET(Cat4VFBkf!$E$10,12*($A20-1),4*(PlotControl!$C$6-1),12,1)) -> 0.8978116667
A21: 17 | B21: =AVERAGE(OFFSET(Total!$C$10,12*($A21-1),4*(PlotControl!$C$6-1),12,1)) -> 4400808.333 | C21: =AVERAGE(OFFSET(Total!$D$10,12*($A21-1),4*(PlotControl!$C$6-1),12,1)) -> 11371433.33 | D21: =AVERAGE(OFFSET(Total!$E$10,12*($A21-1),4*(PlotControl!$C$6-1),12,1)) -> 40820416.67 | E21: =AVERAGE(OFFSET(RO!$C$10,12*($A21-1),4*(PlotControl!$C$6-1),12,1)) -> 0 | F21: =AVERAGE(OFFSET(RO!$D$10,12*($A21-1),4*(PlotControl!$C$6-1),12,1)) -> 0 | G21: =AVERAGE(OFFSET(RO!$E$10,12*($A21-1),4*(PlotControl!$C$6-1),12,1)) -> 0 | H21: =AVERAGE(OFFSET(GW!$C$10,12*($A21-1),4*(PlotControl!$C$6-1),12,1)) -> 25448.41667 | I21: =AVERAGE(OFFSET(GW!$D$10,12*($A21-1),4*(PlotControl!$C$6-1),12,1)) -> 31842.58333 | J21: =AVERAGE(OFFSET(GW!$E$10,12*($A21-1),4*(PlotControl!$C$6-1),12,1)) -> 45548.08333 | K21: =AVERAGE(OFFSET(CPS!$C$10,12*($A21-1),4*(PlotControl!$C$6-1),12,1)) -> 275725.8333 | L21: =AVERAGE(OFFSET(CPS!$D$10,12*($A21-1),4*(PlotControl!$C$6-1),12,1)) -> 350311.6667 | M21: =AVERAGE(OFFSET(CPS!$E$10,12*($A21-1),4*(PlotControl!$C$6-1),12,1)) -> 418426.6667 | N21: =AVERAGE(OFFSET(Blast!$C$10,12*($A21-1),4*(PlotControl!$C$6-1),12,1)) -> 0 | O21: =AVERAGE(OFFSET(Blast!$D$10,12*($A21-1),4*(PlotControl!$C$6-1),12,1)) -> 0 | P21: =AVERAGE(OFFSET(Blast!$E$10,12*($A21-1),4*(PlotControl!$C$6-1),12,1)) -> 0 | Q21: =AVERAGE(OFFSET(Cat1SP_leak!$C$10,12*($A21-1),4*(PlotControl!$C$6-1),12,1)) -> 1253.8575 | R21: =AVERAGE(OFFSET(Cat1SP_leak!$D$10,12*($A21-1),4*(PlotControl!$C$6-1),12,1)) -> 3264.116667 | S21: =AVERAGE(OFFSET(Cat1SP_leak!$E$10,12*($A21-1),4*(PlotControl!$C$6-1),12,1)) -> 7469.658333 | T21: =AVERAGE(OFFSET(Cat1wall!$C$10,12*($A21-1),4*(PlotControl!$C$6-1),12,1)) -> 733.4233333 | U21: =AVERAGE(OFFSET(Cat1wall!$D$10,12*($A21-1),4*(PlotControl!$C$6-1),12,1)) -> 1663.373333 | V21: =AVERAGE(OFFSET(Cat1wall!$E$10,12*($A21-1),4*(PlotControl!$C$6-1),12,1)) -> 5963.308333 | W21: =AVERAGE(OFFSET(Cat23wall!$C$10,12*($A21-1),4*(PlotControl!$C$6-1),12,1)) -> 2722.891667 | X21: =AVERAGE(OFFSET(Cat23wall!$D$10,12*($A21-1),4*(PlotControl!$C$6-1),12,1)) -> 6611.816667 | Y21: =AVERAGE(OFFSET(Cat23wall!$E$10,12*($A21-1),4*(PlotControl!$C$6-1),12,1)) -> 19786.51667 | Z21: =AVERAGE(OFFSET(Cat4DCwall!$C$10,12*($A21-1),4*(PlotControl!$C$6-1),12,1)) -> 191.6968333 | AA21: =AVERAGE(OFFSET(Cat4DCwall!$D$10,12*($A21-1),4*(PlotControl!$C$6-1),12,1)) -> 813.4783333 | AB21: =AVERAGE(OFFSET(Cat4DCwall!$E$10,12*($A21-1),4*(PlotControl!$C$6-1),12,1)) -> 3150.541667 | AC21: =AVERAGE(OFFSET(Orewall!$C$10,12*($A21-1),4*(PlotControl!$C$6-1),12,1)) -> 12501.91667 | AD21: =AVERAGE(OFFSET(Orewall!$D$10,12*($A21-1),4*(PlotControl!$C$6-1),12,1)) -> 30338 | AE21: =AVERAGE(OFFSET(Orewall!$E$10,12*($A21-1),4*(PlotControl!$C$6-1),12,1)) -> 77488.66667 | AF21: =AVERAGE(OFFSET(Cat4VFwall!$C$10,12*($A21-1),4*(PlotControl!$C$6-1),12,1)) -> 50556.66667 | AG21: =AVERAGE(OFFSET(Cat4VFwall!$D$10,12*($A21-1),4*(PlotControl!$C$6-1),12,1)) -> 116625.3333 | AH21: =AVERAGE(OFFSET(Cat4VFwall!$E$10,12*($A21-1),4*(PlotControl!$C$6-1),12,1)) -> 364786.6667 | AI21: =AVERAGE(OFFSET(Cat1Bkf!$C$10,12*($A21-1),4*(PlotControl!$C$6-1),12,1)) -> 21797.41667 | AJ21: =AVERAGE(OFFSET(Cat1Bkf!$D$10,12*($A21-1),4*(PlotControl!$C$6-1),12,1)) -> 43215.83333 | AK21: =AVERAGE(OFFSET(Cat1Bkf!$E$10,12*($A21-1),4*(PlotControl!$C$6-1),12,1)) -> 72379.83333 | AL21: =AVERAGE(OFFSET(Cat23Bkf!$C$10,12*($A21-1),4*(PlotControl!$C$6-1),12,1)) -> 3730158.333 | AM21: =AVERAGE(OFFSET(Cat23Bkf!$D$10,12*($A21-1),4*(PlotControl!$C$6-1),12,1)) -> 10580258.33 | AN21: =AVERAGE(OFFSET(Cat23Bkf!$E$10,12*($A21-1),4*(PlotControl!$C$6-1),12,1)) -> 39808083.33 | AO21: =AVERAGE(OFFSET(Cat4DCBkf!$C$10,12*($A21-1),4*(PlotControl!$C$6-1),12,1)) -> 33969.75 | AP21: =AVERAGE(OFFSET(Cat4DCBkf!$D$10,12*($A21-1),4*(PlotControl!$C$6-1),12,1)) -> 104183.4167 | AQ21: =AVERAGE(OFFSET(Cat4DCBkf!$E$10,12*($A21-1),4*(PlotControl!$C$6-1),12,1)) -> 291990 | AR21: =AVERAGE(OFFSET(Cat4VFBkf!$C$10,12*($A21-1),4*(PlotControl!$C$6-1),12,1)) -> 0.1508583333 | AS21: =AVERAGE(OFFSET(Cat4VFBkf!$D$10,12*($A21-1),4*(PlotControl!$C$6-1),12,1)) -> 0.35689 | AT21: =AVERAGE(OFFSET(Cat4VFBkf!$E$10,12*($A21-1),4*(PlotControl!$C$6-1),12,1)) -> 0.63852
A22: 18 | B22: =AVERAGE(OFFSET(Total!$C$10,12*($A22-1),4*(PlotControl!$C$6-1),12,1)) -> 2951200 | C22: =AVERAGE(OFFSET(Total!$D$10,12*($A22-1),4*(PlotControl!$C$6-1),12,1)) -> 8851083.333 | D22: =AVERAGE(OFFSET(Total!$E$10,12*($A22-1),4*(PlotControl!$C$6-1),12,1)) -> 40273750 | E22: =AVERAGE(OFFSET(RO!$C$10,12*($A22-1),4*(PlotControl!$C$6-1),12,1)) -> 0 | F22: =AVERAGE(OFFSET(RO!$D$10,12*($A22-1),4*(PlotControl!$C$6-1),12,1)) -> 0 | G22: =AVERAGE(OFFSET(RO!$E$10,12*($A22-1),4*(PlotControl!$C$6-1),12,1)) -> 0 | H22: =AVERAGE(OFFSET(GW!$C$10,12*($A22-1),4*(PlotControl!$C$6-1),12,1)) -> 18238.75 | I22: =AVERAGE(OFFSET(GW!$D$10,12*($A22-1),4*(PlotControl!$C$6-1),12,1)) -> 22576.08333 | J22: =AVERAGE(OFFSET(GW!$E$10,12*($A22-1),4*(PlotControl!$C$6-1),12,1)) -> 30279.75 | K22: =AVERAGE(OFFSET(CPS!$C$10,12*($A22-1),4*(PlotControl!$C$6-1),12,1)) -> 12431.05 | L22: =AVERAGE(OFFSET(CPS!$D$10,12*($A22-1),4*(PlotControl!$C$6-1),12,1)) -> 240690.5833 | M22: =AVERAGE(OFFSET(CPS!$E$10,12*($A22-1),4*(PlotControl!$C$6-1),12,1)) -> 355008.3333 | N22: =AVERAGE(OFFSET(Blast!$C$10,12*($A22-1),4*(PlotControl!$C$6-1),12,1)) -> 0 | O22: =AVERAGE(OFFSET(Blast!$D$10,12*($A22-1),4*(PlotControl!$C$6-1),12,1)) -> 0 | P22: =AVERAGE(OFFSET(Blast!$E$10,12*($A22-1),4*(PlotControl!$C$6-1),12,1)) -> 0 | Q22: =AVERAGE(OFFSET(Cat1SP_leak!$C$10,12*($A22-1),4*(PlotControl!$C$6-1),12,1)) -> 876 | R22: =AVERAGE(OFFSET(Cat1SP_leak!$D$10,12*($A22-1),4*(PlotControl!$C$6-1),12,1)) -> 2160.1 | S22: =AVERAGE(OFFSET(Cat1SP_leak!$E$10,12*($A22-1),4*(PlotControl!$C$6-1),12,1)) -> 4846.975 | T22: =AVERAGE(OFFSET(Cat1wall!$C$10,12*($A22-1),4*(PlotControl!$C$6-1),12,1)) -> 551.3958333 | U22: =AVERAGE(OFFSET(Cat1wall!$D$10,12*($A22-1),4*(PlotControl!$C$6-1),12,1)) -> 1609.63 | V22: =AVERAGE(OFFSET(Cat1wall!$E$10,12*($A22-1),4*(PlotControl!$C$6-1),12,1)) -> 3976.916667 | W22: =AVERAGE(OFFSET(Cat23wall!$C$10,12*($A22-1),4*(PlotControl!$C$6-1),12,1)) -> 1902.991667 | X22: =AVERAGE(OFFSET(Cat23wall!$D$10,12*($A22-1),4*(PlotControl!$C$6-1),12,1)) -> 4745.35 | Y22: =AVERAGE(OFFSET(Cat23wall!$E$10,12*($A22-1),4*(PlotControl!$C$6-1),12,1)) -> 10813.81667 | Z22: =AVERAGE(OFFSET(Cat4DCwall!$C$10,12*($A22-1),4*(PlotControl!$C$6-1),12,1)) -> 20.40491667 | AA22: =AVERAGE(OFFSET(Cat4DCwall!$D$10,12*($A22-1),4*(PlotControl!$C$6-1),12,1)) -> 226.546 | AB22: =AVERAGE(OFFSET(Cat4DCwall!$E$10,12*($A22-1),4*(PlotControl!$C$6-1),12,1)) -> 1268.865833 | AC22: =AVERAGE(OFFSET(Orewall!$C$10,12*($A22-1),4*(PlotControl!$C$6-1),12,1)) -> 5814.141667 | AD22: =AVERAGE(OFFSET(Orewall!$D$10,12*($A22-1),4*(PlotControl!$C$6-1),12,1)) -> 14966.78333 | AE22: =AVERAGE(OFFSET(Orewall!$E$10,12*($A22-1),4*(PlotControl!$C$6-1),12,1)) -> 35207.41667 | AF22: =AVERAGE(OFFSET(Cat4VFwall!$C$10,12*($A22-1),4*(PlotControl!$C$6-1),12,1)) -> 35642.25 | AG22: =AVERAGE(OFFSET(Cat4VFwall!$D$10,12*($A22-1),4*(PlotControl!$C$6-1),12,1)) -> 88697.83333 | AH22: =AVERAGE(OFFSET(Cat4VFwall!$E$10,12*($A22-1),4*(PlotControl!$C$6-1),12,1)) -> 213173.25 | AI22: =AVERAGE(OFFSET(Cat1Bkf!$C$10,12*($A22-1),4*(PlotControl!$C$6-1),12,1)) -> 3381.941667 | AJ22: =AVERAGE(OFFSET(Cat1Bkf!$D$10,12*($A22-1),4*(PlotControl!$C$6-1),12,1)) -> 15585.18333 | AK22: =AVERAGE(OFFSET(Cat1Bkf!$E$10,12*($A22-1),4*(PlotControl!$C$6-1),12,1)) -> 35096.66667 | AL22: =AVERAGE(OFFSET(Cat23Bkf!$C$10,12*($A22-1),4*(PlotControl!$C$6-1),12,1)) -> 2575125 | AM22: =AVERAGE(OFFSET(Cat23Bkf!$D$10,12*($A22-1),4*(PlotControl!$C$6-1),12,1)) -> 8343108.333 | AN22: =AVERAGE(OFFSET(Cat23Bkf!$E$10,12*($A22-1),4*(PlotControl!$C$6-1),12,1)) -> 39677416.67 | AO22: =AVERAGE(OFFSET(Cat4DCBkf!$C$10,12*($A22-1),4*(PlotControl!$C$6-1),12,1)) -> 8212.841667 | AP22: =AVERAGE(OFFSET(Cat4DCBkf!$D$10,12*($A22-1),4*(PlotControl!$C$6-1),12,1)) -> 45570.83333 | AQ22: =AVERAGE(OFFSET(Cat4DCBkf!$E$10,12*($A22-1),4*(PlotControl!$C$6-1),12,1)) -> 197426.6667 | AR22: =AVERAGE(OFFSET(Cat4VFBkf!$C$10,12*($A22-1),4*(PlotControl!$C$6-1),12,1)) -> 0.01045955583 | AS22: =AVERAGE(OFFSET(Cat4VFBkf!$D$10,12*($A22-1),4*(PlotControl!$C$6-1),12,1)) -> 0.08041216667 | AT22: =AVERAGE(OFFSET(Cat4VFBkf!$E$10,12*($A22-1),4*(PlotControl!$C$6-1),12,1)) -> 0.2041498333
A23: 19 | B23: =AVERAGE(OFFSET(Total!$C$10,12*($A23-1),4*(PlotControl!$C$6-1),12,1)) -> 1806875 | C23: =AVERAGE(OFFSET(Total!$D$10,12*($A23-1),4*(PlotControl!$C$6-1),12,1)) -> 5687591.667 | D23: =AVERAGE(OFFSET(Total!$E$10,12*($A23-1),4*(PlotControl!$C$6-1),12,1)) -> 27622666.67 | E23: =AVERAGE(OFFSET(RO!$C$10,12*($A23-1),4*(PlotControl!$C$6-1),12,1)) -> 0 | F23: =AVERAGE(OFFSET(RO!$D$10,12*($A23-1),4*(PlotControl!$C$6-1),12,1)) -> 0 | G23: =AVERAGE(OFFSET(RO!$E$10,12*($A23-1),4*(PlotControl!$C$6-1),12,1)) -> 0 | H23: =AVERAGE(OFFSET(GW!$C$10,12*($A23-1),4*(PlotControl!$C$6-1),12,1)) -> 10519.875 | I23: =AVERAGE(OFFSET(GW!$D$10,12*($A23-1),4*(PlotControl!$C$6-1),12,1)) -> 13150.16667 | J23: =AVERAGE(OFFSET(GW!$E$10,12*($A23-1),4*(PlotControl!$C$6-1),12,1)) -> 19163.25 | K23: =AVERAGE(OFFSET(CPS!$C$10,12*($A23-1),4*(PlotControl!$C$6-1),12,1)) -> 95909.41667 | L23: =AVERAGE(OFFSET(CPS!$D$10,12*($A23-1),4*(PlotControl!$C$6-1),12,1)) -> 163071.6667 | M23: =AVERAGE(OFFSET(CPS!$E$10,12*($A23-1),4*(PlotControl!$C$6-1),12,1)) -> 286134.1667 | N23: =AVERAGE(OFFSET(Blast!$C$10,12*($A23-1),4*(PlotControl!$C$6-1),12,1)) -> 0 | O23: =AVERAGE(OFFSET(Blast!$D$10,12*($A23-1),4*(PlotControl!$C$6-1),12,1)) -> 0 | P23: =AVERAGE(OFFSET(Blast!$E$10,12*($A23-1),4*(PlotControl!$C$6-1),12,1)) -> 0 | Q23: =AVERAGE(OFFSET(Cat1SP_leak!$C$10,12*($A23-1),4*(PlotControl!$C$6-1),12,1)) -> 498.3675 | R23: =AVERAGE(OFFSET(Cat1SP_leak!$D$10,12*($A23-1),4*(PlotControl!$C$6-1),12,1)) -> 1146.46 | S23: =AVERAGE(OFFSET(Cat1SP_leak!$E$10,12*($A23-1),4*(PlotControl!$C$6-1),12,1)) -> 2515.275 | T23: =AVERAGE(OFFSET(Cat1wall!$C$10,12*($A23-1),4*(PlotControl!$C$6-1),12,1)) -> 479.9108333 | U23: =AVERAGE(OFFSET(Cat1wall!$D$10,12*($A23-1),4*(PlotControl!$C$6-1),12,1)) -> 1001.0925 | V23: =AVERAGE(OFFSET(Cat1wall!$E$10,12*($A23-1),4*(PlotControl!$C$6-1),12,1)) -> 1907.308333 | W23: =AVERAGE(OFFSET(Cat23wall!$C$10,12*($A23-1),4*(PlotControl!$C$6-1),12,1)) -> 994.3866667 | X23: =AVERAGE(OFFSET(Cat23wall!$D$10,12*($A23-1),4*(PlotControl!$C$6-1),12,1)) -> 2147.283333 | Y23: =AVERAGE(OFFSET(Cat23wall!$E$10,12*($A23-1),4*(PlotControl!$C$6-1),12,1)) -> 4269.65 | Z23: =AVERAGE(OFFSET(Cat4DCwall!$C$10,12*($A23-1),4*(PlotControl!$C$6-1),12,1)) -> 96.12975 | AA23: =AVERAGE(OFFSET(Cat4DCwall!$D$10,12*($A23-1),4*(PlotControl!$C$6-1),12,1)) -> 289.8658333 | AB23: =AVERAGE(OFFSET(Cat4DCwall!$E$10,12*($A23-1),4*(PlotControl!$C$6-1),12,1)) -> 963.2175 | AC23: =AVERAGE(OFFSET(Orewall!$C$10,12*($A23-1),4*(PlotControl!$C$6-1),12,1)) -> 2859.116667 | AD23: =AVERAGE(OFFSET(Orewall!$D$10,12*($A23-1),4*(PlotControl!$C$6-1),12,1)) -> 6063.441667 | AE23: =AVERAGE(OFFSET(Orewall!$E$10,12*($A23-1),4*(PlotControl!$C$6-1),12,1)) -> 11835.94167 | AF23: =AVERAGE(OFFSET(Cat4VFwall!$C$10,12*($A23-1),4*(PlotControl!$C$6-1),12,1)) -> 24574.66667 | AG23: =AVERAGE(OFFSET(Cat4VFwall!$D$10,12*($A23-1),4*(PlotControl!$C$6-1),12,1)) -> 50371.25 | AH23: =AVERAGE(OFFSET(Cat4VFwall!$E$10,12*($A23-1),4*(PlotControl!$C$6-1),12,1)) -> 98344.91667 | AI23: =AVERAGE(OFFSET(Cat1Bkf!$C$10,12*($A23-1),4*(PlotControl!$C$6-1),12,1)) -> 2064.766667 | AJ23: =AVERAGE(OFFSET(Cat1Bkf!$D$10,12*($A23-1),4*(PlotControl!$C$6-1),12,1)) -> 3797.566667 | AK23: =AVERAGE(OFFSET(Cat1Bkf!$E$10,12*($A23-1),4*(PlotControl!$C$6-1),12,1)) -> 9917.35 | AL23: =AVERAGE(OFFSET(Cat23Bkf!$C$10,12*($A23-1),4*(PlotControl!$C$6-1),12,1)) -> 1552025 | AM23: =AVERAGE(OFFSET(Cat23Bkf!$D$10,12*($A23-1),4*(PlotControl!$C$6-1),12,1)) -> 5386900 | AN23: =AVERAGE(OFFSET(Cat23Bkf!$E$10,12*($A23-1),4*(PlotControl!$C$6-1),12,1)) -> 27296083.33 | AO23: =AVERAGE(OFFSET(Cat4DCBkf!$C$10,12*($A23-1),4*(PlotControl!$C$6-1),12,1)) -> 2739.208333 | AP23: =AVERAGE(OFFSET(Cat4DCBkf!$D$10,12*($A23-1),4*(PlotControl!$C$6-1),12,1)) -> 8152.516667 | AQ23: =AVERAGE(OFFSET(Cat4DCBkf!$E$10,12*($A23-1),4*(PlotControl!$C$6-1),12,1)) -> 36953 | AR23: =AVERAGE(OFFSET(Cat4VFBkf!$C$10,12*($A23-1),4*(PlotControl!$C$6-1),12,1)) -> 8.0039325e-05 | AS23: =AVERAGE(OFFSET(Cat4VFBkf!$D$10,12*($A23-1),4*(PlotControl!$C$6-1),12,1)) -> 0.002087416667 | AT23: =AVERAGE(OFFSET(Cat4VFBkf!$E$10,12*($A23-1),4*(PlotControl!$C$6-1),12,1)) -> 0.023464275
A24: 20 | B24: =AVERAGE(OFFSET(Total!$C$10,12*($A24-1),4*(PlotControl!$C$6-1),12,1)) -> 588100.8333 | C24: =AVERAGE(OFFSET(Total!$D$10,12*($A24-1),4*(PlotControl!$C$6-1),12,1)) -> 1487823.333 | D24: =AVERAGE(OFFSET(Total!$E$10,12*($A24-1),4*(PlotControl!$C$6-1),12,1)) -> 6370900 | E24: =AVERAGE(OFFSET(RO!$C$10,12*($A24-1),4*(PlotControl!$C$6-1),12,1)) -> 0 | F24: =AVERAGE(OFFSET(RO!$D$10,12*($A24-1),4*(PlotControl!$C$6-1),12,1)) -> 0 | G24: =AVERAGE(OFFSET(RO!$E$10,12*($A24-1),4*(PlotControl!$C$6-1),12,1)) -> 0 | H24: =AVERAGE(OFFSET(GW!$C$10,12*($A24-1),4*(PlotControl!$C$6-1),12,1)) -> 6010.241667 | I24: =AVERAGE(OFFSET(GW!$D$10,12*($A24-1),4*(PlotControl!$C$6-1),12,1)) -> 7466.45 | J24: =AVERAGE(OFFSET(GW!$E$10,12*($A24-1),4*(PlotControl!$C$6-1),12,1)) -> 10956.29167 | K24: =AVERAGE(OFFSET(CPS!$C$10,12*($A24-1),4*(PlotControl!$C$6-1),12,1)) -> 119193.4167 | L24: =AVERAGE(OFFSET(CPS!$D$10,12*($A24-1),4*(PlotControl!$C$6-1),12,1)) -> 161246.1667 | M24: =AVERAGE(OFFSET(CPS!$E$10,12*($A24-1),4*(PlotControl!$C$6-1),12,1)) -> 213803.4167 | N24: =AVERAGE(OFFSET(Blast!$C$10,12*($A24-1),4*(PlotControl!$C$6-1),12,1)) -> 0 | O24: =AVERAGE(OFFSET(Blast!$D$10,12*($A24-1),4*(PlotControl!$C$6-1),12,1)) -> 0 | P24: =AVERAGE(OFFSET(Blast!$E$10,12*($A24-1),4*(PlotControl!$C$6-1),12,1)) -> 0 | Q24: =AVERAGE(OFFSET(Cat1SP_leak!$C$10,12*($A24-1),4*(PlotControl!$C$6-1),12,1)) -> 195.46375 | R24: =AVERAGE(OFFSET(Cat1SP_leak!$D$10,12*($A24-1),4*(PlotControl!$C$6-1),12,1)) -> 448.7075 | S24: =AVERAGE(OFFSET(Cat1SP_leak!$E$10,12*($A24-1),4*(PlotControl!$C$6-1),12,1)) -> 921.3758333 | T24: =AVERAGE(OFFSET(Cat1wall!$C$10,12*($A24-1),4*(PlotControl!$C$6-1),12,1)) -> 389.6016667 | U24: =AVERAGE(OFFSET(Cat1wall!$D$10,12*($A24-1),4*(PlotControl!$C$6-1),12,1)) -> 842.3675 | V24: =AVERAGE(OFFSET(Cat1wall!$E$10,12*($A24-1),4*(PlotControl!$C$6-1),12,1)) -> 1581.021667 | W24: =AVERAGE(OFFSET(Cat23wall!$C$10,12*($A24-1),4*(PlotControl!$C$6-1),12,1)) -> 619.9058333 | X24: =AVERAGE(OFFSET(Cat23wall!$D$10,12*($A24-1),4*(PlotControl!$C$6-1),12,1)) -> 1353.039167 | Y24: =AVERAGE(OFFSET(Cat23wall!$E$10,12*($A24-1),4*(PlotControl!$C$6-1),12,1)) -> 2554.283333 | Z24: =AVERAGE(OFFSET(Cat4DCwall!$C$10,12*($A24-1),4*(PlotControl!$C$6-1),12,1)) -> 62.28108333 | AA24: =AVERAGE(OFFSET(Cat4DCwall!$D$10,12*($A24-1),4*(PlotControl!$C$6-1),12,1)) -> 185.3921667 | AB24: =AVERAGE(OFFSET(Cat4DCwall!$E$10,12*($A24-1),4*(PlotControl!$C$6-1),12,1)) -> 587.6506667 | AC24: =AVERAGE(OFFSET(Orewall!$C$10,12*($A24-1),4*(PlotControl!$C$6-1),12,1)) -> 2849.458333 | AD24: =AVERAGE(OFFSET(Orewall!$D$10,12*($A24-1),4*(PlotControl!$C$6-1),12,1)) -> 6237.783333 | AE24: =AVERAGE(OFFSET(Orewall!$E$10,12*($A24-1),4*(PlotControl!$C$6-1),12,1)) -> 11954.88333 | AF24: =AVERAGE(OFFSET(Cat4VFwall!$C$10,12*($A24-1),4*(PlotControl!$C$6-1),12,1)) -> 18062.16667 | AG24: =AVERAGE(OFFSET(Cat4VFwall!$D$10,12*($A24-1),4*(PlotControl!$C$6-1),12,1)) -> 37368.75 | AH24: =AVERAGE(OFFSET(Cat4VFwall!$E$10,12*($A24-1),4*(PlotControl!$C$6-1),12,1)) -> 71891.33333 | AI24: =AVERAGE(OFFSET(Cat1Bkf!$C$10,12*($A24-1),4*(PlotControl!$C$6-1),12,1)) -> 2425.608333 | AJ24: =AVERAGE(OFFSET(Cat1Bkf!$D$10,12*($A24-1),4*(PlotControl!$C$6-1),12,1)) -> 4155.316667 | AK24: =AVERAGE(OFFSET(Cat1Bkf!$E$10,12*($A24-1),4*(PlotControl!$C$6-1),12,1)) -> 6943.433333 | AL24: =AVERAGE(OFFSET(Cat23Bkf!$C$10,12*($A24-1),4*(PlotControl!$C$6-1),12,1)) -> 384455.0833 | AM24: =AVERAGE(OFFSET(Cat23Bkf!$D$10,12*($A24-1),4*(PlotControl!$C$6-1),12,1)) -> 1244250 | AN24: =AVERAGE(OFFSET(Cat23Bkf!$E$10,12*($A24-1),4*(PlotControl!$C$6-1),12,1)) -> 6128249.167 | AO24: =AVERAGE(OFFSET(Cat4DCBkf!$C$10,12*($A24-1),4*(PlotControl!$C$6-1),12,1)) -> 2711.483333 | AP24: =AVERAGE(OFFSET(Cat4DCBkf!$D$10,12*($A24-1),4*(PlotControl!$C$6-1),12,1)) -> 6997.1 | AQ24: =AVERAGE(OFFSET(Cat4DCBkf!$E$10,12*($A24-1),4*(PlotControl!$C$6-1),12,1)) -> 20183.83333 | AR24: =AVERAGE(OFFSET(Cat4VFBkf!$C$10,12*($A24-1),4*(PlotControl!$C$6-1),12,1)) -> 6.610176667e-07 | AS24: =AVERAGE(OFFSET(Cat4VFBkf!$D$10,12*($A24-1),4*(PlotControl!$C$6-1),12,1)) -> 2.361071667e-05 | AT24: =AVERAGE(OFFSET(Cat4VFBkf!$E$10,12*($A24-1),4*(PlotControl!$C$6-1),12,1)) -> 0.0006703175833
A25: 21 | B25: =AVERAGE(OFFSET(Total!$C$10,12*($A25-1),4*(PlotControl!$C$6-1),12,1)) -> 201333.0583 | C25: =AVERAGE(OFFSET(Total!$D$10,12*($A25-1),4*(PlotControl!$C$6-1),12,1)) -> 300308.6833 | D25: =AVERAGE(OFFSET(Total!$E$10,12*($A25-1),4*(PlotControl!$C$6-1),12,1)) -> 705443.9167 | E25: =AVERAGE(OFFSET(RO!$C$10,12*($A25-1),4*(PlotControl!$C$6-1),12,1)) -> 115.1445833 | F25: =AVERAGE(OFFSET(RO!$D$10,12*($A25-1),4*(PlotControl!$C$6-1),12,1)) -> 419.6516667 | G25: =AVERAGE(OFFSET(RO!$E$10,12*($A25-1),4*(PlotControl!$C$6-1),12,1)) -> 1451.485833 | H25: =AVERAGE(OFFSET(GW!$C$10,12*($A25-1),4*(PlotControl!$C$6-1),12,1)) -> 1687.798333 | I25: =AVERAGE(OFFSET(GW!$D$10,12*($A25-1),4*(PlotControl!$C$6-1),12,1)) -> 2153.85 | J25: =AVERAGE(OFFSET(GW!$E$10,12*($A25-1),4*(PlotControl!$C$6-1),12,1)) -> 3219.033333 | K25: =AVERAGE(OFFSET(CPS!$C$10,12*($A25-1),4*(PlotControl!$C$6-1),12,1)) -> 162412 | L25: =AVERAGE(OFFSET(CPS!$D$10,12*($A25-1),4*(PlotControl!$C$6-1),12,1)) -> 226578.1667 | M25: =AVERAGE(OFFSET(CPS!$E$10,12*($A25-1),4*(PlotControl!$C$6-1),12,1)) -> 549641.6667 | N25: =AVERAGE(OFFSET(Blast!$C$10,12*($A25-1),4*(PlotControl!$C$6-1),12,1)) -> 0 | O25: =AVERAGE(OFFSET(Blast!$D$10,12*($A25-1),4*(PlotControl!$C$6-1),12,1)) -> 0 | P25: =AVERAGE(OFFSET(Blast!$E$10,12*($A25-1),4*(PlotControl!$C$6-1),12,1)) -> 0 | Q25: =AVERAGE(OFFSET(Cat1SP_leak!$C$10,12*($A25-1),4*(PlotControl!$C$6-1),12,1)) -> 38.42614167 | R25: =AVERAGE(OFFSET(Cat1SP_leak!$D$10,12*($A25-1),4*(PlotControl!$C$6-1),12,1)) -> 82.752875 | S25: =AVERAGE(OFFSET(Cat1SP_leak!$E$10,12*($A25-1),4*(PlotControl!$C$6-1),12,1)) -> 148.32975 | T25: =AVERAGE(OFFSET(Cat1wall!$C$10,12*($A25-1),4*(PlotControl!$C$6-1),12,1)) -> 149.4715333 | U25: =AVERAGE(OFFSET(Cat1wall!$D$10,12*($A25-1),4*(PlotControl!$C$6-1),12,1)) -> 336.92525 | V25: =AVERAGE(OFFSET(Cat1wall!$E$10,12*($A25-1),4*(PlotControl!$C$6-1),12,1)) -> 773.9475 | W25: =AVERAGE(OFFSET(Cat23wall!$C$10,12*($A25-1),4*(PlotControl!$C$6-1),12,1)) -> 276.4882833 | X25: =AVERAGE(OFFSET(Cat23wall!$D$10,12*($A25-1),4*(PlotControl!$C$6-1),12,1)) -> 628.5295833 | Y25: =AVERAGE(OFFSET(Cat23wall!$E$10,12*($A25-1),4*(PlotControl!$C$6-1),12,1)) -> 1444.035 | Z25: =AVERAGE(OFFSET(Cat4DCwall!$C$10,12*($A25-1),4*(PlotControl!$C$6-1),12,1)) -> 10.8698675 | AA25: =AVERAGE(OFFSET(Cat4DCwall!$D$10,12*($A25-1),4*(PlotControl!$C$6-1),12,1)) -> 35.674975 | AB25: =AVERAGE(OFFSET(Cat4DCwall!$E$10,12*($A25-1),4*(PlotControl!$C$6-1),12,1)) -> 127.8435 | AC25: =AVERAGE(OFFSET(Orewall!$C$10,12*($A25-1),4*(PlotControl!$C$6-1),12,1)) -> 1190.3485 | AD25: =AVERAGE(OFFSET(Orewall!$D$10,12*($A25-1),4*(PlotControl!$C$6-1),12,1)) -> 2724.533333 | AE25: =AVERAGE(OFFSET(Orewall!$E$10,12*($A25-1),4*(PlotControl!$C$6-1),12,1)) -> 6225.116667 | AF25: =AVERAGE(OFFSET(Cat4VFwall!$C$10,12*($A25-1),4*(PlotControl!$C$6-1),12,1)) -> 6293.765 | AG25: =AVERAGE(OFFSET(Cat4VFwall!$D$10,12*($A25-1),4*(PlotControl!$C$6-1),12,1)) -> 13746.19833 | AH25: =AVERAGE(OFFSET(Cat4VFwall!$E$10,12*($A25-1),4*(PlotControl!$C$6-1),12,1)) -> 32175.08333 | AI25: =AVERAGE(OFFSET(Cat1Bkf!$C$10,12*($A25-1),4*(PlotControl!$C$6-1),12,1)) -> 939.8101817 | AJ25: =AVERAGE(OFFSET(Cat1Bkf!$D$10,12*($A25-1),4*(PlotControl!$C$6-1),12,1)) -> 1858.111759 | AK25: =AVERAGE(OFFSET(Cat1Bkf!$E$10,12*($A25-1),4*(PlotControl!$C$6-1),12,1)) -> 3210.214133 | AL25: =AVERAGE(OFFSET(Cat23Bkf!$C$10,12*($A25-1),4*(PlotControl!$C$6-1),12,1)) -> 12364.71667 | AM25: =AVERAGE(OFFSET(Cat23Bkf!$D$10,12*($A25-1),4*(PlotControl!$C$6-1),12,1)) -> 43371.89167 | AN25: =AVERAGE(OFFSET(Cat23Bkf!$E$10,12*($A25-1),4*(PlotControl!$C$6-1),12,1)) -> 118128.635 | AO25: =AVERAGE(OFFSET(Cat4DCBkf!$C$10,12*($A25-1),4*(PlotControl!$C$6-1),12,1)) -> 681.4941667 | AP25: =AVERAGE(OFFSET(Cat4DCBkf!$D$10,12*($A25-1),4*(PlotControl!$C$6-1),12,1)) -> 2747.246833 | AQ25: =AVERAGE(OFFSET(Cat4DCBkf!$E$10,12*($A25-1),4*(PlotControl!$C$6-1),12,1)) -> 7979.485 | AR25: =AVERAGE(OFFSET(Cat4VFBkf!$C$10,12*($A25-1),4*(PlotControl!$C$6-1),12,1)) -> 6.74925e-09 | AS25: =AVERAGE(OFFSET(Cat4VFBkf!$D$10,12*($A25-1),4*(PlotControl!$C$6-1),12,1)) -> 5.161975e-07 | AT25: =AVERAGE(OFFSET(Cat4VFBkf!$E$10,12*($A25-1),4*(PlotControl!$C$6-1),12,1)) -> 1.575483333e-05
A26: 22 | B26: =AVERAGE(OFFSET(Total!$C$10,12*($A26-1),4*(PlotControl!$C$6-1),12,1)) -> 2534.4 | C26: =AVERAGE(OFFSET(Total!$D$10,12*($A26-1),4*(PlotControl!$C$6-1),12,1)) -> 3734.233333 | D26: =AVERAGE(OFFSET(Total!$E$10,12*($A26-1),4*(PlotControl!$C$6-1),12,1)) -> 7813.675 | E26: =AVERAGE(OFFSET(RO!$C$10,12*($A26-1),4*(PlotControl!$C$6-1),12,1)) -> 116.3459167 | F26: =AVERAGE(OFFSET(RO!$D$10,12*($A26-1),4*(PlotControl!$C$6-1),12,1)) -> 419.9933333 | G26: =AVERAGE(OFFSET(RO!$E$10,12*($A26-1),4*(PlotControl!$C$6-1),12,1)) -> 1414.6125 | H26: =AVERAGE(OFFSET(GW!$C$10,12*($A26-1),4*(PlotControl!$C$6-1),12,1)) -> 1151.525 | I26: =AVERAGE(OFFSET(GW!$D$10,12*($A26-1),4*(PlotControl!$C$6-1),12,1)) -> 1423.675 | J26: =AVERAGE(OFFSET(GW!$E$10,12*($A26-1),4*(PlotControl!$C$6-1),12,1)) -> 2096.675 | K26: =AVERAGE(OFFSET(CPS!$C$10,12*($A26-1),4*(PlotControl!$C$6-1),12,1)) -> 0 | L26: =AVERAGE(OFFSET(CPS!$D$10,12*($A26-1),4*(PlotControl!$C$6-1),12,1)) -> 0 | M26: =AVERAGE(OFFSET(CPS!$E$10,12*($A26-1),4*(PlotControl!$C$6-1),12,1)) -> 0 | N26: =AVERAGE(OFFSET(Blast!$C$10,12*($A26-1),4*(PlotControl!$C$6-1),12,1)) -> 0 | O26: =AVERAGE(OFFSET(Blast!$D$10,12*($A26-1),4*(PlotControl!$C$6-1),12,1)) -> 0 | P26: =AVERAGE(OFFSET(Blast!$E$10,12*($A26-1),4*(PlotControl!$C$6-1),12,1)) -> 0 | Q26: =AVERAGE(OFFSET(Cat1SP_leak!$C$10,12*($A26-1),4*(PlotControl!$C$6-1),12,1)) -> 0.02329333333 | R26: =AVERAGE(OFFSET(Cat1SP_leak!$D$10,12*($A26-1),4*(PlotControl!$C$6-1),12,1)) -> 0.07026666667 | S26: =AVERAGE(OFFSET(Cat1SP_leak!$E$10,12*($A26-1),4*(PlotControl!$C$6-1),12,1)) -> 0.199875 | T26: =AVERAGE(OFFSET(Cat1wall!$C$10,12*($A26-1),4*(PlotControl!$C$6-1),12,1)) -> 12.55183333 | U26: =AVERAGE(OFFSET(Cat1wall!$D$10,12*($A26-1),4*(PlotControl!$C$6-1),12,1)) -> 27.56591667 | V26: =AVERAGE(OFFSET(Cat1wall!$E$10,12*($A26-1),4*(PlotControl!$C$6-1),12,1)) -> 91.94383333 | W26: =AVERAGE(OFFSET(Cat23wall!$C$10,12*($A26-1),4*(PlotControl!$C$6-1),12,1)) -> 15.79494167 | X26: =AVERAGE(OFFSET(Cat23wall!$D$10,12*($A26-1),4*(PlotControl!$C$6-1),12,1)) -> 35.89695833 | Y26: =AVERAGE(OFFSET(Cat23wall!$E$10,12*($A26-1),4*(PlotControl!$C$6-1),12,1)) -> 137.2303333 | Z26: =AVERAGE(OFFSET(Cat4DCwall!$C$10,12*($A26-1),4*(PlotControl!$C$6-1),12,1)) -> 1.454949167 | AA26: =AVERAGE(OFFSET(Cat4DCwall!$D$10,12*($A26-1),4*(PlotControl!$C$6-1),12,1)) -> 4.493991667 | AB26: =AVERAGE(OFFSET(Cat4DCwall!$E$10,12*($A26-1),4*(PlotControl!$C$6-1),12,1)) -> 20.81439167 | AC26: =AVERAGE(OFFSET(Orewall!$C$10,12*($A26-1),4*(PlotControl!$C$6-1),12,1)) -> 97.7945 | AD26: =AVERAGE(OFFSET(Orewall!$D$10,12*($A26-1),4*(PlotControl!$C$6-1),12,1)) -> 216.7618333 | AE26: =AVERAGE(OFFSET(Orewall!$E$10,12*($A26-1),4*(PlotControl!$C$6-1),12,1)) -> 752.4091667 | AF26: =AVERAGE(OFFSET(Cat4VFwall!$C$10,12*($A26-1),4*(PlotControl!$C$6-1),12,1)) -> 607.2566667 | AG26: =AVERAGE(OFFSET(Cat4VFwall!$D$10,12*($A26-1),4*(PlotControl!$C$6-1),12,1)) -> 1260.0025 | AH26: =AVERAGE(OFFSET(Cat4VFwall!$E$10,12*($A26-1),4*(PlotControl!$C$6-1),12,1)) -> 4117.963333 | AI26: =AVERAGE(OFFSET(Cat1Bkf!$C$10,12*($A26-1),4*(PlotControl!$C$6-1),12,1)) -> 2.343661545e-15 | AJ26: =AVERAGE(OFFSET(Cat1Bkf!$D$10,12*($A26-1),4*(PlotControl!$C$6-1),12,1)) -> 1.75051555e-13 | AK26: =AVERAGE(OFFSET(Cat1Bkf!$E$10,12*($A26-1),4*(PlotControl!$C$6-1),12,1)) -> 4.80960777e-13 | AL26: =AVERAGE(OFFSET(Cat23Bkf!$C$10,12*($A26-1),4*(PlotControl!$C$6-1),12,1)) -> 0 | AM26: =AVERAGE(OFFSET(Cat23Bkf!$D$10,12*($A26-1),4*(PlotControl!$C$6-1),12,1)) -> 0 | AN26: =AVERAGE(OFFSET(Cat23Bkf!$E$10,12*($A26-1),4*(PlotControl!$C$6-1),12,1)) -> 0 | AO26: =AVERAGE(OFFSET(Cat4DCBkf!$C$10,12*($A26-1),4*(PlotControl!$C$6-1),12,1)) -> 0 | AP26: =AVERAGE(OFFSET(Cat4DCBkf!$D$10,12*($A26-1),4*(PlotControl!$C$6-1),12,1)) -> 0 | AQ26: =AVERAGE(OFFSET(Cat4DCBkf!$E$10,12*($A26-1),4*(PlotControl!$C$6-1),12,1)) -> 0 | AR26: =AVERAGE(OFFSET(Cat4VFBkf!$C$10,12*($A26-1),4*(PlotControl!$C$6-1),12,1)) -> 0 | AS26: =AVERAGE(OFFSET(Cat4VFBkf!$D$10,12*($A26-1),4*(PlotControl!$C$6-1),12,1)) -> 0 | AT26: =AVERAGE(OFFSET(Cat4VFBkf!$E$10,12*($A26-1),4*(PlotControl!$C$6-1),12,1)) -> 0
A27: 23 | B27: =AVERAGE(OFFSET(Total!$C$10,12*($A27-1),4*(PlotControl!$C$6-1),12,1)) -> 2322.441667 | C27: =AVERAGE(OFFSET(Total!$D$10,12*($A27-1),4*(PlotControl!$C$6-1),12,1)) -> 3458.55 | D27: =AVERAGE(OFFSET(Total!$E$10,12*($A27-1),4*(PlotControl!$C$6-1),12,1)) -> 5389.266667 | E27: =AVERAGE(OFFSET(RO!$C$10,12*($A27-1),4*(PlotControl!$C$6-1),12,1)) -> 123.48325 | F27: =AVERAGE(OFFSET(RO!$D$10,12*($A27-1),4*(PlotControl!$C$6-1),12,1)) -> 441.7366667 | G27: =AVERAGE(OFFSET(RO!$E$10,12*($A27-1),4*(PlotControl!$C$6-1),12,1)) -> 1465.106667 | H27: =AVERAGE(OFFSET(GW!$C$10,12*($A27-1),4*(PlotControl!$C$6-1),12,1)) -> 1045.044167 | I27: =AVERAGE(OFFSET(GW!$D$10,12*($A27-1),4*(PlotControl!$C$6-1),12,1)) -> 1310.016667 | J27: =AVERAGE(OFFSET(GW!$E$10,12*($A27-1),4*(PlotControl!$C$6-1),12,1)) -> 1893.608333 | K27: =AVERAGE(OFFSET(CPS!$C$10,12*($A27-1),4*(PlotControl!$C$6-1),12,1)) -> 0 | L27: =AVERAGE(OFFSET(CPS!$D$10,12*($A27-1),4*(PlotControl!$C$6-1),12,1)) -> 0 | M27: =AVERAGE(OFFSET(CPS!$E$10,12*($A27-1),4*(PlotControl!$C$6-1),12,1)) -> 0 | N27: =AVERAGE(OFFSET(Blast!$C$10,12*($A27-1),4*(PlotControl!$C$6-1),12,1)) -> 0 | O27: =AVERAGE(OFFSET(Blast!$D$10,12*($A27-1),4*(PlotControl!$C$6-1),12,1)) -> 0 | P27: =AVERAGE(OFFSET(Blast!$E$10,12*($A27-1),4*(PlotControl!$C$6-1),12,1)) -> 0 | Q27: =AVERAGE(OFFSET(Cat1SP_leak!$C$10,12*($A27-1),4*(PlotControl!$C$6-1),12,1)) -> 0 | R27: =AVERAGE(OFFSET(Cat1SP_leak!$D$10,12*($A27-1),4*(PlotControl!$C$6-1),12,1)) -> 0 | S27: =AVERAGE(OFFSET(Cat1SP_leak!$E$10,12*($A27-1),4*(PlotControl!$C$6-1),12,1)) -> 0 | T27: =AVERAGE(OFFSET(Cat1wall!$C$10,12*($A27-1),4*(PlotControl!$C$6-1),12,1)) -> 10.38286667 | U27: =AVERAGE(OFFSET(Cat1wall!$D$10,12*($A27-1),4*(PlotControl!$C$6-1),12,1)) -> 24.57341667 | V27: =AVERAGE(OFFSET(Cat1wall!$E$10,12*($A27-1),4*(PlotControl!$C$6-1),12,1)) -> 47.134 | W27: =AVERAGE(OFFSET(Cat23wall!$C$10,12*($A27-1),4*(PlotControl!$C$6-1),12,1)) -> 12.03318333 | X27: =AVERAGE(OFFSET(Cat23wall!$D$10,12*($A27-1),4*(PlotControl!$C$6-1),12,1)) -> 30.73356667 | Y27: =AVERAGE(OFFSET(Cat23wall!$E$10,12*($A27-1),4*(PlotControl!$C$6-1),12,1)) -> 70.63083333 | Z27: =AVERAGE(OFFSET(Cat4DCwall!$C$10,12*($A27-1),4*(PlotControl!$C$6-1),12,1)) -> 1.3054625 | AA27: =AVERAGE(OFFSET(Cat4DCwall!$D$10,12*($A27-1),4*(PlotControl!$C$6-1),12,1)) -> 4.3419 | AB27: =AVERAGE(OFFSET(Cat4DCwall!$E$10,12*($A27-1),4*(PlotControl!$C$6-1),12,1)) -> 14.72929167 | AC27: =AVERAGE(OFFSET(Orewall!$C$10,12*($A27-1),4*(PlotControl!$C$6-1),12,1)) -> 80.46433333 | AD27: =AVERAGE(OFFSET(Orewall!$D$10,12*($A27-1),4*(PlotControl!$C$6-1),12,1)) -> 196.2479167 | AE27: =AVERAGE(OFFSET(Orewall!$E$10,12*($A27-1),4*(PlotControl!$C$6-1),12,1)) -> 446.5891667 | AF27: =AVERAGE(OFFSET(Cat4VFwall!$C$10,12*($A27-1),4*(PlotControl!$C$6-1),12,1)) -> 503.3416667 | AG27: =AVERAGE(OFFSET(Cat4VFwall!$D$10,12*($A27-1),4*(PlotControl!$C$6-1),12,1)) -> 1148.149167 | AH27: =AVERAGE(OFFSET(Cat4VFwall!$E$10,12*($A27-1),4*(PlotControl!$C$6-1),12,1)) -> 2197.049167 | AI27: =AVERAGE(OFFSET(Cat1Bkf!$C$10,12*($A27-1),4*(PlotControl!$C$6-1),12,1)) -> 0 | AJ27: =AVERAGE(OFFSET(Cat1Bkf!$D$10,12*($A27-1),4*(PlotControl!$C$6-1),12,1)) -> 0 | AK27: =AVERAGE(OFFSET(Cat1Bkf!$E$10,12*($A27-1),4*(PlotControl!$C$6-1),12,1)) -> 0 | AL27: =AVERAGE(OFFSET(Cat23Bkf!$C$10,12*($A27-1),4*(PlotControl!$C$6-1),12,1)) -> 0 | AM27: =AVERAGE(OFFSET(Cat23Bkf!$D$10,12*($A27-1),4*(PlotControl!$C$6-1),12,1)) -> 0 | AN27: =AVERAGE(OFFSET(Cat23Bkf!$E$10,12*($A27-1),4*(PlotControl!$C$6-1),12,1)) -> 0 | AO27: =AVERAGE(OFFSET(Cat4DCBkf!$C$10,12*($A27-1),4*(PlotControl!$C$6-1),12,1)) -> 0 | AP27: =AVERAGE(OFFSET(Cat4DCBkf!$D$10,12*($A27-1),4*(PlotControl!$C$6-1),12,1)) -> 0 | AQ27: =AVERAGE(OFFSET(Cat4DCBkf!$E$10,12*($A27-1),4*(PlotControl!$C$6-1),12,1)) -> 0 | AR27: =AVERAGE(OFFSET(Cat4VFBkf!$C$10,12*($A27-1),4*(PlotControl!$C$6-1),12,1)) -> 0 | AS27: =AVERAGE(OFFSET(Cat4VFBkf!$D$10,12*($A27-1),4*(PlotControl!$C$6-1),12,1)) -> 0 | AT27: =AVERAGE(OFFSET(Cat4VFBkf!$E$10,12*($A27-1),4*(PlotControl!$C$6-1),12,1)) -> 0
A28: 24 | B28: =AVERAGE(OFFSET(Total!$C$10,12*($A28-1),4*(PlotControl!$C$6-1),12,1)) -> 2178.641667 | C28: =AVERAGE(OFFSET(Total!$D$10,12*($A28-1),4*(PlotControl!$C$6-1),12,1)) -> 3195.133333 | D28: =AVERAGE(OFFSET(Total!$E$10,12*($A28-1),4*(PlotControl!$C$6-1),12,1)) -> 5009.233333 | E28: =AVERAGE(OFFSET(RO!$C$10,12*($A28-1),4*(PlotControl!$C$6-1),12,1)) -> 117.0770833 | F28: =AVERAGE(OFFSET(RO!$D$10,12*($A28-1),4*(PlotControl!$C$6-1),12,1)) -> 416.4775 | G28: =AVERAGE(OFFSET(RO!$E$10,12*($A28-1),4*(PlotControl!$C$6-1),12,1)) -> 1411.269167 | H28: =AVERAGE(OFFSET(GW!$C$10,12*($A28-1),4*(PlotControl!$C$6-1),12,1)) -> 987.4608333 | I28: =AVERAGE(OFFSET(GW!$D$10,12*($A28-1),4*(PlotControl!$C$6-1),12,1)) -> 1242.008333 | J28: =AVERAGE(OFFSET(GW!$E$10,12*($A28-1),4*(PlotControl!$C$6-1),12,1)) -> 1780.925 | K28: =AVERAGE(OFFSET(CPS!$C$10,12*($A28-1),4*(PlotControl!$C$6-1),12,1)) -> 0 | L28: =AVERAGE(OFFSET(CPS!$D$10,12*($A28-1),4*(PlotControl!$C$6-1),12,1)) -> 0 | M28: =AVERAGE(OFFSET(CPS!$E$10,12*($A28-1),4*(PlotControl!$C$6-1),12,1)) -> 0 | N28: =AVERAGE(OFFSET(Blast!$C$10,12*($A28-1),4*(PlotControl!$C$6-1),12,1)) -> 0 | O28: =AVERAGE(OFFSET(Blast!$D$10,12*($A28-1),4*(PlotControl!$C$6-1),12,1)) -> 0 | P28: =AVERAGE(OFFSET(Blast!$E$10,12*($A28-1),4*(PlotControl!$C$6-1),12,1)) -> 0 | Q28: =AVERAGE(OFFSET(Cat1SP_leak!$C$10,12*($A28-1),4*(PlotControl!$C$6-1),12,1)) -> 0 | R28: =AVERAGE(OFFSET(Cat1SP_leak!$D$10,12*($A28-1),4*(PlotControl!$C$6-1),12,1)) -> 0 | S28: =AVERAGE(OFFSET(Cat1SP_leak!$E$10,12*($A28-1),4*(PlotControl!$C$6-1),12,1)) -> 0 | T28: =AVERAGE(OFFSET(Cat1wall!$C$10,12*($A28-1),4*(PlotControl!$C$6-1),12,1)) -> 9.380275 | U28: =AVERAGE(OFFSET(Cat1wall!$D$10,12*($A28-1),4*(PlotControl!$C$6-1),12,1)) -> 21.1509 | V28: =AVERAGE(OFFSET(Cat1wall!$E$10,12*($A28-1),4*(PlotControl!$C$6-1),12,1)) -> 41.82358333 | W28: =AVERAGE(OFFSET(Cat23wall!$C$10,12*($A28-1),4*(PlotControl!$C$6-1),12,1)) -> 10.57328333 | X28: =AVERAGE(OFFSET(Cat23wall!$D$10,12*($A28-1),4*(PlotControl!$C$6-1),12,1)) -> 26.42288333 | Y28: =AVERAGE(OFFSET(Cat23wall!$E$10,12*($A28-1),4*(PlotControl!$C$6-1),12,1)) -> 83.41025 | Z28: =AVERAGE(OFFSET(Cat4DCwall!$C$10,12*($A28-1),4*(PlotControl!$C$6-1),12,1)) -> 1.2051775 | AA28: =AVERAGE(OFFSET(Cat4DCwall!$D$10,12*($A28-1),4*(PlotControl!$C$6-1),12,1)) -> 4.267983333 | AB28: =AVERAGE(OFFSET(Cat4DCwall!$E$10,12*($A28-1),4*(PlotControl!$C$6-1),12,1)) -> 14.31263333 | AC28: =AVERAGE(OFFSET(Orewall!$C$10,12*($A28-1),4*(PlotControl!$C$6-1),12,1)) -> 72.40183333 | AD28: =AVERAGE(OFFSET(Orewall!$D$10,12*($A28-1),4*(PlotControl!$C$6-1),12,1)) -> 175.6810833 | AE28: =AVERAGE(OFFSET(Orewall!$E$10,12*($A28-1),4*(PlotControl!$C$6-1),12,1)) -> 440.72 | AF28: =AVERAGE(OFFSET(Cat4VFwall!$C$10,12*($A28-1),4*(PlotControl!$C$6-1),12,1)) -> 457.2283333 | AG28: =AVERAGE(OFFSET(Cat4VFwall!$D$10,12*($A28-1),4*(PlotControl!$C$6-1),12,1)) -> 1015.4525 | AH28: =AVERAGE(OFFSET(Cat4VFwall!$E$10,12*($A28-1),4*(PlotControl!$C$6-1),12,1)) -> 1949.01 | AI28: =AVERAGE(OFFSET(Cat1Bkf!$C$10,12*($A28-1),4*(PlotControl!$C$6-1),12,1)) -> 0 | AJ28: =AVERAGE(OFFSET(Cat1Bkf!$D$10,12*($A28-1),4*(PlotControl!$C$6-1),12,1)) -> 0 | AK28: =AVERAGE(OFFSET(Cat1Bkf!$E$10,12*($A28-1),4*(PlotControl!$C$6-1),12,1)) -> 0 | AL28: =AVERAGE(OFFSET(Cat23Bkf!$C$10,12*($A28-1),4*(PlotControl!$C$6-1),12,1)) -> 0 | AM28: =AVERAGE(OFFSET(Cat23Bkf!$D$10,12*($A28-1),4*(PlotControl!$C$6-1),12,1)) -> 0 | AN28: =AVERAGE(OFFSET(Cat23Bkf!$E$10,12*($A28-1),4*(PlotControl!$C$6-1),12,1)) -> 0 | AO28: =AVERAGE(OFFSET(Cat4DCBkf!$C$10,12*($A28-1),4*(PlotControl!$C$6-1),12,1)) -> 0 | AP28: =AVERAGE(OFFSET(Cat4DCBkf!$D$10,12*($A28-1),4*(PlotControl!$C$6-1),12,1)) -> 0 | AQ28: =AVERAGE(OFFSET(Cat4DCBkf!$E$10,12*($A28-1),4*(PlotControl!$C$6-1),12,1)) -> 0 | AR28: =AVERAGE(OFFSET(Cat4VFBkf!$C$10,12*($A28-1),4*(PlotControl!$C$6-1),12,1)) -> 0 | AS28: =AVERAGE(OFFSET(Cat4VFBkf!$D$10,12*($A28-1),4*(PlotControl!$C$6-1),12,1)) -> 0 | AT28: =AVERAGE(OFFSET(Cat4VFBkf!$E$10,12*($A28-1),4*(PlotControl!$C$6-1),12,1)) -> 0
A29: 25 | B29: =AVERAGE(OFFSET(Total!$C$10,12*($A29-1),4*(PlotControl!$C$6-1),12,1)) -> 2057.45 | C29: =AVERAGE(OFFSET(Total!$D$10,12*($A29-1),4*(PlotControl!$C$6-1),12,1)) -> 3032.55 | D29: =AVERAGE(OFFSET(Total!$E$10,12*($A29-1),4*(PlotControl!$C$6-1),12,1)) -> 4659.316667 | E29: =AVERAGE(OFFSET(RO!$C$10,12*($A29-1),4*(PlotControl!$C$6-1),12,1)) -> 114.1664167 | F29: =AVERAGE(OFFSET(RO!$D$10,12*($A29-1),4*(PlotControl!$C$6-1),12,1)) -> 405.5033333 | G29: =AVERAGE(OFFSET(RO!$E$10,12*($A29-1),4*(PlotControl!$C$6-1),12,1)) -> 1374.8675 | H29: =AVERAGE(OFFSET(GW!$C$10,12*($A29-1),4*(PlotControl!$C$6-1),12,1)) -> 969.7283333 | I29: =AVERAGE(OFFSET(GW!$D$10,12*($A29-1),4*(PlotControl!$C$6-1),12,1)) -> 1212.583333 | J29: =AVERAGE(OFFSET(GW!$E$10,12*($A29-1),4*(PlotControl!$C$6-1),12,1)) -> 1747.9 | K29: =AVERAGE(OFFSET(CPS!$C$10,12*($A29-1),4*(PlotControl!$C$6-1),12,1)) -> 0 | L29: =AVERAGE(OFFSET(CPS!$D$10,12*($A29-1),4*(PlotControl!$C$6-1),12,1)) -> 0 | M29: =AVERAGE(OFFSET(CPS!$E$10,12*($A29-1),4*(PlotControl!$C$6-1),12,1)) -> 0 | N29: =AVERAGE(OFFSET(Blast!$C$10,12*($A29-1),4*(PlotControl!$C$6-1),12,1)) -> 0 | O29: =AVERAGE(OFFSET(Blast!$D$10,12*($A29-1),4*(PlotControl!$C$6-1),12,1)) -> 0 | P29: =AVERAGE(OFFSET(Blast!$E$10,12*($A29-1),4*(PlotControl!$C$6-1),12,1)) -> 0 | Q29: =AVERAGE(OFFSET(Cat1SP_leak!$C$10,12*($A29-1),4*(PlotControl!$C$6-1),12,1)) -> 0 | R29: =AVERAGE(OFFSET(Cat1SP_leak!$D$10,12*($A29-1),4*(PlotControl!$C$6-1),12,1)) -> 0 | S29: =AVERAGE(OFFSET(Cat1SP_leak!$E$10,12*($A29-1),4*(PlotControl!$C$6-1),12,1)) -> 0 | T29: =AVERAGE(OFFSET(Cat1wall!$C$10,12*($A29-1),4*(PlotControl!$C$6-1),12,1)) -> 8.385658333 | U29: =AVERAGE(OFFSET(Cat1wall!$D$10,12*($A29-1),4*(PlotControl!$C$6-1),12,1)) -> 18.81389167 | V29: =AVERAGE(OFFSET(Cat1wall!$E$10,12*($A29-1),4*(PlotControl!$C$6-1),12,1)) -> 36.943 | W29: =AVERAGE(OFFSET(Cat23wall!$C$10,12*($A29-1),4*(PlotControl!$C$6-1),12,1)) -> 9.229891667 | X29: =AVERAGE(OFFSET(Cat23wall!$D$10,12*($A29-1),4*(PlotControl!$C$6-1),12,1)) -> 23.602375 | Y29: =AVERAGE(OFFSET(Cat23wall!$E$10,12*($A29-1),4*(PlotControl!$C$6-1),12,1)) -> 106.0063333 | Z29: =AVERAGE(OFFSET(Cat4DCwall!$C$10,12*($A29-1),4*(PlotControl!$C$6-1),12,1)) -> 1.192595833 | AA29: =AVERAGE(OFFSET(Cat4DCwall!$D$10,12*($A29-1),4*(PlotControl!$C$6-1),12,1)) -> 4.120516667 | AB29: =AVERAGE(OFFSET(Cat4DCwall!$E$10,12*($A29-1),4*(PlotControl!$C$6-1),12,1)) -> 12.43928333 | AC29: =AVERAGE(OFFSET(Orewall!$C$10,12*($A29-1),4*(PlotControl!$C$6-1),12,1)) -> 66.62575 | AD29: =AVERAGE(OFFSET(Orewall!$D$10,12*($A29-1),4*(PlotControl!$C$6-1),12,1)) -> 160.22925 | AE29: =AVERAGE(OFFSET(Orewall!$E$10,12*($A29-1),4*(PlotControl!$C$6-1),12,1)) -> 391.01 | AF29: =AVERAGE(OFFSET(Cat4VFwall!$C$10,12*($A29-1),4*(PlotControl!$C$6-1),12,1)) -> 415.285 | AG29: =AVERAGE(OFFSET(Cat4VFwall!$D$10,12*($A29-1),4*(PlotControl!$C$6-1),12,1)) -> 895.905 | AH29: =AVERAGE(OFFSET(Cat4VFwall!$E$10,12*($A29-1),4*(PlotControl!$C$6-1),12,1)) -> 1731.715 | AI29: =AVERAGE(OFFSET(Cat1Bkf!$C$10,12*($A29-1),4*(PlotControl!$C$6-1),12,1)) -> 0 | AJ29: =AVERAGE(OFFSET(Cat1Bkf!$D$10,12*($A29-1),4*(PlotControl!$C$6-1),12,1)) -> 0 | AK29: =AVERAGE(OFFSET(Cat1Bkf!$E$10,12*($A29-1),4*(PlotControl!$C$6-1),12,1)) -> 0 | AL29: =AVERAGE(OFFSET(Cat23Bkf!$C$10,12*($A29-1),4*(PlotControl!$C$6-1),12,1)) -> 0 | AM29: =AVERAGE(OFFSET(Cat23Bkf!$D$10,12*($A29-1),4*(PlotControl!$C$6-1),12,1)) -> 0 | AN29: =AVERAGE(OFFSET(Cat23Bkf!$E$10,12*($A29-1),4*(PlotControl!$C$6-1),12,1)) -> 0 | AO29: =AVERAGE(OFFSET(Cat4DCBkf!$C$10,12*($A29-1),4*(PlotControl!$C$6-1),12,1)) -> 0 | AP29: =AVERAGE(OFFSET(Cat4DCBkf!$D$10,12*($A29-1),4*(PlotControl!$C$6-1),12,1)) -> 0 | AQ29: =AVERAGE(OFFSET(Cat4DCBkf!$E$10,12*($A29-1),4*(PlotControl!$C$6-1),12,1)) -> 0 | AR29: =AVERAGE(OFFSET(Cat4VFBkf!$C$10,12*($A29-1),4*(PlotControl!$C$6-1),12,1)) -> 0 | AS29: =AVERAGE(OFFSET(Cat4VFBkf!$D$10,12*($A29-1),4*(PlotControl!$C$6-1),12,1)) -> 0 | AT29: =AVERAGE(OFFSET(Cat4VFBkf!$E$10,12*($A29-1),4*(PlotControl!$C$6-1),12,1)) -> 0
A30: 26 | B30: =AVERAGE(OFFSET(Total!$C$10,12*($A30-1),4*(PlotControl!$C$6-1),12,1)) -> 2037.883333 | C30: =AVERAGE(OFFSET(Total!$D$10,12*($A30-1),4*(PlotControl!$C$6-1),12,1)) -> 2917.416667 | D30: =AVERAGE(OFFSET(Total!$E$10,12*($A30-1),4*(PlotControl!$C$6-1),12,1)) -> 4433.325 | E30: =AVERAGE(OFFSET(RO!$C$10,12*($A30-1),4*(PlotControl!$C$6-1),12,1)) -> 119.30625 | F30: =AVERAGE(OFFSET(RO!$D$10,12*($A30-1),4*(PlotControl!$C$6-1),12,1)) -> 405.9425 | G30: =AVERAGE(OFFSET(RO!$E$10,12*($A30-1),4*(PlotControl!$C$6-1),12,1)) -> 1322.2875 | H30: =AVERAGE(OFFSET(GW!$C$10,12*($A30-1),4*(PlotControl!$C$6-1),12,1)) -> 962.7908333 | I30: =AVERAGE(OFFSET(GW!$D$10,12*($A30-1),4*(PlotControl!$C$6-1),12,1)) -> 1205.266667 | J30: =AVERAGE(OFFSET(GW!$E$10,12*($A30-1),4*(PlotControl!$C$6-1),12,1)) -> 1739.841667 | K30: =AVERAGE(OFFSET(CPS!$C$10,12*($A30-1),4*(PlotControl!$C$6-1),12,1)) -> 0 | L30: =AVERAGE(OFFSET(CPS!$D$10,12*($A30-1),4*(PlotControl!$C$6-1),12,1)) -> 0 | M30: =AVERAGE(OFFSET(CPS!$E$10,12*($A30-1),4*(PlotControl!$C$6-1),12,1)) -> 0 | N30: =AVERAGE(OFFSET(Blast!$C$10,12*($A30-1),4*(PlotControl!$C$6-1),12,1)) -> 0 | O30: =AVERAGE(OFFSET(Blast!$D$10,12*($A30-1),4*(PlotControl!$C$6-1),12,1)) -> 0 | P30: =AVERAGE(OFFSET(Blast!$E$10,12*($A30-1),4*(PlotControl!$C$6-1),12,1)) -> 0 | Q30: =AVERAGE(OFFSET(Cat1SP_leak!$C$10,12*($A30-1),4*(PlotControl!$C$6-1),12,1)) -> 0 | R30: =AVERAGE(OFFSET(Cat1SP_leak!$D$10,12*($A30-1),4*(PlotControl!$C$6-1),12,1)) -> 0 | S30: =AVERAGE(OFFSET(Cat1SP_leak!$E$10,12*($A30-1),4*(PlotControl!$C$6-1),12,1)) -> 0 | T30: =AVERAGE(OFFSET(Cat1wall!$C$10,12*($A30-1),4*(PlotControl!$C$6-1),12,1)) -> 7.994641667 | U30: =AVERAGE(OFFSET(Cat1wall!$D$10,12*($A30-1),4*(PlotControl!$C$6-1),12,1)) -> 17.41388333 | V30: =AVERAGE(OFFSET(Cat1wall!$E$10,12*($A30-1),4*(PlotControl!$C$6-1),12,1)) -> 33.05991667 | W30: =AVERAGE(OFFSET(Cat23wall!$C$10,12*($A30-1),4*(PlotControl!$C$6-1),12,1)) -> 8.670208333 | X30: =AVERAGE(OFFSET(Cat23wall!$D$10,12*($A30-1),4*(PlotControl!$C$6-1),12,1)) -> 21.43306667 | Y30: =AVERAGE(OFFSET(Cat23wall!$E$10,12*($A30-1),4*(PlotControl!$C$6-1),12,1)) -> 141.7775 | Z30: =AVERAGE(OFFSET(Cat4DCwall!$C$10,12*($A30-1),4*(PlotControl!$C$6-1),12,1)) -> 1.2470525 | AA30: =AVERAGE(OFFSET(Cat4DCwall!$D$10,12*($A30-1),4*(PlotControl!$C$6-1),12,1)) -> 4.079708333 | AB30: =AVERAGE(OFFSET(Cat4DCwall!$E$10,12*($A30-1),4*(PlotControl!$C$6-1),12,1)) -> 11.66678333 | AC30: =AVERAGE(OFFSET(Orewall!$C$10,12*($A30-1),4*(PlotControl!$C$6-1),12,1)) -> 64.24466667 | AD30: =AVERAGE(OFFSET(Orewall!$D$10,12*($A30-1),4*(PlotControl!$C$6-1),12,1)) -> 151.4959167 | AE30: =AVERAGE(OFFSET(Orewall!$E$10,12*($A30-1),4*(PlotControl!$C$6-1),12,1)) -> 362.315 | AF30: =AVERAGE(OFFSET(Cat4VFwall!$C$10,12*($A30-1),4*(PlotControl!$C$6-1),12,1)) -> 389.1691667 | AG30: =AVERAGE(OFFSET(Cat4VFwall!$D$10,12*($A30-1),4*(PlotControl!$C$6-1),12,1)) -> 827.0791667 | AH30: =AVERAGE(OFFSET(Cat4VFwall!$E$10,12*($A30-1),4*(PlotControl!$C$6-1),12,1)) -> 1590.410833 | AI30: =AVERAGE(OFFSET(Cat1Bkf!$C$10,12*($A30-1),4*(PlotControl!$C$6-1),12,1)) -> 0 | AJ30: =AVERAGE(OFFSET(Cat1Bkf!$D$10,12*($A30-1),4*(PlotControl!$C$6-1),12,1)) -> 0 | AK30: =AVERAGE(OFFSET(Cat1Bkf!$E$10,12*($A30-1),4*(PlotControl!$C$6-1),12,1)) -> 0 | AL30: =AVERAGE(OFFSET(Cat23Bkf!$C$10,12*($A30-1),4*(PlotControl!$C$6-1),12,1)) -> 0 | AM30: =AVERAGE(OFFSET(Cat23Bkf!$D$10,12*($A30-1),4*(PlotControl!$C$6-1),12,1)) -> 0 | AN30: =AVERAGE(OFFSET(Cat23Bkf!$E$10,12*($A30-1),4*(PlotControl!$C$6-1),12,1)) -> 0 | AO30: =AVERAGE(OFFSET(Cat4DCBkf!$C$10,12*($A30-1),4*(PlotControl!$C$6-1),12,1)) -> 0 | AP30: =AVERAGE(OFFSET(Cat4DCBkf!$D$10,12*($A30-1),4*(PlotControl!$C$6-1),12,1)) -> 0 | AQ30: =AVERAGE(OFFSET(Cat4DCBkf!$E$10,12*($A30-1),4*(PlotControl!$C$6-1),12,1)) -> 0 | AR30: =AVERAGE(OFFSET(Cat4VFBkf!$C$10,12*($A30-1),4*(PlotControl!$C$6-1),12,1)) -> 0 | AS30: =AVERAGE(OFFSET(Cat4VFBkf!$D$10,12*($A30-1),4*(PlotControl!$C$6-1),12,1)) -> 0 | AT30: =AVERAGE(OFFSET(Cat4VFBkf!$E$10,12*($A30-1),4*(PlotControl!$C$6-1),12,1)) -> 0
A31: 27 | B31: =AVERAGE(OFFSET(Total!$C$10,12*($A31-1),4*(PlotControl!$C$6-1),12,1)) -> 1979.266667 | C31: =AVERAGE(OFFSET(Total!$D$10,12*($A31-1),4*(PlotControl!$C$6-1),12,1)) -> 2880.558333 | D31: =AVERAGE(OFFSET(Total!$E$10,12*($A31-1),4*(PlotControl!$C$6-1),12,1)) -> 4395.766667 | E31: =AVERAGE(OFFSET(RO!$C$10,12*($A31-1),4*(PlotControl!$C$6-1),12,1)) -> 127.8278333 | F31: =AVERAGE(OFFSET(RO!$D$10,12*($A31-1),4*(PlotControl!$C$6-1),12,1)) -> 427.4316667 | G31: =AVERAGE(OFFSET(RO!$E$10,12*($A31-1),4*(PlotControl!$C$6-1),12,1)) -> 1377.065833 | H31: =AVERAGE(OFFSET(GW!$C$10,12*($A31-1),4*(PlotControl!$C$6-1),12,1)) -> 957.5341667 | I31: =AVERAGE(OFFSET(GW!$D$10,12*($A31-1),4*(PlotControl!$C$6-1),12,1)) -> 1189.775 | J31: =AVERAGE(OFFSET(GW!$E$10,12*($A31-1),4*(PlotControl!$C$6-1),12,1)) -> 1735.5 | K31: =AVERAGE(OFFSET(CPS!$C$10,12*($A31-1),4*(PlotControl!$C$6-1),12,1)) -> 0 | L31: =AVERAGE(OFFSET(CPS!$D$10,12*($A31-1),4*(PlotControl!$C$6-1),12,1)) -> 0 | M31: =AVERAGE(OFFSET(CPS!$E$10,12*($A31-1),4*(PlotControl!$C$6-1),12,1)) -> 0 | N31: =AVERAGE(OFFSET(Blast!$C$10,12*($A31-1),4*(PlotControl!$C$6-1),12,1)) -> 0 | O31: =AVERAGE(OFFSET(Blast!$D$10,12*($A31-1),4*(PlotControl!$C$6-1),12,1)) -> 0 | P31: =AVERAGE(OFFSET(Blast!$E$10,12*($A31-1),4*(PlotControl!$C$6-1),12,1)) -> 0 | Q31: =AVERAGE(OFFSET(Cat1SP_leak!$C$10,12*($A31-1),4*(PlotControl!$C$6-1),12,1)) -> 0 | R31: =AVERAGE(OFFSET(Cat1SP_leak!$D$10,12*($A31-1),4*(PlotControl!$C$6-1),12,1)) -> 0 | S31: =AVERAGE(OFFSET(Cat1SP_leak!$E$10,12*($A31-1),4*(PlotControl!$C$6-1),12,1)) -> 0 | T31: =AVERAGE(OFFSET(Cat1wall!$C$10,12*($A31-1),4*(PlotControl!$C$6-1),12,1)) -> 7.369458333 | U31: =AVERAGE(OFFSET(Cat1wall!$D$10,12*($A31-1),4*(PlotControl!$C$6-1),12,1)) -> 16.00001667 | V31: =AVERAGE(OFFSET(Cat1wall!$E$10,12*($A31-1),4*(PlotControl!$C$6-1),12,1)) -> 31.279 | W31: =AVERAGE(OFFSET(Cat23wall!$C$10,12*($A31-1),4*(PlotControl!$C$6-1),12,1)) -> 7.858125 | X31: =AVERAGE(OFFSET(Cat23wall!$D$10,12*($A31-1),4*(PlotControl!$C$6-1),12,1)) -> 21.27933333 | Y31: =AVERAGE(OFFSET(Cat23wall!$E$10,12*($A31-1),4*(PlotControl!$C$6-1),12,1)) -> 153.6966667 | Z31: =AVERAGE(OFFSET(Cat4DCwall!$C$10,12*($A31-1),4*(PlotControl!$C$6-1),12,1)) -> 1.267306667 | AA31: =AVERAGE(OFFSET(Cat4DCwall!$D$10,12*($A31-1),4*(PlotControl!$C$6-1),12,1)) -> 3.90775 | AB31: =AVERAGE(OFFSET(Cat4DCwall!$E$10,12*($A31-1),4*(PlotControl!$C$6-1),12,1)) -> 10.93945833 | AC31: =AVERAGE(OFFSET(Orewall!$C$10,12*($A31-1),4*(PlotControl!$C$6-1),12,1)) -> 58.51033333 | AD31: =AVERAGE(OFFSET(Orewall!$D$10,12*($A31-1),4*(PlotControl!$C$6-1),12,1)) -> 140.1133333 | AE31: =AVERAGE(OFFSET(Orewall!$E$10,12*($A31-1),4*(PlotControl!$C$6-1),12,1)) -> 343.5108333 | AF31: =AVERAGE(OFFSET(Cat4VFwall!$C$10,12*($A31-1),4*(PlotControl!$C$6-1),12,1)) -> 360.88 | AG31: =AVERAGE(OFFSET(Cat4VFwall!$D$10,12*($A31-1),4*(PlotControl!$C$6-1),12,1)) -> 771.57 | AH31: =AVERAGE(OFFSET(Cat4VFwall!$E$10,12*($A31-1),4*(PlotControl!$C$6-1),12,1)) -> 1467.924167 | AI31: =AVERAGE(OFFSET(Cat1Bkf!$C$10,12*($A31-1),4*(PlotControl!$C$6-1),12,1)) -> 0 | AJ31: =AVERAGE(OFFSET(Cat1Bkf!$D$10,12*($A31-1),4*(PlotControl!$C$6-1),12,1)) -> 0 | AK31: =AVERAGE(OFFSET(Cat1Bkf!$E$10,12*($A31-1),4*(PlotControl!$C$6-1),12,1)) -> 0 | AL31: =AVERAGE(OFFSET(Cat23Bkf!$C$10,12*($A31-1),4*(PlotControl!$C$6-1),12,1)) -> 0 | AM31: =AVERAGE(OFFSET(Cat23Bkf!$D$10,12*($A31-1),4*(PlotControl!$C$6-1),12,1)) -> 0 | AN31: =AVERAGE(OFFSET(Cat23Bkf!$E$10,12*($A31-1),4*(PlotControl!$C$6-1),12,1)) -> 0 | AO31: =AVERAGE(OFFSET(Cat4DCBkf!$C$10,12*($A31-1),4*(PlotControl!$C$6-1),12,1)) -> 0 | AP31: =AVERAGE(OFFSET(Cat4DCBkf!$D$10,12*($A31-1),4*(PlotControl!$C$6-1),12,1)) -> 0 | AQ31: =AVERAGE(OFFSET(Cat4DCBkf!$E$10,12*($A31-1),4*(PlotControl!$C$6-1),12,1)) -> 0 | AR31: =AVERAGE(OFFSET(Cat4VFBkf!$C$10,12*($A31-1),4*(PlotControl!$C$6-1),12,1)) -> 0 | AS31: =AVERAGE(OFFSET(Cat4VFBkf!$D$10,12*($A31-1),4*(PlotControl!$C$6-1),12,1)) -> 0 | AT31: =AVERAGE(OFFSET(Cat4VFBkf!$E$10,12*($A31-1),4*(PlotControl!$C$6-1),12,1)) -> 0
A32: 28 | B32: =AVERAGE(OFFSET(Total!$C$10,12*($A32-1),4*(PlotControl!$C$6-1),12,1)) -> 1979.316667 | C32: =AVERAGE(OFFSET(Total!$D$10,12*($A32-1),4*(PlotControl!$C$6-1),12,1)) -> 2818.291667 | D32: =AVERAGE(OFFSET(Total!$E$10,12*($A32-1),4*(PlotControl!$C$6-1),12,1)) -> 4294.85 | E32: =AVERAGE(OFFSET(RO!$C$10,12*($A32-1),4*(PlotControl!$C$6-1),12,1)) -> 118.4514167 | F32: =AVERAGE(OFFSET(RO!$D$10,12*($A32-1),4*(PlotControl!$C$6-1),12,1)) -> 406.915 | G32: =AVERAGE(OFFSET(RO!$E$10,12*($A32-1),4*(PlotControl!$C$6-1),12,1)) -> 1441.630833 | H32: =AVERAGE(OFFSET(GW!$C$10,12*($A32-1),4*(PlotControl!$C$6-1),12,1)) -> 954.7758333 | I32: =AVERAGE(OFFSET(GW!$D$10,12*($A32-1),4*(PlotControl!$C$6-1),12,1)) -> 1179.775 | J32: =AVERAGE(OFFSET(GW!$E$10,12*($A32-1),4*(PlotControl!$C$6-1),12,1)) -> 1733.816667 | K32: =AVERAGE(OFFSET(CPS!$C$10,12*($A32-1),4*(PlotControl!$C$6-1),12,1)) -> 0 | L32: =AVERAGE(OFFSET(CPS!$D$10,12*($A32-1),4*(PlotControl!$C$6-1),12,1)) -> 0 | M32: =AVERAGE(OFFSET(CPS!$E$10,12*($A32-1),4*(PlotControl!$C$6-1),12,1)) -> 0 | N32: =AVERAGE(OFFSET(Blast!$C$10,12*($A32-1),4*(PlotControl!$C$6-1),12,1)) -> 0 | O32: =AVERAGE(OFFSET(Blast!$D$10,12*($A32-1),4*(PlotControl!$C$6-1),12,1)) -> 0 | P32: =AVERAGE(OFFSET(Blast!$E$10,12*($A32-1),4*(PlotControl!$C$6-1),12,1)) -> 0 | Q32: =AVERAGE(OFFSET(Cat1SP_leak!$C$10,12*($A32-1),4*(PlotControl!$C$6-1),12,1)) -> 0 | R32: =AVERAGE(OFFSET(Cat1SP_leak!$D$10,12*($A32-1),4*(PlotControl!$C$6-1),12,1)) -> 0 | S32: =AVERAGE(OFFSET(Cat1SP_leak!$E$10,12*($A32-1),4*(PlotControl!$C$6-1),12,1)) -> 0 | T32: =AVERAGE(OFFSET(Cat1wall!$C$10,12*($A32-1),4*(PlotControl!$C$6-1),12,1)) -> 6.963033333 | U32: =AVERAGE(OFFSET(Cat1wall!$D$10,12*($A32-1),4*(PlotControl!$C$6-1),12,1)) -> 15.16061667 | V32: =AVERAGE(OFFSET(Cat1wall!$E$10,12*($A32-1),4*(PlotControl!$C$6-1),12,1)) -> 28.84708333 | W32: =AVERAGE(OFFSET(Cat23wall!$C$10,12*($A32-1),4*(PlotControl!$C$6-1),12,1)) -> 7.541691667 | X32: =AVERAGE(OFFSET(Cat23wall!$D$10,12*($A32-1),4*(PlotControl!$C$6-1),12,1)) -> 21.78716667 | Y32: =AVERAGE(OFFSET(Cat23wall!$E$10,12*($A32-1),4*(PlotControl!$C$6-1),12,1)) -> 153.3916667 | Z32: =AVERAGE(OFFSET(Cat4DCwall!$C$10,12*($A32-1),4*(PlotControl!$C$6-1),12,1)) -> 1.216149167 | AA32: =AVERAGE(OFFSET(Cat4DCwall!$D$10,12*($A32-1),4*(PlotControl!$C$6-1),12,1)) -> 3.777608333 | AB32: =AVERAGE(OFFSET(Cat4DCwall!$E$10,12*($A32-1),4*(PlotControl!$C$6-1),12,1)) -> 9.962725 | AC32: =AVERAGE(OFFSET(Orewall!$C$10,12*($A32-1),4*(PlotControl!$C$6-1),12,1)) -> 53.72391667 | AD32: =AVERAGE(OFFSET(Orewall!$D$10,12*($A32-1),4*(PlotControl!$C$6-1),12,1)) -> 130.87325 | AE32: =AVERAGE(OFFSET(Orewall!$E$10,12*($A32-1),4*(PlotControl!$C$6-1),12,1)) -> 314.8508333 | AF32: =AVERAGE(OFFSET(Cat4VFwall!$C$10,12*($A32-1),4*(PlotControl!$C$6-1),12,1)) -> 342.7225 | AG32: =AVERAGE(OFFSET(Cat4VFwall!$D$10,12*($A32-1),4*(PlotControl!$C$6-1),12,1)) -> 731.9658333 | AH32: =AVERAGE(OFFSET(Cat4VFwall!$E$10,12*($A32-1),4*(PlotControl!$C$6-1),12,1)) -> 1385.034167 | AI32: =AVERAGE(OFFSET(Cat1Bkf!$C$10,12*($A32-1),4*(PlotControl!$C$6-1),12,1)) -> 0 | AJ32: =AVERAGE(OFFSET(Cat1Bkf!$D$10,12*($A32-1),4*(PlotControl!$C$6-1),12,1)) -> 0 | AK32: =AVERAGE(OFFSET(Cat1Bkf!$E$10,12*($A32-1),4*(PlotControl!$C$6-1),12,1)) -> 0 | AL32: =AVERAGE(OFFSET(Cat23Bkf!$C$10,12*($A32-1),4*(PlotControl!$C$6-1),12,1)) -> 0 | AM32: =AVERAGE(OFFSET(Cat23Bkf!$D$10,12*($A32-1),4*(PlotControl!$C$6-1),12,1)) -> 0 | AN32: =AVERAGE(OFFSET(Cat23Bkf!$E$10,12*($A32-1),4*(PlotControl!$C$6-1),12,1)) -> 0 | AO32: =AVERAGE(OFFSET(Cat4DCBkf!$C$10,12*($A32-1),4*(PlotControl!$C$6-1),12,1)) -> 0 | AP32: =AVERAGE(OFFSET(Cat4DCBkf!$D$10,12*($A32-1),4*(PlotControl!$C$6-1),12,1)) -> 0 | AQ32: =AVERAGE(OFFSET(Cat4DCBkf!$E$10,12*($A32-1),4*(PlotControl!$C$6-1),12,1)) -> 0 | AR32: =AVERAGE(OFFSET(Cat4VFBkf!$C$10,12*($A32-1),4*(PlotControl!$C$6-1),12,1)) -> 0 | AS32: =AVERAGE(OFFSET(Cat4VFBkf!$D$10,12*($A32-1),4*(PlotControl!$C$6-1),12,1)) -> 0 | AT32: =AVERAGE(OFFSET(Cat4VFBkf!$E$10,12*($A32-1),4*(PlotControl!$C$6-1),12,1)) -> 0
A33: 29 | B33: =AVERAGE(OFFSET(Total!$C$10,12*($A33-1),4*(PlotControl!$C$6-1),12,1)) -> 1942.141667 | C33: =AVERAGE(OFFSET(Total!$D$10,12*($A33-1),4*(PlotControl!$C$6-1),12,1)) -> 2769.825 | D33: =AVERAGE(OFFSET(Total!$E$10,12*($A33-1),4*(PlotControl!$C$6-1),12,1)) -> 4215.475 | E33: =AVERAGE(OFFSET(RO!$C$10,12*($A33-1),4*(PlotControl!$C$6-1),12,1)) -> 122.9314167 | F33: =AVERAGE(OFFSET(RO!$D$10,12*($A33-1),4*(PlotControl!$C$6-1),12,1)) -> 423.6833333 | G33: =AVERAGE(OFFSET(RO!$E$10,12*($A33-1),4*(PlotControl!$C$6-1),12,1)) -> 1437.853333 | H33: =AVERAGE(OFFSET(GW!$C$10,12*($A33-1),4*(PlotControl!$C$6-1),12,1)) -> 952.78 | I33: =AVERAGE(OFFSET(GW!$D$10,12*($A33-1),4*(PlotControl!$C$6-1),12,1)) -> 1179.666667 | J33: =AVERAGE(OFFSET(GW!$E$10,12*($A33-1),4*(PlotControl!$C$6-1),12,1)) -> 1724.741667 | K33: =AVERAGE(OFFSET(CPS!$C$10,12*($A33-1),4*(PlotControl!$C$6-1),12,1)) -> 0 | L33: =AVERAGE(OFFSET(CPS!$D$10,12*($A33-1),4*(PlotControl!$C$6-1),12,1)) -> 0 | M33: =AVERAGE(OFFSET(CPS!$E$10,12*($A33-1),4*(PlotControl!$C$6-1),12,1)) -> 0 | N33: =AVERAGE(OFFSET(Blast!$C$10,12*($A33-1),4*(PlotControl!$C$6-1),12,1)) -> 0 | O33: =AVERAGE(OFFSET(Blast!$D$10,12*($A33-1),4*(PlotControl!$C$6-1),12,1)) -> 0 | P33: =AVERAGE(OFFSET(Blast!$E$10,12*($A33-1),4*(PlotControl!$C$6-1),12,1)) -> 0 | Q33: =AVERAGE(OFFSET(Cat1SP_leak!$C$10,12*($A33-1),4*(PlotControl!$C$6-1),12,1)) -> 0 | R33: =AVERAGE(OFFSET(Cat1SP_leak!$D$10,12*($A33-1),4*(PlotControl!$C$6-1),12,1)) -> 0 | S33: =AVERAGE(OFFSET(Cat1SP_leak!$E$10,12*($A33-1),4*(PlotControl!$C$6-1),12,1)) -> 0 | T33: =AVERAGE(OFFSET(Cat1wall!$C$10,12*($A33-1),4*(PlotControl!$C$6-1),12,1)) -> 6.628358333 | U33: =AVERAGE(OFFSET(Cat1wall!$D$10,12*($A33-1),4*(PlotControl!$C$6-1),12,1)) -> 14.20934167 | V33: =AVERAGE(OFFSET(Cat1wall!$E$10,12*($A33-1),4*(PlotControl!$C$6-1),12,1)) -> 28.55866667 | W33: =AVERAGE(OFFSET(Cat23wall!$C$10,12*($A33-1),4*(PlotControl!$C$6-1),12,1)) -> 7.08565 | X33: =AVERAGE(OFFSET(Cat23wall!$D$10,12*($A33-1),4*(PlotControl!$C$6-1),12,1)) -> 23.17258333 | Y33: =AVERAGE(OFFSET(Cat23wall!$E$10,12*($A33-1),4*(PlotControl!$C$6-1),12,1)) -> 152.6531667 | Z33: =AVERAGE(OFFSET(Cat4DCwall!$C$10,12*($A33-1),4*(PlotControl!$C$6-1),12,1)) -> 1.192345 | AA33: =AVERAGE(OFFSET(Cat4DCwall!$D$10,12*($A33-1),4*(PlotControl!$C$6-1),12,1)) -> 3.458841667 | AB33: =AVERAGE(OFFSET(Cat4DCwall!$E$10,12*($A33-1),4*(PlotControl!$C$6-1),12,1)) -> 9.264458333 | AC33: =AVERAGE(OFFSET(Orewall!$C$10,12*($A33-1),4*(PlotControl!$C$6-1),12,1)) -> 46.02483333 | AD33: =AVERAGE(OFFSET(Orewall!$D$10,12*($A33-1),4*(PlotControl!$C$6-1),12,1)) -> 119.13375 | AE33: =AVERAGE(OFFSET(Orewall!$E$10,12*($A33-1),4*(PlotControl!$C$6-1),12,1)) -> 296.8291667 | AF33: =AVERAGE(OFFSET(Cat4VFwall!$C$10,12*($A33-1),4*(PlotControl!$C$6-1),12,1)) -> 315.5266667 | AG33: =AVERAGE(OFFSET(Cat4VFwall!$D$10,12*($A33-1),4*(PlotControl!$C$6-1),12,1)) -> 685.8725 | AH33: =AVERAGE(OFFSET(Cat4VFwall!$E$10,12*($A33-1),4*(PlotControl!$C$6-1),12,1)) -> 1304.684167 | AI33: =AVERAGE(OFFSET(Cat1Bkf!$C$10,12*($A33-1),4*(PlotControl!$C$6-1),12,1)) -> 0 | AJ33: =AVERAGE(OFFSET(Cat1Bkf!$D$10,12*($A33-1),4*(PlotControl!$C$6-1),12,1)) -> 0 | AK33: =AVERAGE(OFFSET(Cat1Bkf!$E$10,12*($A33-1),4*(PlotControl!$C$6-1),12,1)) -> 0 | AL33: =AVERAGE(OFFSET(Cat23Bkf!$C$10,12*($A33-1),4*(PlotControl!$C$6-1),12,1)) -> 0 | AM33: =AVERAGE(OFFSET(Cat23Bkf!$D$10,12*($A33-1),4*(PlotControl!$C$6-1),12,1)) -> 0 | AN33: =AVERAGE(OFFSET(Cat23Bkf!$E$10,12*($A33-1),4*(PlotControl!$C$6-1),12,1)) -> 0 | AO33: =AVERAGE(OFFSET(Cat4DCBkf!$C$10,12*($A33-1),4*(PlotControl!$C$6-1),12,1)) -> 0 | AP33: =AVERAGE(OFFSET(Cat4DCBkf!$D$10,12*($A33-1),4*(PlotControl!$C$6-1),12,1)) -> 0 | AQ33: =AVERAGE(OFFSET(Cat4DCBkf!$E$10,12*($A33-1),4*(PlotControl!$C$6-1),12,1)) -> 0 | AR33: =AVERAGE(OFFSET(Cat4VFBkf!$C$10,12*($A33-1),4*(PlotControl!$C$6-1),12,1)) -> 0 | AS33: =AVERAGE(OFFSET(Cat4VFBkf!$D$10,12*($A33-1),4*(PlotControl!$C$6-1),12,1)) -> 0 | AT33: =AVERAGE(OFFSET(Cat4VFBkf!$E$10,12*($A33-1),4*(PlotControl!$C$6-1),12,1)) -> 0
A34: 30 | B34: =AVERAGE(OFFSET(Total!$C$10,12*($A34-1),4*(PlotControl!$C$6-1),12,1)) -> 1903.125 | C34: =AVERAGE(OFFSET(Total!$D$10,12*($A34-1),4*(PlotControl!$C$6-1),12,1)) -> 2728.841667 | D34: =AVERAGE(OFFSET(Total!$E$10,12*($A34-1),4*(PlotControl!$C$6-1),12,1)) -> 4205.125 | E34: =AVERAGE(OFFSET(RO!$C$10,12*($A34-1),4*(PlotControl!$C$6-1),12,1)) -> 122.4220833 | F34: =AVERAGE(OFFSET(RO!$D$10,12*($A34-1),4*(PlotControl!$C$6-1),12,1)) -> 426.9633333 | G34: =AVERAGE(OFFSET(RO!$E$10,12*($A34-1),4*(PlotControl!$C$6-1),12,1)) -> 1431.945 | H34: =AVERAGE(OFFSET(GW!$C$10,12*($A34-1),4*(PlotControl!$C$6-1),12,1)) -> 956.3758333 | I34: =AVERAGE(OFFSET(GW!$D$10,12*($A34-1),4*(PlotControl!$C$6-1),12,1)) -> 1174.925 | J34: =AVERAGE(OFFSET(GW!$E$10,12*($A34-1),4*(PlotControl!$C$6-1),12,1)) -> 1721.833333 | K34: =AVERAGE(OFFSET(CPS!$C$10,12*($A34-1),4*(PlotControl!$C$6-1),12,1)) -> 0 | L34: =AVERAGE(OFFSET(CPS!$D$10,12*($A34-1),4*(PlotControl!$C$6-1),12,1)) -> 0 | M34: =AVERAGE(OFFSET(CPS!$E$10,12*($A34-1),4*(PlotControl!$C$6-1),12,1)) -> 0 | N34: =AVERAGE(OFFSET(Blast!$C$10,12*($A34-1),4*(PlotControl!$C$6-1),12,1)) -> 0 | O34: =AVERAGE(OFFSET(Blast!$D$10,12*($A34-1),4*(PlotControl!$C$6-1),12,1)) -> 0 | P34: =AVERAGE(OFFSET(Blast!$E$10,12*($A34-1),4*(PlotControl!$C$6-1),12,1)) -> 0 | Q34: =AVERAGE(OFFSET(Cat1SP_leak!$C$10,12*($A34-1),4*(PlotControl!$C$6-1),12,1)) -> 0 | R34: =AVERAGE(OFFSET(Cat1SP_leak!$D$10,12*($A34-1),4*(PlotControl!$C$6-1),12,1)) -> 0 | S34: =AVERAGE(OFFSET(Cat1SP_leak!$E$10,12*($A34-1),4*(PlotControl!$C$6-1),12,1)) -> 0 | T34: =AVERAGE(OFFSET(Cat1wall!$C$10,12*($A34-1),4*(PlotControl!$C$6-1),12,1)) -> 5.911391667 | U34: =AVERAGE(OFFSET(Cat1wall!$D$10,12*($A34-1),4*(PlotControl!$C$6-1),12,1)) -> 13.90303333 | V34: =AVERAGE(OFFSET(Cat1wall!$E$10,12*($A34-1),4*(PlotControl!$C$6-1),12,1)) -> 27.35691667 | W34: =AVERAGE(OFFSET(Cat23wall!$C$10,12*($A34-1),4*(PlotControl!$C$6-1),12,1)) -> 6.951391667 | X34: =AVERAGE(OFFSET(Cat23wall!$D$10,12*($A34-1),4*(PlotControl!$C$6-1),12,1)) -> 27.87025 | Y34: =AVERAGE(OFFSET(Cat23wall!$E$10,12*($A34-1),4*(PlotControl!$C$6-1),12,1)) -> 149.8566667 | Z34: =AVERAGE(OFFSET(Cat4DCwall!$C$10,12*($A34-1),4*(PlotControl!$C$6-1),12,1)) -> 1.076835 | AA34: =AVERAGE(OFFSET(Cat4DCwall!$D$10,12*($A34-1),4*(PlotControl!$C$6-1),12,1)) -> 3.273041667 | AB34: =AVERAGE(OFFSET(Cat4DCwall!$E$10,12*($A34-1),4*(PlotControl!$C$6-1),12,1)) -> 8.360033333 | AC34: =AVERAGE(OFFSET(Orewall!$C$10,12*($A34-1),4*(PlotControl!$C$6-1),12,1)) -> 38.80591667 | AD34: =AVERAGE(OFFSET(Orewall!$D$10,12*($A34-1),4*(PlotControl!$C$6-1),12,1)) -> 112.2769167 | AE34: =AVERAGE(OFFSET(Orewall!$E$10,12*($A34-1),4*(PlotControl!$C$6-1),12,1)) -> 275.2741667 | AF34: =AVERAGE(OFFSET(Cat4VFwall!$C$10,12*($A34-1),4*(PlotControl!$C$6-1),12,1)) -> 289.8341667 | AG34: =AVERAGE(OFFSET(Cat4VFwall!$D$10,12*($A34-1),4*(PlotControl!$C$6-1),12,1)) -> 668.7783333 | AH34: =AVERAGE(OFFSET(Cat4VFwall!$E$10,12*($A34-1),4*(PlotControl!$C$6-1),12,1)) -> 1272.343333 | AI34: =AVERAGE(OFFSET(Cat1Bkf!$C$10,12*($A34-1),4*(PlotControl!$C$6-1),12,1)) -> 0 | AJ34: =AVERAGE(OFFSET(Cat1Bkf!$D$10,12*($A34-1),4*(PlotControl!$C$6-1),12,1)) -> 0 | AK34: =AVERAGE(OFFSET(Cat1Bkf!$E$10,12*($A34-1),4*(PlotControl!$C$6-1),12,1)) -> 0 | AL34: =AVERAGE(OFFSET(Cat23Bkf!$C$10,12*($A34-1),4*(PlotControl!$C$6-1),12,1)) -> 0 | AM34: =AVERAGE(OFFSET(Cat23Bkf!$D$10,12*($A34-1),4*(PlotControl!$C$6-1),12,1)) -> 0 | AN34: =AVERAGE(OFFSET(Cat23Bkf!$E$10,12*($A34-1),4*(PlotControl!$C$6-1),12,1)) -> 0 | AO34: =AVERAGE(OFFSET(Cat4DCBkf!$C$10,12*($A34-1),4*(PlotControl!$C$6-1),12,1)) -> 0 | AP34: =AVERAGE(OFFSET(Cat4DCBkf!$D$10,12*($A34-1),4*(PlotControl!$C$6-1),12,1)) -> 0 | AQ34: =AVERAGE(OFFSET(Cat4DCBkf!$E$10,12*($A34-1),4*(PlotControl!$C$6-1),12,1)) -> 0 | AR34: =AVERAGE(OFFSET(Cat4VFBkf!$C$10,12*($A34-1),4*(PlotControl!$C$6-1),12,1)) -> 0 | AS34: =AVERAGE(OFFSET(Cat4VFBkf!$D$10,12*($A34-1),4*(PlotControl!$C$6-1),12,1)) -> 0 | AT34: =AVERAGE(OFFSET(Cat4VFBkf!$E$10,12*($A34-1),4*(PlotControl!$C$6-1),12,1)) -> 0
A35: 31 | B35: =AVERAGE(OFFSET(Total!$C$10,12*($A35-1),4*(PlotControl!$C$6-1),12,1)) -> 1868.95 | C35: =AVERAGE(OFFSET(Total!$D$10,12*($A35-1),4*(PlotControl!$C$6-1),12,1)) -> 2678.008333 | D35: =AVERAGE(OFFSET(Total!$E$10,12*($A35-1),4*(PlotControl!$C$6-1),12,1)) -> 4167.7 | E35: =AVERAGE(OFFSET(RO!$C$10,12*($A35-1),4*(PlotControl!$C$6-1),12,1)) -> 121.84725 | F35: =AVERAGE(OFFSET(RO!$D$10,12*($A35-1),4*(PlotControl!$C$6-1),12,1)) -> 426.2075 | G35: =AVERAGE(OFFSET(RO!$E$10,12*($A35-1),4*(PlotControl!$C$6-1),12,1)) -> 1444.625 | H35: =AVERAGE(OFFSET(GW!$C$10,12*($A35-1),4*(PlotControl!$C$6-1),12,1)) -> 950.2391667 | I35: =AVERAGE(OFFSET(GW!$D$10,12*($A35-1),4*(PlotControl!$C$6-1),12,1)) -> 1171.025 | J35: =AVERAGE(OFFSET(GW!$E$10,12*($A35-1),4*(PlotControl!$C$6-1),12,1)) -> 1721.1 | K35: =AVERAGE(OFFSET(CPS!$C$10,12*($A35-1),4*(PlotControl!$C$6-1),12,1)) -> 0 | L35: =AVERAGE(OFFSET(CPS!$D$10,12*($A35-1),4*(PlotControl!$C$6-1),12,1)) -> 0 | M35: =AVERAGE(OFFSET(CPS!$E$10,12*($A35-1),4*(PlotControl!$C$6-1),12,1)) -> 0 | N35: =AVERAGE(OFFSET(Blast!$C$10,12*($A35-1),4*(PlotControl!$C$6-1),12,1)) -> 0 | O35: =AVERAGE(OFFSET(Blast!$D$10,12*($A35-1),4*(PlotControl!$C$6-1),12,1)) -> 0 | P35: =AVERAGE(OFFSET(Blast!$E$10,12*($A35-1),4*(PlotControl!$C$6-1),12,1)) -> 0 | Q35: =AVERAGE(OFFSET(Cat1SP_leak!$C$10,12*($A35-1),4*(PlotControl!$C$6-1),12,1)) -> 0 | R35: =AVERAGE(OFFSET(Cat1SP_leak!$D$10,12*($A35-1),4*(PlotControl!$C$6-1),12,1)) -> 0 | S35: =AVERAGE(OFFSET(Cat1SP_leak!$E$10,12*($A35-1),4*(PlotControl!$C$6-1),12,1)) -> 0 | T35: =AVERAGE(OFFSET(Cat1wall!$C$10,12*($A35-1),4*(PlotControl!$C$6-1),12,1)) -> 5.4314 | U35: =AVERAGE(OFFSET(Cat1wall!$D$10,12*($A35-1),4*(PlotControl!$C$6-1),12,1)) -> 13.27828333 | V35: =AVERAGE(OFFSET(Cat1wall!$E$10,12*($A35-1),4*(PlotControl!$C$6-1),12,1)) -> 26.11083333 | W35: =AVERAGE(OFFSET(Cat23wall!$C$10,12*($A35-1),4*(PlotControl!$C$6-1),12,1)) -> 6.739725 | X35: =AVERAGE(OFFSET(Cat23wall!$D$10,12*($A35-1),4*(PlotControl!$C$6-1),12,1)) -> 36.55983333 | Y35: =AVERAGE(OFFSET(Cat23wall!$E$10,12*($A35-1),4*(PlotControl!$C$6-1),12,1)) -> 147.6920833 | Z35: =AVERAGE(OFFSET(Cat4DCwall!$C$10,12*($A35-1),4*(PlotControl!$C$6-1),12,1)) -> 0.9802658333 | AA35: =AVERAGE(OFFSET(Cat4DCwall!$D$10,12*($A35-1),4*(PlotControl!$C$6-1),12,1)) -> 2.9118 | AB35: =AVERAGE(OFFSET(Cat4DCwall!$E$10,12*($A35-1),4*(PlotControl!$C$6-1),12,1)) -> 7.3421 | AC35: =AVERAGE(OFFSET(Orewall!$C$10,12*($A35-1),4*(PlotControl!$C$6-1),12,1)) -> 32.43608333 | AD35: =AVERAGE(OFFSET(Orewall!$D$10,12*($A35-1),4*(PlotControl!$C$6-1),12,1)) -> 101.2545 | AE35: =AVERAGE(OFFSET(Orewall!$E$10,12*($A35-1),4*(PlotControl!$C$6-1),12,1)) -> 243.1466667 | AF35: =AVERAGE(OFFSET(Cat4VFwall!$C$10,12*($A35-1),4*(PlotControl!$C$6-1),12,1)) -> 273.8291667 | AG35: =AVERAGE(OFFSET(Cat4VFwall!$D$10,12*($A35-1),4*(PlotControl!$C$6-1),12,1)) -> 627.1916667 | AH35: =AVERAGE(OFFSET(Cat4VFwall!$E$10,12*($A35-1),4*(PlotControl!$C$6-1),12,1)) -> 1237.235833 | AI35: =AVERAGE(OFFSET(Cat1Bkf!$C$10,12*($A35-1),4*(PlotControl!$C$6-1),12,1)) -> 0 | AJ35: =AVERAGE(OFFSET(Cat1Bkf!$D$10,12*($A35-1),4*(PlotControl!$C$6-1),12,1)) -> 0 | AK35: =AVERAGE(OFFSET(Cat1Bkf!$E$10,12*($A35-1),4*(PlotControl!$C$6-1),12,1)) -> 0 | AL35: =AVERAGE(OFFSET(Cat23Bkf!$C$10,12*($A35-1),4*(PlotControl!$C$6-1),12,1)) -> 0 | AM35: =AVERAGE(OFFSET(Cat23Bkf!$D$10,12*($A35-1),4*(PlotControl!$C$6-1),12,1)) -> 0 | AN35: =AVERAGE(OFFSET(Cat23Bkf!$E$10,12*($A35-1),4*(PlotControl!$C$6-1),12,1)) -> 0 | AO35: =AVERAGE(OFFSET(Cat4DCBkf!$C$10,12*($A35-1),4*(PlotControl!$C$6-1),12,1)) -> 0 | AP35: =AVERAGE(OFFSET(Cat4DCBkf!$D$10,12*($A35-1),4*(PlotControl!$C$6-1),12,1)) -> 0 | AQ35: =AVERAGE(OFFSET(Cat4DCBkf!$E$10,12*($A35-1),4*(PlotControl!$C$6-1),12,1)) -> 0 | AR35: =AVERAGE(OFFSET(Cat4VFBkf!$C$10,12*($A35-1),4*(PlotControl!$C$6-1),12,1)) -> 0 | AS35: =AVERAGE(OFFSET(Cat4VFBkf!$D$10,12*($A35-1),4*(PlotControl!$C$6-1),12,1)) -> 0 | AT35: =AVERAGE(OFFSET(Cat4VFBkf!$E$10,12*($A35-1),4*(PlotControl!$C$6-1),12,1)) -> 0
A36: 32 | B36: =AVERAGE(OFFSET(Total!$C$10,12*($A36-1),4*(PlotControl!$C$6-1),12,1)) -> 1841.258333 | C36: =AVERAGE(OFFSET(Total!$D$10,12*($A36-1),4*(PlotControl!$C$6-1),12,1)) -> 2623.291667 | D36: =AVERAGE(OFFSET(Total!$E$10,12*($A36-1),4*(PlotControl!$C$6-1),12,1)) -> 4121.183333 | E36: =AVERAGE(OFFSET(RO!$C$10,12*($A36-1),4*(PlotControl!$C$6-1),12,1)) -> 115.8979167 | F36: =AVERAGE(OFFSET(RO!$D$10,12*($A36-1),4*(PlotControl!$C$6-1),12,1)) -> 419.6341667 | G36: =AVERAGE(OFFSET(RO!$E$10,12*($A36-1),4*(PlotControl!$C$6-1),12,1)) -> 1448.9325 | H36: =AVERAGE(OFFSET(GW!$C$10,12*($A36-1),4*(PlotControl!$C$6-1),12,1)) -> 950.705 | I36: =AVERAGE(OFFSET(GW!$D$10,12*($A36-1),4*(PlotControl!$C$6-1),12,1)) -> 1171.208333 | J36: =AVERAGE(OFFSET(GW!$E$10,12*($A36-1),4*(PlotControl!$C$6-1),12,1)) -> 1730.458333 | K36: =AVERAGE(OFFSET(CPS!$C$10,12*($A36-1),4*(PlotControl!$C$6-1),12,1)) -> 0 | L36: =AVERAGE(OFFSET(CPS!$D$10,12*($A36-1),4*(PlotControl!$C$6-1),12,1)) -> 0 | M36: =AVERAGE(OFFSET(CPS!$E$10,12*($A36-1),4*(PlotControl!$C$6-1),12,1)) -> 0 | N36: =AVERAGE(OFFSET(Blast!$C$10,12*($A36-1),4*(PlotControl!$C$6-1),12,1)) -> 0 | O36: =AVERAGE(OFFSET(Blast!$D$10,12*($A36-1),4*(PlotControl!$C$6-1),12,1)) -> 0 | P36: =AVERAGE(OFFSET(Blast!$E$10,12*($A36-1),4*(PlotControl!$C$6-1),12,1)) -> 0 | Q36: =AVERAGE(OFFSET(Cat1SP_leak!$C$10,12*($A36-1),4*(PlotControl!$C$6-1),12,1)) -> 0 | R36: =AVERAGE(OFFSET(Cat1SP_leak!$D$10,12*($A36-1),4*(PlotControl!$C$6-1),12,1)) -> 0 | S36: =AVERAGE(OFFSET(Cat1SP_leak!$E$10,12*($A36-1),4*(PlotControl!$C$6-1),12,1)) -> 0 | T36: =AVERAGE(OFFSET(Cat1wall!$C$10,12*($A36-1),4*(PlotControl!$C$6-1),12,1)) -> 5.145366667 | U36: =AVERAGE(OFFSET(Cat1wall!$D$10,12*($A36-1),4*(PlotControl!$C$6-1),12,1)) -> 12.55684167 | V36: =AVERAGE(OFFSET(Cat1wall!$E$10,12*($A36-1),4*(PlotControl!$C$6-1),12,1)) -> 25.78291667 | W36: =AVERAGE(OFFSET(Cat23wall!$C$10,12*($A36-1),4*(PlotControl!$C$6-1),12,1)) -> 7.340275 | X36: =AVERAGE(OFFSET(Cat23wall!$D$10,12*($A36-1),4*(PlotControl!$C$6-1),12,1)) -> 39.821 | Y36: =AVERAGE(OFFSET(Cat23wall!$E$10,12*($A36-1),4*(PlotControl!$C$6-1),12,1)) -> 140.11 | Z36: =AVERAGE(OFFSET(Cat4DCwall!$C$10,12*($A36-1),4*(PlotControl!$C$6-1),12,1)) -> 0.8501691667 | AA36: =AVERAGE(OFFSET(Cat4DCwall!$D$10,12*($A36-1),4*(PlotControl!$C$6-1),12,1)) -> 2.580433333 | AB36: =AVERAGE(OFFSET(Cat4DCwall!$E$10,12*($A36-1),4*(PlotControl!$C$6-1),12,1)) -> 6.6841 | AC36: =AVERAGE(OFFSET(Orewall!$C$10,12*($A36-1),4*(PlotControl!$C$6-1),12,1)) -> 27.47533333 | AD36: =AVERAGE(OFFSET(Orewall!$D$10,12*($A36-1),4*(PlotControl!$C$6-1),12,1)) -> 87.21016667 | AE36: =AVERAGE(OFFSET(Orewall!$E$10,12*($A36-1),4*(PlotControl!$C$6-1),12,1)) -> 223.01 | AF36: =AVERAGE(OFFSET(Cat4VFwall!$C$10,12*($A36-1),4*(PlotControl!$C$6-1),12,1)) -> 256.695 | AG36: =AVERAGE(OFFSET(Cat4VFwall!$D$10,12*($A36-1),4*(PlotControl!$C$6-1),12,1)) -> 600.4075 | AH36: =AVERAGE(OFFSET(Cat4VFwall!$E$10,12*($A36-1),4*(PlotControl!$C$6-1),12,1)) -> 1191.843333 | AI36: =AVERAGE(OFFSET(Cat1Bkf!$C$10,12*($A36-1),4*(PlotControl!$C$6-1),12,1)) -> 0 | AJ36: =AVERAGE(OFFSET(Cat1Bkf!$D$10,12*($A36-1),4*(PlotControl!$C$6-1),12,1)) -> 0 | AK36: =AVERAGE(OFFSET(Cat1Bkf!$E$10,12*($A36-1),4*(PlotControl!$C$6-1),12,1)) -> 0 | AL36: =AVERAGE(OFFSET(Cat23Bkf!$C$10,12*($A36-1),4*(PlotControl!$C$6-1),12,1)) -> 0 | AM36: =AVERAGE(OFFSET(Cat23Bkf!$D$10,12*($A36-1),4*(PlotControl!$C$6-1),12,1)) -> 0 | AN36: =AVERAGE(OFFSET(Cat23Bkf!$E$10,12*($A36-1),4*(PlotControl!$C$6-1),12,1)) -> 0 | AO36: =AVERAGE(OFFSET(Cat4DCBkf!$C$10,12*($A36-1),4*(PlotControl!$C$6-1),12,1)) -> 0 | AP36: =AVERAGE(OFFSET(Cat4DCBkf!$D$10,12*($A36-1),4*(PlotControl!$C$6-1),12,1)) -> 0 | AQ36: =AVERAGE(OFFSET(Cat4DCBkf!$E$10,12*($A36-1),4*(PlotControl!$C$6-1),12,1)) -> 0 | AR36: =AVERAGE(OFFSET(Cat4VFBkf!$C$10,12*($A36-1),4*(PlotControl!$C$6-1),12,1)) -> 0 | AS36: =AVERAGE(OFFSET(Cat4VFBkf!$D$10,12*($A36-1),4*(PlotControl!$C$6-1),12,1)) -> 0 | AT36: =AVERAGE(OFFSET(Cat4VFBkf!$E$10,12*($A36-1),4*(PlotControl!$C$6-1),12,1)) -> 0
A37: 33 | B37: =AVERAGE(OFFSET(Total!$C$10,12*($A37-1),4*(PlotControl!$C$6-1),12,1)) -> 1815.041667 | C37: =AVERAGE(OFFSET(Total!$D$10,12*($A37-1),4*(PlotControl!$C$6-1),12,1)) -> 2582.483333 | D37: =AVERAGE(OFFSET(Total!$E$10,12*($A37-1),4*(PlotControl!$C$6-1),12,1)) -> 4046.75 | E37: =AVERAGE(OFFSET(RO!$C$10,12*($A37-1),4*(PlotControl!$C$6-1),12,1)) -> 116.0585 | F37: =AVERAGE(OFFSET(RO!$D$10,12*($A37-1),4*(PlotControl!$C$6-1),12,1)) -> 419.8708333 | G37: =AVERAGE(OFFSET(RO!$E$10,12*($A37-1),4*(PlotControl!$C$6-1),12,1)) -> 1403.994167 | H37: =AVERAGE(OFFSET(GW!$C$10,12*($A37-1),4*(PlotControl!$C$6-1),12,1)) -> 945.5666667 | I37: =AVERAGE(OFFSET(GW!$D$10,12*($A37-1),4*(PlotControl!$C$6-1),12,1)) -> 1164.9 | J37: =AVERAGE(OFFSET(GW!$E$10,12*($A37-1),4*(PlotControl!$C$6-1),12,1)) -> 1711.15 | K37: =AVERAGE(OFFSET(CPS!$C$10,12*($A37-1),4*(PlotControl!$C$6-1),12,1)) -> 0 | L37: =AVERAGE(OFFSET(CPS!$D$10,12*($A37-1),4*(PlotControl!$C$6-1),12,1)) -> 0 | M37: =AVERAGE(OFFSET(CPS!$E$10,12*($A37-1),4*(PlotControl!$C$6-1),12,1)) -> 0 | N37: =AVERAGE(OFFSET(Blast!$C$10,12*($A37-1),4*(PlotControl!$C$6-1),12,1)) -> 0 | O37: =AVERAGE(OFFSET(Blast!$D$10,12*($A37-1),4*(PlotControl!$C$6-1),12,1)) -> 0 | P37: =AVERAGE(OFFSET(Blast!$E$10,12*($A37-1),4*(PlotControl!$C$6-1),12,1)) -> 0 | Q37: =AVERAGE(OFFSET(Cat1SP_leak!$C$10,12*($A37-1),4*(PlotControl!$C$6-1),12,1)) -> 0 | R37: =AVERAGE(OFFSET(Cat1SP_leak!$D$10,12*($A37-1),4*(PlotControl!$C$6-1),12,1)) -> 0 | S37: =AVERAGE(OFFSET(Cat1SP_leak!$E$10,12*($A37-1),4*(PlotControl!$C$6-1),12,1)) -> 0 | T37: =AVERAGE(OFFSET(Cat1wall!$C$10,12*($A37-1),4*(PlotControl!$C$6-1),12,1)) -> 5.242508333 | U37: =AVERAGE(OFFSET(Cat1wall!$D$10,12*($A37-1),4*(PlotControl!$C$6-1),12,1)) -> 12.11428333 | V37: =AVERAGE(OFFSET(Cat1wall!$E$10,12*($A37-1),4*(PlotControl!$C$6-1),12,1)) -> 24.72816667 | W37: =AVERAGE(OFFSET(Cat23wall!$C$10,12*($A37-1),4*(PlotControl!$C$6-1),12,1)) -> 7.662991667 | X37: =AVERAGE(OFFSET(Cat23wall!$D$10,12*($A37-1),4*(PlotControl!$C$6-1),12,1)) -> 40.37441667 | Y37: =AVERAGE(OFFSET(Cat23wall!$E$10,12*($A37-1),4*(PlotControl!$C$6-1),12,1)) -> 136.9013333 | Z37: =AVERAGE(OFFSET(Cat4DCwall!$C$10,12*($A37-1),4*(PlotControl!$C$6-1),12,1)) -> 0.7863466667 | AA37: =AVERAGE(OFFSET(Cat4DCwall!$D$10,12*($A37-1),4*(PlotControl!$C$6-1),12,1)) -> 2.291491667 | AB37: =AVERAGE(OFFSET(Cat4DCwall!$E$10,12*($A37-1),4*(PlotControl!$C$6-1),12,1)) -> 6.265183333 | AC37: =AVERAGE(OFFSET(Orewall!$C$10,12*($A37-1),4*(PlotControl!$C$6-1),12,1)) -> 24.663 | AD37: =AVERAGE(OFFSET(Orewall!$D$10,12*($A37-1),4*(PlotControl!$C$6-1),12,1)) -> 76.01741667 | AE37: =AVERAGE(OFFSET(Orewall!$E$10,12*($A37-1),4*(PlotControl!$C$6-1),12,1)) -> 204.9766667 | AF37: =AVERAGE(OFFSET(Cat4VFwall!$C$10,12*($A37-1),4*(PlotControl!$C$6-1),12,1)) -> 251.1425 | AG37: =AVERAGE(OFFSET(Cat4VFwall!$D$10,12*($A37-1),4*(PlotControl!$C$6-1),12,1)) -> 585.2475 | AH37: =AVERAGE(OFFSET(Cat4VFwall!$E$10,12*($A37-1),4*(PlotControl!$C$6-1),12,1)) -> 1171.96 | AI37: =AVERAGE(OFFSET(Cat1Bkf!$C$10,12*($A37-1),4*(PlotControl!$C$6-1),12,1)) -> 0 | AJ37: =AVERAGE(OFFSET(Cat1Bkf!$D$10,12*($A37-1),4*(PlotControl!$C$6-1),12,1)) -> 0 | AK37: =AVERAGE(OFFSET(Cat1Bkf!$E$10,12*($A37-1),4*(PlotControl!$C$6-1),12,1)) -> 0 | AL37: =AVERAGE(OFFSET(Cat23Bkf!$C$10,12*($A37-1),4*(PlotControl!$C$6-1),12,1)) -> 0 | AM37: =AVERAGE(OFFSET(Cat23Bkf!$D$10,12*($A37-1),4*(PlotControl!$C$6-1),12,1)) -> 0 | AN37: =AVERAGE(OFFSET(Cat23Bkf!$E$10,12*($A37-1),4*(PlotControl!$C$6-1),12,1)) -> 0 | AO37: =AVERAGE(OFFSET(Cat4DCBkf!$C$10,12*($A37-1),4*(PlotControl!$C$6-1),12,1)) -> 0 | AP37: =AVERAGE(OFFSET(Cat4DCBkf!$D$10,12*($A37-1),4*(PlotControl!$C$6-1),12,1)) -> 0 | AQ37: =AVERAGE(OFFSET(Cat4DCBkf!$E$10,12*($A37-1),4*(PlotControl!$C$6-1),12,1)) -> 0 | AR37: =AVERAGE(OFFSET(Cat4VFBkf!$C$10,12*($A37-1),4*(PlotControl!$C$6-1),12,1)) -> 0 | AS37: =AVERAGE(OFFSET(Cat4VFBkf!$D$10,12*($A37-1),4*(PlotControl!$C$6-1),12,1)) -> 0 | AT37: =AVERAGE(OFFSET(Cat4VFBkf!$E$10,12*($A37-1),4*(PlotControl!$C$6-1),12,1)) -> 0
A38: 34 | B38: =AVERAGE(OFFSET(Total!$C$10,12*($A38-1),4*(PlotControl!$C$6-1),12,1)) -> 1797.666667 | C38: =AVERAGE(OFFSET(Total!$D$10,12*($A38-1),4*(PlotControl!$C$6-1),12,1)) -> 2579.016667 | D38: =AVERAGE(OFFSET(Total!$E$10,12*($A38-1),4*(PlotControl!$C$6-1),12,1)) -> 4050.266667 | E38: =AVERAGE(OFFSET(RO!$C$10,12*($A38-1),4*(PlotControl!$C$6-1),12,1)) -> 119.5583333 | F38: =AVERAGE(OFFSET(RO!$D$10,12*($A38-1),4*(PlotControl!$C$6-1),12,1)) -> 435.2133333 | G38: =AVERAGE(OFFSET(RO!$E$10,12*($A38-1),4*(PlotControl!$C$6-1),12,1)) -> 1486.173333 | H38: =AVERAGE(OFFSET(GW!$C$10,12*($A38-1),4*(PlotControl!$C$6-1),12,1)) -> 939.7108333 | I38: =AVERAGE(OFFSET(GW!$D$10,12*($A38-1),4*(PlotControl!$C$6-1),12,1)) -> 1158.666667 | J38: =AVERAGE(OFFSET(GW!$E$10,12*($A38-1),4*(PlotControl!$C$6-1),12,1)) -> 1696.025 | K38: =AVERAGE(OFFSET(CPS!$C$10,12*($A38-1),4*(PlotControl!$C$6-1),12,1)) -> 0 | L38: =AVERAGE(OFFSET(CPS!$D$10,12*($A38-1),4*(PlotControl!$C$6-1),12,1)) -> 0 | M38: =AVERAGE(OFFSET(CPS!$E$10,12*($A38-1),4*(PlotControl!$C$6-1),12,1)) -> 0 | N38: =AVERAGE(OFFSET(Blast!$C$10,12*($A38-1),4*(PlotControl!$C$6-1),12,1)) -> 0 | O38: =AVERAGE(OFFSET(Blast!$D$10,12*($A38-1),4*(PlotControl!$C$6-1),12,1)) -> 0 | P38: =AVERAGE(OFFSET(Blast!$E$10,12*($A38-1),4*(PlotControl!$C$6-1),12,1)) -> 0 | Q38: =AVERAGE(OFFSET(Cat1SP_leak!$C$10,12*($A38-1),4*(PlotControl!$C$6-1),12,1)) -> 0 | R38: =AVERAGE(OFFSET(Cat1SP_leak!$D$10,12*($A38-1),4*(PlotControl!$C$6-1),12,1)) -> 0 | S38: =AVERAGE(OFFSET(Cat1SP_leak!$E$10,12*($A38-1),4*(PlotControl!$C$6-1),12,1)) -> 0 | T38: =AVERAGE(OFFSET(Cat1wall!$C$10,12*($A38-1),4*(PlotControl!$C$6-1),12,1)) -> 5.0082 | U38: =AVERAGE(OFFSET(Cat1wall!$D$10,12*($A38-1),4*(PlotControl!$C$6-1),12,1)) -> 11.759125 | V38: =AVERAGE(OFFSET(Cat1wall!$E$10,12*($A38-1),4*(PlotControl!$C$6-1),12,1)) -> 24.818 | W38: =AVERAGE(OFFSET(Cat23wall!$C$10,12*($A38-1),4*(PlotControl!$C$6-1),12,1)) -> 7.794041667 | X38: =AVERAGE(OFFSET(Cat23wall!$D$10,12*($A38-1),4*(PlotControl!$C$6-1),12,1)) -> 39.62658333 | Y38: =AVERAGE(OFFSET(Cat23wall!$E$10,12*($A38-1),4*(PlotControl!$C$6-1),12,1)) -> 135.339 | Z38: =AVERAGE(OFFSET(Cat4DCwall!$C$10,12*($A38-1),4*(PlotControl!$C$6-1),12,1)) -> 0.6776733333 | AA38: =AVERAGE(OFFSET(Cat4DCwall!$D$10,12*($A38-1),4*(PlotControl!$C$6-1),12,1)) -> 2.061908333 | AB38: =AVERAGE(OFFSET(Cat4DCwall!$E$10,12*($A38-1),4*(PlotControl!$C$6-1),12,1)) -> 5.612483333 | AC38: =AVERAGE(OFFSET(Orewall!$C$10,12*($A38-1),4*(PlotControl!$C$6-1),12,1)) -> 21.03116667 | AD38: =AVERAGE(OFFSET(Orewall!$D$10,12*($A38-1),4*(PlotControl!$C$6-1),12,1)) -> 65.63525 | AE38: =AVERAGE(OFFSET(Orewall!$E$10,12*($A38-1),4*(PlotControl!$C$6-1),12,1)) -> 185.1333333 | AF38: =AVERAGE(OFFSET(Cat4VFwall!$C$10,12*($A38-1),4*(PlotControl!$C$6-1),12,1)) -> 245.465 | AG38: =AVERAGE(OFFSET(Cat4VFwall!$D$10,12*($A38-1),4*(PlotControl!$C$6-1),12,1)) -> 557.6258333 | AH38: =AVERAGE(OFFSET(Cat4VFwall!$E$10,12*($A38-1),4*(PlotControl!$C$6-1),12,1)) -> 1148.999167 | AI38: =AVERAGE(OFFSET(Cat1Bkf!$C$10,12*($A38-1),4*(PlotControl!$C$6-1),12,1)) -> 0 | AJ38: =AVERAGE(OFFSET(Cat1Bkf!$D$10,12*($A38-1),4*(PlotControl!$C$6-1),12,1)) -> 0 | AK38: =AVERAGE(OFFSET(Cat1Bkf!$E$10,12*($A38-1),4*(PlotControl!$C$6-1),12,1)) -> 0 | AL38: =AVERAGE(OFFSET(Cat23Bkf!$C$10,12*($A38-1),4*(PlotControl!$C$6-1),12,1)) -> 0 | AM38: =AVERAGE(OFFSET(Cat23Bkf!$D$10,12*($A38-1),4*(PlotControl!$C$6-1),12,1)) -> 0 | AN38: =AVERAGE(OFFSET(Cat23Bkf!$E$10,12*($A38-1),4*(PlotControl!$C$6-1),12,1)) -> 0 | AO38: =AVERAGE(OFFSET(Cat4DCBkf!$C$10,12*($A38-1),4*(PlotControl!$C$6-1),12,1)) -> 0 | AP38: =AVERAGE(OFFSET(Cat4DCBkf!$D$10,12*($A38-1),4*(PlotControl!$C$6-1),12,1)) -> 0 | AQ38: =AVERAGE(OFFSET(Cat4DCBkf!$E$10,12*($A38-1),4*(PlotControl!$C$6-1),12,1)) -> 0 | AR38: =AVERAGE(OFFSET(Cat4VFBkf!$C$10,12*($A38-1),4*(PlotControl!$C$6-1),12,1)) -> 0 | AS38: =AVERAGE(OFFSET(Cat4VFBkf!$D$10,12*($A38-1),4*(PlotControl!$C$6-1),12,1)) -> 0 | AT38: =AVERAGE(OFFSET(Cat4VFBkf!$E$10,12*($A38-1),4*(PlotControl!$C$6-1),12,1)) -> 0
A39: 35 | B39: =AVERAGE(OFFSET(Total!$C$10,12*($A39-1),4*(PlotControl!$C$6-1),12,1)) -> 1767.1 | C39: =AVERAGE(OFFSET(Total!$D$10,12*($A39-1),4*(PlotControl!$C$6-1),12,1)) -> 2500.016667 | D39: =AVERAGE(OFFSET(Total!$E$10,12*($A39-1),4*(PlotControl!$C$6-1),12,1)) -> 3912.741667 | E39: =AVERAGE(OFFSET(RO!$C$10,12*($A39-1),4*(PlotControl!$C$6-1),12,1)) -> 122.8348333 | F39: =AVERAGE(OFFSET(RO!$D$10,12*($A39-1),4*(PlotControl!$C$6-1),12,1)) -> 429.7516667 | G39: =AVERAGE(OFFSET(RO!$E$10,12*($A39-1),4*(PlotControl!$C$6-1),12,1)) -> 1417.4925 | H39: =AVERAGE(OFFSET(GW!$C$10,12*($A39-1),4*(PlotControl!$C$6-1),12,1)) -> 938.48 | I39: =AVERAGE(OFFSET(GW!$D$10,12*($A39-1),4*(PlotControl!$C$6-1),12,1)) -> 1157.041667 | J39: =AVERAGE(OFFSET(GW!$E$10,12*($A39-1),4*(PlotControl!$C$6-1),12,1)) -> 1695.45 | K39: =AVERAGE(OFFSET(CPS!$C$10,12*($A39-1),4*(PlotControl!$C$6-1),12,1)) -> 0 | L39: =AVERAGE(OFFSET(CPS!$D$10,12*($A39-1),4*(PlotControl!$C$6-1),12,1)) -> 0 | M39: =AVERAGE(OFFSET(CPS!$E$10,12*($A39-1),4*(PlotControl!$C$6-1),12,1)) -> 0 | N39: =AVERAGE(OFFSET(Blast!$C$10,12*($A39-1),4*(PlotControl!$C$6-1),12,1)) -> 0 | O39: =AVERAGE(OFFSET(Blast!$D$10,12*($A39-1),4*(PlotControl!$C$6-1),12,1)) -> 0 | P39: =AVERAGE(OFFSET(Blast!$E$10,12*($A39-1),4*(PlotControl!$C$6-1),12,1)) -> 0 | Q39: =AVERAGE(OFFSET(Cat1SP_leak!$C$10,12*($A39-1),4*(PlotControl!$C$6-1),12,1)) -> 0 | R39: =AVERAGE(OFFSET(Cat1SP_leak!$D$10,12*($A39-1),4*(PlotControl!$C$6-1),12,1)) -> 0 | S39: =AVERAGE(OFFSET(Cat1SP_leak!$E$10,12*($A39-1),4*(PlotControl!$C$6-1),12,1)) -> 0 | T39: =AVERAGE(OFFSET(Cat1wall!$C$10,12*($A39-1),4*(PlotControl!$C$6-1),12,1)) -> 4.885033333 | U39: =AVERAGE(OFFSET(Cat1wall!$D$10,12*($A39-1),4*(PlotControl!$C$6-1),12,1)) -> 10.94968333 | V39: =AVERAGE(OFFSET(Cat1wall!$E$10,12*($A39-1),4*(PlotControl!$C$6-1),12,1)) -> 23.52091667 | W39: =AVERAGE(OFFSET(Cat23wall!$C$10,12*($A39-1),4*(PlotControl!$C$6-1),12,1)) -> 8.96875 | X39: =AVERAGE(OFFSET(Cat23wall!$D$10,12*($A39-1),4*(PlotControl!$C$6-1),12,1)) -> 37.95183333 | Y39: =AVERAGE(OFFSET(Cat23wall!$E$10,12*($A39-1),4*(PlotControl!$C$6-1),12,1)) -> 122.4838333 | Z39: =AVERAGE(OFFSET(Cat4DCwall!$C$10,12*($A39-1),4*(PlotControl!$C$6-1),12,1)) -> 0.5912583333 | AA39: =AVERAGE(OFFSET(Cat4DCwall!$D$10,12*($A39-1),4*(PlotControl!$C$6-1),12,1)) -> 1.827491667 | AB39: =AVERAGE(OFFSET(Cat4DCwall!$E$10,12*($A39-1),4*(PlotControl!$C$6-1),12,1)) -> 5.127825 | AC39: =AVERAGE(OFFSET(Orewall!$C$10,12*($A39-1),4*(PlotControl!$C$6-1),12,1)) -> 18.44791667 | AD39: =AVERAGE(OFFSET(Orewall!$D$10,12*($A39-1),4*(PlotControl!$C$6-1),12,1)) -> 57.8775 | AE39: =AVERAGE(OFFSET(Orewall!$E$10,12*($A39-1),4*(PlotControl!$C$6-1),12,1)) -> 167.85 | AF39: =AVERAGE(OFFSET(Cat4VFwall!$C$10,12*($A39-1),4*(PlotControl!$C$6-1),12,1)) -> 240.3533333 | AG39: =AVERAGE(OFFSET(Cat4VFwall!$D$10,12*($A39-1),4*(PlotControl!$C$6-1),12,1)) -> 528.3025 | AH39: =AVERAGE(OFFSET(Cat4VFwall!$E$10,12*($A39-1),4*(PlotControl!$C$6-1),12,1)) -> 1105.729167 | AI39: =AVERAGE(OFFSET(Cat1Bkf!$C$10,12*($A39-1),4*(PlotControl!$C$6-1),12,1)) -> 0 | AJ39: =AVERAGE(OFFSET(Cat1Bkf!$D$10,12*($A39-1),4*(PlotControl!$C$6-1),12,1)) -> 0 | AK39: =AVERAGE(OFFSET(Cat1Bkf!$E$10,12*($A39-1),4*(PlotControl!$C$6-1),12,1)) -> 0 | AL39: =AVERAGE(OFFSET(Cat23Bkf!$C$10,12*($A39-1),4*(PlotControl!$C$6-1),12,1)) -> 0 | AM39: =AVERAGE(OFFSET(Cat23Bkf!$D$10,12*($A39-1),4*(PlotControl!$C$6-1),12,1)) -> 0 | AN39: =AVERAGE(OFFSET(Cat23Bkf!$E$10,12*($A39-1),4*(PlotControl!$C$6-1),12,1)) -> 0 | AO39: =AVERAGE(OFFSET(Cat4DCBkf!$C$10,12*($A39-1),4*(PlotControl!$C$6-1),12,1)) -> 0 | AP39: =AVERAGE(OFFSET(Cat4DCBkf!$D$10,12*($A39-1),4*(PlotControl!$C$6-1),12,1)) -> 0 | AQ39: =AVERAGE(OFFSET(Cat4DCBkf!$E$10,12*($A39-1),4*(PlotControl!$C$6-1),12,1)) -> 0 | AR39: =AVERAGE(OFFSET(Cat4VFBkf!$C$10,12*($A39-1),4*(PlotControl!$C$6-1),12,1)) -> 0 | AS39: =AVERAGE(OFFSET(Cat4VFBkf!$D$10,12*($A39-1),4*(PlotControl!$C$6-1),12,1)) -> 0 | AT39: =AVERAGE(OFFSET(Cat4VFBkf!$E$10,12*($A39-1),4*(PlotControl!$C$6-1),12,1)) -> 0
A40: 36 | B40: =AVERAGE(OFFSET(Total!$C$10,12*($A40-1),4*(PlotControl!$C$6-1),12,1)) -> 1743.466667 | C40: =AVERAGE(OFFSET(Total!$D$10,12*($A40-1),4*(PlotControl!$C$6-1),12,1)) -> 2472.541667 | D40: =AVERAGE(OFFSET(Total!$E$10,12*($A40-1),4*(PlotControl!$C$6-1),12,1)) -> 3912.816667 | E40: =AVERAGE(OFFSET(RO!$C$10,12*($A40-1),4*(PlotControl!$C$6-1),12,1)) -> 120.8859167 | F40: =AVERAGE(OFFSET(RO!$D$10,12*($A40-1),4*(PlotControl!$C$6-1),12,1)) -> 428.32 | G40: =AVERAGE(OFFSET(RO!$E$10,12*($A40-1),4*(PlotControl!$C$6-1),12,1)) -> 1453.340833 | H40: =AVERAGE(OFFSET(GW!$C$10,12*($A40-1),4*(PlotControl!$C$6-1),12,1)) -> 935.8533333 | I40: =AVERAGE(OFFSET(GW!$D$10,12*($A40-1),4*(PlotControl!$C$6-1),12,1)) -> 1150.225 | J40: =AVERAGE(OFFSET(GW!$E$10,12*($A40-1),4*(PlotControl!$C$6-1),12,1)) -> 1692.4 | K40: =AVERAGE(OFFSET(CPS!$C$10,12*($A40-1),4*(PlotControl!$C$6-1),12,1)) -> 0 | L40: =AVERAGE(OFFSET(CPS!$D$10,12*($A40-1),4*(PlotControl!$C$6-1),12,1)) -> 0 | M40: =AVERAGE(OFFSET(CPS!$E$10,12*($A40-1),4*(PlotControl!$C$6-1),12,1)) -> 0 | N40: =AVERAGE(OFFSET(Blast!$C$10,12*($A40-1),4*(PlotControl!$C$6-1),12,1)) -> 0 | O40: =AVERAGE(OFFSET(Blast!$D$10,12*($A40-1),4*(PlotControl!$C$6-1),12,1)) -> 0 | P40: =AVERAGE(OFFSET(Blast!$E$10,12*($A40-1),4*(PlotControl!$C$6-1),12,1)) -> 0 | Q40: =AVERAGE(OFFSET(Cat1SP_leak!$C$10,12*($A40-1),4*(PlotControl!$C$6-1),12,1)) -> 0 | R40: =AVERAGE(OFFSET(Cat1SP_leak!$D$10,12*($A40-1),4*(PlotControl!$C$6-1),12,1)) -> 0 | S40: =AVERAGE(OFFSET(Cat1SP_leak!$E$10,12*($A40-1),4*(PlotControl!$C$6-1),12,1)) -> 0 | T40: =AVERAGE(OFFSET(Cat1wall!$C$10,12*($A40-1),4*(PlotControl!$C$6-1),12,1)) -> 4.931291667 | U40: =AVERAGE(OFFSET(Cat1wall!$D$10,12*($A40-1),4*(PlotControl!$C$6-1),12,1)) -> 10.90554167 | V40: =AVERAGE(OFFSET(Cat1wall!$E$10,12*($A40-1),4*(PlotControl!$C$6-1),12,1)) -> 22.98516667 | W40: =AVERAGE(OFFSET(Cat23wall!$C$10,12*($A40-1),4*(PlotControl!$C$6-1),12,1)) -> 9.692558333 | X40: =AVERAGE(OFFSET(Cat23wall!$D$10,12*($A40-1),4*(PlotControl!$C$6-1),12,1)) -> 36.65016667 | Y40: =AVERAGE(OFFSET(Cat23wall!$E$10,12*($A40-1),4*(PlotControl!$C$6-1),12,1)) -> 113.1274167 | Z40: =AVERAGE(OFFSET(Cat4DCwall!$C$10,12*($A40-1),4*(PlotControl!$C$6-1),12,1)) -> 0.5484991667 | AA40: =AVERAGE(OFFSET(Cat4DCwall!$D$10,12*($A40-1),4*(PlotControl!$C$6-1),12,1)) -> 1.660666667 | AB40: =AVERAGE(OFFSET(Cat4DCwall!$E$10,12*($A40-1),4*(PlotControl!$C$6-1),12,1)) -> 4.854925 | AC40: =AVERAGE(OFFSET(Orewall!$C$10,12*($A40-1),4*(PlotControl!$C$6-1),12,1)) -> 17.034 | AD40: =AVERAGE(OFFSET(Orewall!$D$10,12*($A40-1),4*(PlotControl!$C$6-1),12,1)) -> 51.66708333 | AE40: =AVERAGE(OFFSET(Orewall!$E$10,12*($A40-1),4*(PlotControl!$C$6-1),12,1)) -> 157.8466667 | AF40: =AVERAGE(OFFSET(Cat4VFwall!$C$10,12*($A40-1),4*(PlotControl!$C$6-1),12,1)) -> 237.4741667 | AG40: =AVERAGE(OFFSET(Cat4VFwall!$D$10,12*($A40-1),4*(PlotControl!$C$6-1),12,1)) -> 525.9358333 | AH40: =AVERAGE(OFFSET(Cat4VFwall!$E$10,12*($A40-1),4*(PlotControl!$C$6-1),12,1)) -> 1090.261667 | AI40: =AVERAGE(OFFSET(Cat1Bkf!$C$10,12*($A40-1),4*(PlotControl!$C$6-1),12,1)) -> 0 | AJ40: =AVERAGE(OFFSET(Cat1Bkf!$D$10,12*($A40-1),4*(PlotControl!$C$6-1),12,1)) -> 0 | AK40: =AVERAGE(OFFSET(Cat1Bkf!$E$10,12*($A40-1),4*(PlotControl!$C$6-1),12,1)) -> 0 | AL40: =AVERAGE(OFFSET(Cat23Bkf!$C$10,12*($A40-1),4*(PlotControl!$C$6-1),12,1)) -> 0 | AM40: =AVERAGE(OFFSET(Cat23Bkf!$D$10,12*($A40-1),4*(PlotControl!$C$6-1),12,1)) -> 0 | AN40: =AVERAGE(OFFSET(Cat23Bkf!$E$10,12*($A40-1),4*(PlotControl!$C$6-1),12,1)) -> 0 | AO40: =AVERAGE(OFFSET(Cat4DCBkf!$C$10,12*($A40-1),4*(PlotControl!$C$6-1),12,1)) -> 0 | AP40: =AVERAGE(OFFSET(Cat4DCBkf!$D$10,12*($A40-1),4*(PlotControl!$C$6-1),12,1)) -> 0 | AQ40: =AVERAGE(OFFSET(Cat4DCBkf!$E$10,12*($A40-1),4*(PlotControl!$C$6-1),12,1)) -> 0 | AR40: =AVERAGE(OFFSET(Cat4VFBkf!$C$10,12*($A40-1),4*(PlotControl!$C$6-1),12,1)) -> 0 | AS40: =AVERAGE(OFFSET(Cat4VFBkf!$D$10,12*($A40-1),4*(PlotControl!$C$6-1),12,1)) -> 0 | AT40: =AVERAGE(OFFSET(Cat4VFBkf!$E$10,12*($A40-1),4*(PlotControl!$C$6-1),12,1)) -> 0
A41: 37 | B41: =AVERAGE(OFFSET(Total!$C$10,12*($A41-1),4*(PlotControl!$C$6-1),12,1)) -> 1749.425 | C41: =AVERAGE(OFFSET(Total!$D$10,12*($A41-1),4*(PlotControl!$C$6-1),12,1)) -> 2439.141667 | D41: =AVERAGE(OFFSET(Total!$E$10,12*($A41-1),4*(PlotControl!$C$6-1),12,1)) -> 3817.116667 | E41: =AVERAGE(OFFSET(RO!$C$10,12*($A41-1),4*(PlotControl!$C$6-1),12,1)) -> 117.141 | F41: =AVERAGE(OFFSET(RO!$D$10,12*($A41-1),4*(PlotControl!$C$6-1),12,1)) -> 417.5991667 | G41: =AVERAGE(OFFSET(RO!$E$10,12*($A41-1),4*(PlotControl!$C$6-1),12,1)) -> 1373.5425 | H41: =AVERAGE(OFFSET(GW!$C$10,12*($A41-1),4*(PlotControl!$C$6-1),12,1)) -> 936.6066667 | I41: =AVERAGE(OFFSET(GW!$D$10,12*($A41-1),4*(PlotControl!$C$6-1),12,1)) -> 1149.525 | J41: =AVERAGE(OFFSET(GW!$E$10,12*($A41-1),4*(PlotControl!$C$6-1),12,1)) -> 1694.566667 | K41: =AVERAGE(OFFSET(CPS!$C$10,12*($A41-1),4*(PlotControl!$C$6-1),12,1)) -> 0 | L41: =AVERAGE(OFFSET(CPS!$D$10,12*($A41-1),4*(PlotControl!$C$6-1),12,1)) -> 0 | M41: =AVERAGE(OFFSET(CPS!$E$10,12*($A41-1),4*(PlotControl!$C$6-1),12,1)) -> 0 | N41: =AVERAGE(OFFSET(Blast!$C$10,12*($A41-1),4*(PlotControl!$C$6-1),12,1)) -> 0 | O41: =AVERAGE(OFFSET(Blast!$D$10,12*($A41-1),4*(PlotControl!$C$6-1),12,1)) -> 0 | P41: =AVERAGE(OFFSET(Blast!$E$10,12*($A41-1),4*(PlotControl!$C$6-1),12,1)) -> 0 | Q41: =AVERAGE(OFFSET(Cat1SP_leak!$C$10,12*($A41-1),4*(PlotControl!$C$6-1),12,1)) -> 0 | R41: =AVERAGE(OFFSET(Cat1SP_leak!$D$10,12*($A41-1),4*(PlotControl!$C$6-1),12,1)) -> 0 | S41: =AVERAGE(OFFSET(Cat1SP_leak!$E$10,12*($A41-1),4*(PlotControl!$C$6-1),12,1)) -> 0 | T41: =AVERAGE(OFFSET(Cat1wall!$C$10,12*($A41-1),4*(PlotControl!$C$6-1),12,1)) -> 4.857233333 | U41: =AVERAGE(OFFSET(Cat1wall!$D$10,12*($A41-1),4*(PlotControl!$C$6-1),12,1)) -> 10.90838333 | V41: =AVERAGE(OFFSET(Cat1wall!$E$10,12*($A41-1),4*(PlotControl!$C$6-1),12,1)) -> 22.77575 | W41: =AVERAGE(OFFSET(Cat23wall!$C$10,12*($A41-1),4*(PlotControl!$C$6-1),12,1)) -> 9.82065 | X41: =AVERAGE(OFFSET(Cat23wall!$D$10,12*($A41-1),4*(PlotControl!$C$6-1),12,1)) -> 34.54508333 | Y41: =AVERAGE(OFFSET(Cat23wall!$E$10,12*($A41-1),4*(PlotControl!$C$6-1),12,1)) -> 107.25425 | Z41: =AVERAGE(OFFSET(Cat4DCwall!$C$10,12*($A41-1),4*(PlotControl!$C$6-1),12,1)) -> 0.5010733333 | AA41: =AVERAGE(OFFSET(Cat4DCwall!$D$10,12*($A41-1),4*(PlotControl!$C$6-1),12,1)) -> 1.517216667 | AB41: =AVERAGE(OFFSET(Cat4DCwall!$E$10,12*($A41-1),4*(PlotControl!$C$6-1),12,1)) -> 4.6789 | AC41: =AVERAGE(OFFSET(Orewall!$C$10,12*($A41-1),4*(PlotControl!$C$6-1),12,1)) -> 15.47633333 | AD41: =AVERAGE(OFFSET(Orewall!$D$10,12*($A41-1),4*(PlotControl!$C$6-1),12,1)) -> 47.49666667 | AE41: =AVERAGE(OFFSET(Orewall!$E$10,12*($A41-1),4*(PlotControl!$C$6-1),12,1)) -> 151.7375 | AF41: =AVERAGE(OFFSET(Cat4VFwall!$C$10,12*($A41-1),4*(PlotControl!$C$6-1),12,1)) -> 239.8808333 | AG41: =AVERAGE(OFFSET(Cat4VFwall!$D$10,12*($A41-1),4*(PlotControl!$C$6-1),12,1)) -> 523.695 | AH41: =AVERAGE(OFFSET(Cat4VFwall!$E$10,12*($A41-1),4*(PlotControl!$C$6-1),12,1)) -> 1083.051667 | AI41: =AVERAGE(OFFSET(Cat1Bkf!$C$10,12*($A41-1),4*(PlotControl!$C$6-1),12,1)) -> 0 | AJ41: =AVERAGE(OFFSET(Cat1Bkf!$D$10,12*($A41-1),4*(PlotControl!$C$6-1),12,1)) -> 0 | AK41: =AVERAGE(OFFSET(Cat1Bkf!$E$10,12*($A41-1),4*(PlotControl!$C$6-1),12,1)) -> 0 | AL41: =AVERAGE(OFFSET(Cat23Bkf!$C$10,12*($A41-1),4*(PlotControl!$C$6-1),12,1)) -> 0 | AM41: =AVERAGE(OFFSET(Cat23Bkf!$D$10,12*($A41-1),4*(PlotControl!$C$6-1),12,1)) -> 0 | AN41: =AVERAGE(OFFSET(Cat23Bkf!$E$10,12*($A41-1),4*(PlotControl!$C$6-1),12,1)) -> 0 | AO41: =AVERAGE(OFFSET(Cat4DCBkf!$C$10,12*($A41-1),4*(PlotControl!$C$6-1),12,1)) -> 0 | AP41: =AVERAGE(OFFSET(Cat4DCBkf!$D$10,12*($A41-1),4*(PlotControl!$C$6-1),12,1)) -> 0 | AQ41: =AVERAGE(OFFSET(Cat4DCBkf!$E$10,12*($A41-1),4*(PlotControl!$C$6-1),12,1)) -> 0 | AR41: =AVERAGE(OFFSET(Cat4VFBkf!$C$10,12*($A41-1),4*(PlotControl!$C$6-1),12,1)) -> 0 | AS41: =AVERAGE(OFFSET(Cat4VFBkf!$D$10,12*($A41-1),4*(PlotControl!$C$6-1),12,1)) -> 0 | AT41: =AVERAGE(OFFSET(Cat4VFBkf!$E$10,12*($A41-1),4*(PlotControl!$C$6-1),12,1)) -> 0
A42: 38 | B42: =AVERAGE(OFFSET(Total!$C$10,12*($A42-1),4*(PlotControl!$C$6-1),12,1)) -> 1732.391667 | C42: =AVERAGE(OFFSET(Total!$D$10,12*($A42-1),4*(PlotControl!$C$6-1),12,1)) -> 2444.175 | D42: =AVERAGE(OFFSET(Total!$E$10,12*($A42-1),4*(PlotControl!$C$6-1),12,1)) -> 3726.4 | E42: =AVERAGE(OFFSET(RO!$C$10,12*($A42-1),4*(PlotControl!$C$6-1),12,1)) -> 124.6963333 | F42: =AVERAGE(OFFSET(RO!$D$10,12*($A42-1),4*(PlotControl!$C$6-1),12,1)) -> 413.7133333 | G42: =AVERAGE(OFFSET(RO!$E$10,12*($A42-1),4*(PlotControl!$C$6-1),12,1)) -> 1381.6875 | H42: =AVERAGE(OFFSET(GW!$C$10,12*($A42-1),4*(PlotControl!$C$6-1),12,1)) -> 933.5225 | I42: =AVERAGE(OFFSET(GW!$D$10,12*($A42-1),4*(PlotControl!$C$6-1),12,1)) -> 1147.233333 | J42: =AVERAGE(OFFSET(GW!$E$10,12*($A42-1),4*(PlotControl!$C$6-1),12,1)) -> 1692.366667 | K42: =AVERAGE(OFFSET(CPS!$C$10,12*($A42-1),4*(PlotControl!$C$6-1),12,1)) -> 0 | L42: =AVERAGE(OFFSET(CPS!$D$10,12*($A42-1),4*(PlotControl!$C$6-1),12,1)) -> 0 | M42: =AVERAGE(OFFSET(CPS!$E$10,12*($A42-1),4*(PlotControl!$C$6-1),12,1)) -> 0 | N42: =AVERAGE(OFFSET(Blast!$C$10,12*($A42-1),4*(PlotControl!$C$6-1),12,1)) -> 0 | O42: =AVERAGE(OFFSET(Blast!$D$10,12*($A42-1),4*(PlotControl!$C$6-1),12,1)) -> 0 | P42: =AVERAGE(OFFSET(Blast!$E$10,12*($A42-1),4*(PlotControl!$C$6-1),12,1)) -> 0 | Q42: =AVERAGE(OFFSET(Cat1SP_leak!$C$10,12*($A42-1),4*(PlotControl!$C$6-1),12,1)) -> 0 | R42: =AVERAGE(OFFSET(Cat1SP_leak!$D$10,12*($A42-1),4*(PlotControl!$C$6-1),12,1)) -> 0 | S42: =AVERAGE(OFFSET(Cat1SP_leak!$E$10,12*($A42-1),4*(PlotControl!$C$6-1),12,1)) -> 0 | T42: =AVERAGE(OFFSET(Cat1wall!$C$10,12*($A42-1),4*(PlotControl!$C$6-1),12,1)) -> 4.875066667 | U42: =AVERAGE(OFFSET(Cat1wall!$D$10,12*($A42-1),4*(PlotControl!$C$6-1),12,1)) -> 10.67349167 | V42: =AVERAGE(OFFSET(Cat1wall!$E$10,12*($A42-1),4*(PlotControl!$C$6-1),12,1)) -> 22.9365 | W42: =AVERAGE(OFFSET(Cat23wall!$C$10,12*($A42-1),4*(PlotControl!$C$6-1),12,1)) -> 9.793741667 | X42: =AVERAGE(OFFSET(Cat23wall!$D$10,12*($A42-1),4*(PlotControl!$C$6-1),12,1)) -> 32.88125 | Y42: =AVERAGE(OFFSET(Cat23wall!$E$10,12*($A42-1),4*(PlotControl!$C$6-1),12,1)) -> 100.4145833 | Z42: =AVERAGE(OFFSET(Cat4DCwall!$C$10,12*($A42-1),4*(PlotControl!$C$6-1),12,1)) -> 0.4676316667 | AA42: =AVERAGE(OFFSET(Cat4DCwall!$D$10,12*($A42-1),4*(PlotControl!$C$6-1),12,1)) -> 1.414591667 | AB42: =AVERAGE(OFFSET(Cat4DCwall!$E$10,12*($A42-1),4*(PlotControl!$C$6-1),12,1)) -> 4.41275 | AC42: =AVERAGE(OFFSET(Orewall!$C$10,12*($A42-1),4*(PlotControl!$C$6-1),12,1)) -> 14.53208333 | AD42: =AVERAGE(OFFSET(Orewall!$D$10,12*($A42-1),4*(PlotControl!$C$6-1),12,1)) -> 44.54375 | AE42: =AVERAGE(OFFSET(Orewall!$E$10,12*($A42-1),4*(PlotControl!$C$6-1),12,1)) -> 142.7925 | AF42: =AVERAGE(OFFSET(Cat4VFwall!$C$10,12*($A42-1),4*(PlotControl!$C$6-1),12,1)) -> 236.2483333 | AG42: =AVERAGE(OFFSET(Cat4VFwall!$D$10,12*($A42-1),4*(PlotControl!$C$6-1),12,1)) -> 522.855 | AH42: =AVERAGE(OFFSET(Cat4VFwall!$E$10,12*($A42-1),4*(PlotControl!$C$6-1),12,1)) -> 1060.275 | AI42: =AVERAGE(OFFSET(Cat1Bkf!$C$10,12*($A42-1),4*(PlotControl!$C$6-1),12,1)) -> 0 | AJ42: =AVERAGE(OFFSET(Cat1Bkf!$D$10,12*($A42-1),4*(PlotControl!$C$6-1),12,1)) -> 0 | AK42: =AVERAGE(OFFSET(Cat1Bkf!$E$10,12*($A42-1),4*(PlotControl!$C$6-1),12,1)) -> 0 | AL42: =AVERAGE(OFFSET(Cat23Bkf!$C$10,12*($A42-1),4*(PlotControl!$C$6-1),12,1)) -> 0 | AM42: =AVERAGE(OFFSET(Cat23Bkf!$D$10,12*($A42-1),4*(PlotControl!$C$6-1),12,1)) -> 0 | AN42: =AVERAGE(OFFSET(Cat23Bkf!$E$10,12*($A42-1),4*(PlotControl!$C$6-1),12,1)) -> 0 | AO42: =AVERAGE(OFFSET(Cat4DCBkf!$C$10,12*($A42-1),4*(PlotControl!$C$6-1),12,1)) -> 0 | AP42: =AVERAGE(OFFSET(Cat4DCBkf!$D$10,12*($A42-1),4*(PlotControl!$C$6-1),12,1)) -> 0 | AQ42: =AVERAGE(OFFSET(Cat4DCBkf!$E$10,12*($A42-1),4*(PlotControl!$C$6-1),12,1)) -> 0 | AR42: =AVERAGE(OFFSET(Cat4VFBkf!$C$10,12*($A42-1),4*(PlotControl!$C$6-1),12,1)) -> 0 | AS42: =AVERAGE(OFFSET(Cat4VFBkf!$D$10,12*($A42-1),4*(PlotControl!$C$6-1),12,1)) -> 0 | AT42: =AVERAGE(OFFSET(Cat4VFBkf!$E$10,12*($A42-1),4*(PlotControl!$C$6-1),12,1)) -> 0
A43: 39 | B43: =AVERAGE(OFFSET(Total!$C$10,12*($A43-1),4*(PlotControl!$C$6-1),12,1)) -> 1725.475 | C43: =AVERAGE(OFFSET(Total!$D$10,12*($A43-1),4*(PlotControl!$C$6-1),12,1)) -> 2435.916667 | D43: =AVERAGE(OFFSET(Total!$E$10,12*($A43-1),4*(PlotControl!$C$6-1),12,1)) -> 3744.933333 | E43: =AVERAGE(OFFSET(RO!$C$10,12*($A43-1),4*(PlotControl!$C$6-1),12,1)) -> 118.5704167 | F43: =AVERAGE(OFFSET(RO!$D$10,12*($A43-1),4*(PlotControl!$C$6-1),12,1)) -> 422.7891667 | G43: =AVERAGE(OFFSET(RO!$E$10,12*($A43-1),4*(PlotControl!$C$6-1),12,1)) -> 1431.47 | H43: =AVERAGE(OFFSET(GW!$C$10,12*($A43-1),4*(PlotControl!$C$6-1),12,1)) -> 929.3491667 | I43: =AVERAGE(OFFSET(GW!$D$10,12*($A43-1),4*(PlotControl!$C$6-1),12,1)) -> 1146.183333 | J43: =AVERAGE(OFFSET(GW!$E$10,12*($A43-1),4*(PlotControl!$C$6-1),12,1)) -> 1690.025 | K43: =AVERAGE(OFFSET(CPS!$C$10,12*($A43-1),4*(PlotControl!$C$6-1),12,1)) -> 0 | L43: =AVERAGE(OFFSET(CPS!$D$10,12*($A43-1),4*(PlotControl!$C$6-1),12,1)) -> 0 | M43: =AVERAGE(OFFSET(CPS!$E$10,12*($A43-1),4*(PlotControl!$C$6-1),12,1)) -> 0 | N43: =AVERAGE(OFFSET(Blast!$C$10,12*($A43-1),4*(PlotControl!$C$6-1),12,1)) -> 0 | O43: =AVERAGE(OFFSET(Blast!$D$10,12*($A43-1),4*(PlotControl!$C$6-1),12,1)) -> 0 | P43: =AVERAGE(OFFSET(Blast!$E$10,12*($A43-1),4*(PlotControl!$C$6-1),12,1)) -> 0 | Q43: =AVERAGE(OFFSET(Cat1SP_leak!$C$10,12*($A43-1),4*(PlotControl!$C$6-1),12,1)) -> 0 | R43: =AVERAGE(OFFSET(Cat1SP_leak!$D$10,12*($A43-1),4*(PlotControl!$C$6-1),12,1)) -> 0 | S43: =AVERAGE(OFFSET(Cat1SP_leak!$E$10,12*($A43-1),4*(PlotControl!$C$6-1),12,1)) -> 0 | T43: =AVERAGE(OFFSET(Cat1wall!$C$10,12*($A43-1),4*(PlotControl!$C$6-1),12,1)) -> 4.62365 | U43: =AVERAGE(OFFSET(Cat1wall!$D$10,12*($A43-1),4*(PlotControl!$C$6-1),12,1)) -> 10.74421667 | V43: =AVERAGE(OFFSET(Cat1wall!$E$10,12*($A43-1),4*(PlotControl!$C$6-1),12,1)) -> 23.04258333 | W43: =AVERAGE(OFFSET(Cat23wall!$C$10,12*($A43-1),4*(PlotControl!$C$6-1),12,1)) -> 9.832758333 | X43: =AVERAGE(OFFSET(Cat23wall!$D$10,12*($A43-1),4*(PlotControl!$C$6-1),12,1)) -> 30.35341667 | Y43: =AVERAGE(OFFSET(Cat23wall!$E$10,12*($A43-1),4*(PlotControl!$C$6-1),12,1)) -> 93.9625 | Z43: =AVERAGE(OFFSET(Cat4DCwall!$C$10,12*($A43-1),4*(PlotControl!$C$6-1),12,1)) -> 0.4337591667 | AA43: =AVERAGE(OFFSET(Cat4DCwall!$D$10,12*($A43-1),4*(PlotControl!$C$6-1),12,1)) -> 1.339383333 | AB43: =AVERAGE(OFFSET(Cat4DCwall!$E$10,12*($A43-1),4*(PlotControl!$C$6-1),12,1)) -> 4.243916667 | AC43: =AVERAGE(OFFSET(Orewall!$C$10,12*($A43-1),4*(PlotControl!$C$6-1),12,1)) -> 13.4235 | AD43: =AVERAGE(OFFSET(Orewall!$D$10,12*($A43-1),4*(PlotControl!$C$6-1),12,1)) -> 41.85875 | AE43: =AVERAGE(OFFSET(Orewall!$E$10,12*($A43-1),4*(PlotControl!$C$6-1),12,1)) -> 136.6166667 | AF43: =AVERAGE(OFFSET(Cat4VFwall!$C$10,12*($A43-1),4*(PlotControl!$C$6-1),12,1)) -> 232.7275 | AG43: =AVERAGE(OFFSET(Cat4VFwall!$D$10,12*($A43-1),4*(PlotControl!$C$6-1),12,1)) -> 526.4383333 | AH43: =AVERAGE(OFFSET(Cat4VFwall!$E$10,12*($A43-1),4*(PlotControl!$C$6-1),12,1)) -> 1060.545 | AI43: =AVERAGE(OFFSET(Cat1Bkf!$C$10,12*($A43-1),4*(PlotControl!$C$6-1),12,1)) -> 0 | AJ43: =AVERAGE(OFFSET(Cat1Bkf!$D$10,12*($A43-1),4*(PlotControl!$C$6-1),12,1)) -> 0 | AK43: =AVERAGE(OFFSET(Cat1Bkf!$E$10,12*($A43-1),4*(PlotControl!$C$6-1),12,1)) -> 0 | AL43: =AVERAGE(OFFSET(Cat23Bkf!$C$10,12*($A43-1),4*(PlotControl!$C$6-1),12,1)) -> 0 | AM43: =AVERAGE(OFFSET(Cat23Bkf!$D$10,12*($A43-1),4*(PlotControl!$C$6-1),12,1)) -> 0 | AN43: =AVERAGE(OFFSET(Cat23Bkf!$E$10,12*($A43-1),4*(PlotControl!$C$6-1),12,1)) -> 0 | AO43: =AVERAGE(OFFSET(Cat4DCBkf!$C$10,12*($A43-1),4*(PlotControl!$C$6-1),12,1)) -> 0 | AP43: =AVERAGE(OFFSET(Cat4DCBkf!$D$10,12*($A43-1),4*(PlotControl!$C$6-1),12,1)) -> 0 | AQ43: =AVERAGE(OFFSET(Cat4DCBkf!$E$10,12*($A43-1),4*(PlotControl!$C$6-1),12,1)) -> 0 | AR43: =AVERAGE(OFFSET(Cat4VFBkf!$C$10,12*($A43-1),4*(PlotControl!$C$6-1),12,1)) -> 0 | AS43: =AVERAGE(OFFSET(Cat4VFBkf!$D$10,12*($A43-1),4*(PlotControl!$C$6-1),12,1)) -> 0 | AT43: =AVERAGE(OFFSET(Cat4VFBkf!$E$10,12*($A43-1),4*(PlotControl!$C$6-1),12,1)) -> 0
A44: 40 | B44: =AVERAGE(OFFSET(Total!$C$10,12*($A44-1),4*(PlotControl!$C$6-1),12,1)) -> 1718.275 | C44: =AVERAGE(OFFSET(Total!$D$10,12*($A44-1),4*(PlotControl!$C$6-1),12,1)) -> 2429.716667 | D44: =AVERAGE(OFFSET(Total!$E$10,12*($A44-1),4*(PlotControl!$C$6-1),12,1)) -> 3749.025 | E44: =AVERAGE(OFFSET(RO!$C$10,12*($A44-1),4*(PlotControl!$C$6-1),12,1)) -> 118.3389167 | F44: =AVERAGE(OFFSET(RO!$D$10,12*($A44-1),4*(PlotControl!$C$6-1),12,1)) -> 426.4608333 | G44: =AVERAGE(OFFSET(RO!$E$10,12*($A44-1),4*(PlotControl!$C$6-1),12,1)) -> 1429.471667 | H44: =AVERAGE(OFFSET(GW!$C$10,12*($A44-1),4*(PlotControl!$C$6-1),12,1)) -> 929.0283333 | I44: =AVERAGE(OFFSET(GW!$D$10,12*($A44-1),4*(PlotControl!$C$6-1),12,1)) -> 1146.991667 | J44: =AVERAGE(OFFSET(GW!$E$10,12*($A44-1),4*(PlotControl!$C$6-1),12,1)) -> 1690.408333 | K44: =AVERAGE(OFFSET(CPS!$C$10,12*($A44-1),4*(PlotControl!$C$6-1),12,1)) -> 0 | L44: =AVERAGE(OFFSET(CPS!$D$10,12*($A44-1),4*(PlotControl!$C$6-1),12,1)) -> 0 | M44: =AVERAGE(OFFSET(CPS!$E$10,12*($A44-1),4*(PlotControl!$C$6-1),12,1)) -> 0 | N44: =AVERAGE(OFFSET(Blast!$C$10,12*($A44-1),4*(PlotControl!$C$6-1),12,1)) -> 0 | O44: =AVERAGE(OFFSET(Blast!$D$10,12*($A44-1),4*(PlotControl!$C$6-1),12,1)) -> 0 | P44: =AVERAGE(OFFSET(Blast!$E$10,12*($A44-1),4*(PlotControl!$C$6-1),12,1)) -> 0 | Q44: =AVERAGE(OFFSET(Cat1SP_leak!$C$10,12*($A44-1),4*(PlotControl!$C$6-1),12,1)) -> 0 | R44: =AVERAGE(OFFSET(Cat1SP_leak!$D$10,12*($A44-1),4*(PlotControl!$C$6-1),12,1)) -> 0 | S44: =AVERAGE(OFFSET(Cat1SP_leak!$E$10,12*($A44-1),4*(PlotControl!$C$6-1),12,1)) -> 0 | T44: =AVERAGE(OFFSET(Cat1wall!$C$10,12*($A44-1),4*(PlotControl!$C$6-1),12,1)) -> 4.687708333 | U44: =AVERAGE(OFFSET(Cat1wall!$D$10,12*($A44-1),4*(PlotControl!$C$6-1),12,1)) -> 10.58703333 | V44: =AVERAGE(OFFSET(Cat1wall!$E$10,12*($A44-1),4*(PlotControl!$C$6-1),12,1)) -> 22.61925 | W44: =AVERAGE(OFFSET(Cat23wall!$C$10,12*($A44-1),4*(PlotControl!$C$6-1),12,1)) -> 8.927183333 | X44: =AVERAGE(OFFSET(Cat23wall!$D$10,12*($A44-1),4*(PlotControl!$C$6-1),12,1)) -> 28.332 | Y44: =AVERAGE(OFFSET(Cat23wall!$E$10,12*($A44-1),4*(PlotControl!$C$6-1),12,1)) -> 91.25183333 | Z44: =AVERAGE(OFFSET(Cat4DCwall!$C$10,12*($A44-1),4*(PlotControl!$C$6-1),12,1)) -> 0.3910383333 | AA44: =AVERAGE(OFFSET(Cat4DCwall!$D$10,12*($A44-1),4*(PlotControl!$C$6-1),12,1)) -> 1.232808333 | AB44: =AVERAGE(OFFSET(Cat4DCwall!$E$10,12*($A44-1),4*(PlotControl!$C$6-1),12,1)) -> 4.198141667 | AC44: =AVERAGE(OFFSET(Orewall!$C$10,12*($A44-1),4*(PlotControl!$C$6-1),12,1)) -> 12.09466667 | AD44: =AVERAGE(OFFSET(Orewall!$D$10,12*($A44-1),4*(PlotControl!$C$6-1),12,1)) -> 38.4215 | AE44: =AVERAGE(OFFSET(Orewall!$E$10,12*($A44-1),4*(PlotControl!$C$6-1),12,1)) -> 134.9108333 | AF44: =AVERAGE(OFFSET(Cat4VFwall!$C$10,12*($A44-1),4*(PlotControl!$C$6-1),12,1)) -> 236.63 | AG44: =AVERAGE(OFFSET(Cat4VFwall!$D$10,12*($A44-1),4*(PlotControl!$C$6-1),12,1)) -> 511.8816667 | AH44: =AVERAGE(OFFSET(Cat4VFwall!$E$10,12*($A44-1),4*(PlotControl!$C$6-1),12,1)) -> 1047.890833 | AI44: =AVERAGE(OFFSET(Cat1Bkf!$C$10,12*($A44-1),4*(PlotControl!$C$6-1),12,1)) -> 0 | AJ44: =AVERAGE(OFFSET(Cat1Bkf!$D$10,12*($A44-1),4*(PlotControl!$C$6-1),12,1)) -> 0 | AK44: =AVERAGE(OFFSET(Cat1Bkf!$E$10,12*($A44-1),4*(PlotControl!$C$6-1),12,1)) -> 0 | AL44: =AVERAGE(OFFSET(Cat23Bkf!$C$10,12*($A44-1),4*(PlotControl!$C$6-1),12,1)) -> 0 | AM44: =AVERAGE(OFFSET(Cat23Bkf!$D$10,12*($A44-1),4*(PlotControl!$C$6-1),12,1)) -> 0 | AN44: =AVERAGE(OFFSET(Cat23Bkf!$E$10,12*($A44-1),4*(PlotControl!$C$6-1),12,1)) -> 0 | AO44: =AVERAGE(OFFSET(Cat4DCBkf!$C$10,12*($A44-1),4*(PlotControl!$C$6-1),12,1)) -> 0 | AP44: =AVERAGE(OFFSET(Cat4DCBkf!$D$10,12*($A44-1),4*(PlotControl!$C$6-1),12,1)) -> 0 | AQ44: =AVERAGE(OFFSET(Cat4DCBkf!$E$10,12*($A44-1),4*(PlotControl!$C$6-1),12,1)) -> 0 | AR44: =AVERAGE(OFFSET(Cat4VFBkf!$C$10,12*($A44-1),4*(PlotControl!$C$6-1),12,1)) -> 0 | AS44: =AVERAGE(OFFSET(Cat4VFBkf!$D$10,12*($A44-1),4*(PlotControl!$C$6-1),12,1)) -> 0 | AT44: =AVERAGE(OFFSET(Cat4VFBkf!$E$10,12*($A44-1),4*(PlotControl!$C$6-1),12,1)) -> 0
A45: 41 | B45: =AVERAGE(OFFSET(Total!$C$10,12*($A45-1),4*(PlotControl!$C$6-1),12,1)) -> 1730.091667 | C45: =AVERAGE(OFFSET(Total!$D$10,12*($A45-1),4*(PlotControl!$C$6-1),12,1)) -> 2429.35 | D45: =AVERAGE(OFFSET(Total!$E$10,12*($A45-1),4*(PlotControl!$C$6-1),12,1)) -> 3810.783333 | E45: =AVERAGE(OFFSET(RO!$C$10,12*($A45-1),4*(PlotControl!$C$6-1),12,1)) -> 121.0676667 | F45: =AVERAGE(OFFSET(RO!$D$10,12*($A45-1),4*(PlotControl!$C$6-1),12,1)) -> 449.85 | G45: =AVERAGE(OFFSET(RO!$E$10,12*($A45-1),4*(PlotControl!$C$6-1),12,1)) -> 1470.229167 | H45: =AVERAGE(OFFSET(GW!$C$10,12*($A45-1),4*(PlotControl!$C$6-1),12,1)) -> 929.1708333 | I45: =AVERAGE(OFFSET(GW!$D$10,12*($A45-1),4*(PlotControl!$C$6-1),12,1)) -> 1146.45 | J45: =AVERAGE(OFFSET(GW!$E$10,12*($A45-1),4*(PlotControl!$C$6-1),12,1)) -> 1691.058333 | K45: =AVERAGE(OFFSET(CPS!$C$10,12*($A45-1),4*(PlotControl!$C$6-1),12,1)) -> 0 | L45: =AVERAGE(OFFSET(CPS!$D$10,12*($A45-1),4*(PlotControl!$C$6-1),12,1)) -> 0 | M45: =AVERAGE(OFFSET(CPS!$E$10,12*($A45-1),4*(PlotControl!$C$6-1),12,1)) -> 0 | N45: =AVERAGE(OFFSET(Blast!$C$10,12*($A45-1),4*(PlotControl!$C$6-1),12,1)) -> 0 | O45: =AVERAGE(OFFSET(Blast!$D$10,12*($A45-1),4*(PlotControl!$C$6-1),12,1)) -> 0 | P45: =AVERAGE(OFFSET(Blast!$E$10,12*($A45-1),4*(PlotControl!$C$6-1),12,1)) -> 0 | Q45: =AVERAGE(OFFSET(Cat1SP_leak!$C$10,12*($A45-1),4*(PlotControl!$C$6-1),12,1)) -> 0 | R45: =AVERAGE(OFFSET(Cat1SP_leak!$D$10,12*($A45-1),4*(PlotControl!$C$6-1),12,1)) -> 0 | S45: =AVERAGE(OFFSET(Cat1SP_leak!$E$10,12*($A45-1),4*(PlotControl!$C$6-1),12,1)) -> 0 | T45: =AVERAGE(OFFSET(Cat1wall!$C$10,12*($A45-1),4*(PlotControl!$C$6-1),12,1)) -> 4.665725 | U45: =AVERAGE(OFFSET(Cat1wall!$D$10,12*($A45-1),4*(PlotControl!$C$6-1),12,1)) -> 10.3944 | V45: =AVERAGE(OFFSET(Cat1wall!$E$10,12*($A45-1),4*(PlotControl!$C$6-1),12,1)) -> 22.29133333 | W45: =AVERAGE(OFFSET(Cat23wall!$C$10,12*($A45-1),4*(PlotControl!$C$6-1),12,1)) -> 8.480466667 | X45: =AVERAGE(OFFSET(Cat23wall!$D$10,12*($A45-1),4*(PlotControl!$C$6-1),12,1)) -> 26.36183333 | Y45: =AVERAGE(OFFSET(Cat23wall!$E$10,12*($A45-1),4*(PlotControl!$C$6-1),12,1)) -> 85.25541667 | Z45: =AVERAGE(OFFSET(Cat4DCwall!$C$10,12*($A45-1),4*(PlotControl!$C$6-1),12,1)) -> 0.3688591667 | AA45: =AVERAGE(OFFSET(Cat4DCwall!$D$10,12*($A45-1),4*(PlotControl!$C$6-1),12,1)) -> 1.19195 | AB45: =AVERAGE(OFFSET(Cat4DCwall!$E$10,12*($A45-1),4*(PlotControl!$C$6-1),12,1)) -> 3.916016667 | AC45: =AVERAGE(OFFSET(Orewall!$C$10,12*($A45-1),4*(PlotControl!$C$6-1),12,1)) -> 11.43441667 | AD45: =AVERAGE(OFFSET(Orewall!$D$10,12*($A45-1),4*(PlotControl!$C$6-1),12,1)) -> 37.13375 | AE45: =AVERAGE(OFFSET(Orewall!$E$10,12*($A45-1),4*(PlotControl!$C$6-1),12,1)) -> 126.3025 | AF45: =AVERAGE(OFFSET(Cat4VFwall!$C$10,12*($A45-1),4*(PlotControl!$C$6-1),12,1)) -> 230.9125 | AG45: =AVERAGE(OFFSET(Cat4VFwall!$D$10,12*($A45-1),4*(PlotControl!$C$6-1),12,1)) -> 505.67 | AH45: =AVERAGE(OFFSET(Cat4VFwall!$E$10,12*($A45-1),4*(PlotControl!$C$6-1),12,1)) -> 1030.5425 | AI45: =AVERAGE(OFFSET(Cat1Bkf!$C$10,12*($A45-1),4*(PlotControl!$C$6-1),12,1)) -> 0 | AJ45: =AVERAGE(OFFSET(Cat1Bkf!$D$10,12*($A45-1),4*(PlotControl!$C$6-1),12,1)) -> 0 | AK45: =AVERAGE(OFFSET(Cat1Bkf!$E$10,12*($A45-1),4*(PlotControl!$C$6-1),12,1)) -> 0 | AL45: =AVERAGE(OFFSET(Cat23Bkf!$C$10,12*($A45-1),4*(PlotControl!$C$6-1),12,1)) -> 0 | AM45: =AVERAGE(OFFSET(Cat23Bkf!$D$10,12*($A45-1),4*(PlotControl!$C$6-1),12,1)) -> 0 | AN45: =AVERAGE(OFFSET(Cat23Bkf!$E$10,12*($A45-1),4*(PlotControl!$C$6-1),12,1)) -> 0 | AO45: =AVERAGE(OFFSET(Cat4DCBkf!$C$10,12*($A45-1),4*(PlotControl!$C$6-1),12,1)) -> 0 | AP45: =AVERAGE(OFFSET(Cat4DCBkf!$D$10,12*($A45-1),4*(PlotControl!$C$6-1),12,1)) -> 0 | AQ45: =AVERAGE(OFFSET(Cat4DCBkf!$E$10,12*($A45-1),4*(PlotControl!$C$6-1),12,1)) -> 0 | AR45: =AVERAGE(OFFSET(Cat4VFBkf!$C$10,12*($A45-1),4*(PlotControl!$C$6-1),12,1)) -> 0 | AS45: =AVERAGE(OFFSET(Cat4VFBkf!$D$10,12*($A45-1),4*(PlotControl!$C$6-1),12,1)) -> 0 | AT45: =AVERAGE(OFFSET(Cat4VFBkf!$E$10,12*($A45-1),4*(PlotControl!$C$6-1),12,1)) -> 0
A46: 42 | B46: =AVERAGE(OFFSET(Total!$C$10,12*($A46-1),4*(PlotControl!$C$6-1),12,1)) -> 1711.175 | C46: =AVERAGE(OFFSET(Total!$D$10,12*($A46-1),4*(PlotControl!$C$6-1),12,1)) -> 2409.741667 | D46: =AVERAGE(OFFSET(Total!$E$10,12*($A46-1),4*(PlotControl!$C$6-1),12,1)) -> 3806.575 | E46: =AVERAGE(OFFSET(RO!$C$10,12*($A46-1),4*(PlotControl!$C$6-1),12,1)) -> 125.0724167 | F46: =AVERAGE(OFFSET(RO!$D$10,12*($A46-1),4*(PlotControl!$C$6-1),12,1)) -> 430.4508333 | G46: =AVERAGE(OFFSET(RO!$E$10,12*($A46-1),4*(PlotControl!$C$6-1),12,1)) -> 1509.1025 | H46: =AVERAGE(OFFSET(GW!$C$10,12*($A46-1),4*(PlotControl!$C$6-1),12,1)) -> 929.6808333 | I46: =AVERAGE(OFFSET(GW!$D$10,12*($A46-1),4*(PlotControl!$C$6-1),12,1)) -> 1145.566667 | J46: =AVERAGE(OFFSET(GW!$E$10,12*($A46-1),4*(PlotControl!$C$6-1),12,1)) -> 1692.316667 | K46: =AVERAGE(OFFSET(CPS!$C$10,12*($A46-1),4*(PlotControl!$C$6-1),12,1)) -> 0 | L46: =AVERAGE(OFFSET(CPS!$D$10,12*($A46-1),4*(PlotControl!$C$6-1),12,1)) -> 0 | M46: =AVERAGE(OFFSET(CPS!$E$10,12*($A46-1),4*(PlotControl!$C$6-1),12,1)) -> 0 | N46: =AVERAGE(OFFSET(Blast!$C$10,12*($A46-1),4*(PlotControl!$C$6-1),12,1)) -> 0 | O46: =AVERAGE(OFFSET(Blast!$D$10,12*($A46-1),4*(PlotControl!$C$6-1),12,1)) -> 0 | P46: =AVERAGE(OFFSET(Blast!$E$10,12*($A46-1),4*(PlotControl!$C$6-1),12,1)) -> 0 | Q46: =AVERAGE(OFFSET(Cat1SP_leak!$C$10,12*($A46-1),4*(PlotControl!$C$6-1),12,1)) -> 0 | R46: =AVERAGE(OFFSET(Cat1SP_leak!$D$10,12*($A46-1),4*(PlotControl!$C$6-1),12,1)) -> 0 | S46: =AVERAGE(OFFSET(Cat1SP_leak!$E$10,12*($A46-1),4*(PlotControl!$C$6-1),12,1)) -> 0 | T46: =AVERAGE(OFFSET(Cat1wall!$C$10,12*($A46-1),4*(PlotControl!$C$6-1),12,1)) -> 4.89715 | U46: =AVERAGE(OFFSET(Cat1wall!$D$10,12*($A46-1),4*(PlotControl!$C$6-1),12,1)) -> 10.53129167 | V46: =AVERAGE(OFFSET(Cat1wall!$E$10,12*($A46-1),4*(PlotControl!$C$6-1),12,1)) -> 22.08883333 | W46: =AVERAGE(OFFSET(Cat23wall!$C$10,12*($A46-1),4*(PlotControl!$C$6-1),12,1)) -> 7.822375 | X46: =AVERAGE(OFFSET(Cat23wall!$D$10,12*($A46-1),4*(PlotControl!$C$6-1),12,1)) -> 24.98 | Y46: =AVERAGE(OFFSET(Cat23wall!$E$10,12*($A46-1),4*(PlotControl!$C$6-1),12,1)) -> 80.20825 | Z46: =AVERAGE(OFFSET(Cat4DCwall!$C$10,12*($A46-1),4*(PlotControl!$C$6-1),12,1)) -> 0.35844 | AA46: =AVERAGE(OFFSET(Cat4DCwall!$D$10,12*($A46-1),4*(PlotControl!$C$6-1),12,1)) -> 1.1062275 | AB46: =AVERAGE(OFFSET(Cat4DCwall!$E$10,12*($A46-1),4*(PlotControl!$C$6-1),12,1)) -> 3.841666667 | AC46: =AVERAGE(OFFSET(Orewall!$C$10,12*($A46-1),4*(PlotControl!$C$6-1),12,1)) -> 11.10383333 | AD46: =AVERAGE(OFFSET(Orewall!$D$10,12*($A46-1),4*(PlotControl!$C$6-1),12,1)) -> 34.47316667 | AE46: =AVERAGE(OFFSET(Orewall!$E$10,12*($A46-1),4*(PlotControl!$C$6-1),12,1)) -> 122.5766667 | AF46: =AVERAGE(OFFSET(Cat4VFwall!$C$10,12*($A46-1),4*(PlotControl!$C$6-1),12,1)) -> 234.4725 | AG46: =AVERAGE(OFFSET(Cat4VFwall!$D$10,12*($A46-1),4*(PlotControl!$C$6-1),12,1)) -> 504.1 | AH46: =AVERAGE(OFFSET(Cat4VFwall!$E$10,12*($A46-1),4*(PlotControl!$C$6-1),12,1)) -> 1022.641667 | AI46: =AVERAGE(OFFSET(Cat1Bkf!$C$10,12*($A46-1),4*(PlotControl!$C$6-1),12,1)) -> 0 | AJ46: =AVERAGE(OFFSET(Cat1Bkf!$D$10,12*($A46-1),4*(PlotControl!$C$6-1),12,1)) -> 0 | AK46: =AVERAGE(OFFSET(Cat1Bkf!$E$10,12*($A46-1),4*(PlotControl!$C$6-1),12,1)) -> 0 | AL46: =AVERAGE(OFFSET(Cat23Bkf!$C$10,12*($A46-1),4*(PlotControl!$C$6-1),12,1)) -> 0 | AM46: =AVERAGE(OFFSET(Cat23Bkf!$D$10,12*($A46-1),4*(PlotControl!$C$6-1),12,1)) -> 0 | AN46: =AVERAGE(OFFSET(Cat23Bkf!$E$10,12*($A46-1),4*(PlotControl!$C$6-1),12,1)) -> 0 | AO46: =AVERAGE(OFFSET(Cat4DCBkf!$C$10,12*($A46-1),4*(PlotControl!$C$6-1),12,1)) -> 0 | AP46: =AVERAGE(OFFSET(Cat4DCBkf!$D$10,12*($A46-1),4*(PlotControl!$C$6-1),12,1)) -> 0 | AQ46: =AVERAGE(OFFSET(Cat4DCBkf!$E$10,12*($A46-1),4*(PlotControl!$C$6-1),12,1)) -> 0 | AR46: =AVERAGE(OFFSET(Cat4VFBkf!$C$10,12*($A46-1),4*(PlotControl!$C$6-1),12,1)) -> 0 | AS46: =AVERAGE(OFFSET(Cat4VFBkf!$D$10,12*($A46-1),4*(PlotControl!$C$6-1),12,1)) -> 0 | AT46: =AVERAGE(OFFSET(Cat4VFBkf!$E$10,12*($A46-1),4*(PlotControl!$C$6-1),12,1)) -> 0
A47: 43 | B47: =AVERAGE(OFFSET(Total!$C$10,12*($A47-1),4*(PlotControl!$C$6-1),12,1)) -> 1699.266667 | C47: =AVERAGE(OFFSET(Total!$D$10,12*($A47-1),4*(PlotControl!$C$6-1),12,1)) -> 2409.558333 | D47: =AVERAGE(OFFSET(Total!$E$10,12*($A47-1),4*(PlotControl!$C$6-1),12,1)) -> 3743.025 | E47: =AVERAGE(OFFSET(RO!$C$10,12*($A47-1),4*(PlotControl!$C$6-1),12,1)) -> 116.67725 | F47: =AVERAGE(OFFSET(RO!$D$10,12*($A47-1),4*(PlotControl!$C$6-1),12,1)) -> 431.8383333 | G47: =AVERAGE(OFFSET(RO!$E$10,12*($A47-1),4*(PlotControl!$C$6-1),12,1)) -> 1429.844167 | H47: =AVERAGE(OFFSET(GW!$C$10,12*($A47-1),4*(PlotControl!$C$6-1),12,1)) -> 928.6475 | I47: =AVERAGE(OFFSET(GW!$D$10,12*($A47-1),4*(PlotControl!$C$6-1),12,1)) -> 1144.341667 | J47: =AVERAGE(OFFSET(GW!$E$10,12*($A47-1),4*(PlotControl!$C$6-1),12,1)) -> 1691 | K47: =AVERAGE(OFFSET(CPS!$C$10,12*($A47-1),4*(PlotControl!$C$6-1),12,1)) -> 0 | L47: =AVERAGE(OFFSET(CPS!$D$10,12*($A47-1),4*(PlotControl!$C$6-1),12,1)) -> 0 | M47: =AVERAGE(OFFSET(CPS!$E$10,12*($A47-1),4*(PlotControl!$C$6-1),12,1)) -> 0 | N47: =AVERAGE(OFFSET(Blast!$C$10,12*($A47-1),4*(PlotControl!$C$6-1),12,1)) -> 0 | O47: =AVERAGE(OFFSET(Blast!$D$10,12*($A47-1),4*(PlotControl!$C$6-1),12,1)) -> 0 | P47: =AVERAGE(OFFSET(Blast!$E$10,12*($A47-1),4*(PlotControl!$C$6-1),12,1)) -> 0 | Q47: =AVERAGE(OFFSET(Cat1SP_leak!$C$10,12*($A47-1),4*(PlotControl!$C$6-1),12,1)) -> 0 | R47: =AVERAGE(OFFSET(Cat1SP_leak!$D$10,12*($A47-1),4*(PlotControl!$C$6-1),12,1)) -> 0 | S47: =AVERAGE(OFFSET(Cat1SP_leak!$E$10,12*($A47-1),4*(PlotControl!$C$6-1),12,1)) -> 0 | T47: =AVERAGE(OFFSET(Cat1wall!$C$10,12*($A47-1),4*(PlotControl!$C$6-1),12,1)) -> 4.846225 | U47: =AVERAGE(OFFSET(Cat1wall!$D$10,12*($A47-1),4*(PlotControl!$C$6-1),12,1)) -> 10.36603333 | V47: =AVERAGE(OFFSET(Cat1wall!$E$10,12*($A47-1),4*(PlotControl!$C$6-1),12,1)) -> 22.595 | W47: =AVERAGE(OFFSET(Cat23wall!$C$10,12*($A47-1),4*(PlotControl!$C$6-1),12,1)) -> 7.390566667 | X47: =AVERAGE(OFFSET(Cat23wall!$D$10,12*($A47-1),4*(PlotControl!$C$6-1),12,1)) -> 24.21675 | Y47: =AVERAGE(OFFSET(Cat23wall!$E$10,12*($A47-1),4*(PlotControl!$C$6-1),12,1)) -> 82.39408333 | Z47: =AVERAGE(OFFSET(Cat4DCwall!$C$10,12*($A47-1),4*(PlotControl!$C$6-1),12,1)) -> 0.3316466667 | AA47: =AVERAGE(OFFSET(Cat4DCwall!$D$10,12*($A47-1),4*(PlotControl!$C$6-1),12,1)) -> 1.088071667 | AB47: =AVERAGE(OFFSET(Cat4DCwall!$E$10,12*($A47-1),4*(PlotControl!$C$6-1),12,1)) -> 3.913075 | AC47: =AVERAGE(OFFSET(Orewall!$C$10,12*($A47-1),4*(PlotControl!$C$6-1),12,1)) -> 10.271 | AD47: =AVERAGE(OFFSET(Orewall!$D$10,12*($A47-1),4*(PlotControl!$C$6-1),12,1)) -> 33.97183333 | AE47: =AVERAGE(OFFSET(Orewall!$E$10,12*($A47-1),4*(PlotControl!$C$6-1),12,1)) -> 127.0666667 | AF47: =AVERAGE(OFFSET(Cat4VFwall!$C$10,12*($A47-1),4*(PlotControl!$C$6-1),12,1)) -> 237.7683333 | AG47: =AVERAGE(OFFSET(Cat4VFwall!$D$10,12*($A47-1),4*(PlotControl!$C$6-1),12,1)) -> 508.105 | AH47: =AVERAGE(OFFSET(Cat4VFwall!$E$10,12*($A47-1),4*(PlotControl!$C$6-1),12,1)) -> 1058.706667 | AI47: =AVERAGE(OFFSET(Cat1Bkf!$C$10,12*($A47-1),4*(PlotControl!$C$6-1),12,1)) -> 0 | AJ47: =AVERAGE(OFFSET(Cat1Bkf!$D$10,12*($A47-1),4*(PlotControl!$C$6-1),12,1)) -> 0 | AK47: =AVERAGE(OFFSET(Cat1Bkf!$E$10,12*($A47-1),4*(PlotControl!$C$6-1),12,1)) -> 0 | AL47: =AVERAGE(OFFSET(Cat23Bkf!$C$10,12*($A47-1),4*(PlotControl!$C$6-1),12,1)) -> 0 | AM47: =AVERAGE(OFFSET(Cat23Bkf!$D$10,12*($A47-1),4*(PlotControl!$C$6-1),12,1)) -> 0 | AN47: =AVERAGE(OFFSET(Cat23Bkf!$E$10,12*($A47-1),4*(PlotControl!$C$6-1),12,1)) -> 0 | AO47: =AVERAGE(OFFSET(Cat4DCBkf!$C$10,12*($A47-1),4*(PlotControl!$C$6-1),12,1)) -> 0 | AP47: =AVERAGE(OFFSET(Cat4DCBkf!$D$10,12*($A47-1),4*(PlotControl!$C$6-1),12,1)) -> 0 | AQ47: =AVERAGE(OFFSET(Cat4DCBkf!$E$10,12*($A47-1),4*(PlotControl!$C$6-1),12,1)) -> 0 | AR47: =AVERAGE(OFFSET(Cat4VFBkf!$C$10,12*($A47-1),4*(PlotControl!$C$6-1),12,1)) -> 0 | AS47: =AVERAGE(OFFSET(Cat4VFBkf!$D$10,12*($A47-1),4*(PlotControl!$C$6-1),12,1)) -> 0 | AT47: =AVERAGE(OFFSET(Cat4VFBkf!$E$10,12*($A47-1),4*(PlotControl!$C$6-1),12,1)) -> 0
A48: 44 | B48: =AVERAGE(OFFSET(Total!$C$10,12*($A48-1),4*(PlotControl!$C$6-1),12,1)) -> 1713.616667 | C48: =AVERAGE(OFFSET(Total!$D$10,12*($A48-1),4*(PlotControl!$C$6-1),12,1)) -> 2411.166667 | D48: =AVERAGE(OFFSET(Total!$E$10,12*($A48-1),4*(PlotControl!$C$6-1),12,1)) -> 3794.333333 | E48: =AVERAGE(OFFSET(RO!$C$10,12*($A48-1),4*(PlotControl!$C$6-1),12,1)) -> 116.0246667 | F48: =AVERAGE(OFFSET(RO!$D$10,12*($A48-1),4*(PlotControl!$C$6-1),12,1)) -> 438.6733333 | G48: =AVERAGE(OFFSET(RO!$E$10,12*($A48-1),4*(PlotControl!$C$6-1),12,1)) -> 1415.9225 | H48: =AVERAGE(OFFSET(GW!$C$10,12*($A48-1),4*(PlotControl!$C$6-1),12,1)) -> 928.535 | I48: =AVERAGE(OFFSET(GW!$D$10,12*($A48-1),4*(PlotControl!$C$6-1),12,1)) -> 1146.1 | J48: =AVERAGE(OFFSET(GW!$E$10,12*($A48-1),4*(PlotControl!$C$6-1),12,1)) -> 1688.325 | K48: =AVERAGE(OFFSET(CPS!$C$10,12*($A48-1),4*(PlotControl!$C$6-1),12,1)) -> 0 | L48: =AVERAGE(OFFSET(CPS!$D$10,12*($A48-1),4*(PlotControl!$C$6-1),12,1)) -> 0 | M48: =AVERAGE(OFFSET(CPS!$E$10,12*($A48-1),4*(PlotControl!$C$6-1),12,1)) -> 0 | N48: =AVERAGE(OFFSET(Blast!$C$10,12*($A48-1),4*(PlotControl!$C$6-1),12,1)) -> 0 | O48: =AVERAGE(OFFSET(Blast!$D$10,12*($A48-1),4*(PlotControl!$C$6-1),12,1)) -> 0 | P48: =AVERAGE(OFFSET(Blast!$E$10,12*($A48-1),4*(PlotControl!$C$6-1),12,1)) -> 0 | Q48: =AVERAGE(OFFSET(Cat1SP_leak!$C$10,12*($A48-1),4*(PlotControl!$C$6-1),12,1)) -> 0 | R48: =AVERAGE(OFFSET(Cat1SP_leak!$D$10,12*($A48-1),4*(PlotControl!$C$6-1),12,1)) -> 0 | S48: =AVERAGE(OFFSET(Cat1SP_leak!$E$10,12*($A48-1),4*(PlotControl!$C$6-1),12,1)) -> 0 | T48: =AVERAGE(OFFSET(Cat1wall!$C$10,12*($A48-1),4*(PlotControl!$C$6-1),12,1)) -> 4.482583333 | U48: =AVERAGE(OFFSET(Cat1wall!$D$10,12*($A48-1),4*(PlotControl!$C$6-1),12,1)) -> 10.6535 | V48: =AVERAGE(OFFSET(Cat1wall!$E$10,12*($A48-1),4*(PlotControl!$C$6-1),12,1)) -> 22.65641667 | W48: =AVERAGE(OFFSET(Cat23wall!$C$10,12*($A48-1),4*(PlotControl!$C$6-1),12,1)) -> 6.813975 | X48: =AVERAGE(OFFSET(Cat23wall!$D$10,12*($A48-1),4*(PlotControl!$C$6-1),12,1)) -> 23.71741667 | Y48: =AVERAGE(OFFSET(Cat23wall!$E$10,12*($A48-1),4*(PlotControl!$C$6-1),12,1)) -> 77.28166667 | Z48: =AVERAGE(OFFSET(Cat4DCwall!$C$10,12*($A48-1),4*(PlotControl!$C$6-1),12,1)) -> 0.3183425 | AA48: =AVERAGE(OFFSET(Cat4DCwall!$D$10,12*($A48-1),4*(PlotControl!$C$6-1),12,1)) -> 1.066486667 | AB48: =AVERAGE(OFFSET(Cat4DCwall!$E$10,12*($A48-1),4*(PlotControl!$C$6-1),12,1)) -> 3.782016667 | AC48: =AVERAGE(OFFSET(Orewall!$C$10,12*($A48-1),4*(PlotControl!$C$6-1),12,1)) -> 9.808916667 | AD48: =AVERAGE(OFFSET(Orewall!$D$10,12*($A48-1),4*(PlotControl!$C$6-1),12,1)) -> 33.46358333 | AE48: =AVERAGE(OFFSET(Orewall!$E$10,12*($A48-1),4*(PlotControl!$C$6-1),12,1)) -> 121.3854167 | AF48: =AVERAGE(OFFSET(Cat4VFwall!$C$10,12*($A48-1),4*(PlotControl!$C$6-1),12,1)) -> 226.7525 | AG48: =AVERAGE(OFFSET(Cat4VFwall!$D$10,12*($A48-1),4*(PlotControl!$C$6-1),12,1)) -> 520.9666667 | AH48: =AVERAGE(OFFSET(Cat4VFwall!$E$10,12*($A48-1),4*(PlotControl!$C$6-1),12,1)) -> 1064.823333 | AI48: =AVERAGE(OFFSET(Cat1Bkf!$C$10,12*($A48-1),4*(PlotControl!$C$6-1),12,1)) -> 0 | AJ48: =AVERAGE(OFFSET(Cat1Bkf!$D$10,12*($A48-1),4*(PlotControl!$C$6-1),12,1)) -> 0 | AK48: =AVERAGE(OFFSET(Cat1Bkf!$E$10,12*($A48-1),4*(PlotControl!$C$6-1),12,1)) -> 0 | AL48: =AVERAGE(OFFSET(Cat23Bkf!$C$10,12*($A48-1),4*(PlotControl!$C$6-1),12,1)) -> 0 | AM48: =AVERAGE(OFFSET(Cat23Bkf!$D$10,12*($A48-1),4*(PlotControl!$C$6-1),12,1)) -> 0 | AN48: =AVERAGE(OFFSET(Cat23Bkf!$E$10,12*($A48-1),4*(PlotControl!$C$6-1),12,1)) -> 0 | AO48: =AVERAGE(OFFSET(Cat4DCBkf!$C$10,12*($A48-1),4*(PlotControl!$C$6-1),12,1)) -> 0 | AP48: =AVERAGE(OFFSET(Cat4DCBkf!$D$10,12*($A48-1),4*(PlotControl!$C$6-1),12,1)) -> 0 | AQ48: =AVERAGE(OFFSET(Cat4DCBkf!$E$10,12*($A48-1),4*(PlotControl!$C$6-1),12,1)) -> 0 | AR48: =AVERAGE(OFFSET(Cat4VFBkf!$C$10,12*($A48-1),4*(PlotControl!$C$6-1),12,1)) -> 0 | AS48: =AVERAGE(OFFSET(Cat4VFBkf!$D$10,12*($A48-1),4*(PlotControl!$C$6-1),12,1)) -> 0 | AT48: =AVERAGE(OFFSET(Cat4VFBkf!$E$10,12*($A48-1),4*(PlotControl!$C$6-1),12,1)) -> 0
A49: 45 | B49: =AVERAGE(OFFSET(Total!$C$10,12*($A49-1),4*(PlotControl!$C$6-1),12,1)) -> 1702.733333 | C49: =AVERAGE(OFFSET(Total!$D$10,12*($A49-1),4*(PlotControl!$C$6-1),12,1)) -> 2391.341667 | D49: =AVERAGE(OFFSET(Total!$E$10,12*($A49-1),4*(PlotControl!$C$6-1),12,1)) -> 3678.741667 | E49: =AVERAGE(OFFSET(RO!$C$10,12*($A49-1),4*(PlotControl!$C$6-1),12,1)) -> 117.03925 | F49: =AVERAGE(OFFSET(RO!$D$10,12*($A49-1),4*(PlotControl!$C$6-1),12,1)) -> 424.6141667 | G49: =AVERAGE(OFFSET(RO!$E$10,12*($A49-1),4*(PlotControl!$C$6-1),12,1)) -> 1387.740833 | H49: =AVERAGE(OFFSET(GW!$C$10,12*($A49-1),4*(PlotControl!$C$6-1),12,1)) -> 928.5391667 | I49: =AVERAGE(OFFSET(GW!$D$10,12*($A49-1),4*(PlotControl!$C$6-1),12,1)) -> 1143.933333 | J49: =AVERAGE(OFFSET(GW!$E$10,12*($A49-1),4*(PlotControl!$C$6-1),12,1)) -> 1690.666667 | K49: =AVERAGE(OFFSET(CPS!$C$10,12*($A49-1),4*(PlotControl!$C$6-1),12,1)) -> 0 | L49: =AVERAGE(OFFSET(CPS!$D$10,12*($A49-1),4*(PlotControl!$C$6-1),12,1)) -> 0 | M49: =AVERAGE(OFFSET(CPS!$E$10,12*($A49-1),4*(PlotControl!$C$6-1),12,1)) -> 0 | N49: =AVERAGE(OFFSET(Blast!$C$10,12*($A49-1),4*(PlotControl!$C$6-1),12,1)) -> 0 | O49: =AVERAGE(OFFSET(Blast!$D$10,12*($A49-1),4*(PlotControl!$C$6-1),12,1)) -> 0 | P49: =AVERAGE(OFFSET(Blast!$E$10,12*($A49-1),4*(PlotControl!$C$6-1),12,1)) -> 0 | Q49: =AVERAGE(OFFSET(Cat1SP_leak!$C$10,12*($A49-1),4*(PlotControl!$C$6-1),12,1)) -> 0 | R49: =AVERAGE(OFFSET(Cat1SP_leak!$D$10,12*($A49-1),4*(PlotControl!$C$6-1),12,1)) -> 0 | S49: =AVERAGE(OFFSET(Cat1SP_leak!$E$10,12*($A49-1),4*(PlotControl!$C$6-1),12,1)) -> 0 | T49: =AVERAGE(OFFSET(Cat1wall!$C$10,12*($A49-1),4*(PlotControl!$C$6-1),12,1)) -> 4.831441667 | U49: =AVERAGE(OFFSET(Cat1wall!$D$10,12*($A49-1),4*(PlotControl!$C$6-1),12,1)) -> 10.510775 | V49: =AVERAGE(OFFSET(Cat1wall!$E$10,12*($A49-1),4*(PlotControl!$C$6-1),12,1)) -> 22.56958333 | W49: =AVERAGE(OFFSET(Cat23wall!$C$10,12*($A49-1),4*(PlotControl!$C$6-1),12,1)) -> 6.498008333 | X49: =AVERAGE(OFFSET(Cat23wall!$D$10,12*($A49-1),4*(PlotControl!$C$6-1),12,1)) -> 21.88066667 | Y49: =AVERAGE(OFFSET(Cat23wall!$E$10,12*($A49-1),4*(PlotControl!$C$6-1),12,1)) -> 76.58916667 | Z49: =AVERAGE(OFFSET(Cat4DCwall!$C$10,12*($A49-1),4*(PlotControl!$C$6-1),12,1)) -> 0.2977983333 | AA49: =AVERAGE(OFFSET(Cat4DCwall!$D$10,12*($A49-1),4*(PlotControl!$C$6-1),12,1)) -> 1.0263225 | AB49: =AVERAGE(OFFSET(Cat4DCwall!$E$10,12*($A49-1),4*(PlotControl!$C$6-1),12,1)) -> 3.8018 | AC49: =AVERAGE(OFFSET(Orewall!$C$10,12*($A49-1),4*(PlotControl!$C$6-1),12,1)) -> 9.21435 | AD49: =AVERAGE(OFFSET(Orewall!$D$10,12*($A49-1),4*(PlotControl!$C$6-1),12,1)) -> 32.19525 | AE49: =AVERAGE(OFFSET(Orewall!$E$10,12*($A49-1),4*(PlotControl!$C$6-1),12,1)) -> 121.7991667 | AF49: =AVERAGE(OFFSET(Cat4VFwall!$C$10,12*($A49-1),4*(PlotControl!$C$6-1),12,1)) -> 239.2616667 | AG49: =AVERAGE(OFFSET(Cat4VFwall!$D$10,12*($A49-1),4*(PlotControl!$C$6-1),12,1)) -> 513.4016667 | AH49: =AVERAGE(OFFSET(Cat4VFwall!$E$10,12*($A49-1),4*(PlotControl!$C$6-1),12,1)) -> 1054.534167 | AI49: =AVERAGE(OFFSET(Cat1Bkf!$C$10,12*($A49-1),4*(PlotControl!$C$6-1),12,1)) -> 0 | AJ49: =AVERAGE(OFFSET(Cat1Bkf!$D$10,12*($A49-1),4*(PlotControl!$C$6-1),12,1)) -> 0 | AK49: =AVERAGE(OFFSET(Cat1Bkf!$E$10,12*($A49-1),4*(PlotControl!$C$6-1),12,1)) -> 0 | AL49: =AVERAGE(OFFSET(Cat23Bkf!$C$10,12*($A49-1),4*(PlotControl!$C$6-1),12,1)) -> 0 | AM49: =AVERAGE(OFFSET(Cat23Bkf!$D$10,12*($A49-1),4*(PlotControl!$C$6-1),12,1)) -> 0 | AN49: =AVERAGE(OFFSET(Cat23Bkf!$E$10,12*($A49-1),4*(PlotControl!$C$6-1),12,1)) -> 0 | AO49: =AVERAGE(OFFSET(Cat4DCBkf!$C$10,12*($A49-1),4*(PlotControl!$C$6-1),12,1)) -> 0 | AP49: =AVERAGE(OFFSET(Cat4DCBkf!$D$10,12*($A49-1),4*(PlotControl!$C$6-1),12,1)) -> 0 | AQ49: =AVERAGE(OFFSET(Cat4DCBkf!$E$10,12*($A49-1),4*(PlotControl!$C$6-1),12,1)) -> 0 | AR49: =AVERAGE(OFFSET(Cat4VFBkf!$C$10,12*($A49-1),4*(PlotControl!$C$6-1),12,1)) -> 0 | AS49: =AVERAGE(OFFSET(Cat4VFBkf!$D$10,12*($A49-1),4*(PlotControl!$C$6-1),12,1)) -> 0 | AT49: =AVERAGE(OFFSET(Cat4VFBkf!$E$10,12*($A49-1),4*(PlotControl!$C$6-1),12,1)) -> 0
A50: 46 | B50: =AVERAGE(OFFSET(Total!$C$10,12*($A50-1),4*(PlotControl!$C$6-1),12,1)) -> 1700.058333 | C50: =AVERAGE(OFFSET(Total!$D$10,12*($A50-1),4*(PlotControl!$C$6-1),12,1)) -> 2399.408333 | D50: =AVERAGE(OFFSET(Total!$E$10,12*($A50-1),4*(PlotControl!$C$6-1),12,1)) -> 3759.466667 | E50: =AVERAGE(OFFSET(RO!$C$10,12*($A50-1),4*(PlotControl!$C$6-1),12,1)) -> 118.28775 | F50: =AVERAGE(OFFSET(RO!$D$10,12*($A50-1),4*(PlotControl!$C$6-1),12,1)) -> 426.4825 | G50: =AVERAGE(OFFSET(RO!$E$10,12*($A50-1),4*(PlotControl!$C$6-1),12,1)) -> 1438.760833 | H50: =AVERAGE(OFFSET(GW!$C$10,12*($A50-1),4*(PlotControl!$C$6-1),12,1)) -> 927.5266667 | I50: =AVERAGE(OFFSET(GW!$D$10,12*($A50-1),4*(PlotControl!$C$6-1),12,1)) -> 1144.891667 | J50: =AVERAGE(OFFSET(GW!$E$10,12*($A50-1),4*(PlotControl!$C$6-1),12,1)) -> 1689.408333 | K50: =AVERAGE(OFFSET(CPS!$C$10,12*($A50-1),4*(PlotControl!$C$6-1),12,1)) -> 0 | L50: =AVERAGE(OFFSET(CPS!$D$10,12*($A50-1),4*(PlotControl!$C$6-1),12,1)) -> 0 | M50: =AVERAGE(OFFSET(CPS!$E$10,12*($A50-1),4*(PlotControl!$C$6-1),12,1)) -> 0 | N50: =AVERAGE(OFFSET(Blast!$C$10,12*($A50-1),4*(PlotControl!$C$6-1),12,1)) -> 0 | O50: =AVERAGE(OFFSET(Blast!$D$10,12*($A50-1),4*(PlotControl!$C$6-1),12,1)) -> 0 | P50: =AVERAGE(OFFSET(Blast!$E$10,12*($A50-1),4*(PlotControl!$C$6-1),12,1)) -> 0 | Q50: =AVERAGE(OFFSET(Cat1SP_leak!$C$10,12*($A50-1),4*(PlotControl!$C$6-1),12,1)) -> 0 | R50: =AVERAGE(OFFSET(Cat1SP_leak!$D$10,12*($A50-1),4*(PlotControl!$C$6-1),12,1)) -> 0 | S50: =AVERAGE(OFFSET(Cat1SP_leak!$E$10,12*($A50-1),4*(PlotControl!$C$6-1),12,1)) -> 0 | T50: =AVERAGE(OFFSET(Cat1wall!$C$10,12*($A50-1),4*(PlotControl!$C$6-1),12,1)) -> 4.655466667 | U50: =AVERAGE(OFFSET(Cat1wall!$D$10,12*($A50-1),4*(PlotControl!$C$6-1),12,1)) -> 10.53081667 | V50: =AVERAGE(OFFSET(Cat1wall!$E$10,12*($A50-1),4*(PlotControl!$C$6-1),12,1)) -> 22.29966667 | W50: =AVERAGE(OFFSET(Cat23wall!$C$10,12*($A50-1),4*(PlotControl!$C$6-1),12,1)) -> 6.29075 | X50: =AVERAGE(OFFSET(Cat23wall!$D$10,12*($A50-1),4*(PlotControl!$C$6-1),12,1)) -> 20.49858333 | Y50: =AVERAGE(OFFSET(Cat23wall!$E$10,12*($A50-1),4*(PlotControl!$C$6-1),12,1)) -> 75.33533333 | Z50: =AVERAGE(OFFSET(Cat4DCwall!$C$10,12*($A50-1),4*(PlotControl!$C$6-1),12,1)) -> 0.2909458333 | AA50: =AVERAGE(OFFSET(Cat4DCwall!$D$10,12*($A50-1),4*(PlotControl!$C$6-1),12,1)) -> 0.9687358333 | AB50: =AVERAGE(OFFSET(Cat4DCwall!$E$10,12*($A50-1),4*(PlotControl!$C$6-1),12,1)) -> 3.791241667 | AC50: =AVERAGE(OFFSET(Orewall!$C$10,12*($A50-1),4*(PlotControl!$C$6-1),12,1)) -> 8.97845 | AD50: =AVERAGE(OFFSET(Orewall!$D$10,12*($A50-1),4*(PlotControl!$C$6-1),12,1)) -> 30.16608333 | AE50: =AVERAGE(OFFSET(Orewall!$E$10,12*($A50-1),4*(PlotControl!$C$6-1),12,1)) -> 123.3083333 | AF50: =AVERAGE(OFFSET(Cat4VFwall!$C$10,12*($A50-1),4*(PlotControl!$C$6-1),12,1)) -> 247.0241667 | AG50: =AVERAGE(OFFSET(Cat4VFwall!$D$10,12*($A50-1),4*(PlotControl!$C$6-1),12,1)) -> 506.1808333 | AH50: =AVERAGE(OFFSET(Cat4VFwall!$E$10,12*($A50-1),4*(PlotControl!$C$6-1),12,1)) -> 1040.4475 | AI50: =AVERAGE(OFFSET(Cat1Bkf!$C$10,12*($A50-1),4*(PlotControl!$C$6-1),12,1)) -> 0 | AJ50: =AVERAGE(OFFSET(Cat1Bkf!$D$10,12*($A50-1),4*(PlotControl!$C$6-1),12,1)) -> 0 | AK50: =AVERAGE(OFFSET(Cat1Bkf!$E$10,12*($A50-1),4*(PlotControl!$C$6-1),12,1)) -> 0 | AL50: =AVERAGE(OFFSET(Cat23Bkf!$C$10,12*($A50-1),4*(PlotControl!$C$6-1),12,1)) -> 0 | AM50: =AVERAGE(OFFSET(Cat23Bkf!$D$10,12*($A50-1),4*(PlotControl!$C$6-1),12,1)) -> 0 | AN50: =AVERAGE(OFFSET(Cat23Bkf!$E$10,12*($A50-1),4*(PlotControl!$C$6-1),12,1)) -> 0 | AO50: =AVERAGE(OFFSET(Cat4DCBkf!$C$10,12*($A50-1),4*(PlotControl!$C$6-1),12,1)) -> 0 | AP50: =AVERAGE(OFFSET(Cat4DCBkf!$D$10,12*($A50-1),4*(PlotControl!$C$6-1),12,1)) -> 0 | AQ50: =AVERAGE(OFFSET(Cat4DCBkf!$E$10,12*($A50-1),4*(PlotControl!$C$6-1),12,1)) -> 0 | AR50: =AVERAGE(OFFSET(Cat4VFBkf!$C$10,12*($A50-1),4*(PlotControl!$C$6-1),12,1)) -> 0 | AS50: =AVERAGE(OFFSET(Cat4VFBkf!$D$10,12*($A50-1),4*(PlotControl!$C$6-1),12,1)) -> 0 | AT50: =AVERAGE(OFFSET(Cat4VFBkf!$E$10,12*($A50-1),4*(PlotControl!$C$6-1),12,1)) -> 0
A51: 47 | B51: =AVERAGE(OFFSET(Total!$C$10,12*($A51-1),4*(PlotControl!$C$6-1),12,1)) -> 1719.216667 | C51: =AVERAGE(OFFSET(Total!$D$10,12*($A51-1),4*(PlotControl!$C$6-1),12,1)) -> 2402.016667 | D51: =AVERAGE(OFFSET(Total!$E$10,12*($A51-1),4*(PlotControl!$C$6-1),12,1)) -> 3715.483333 | E51: =AVERAGE(OFFSET(RO!$C$10,12*($A51-1),4*(PlotControl!$C$6-1),12,1)) -> 120.0593333 | F51: =AVERAGE(OFFSET(RO!$D$10,12*($A51-1),4*(PlotControl!$C$6-1),12,1)) -> 429.795 | G51: =AVERAGE(OFFSET(RO!$E$10,12*($A51-1),4*(PlotControl!$C$6-1),12,1)) -> 1393.400833 | H51: =AVERAGE(OFFSET(GW!$C$10,12*($A51-1),4*(PlotControl!$C$6-1),12,1)) -> 927.8966667 | I51: =AVERAGE(OFFSET(GW!$D$10,12*($A51-1),4*(PlotControl!$C$6-1),12,1)) -> 1143.933333 | J51: =AVERAGE(OFFSET(GW!$E$10,12*($A51-1),4*(PlotControl!$C$6-1),12,1)) -> 1689.966667 | K51: =AVERAGE(OFFSET(CPS!$C$10,12*($A51-1),4*(PlotControl!$C$6-1),12,1)) -> 0 | L51: =AVERAGE(OFFSET(CPS!$D$10,12*($A51-1),4*(PlotControl!$C$6-1),12,1)) -> 0 | M51: =AVERAGE(OFFSET(CPS!$E$10,12*($A51-1),4*(PlotControl!$C$6-1),12,1)) -> 0 | N51: =AVERAGE(OFFSET(Blast!$C$10,12*($A51-1),4*(PlotControl!$C$6-1),12,1)) -> 0 | O51: =AVERAGE(OFFSET(Blast!$D$10,12*($A51-1),4*(PlotControl!$C$6-1),12,1)) -> 0 | P51: =AVERAGE(OFFSET(Blast!$E$10,12*($A51-1),4*(PlotControl!$C$6-1),12,1)) -> 0 | Q51: =AVERAGE(OFFSET(Cat1SP_leak!$C$10,12*($A51-1),4*(PlotControl!$C$6-1),12,1)) -> 0 | R51: =AVERAGE(OFFSET(Cat1SP_leak!$D$10,12*($A51-1),4*(PlotControl!$C$6-1),12,1)) -> 0 | S51: =AVERAGE(OFFSET(Cat1SP_leak!$E$10,12*($A51-1),4*(PlotControl!$C$6-1),12,1)) -> 0 | T51: =AVERAGE(OFFSET(Cat1wall!$C$10,12*($A51-1),4*(PlotControl!$C$6-1),12,1)) -> 4.679625 | U51: =AVERAGE(OFFSET(Cat1wall!$D$10,12*($A51-1),4*(PlotControl!$C$6-1),12,1)) -> 10.69586667 | V51: =AVERAGE(OFFSET(Cat1wall!$E$10,12*($A51-1),4*(PlotControl!$C$6-1),12,1)) -> 23.52458333 | W51: =AVERAGE(OFFSET(Cat23wall!$C$10,12*($A51-1),4*(PlotControl!$C$6-1),12,1)) -> 5.90525 | X51: =AVERAGE(OFFSET(Cat23wall!$D$10,12*($A51-1),4*(PlotControl!$C$6-1),12,1)) -> 20.56441667 | Y51: =AVERAGE(OFFSET(Cat23wall!$E$10,12*($A51-1),4*(PlotControl!$C$6-1),12,1)) -> 76.24858333 | Z51: =AVERAGE(OFFSET(Cat4DCwall!$C$10,12*($A51-1),4*(PlotControl!$C$6-1),12,1)) -> 0.2795516667 | AA51: =AVERAGE(OFFSET(Cat4DCwall!$D$10,12*($A51-1),4*(PlotControl!$C$6-1),12,1)) -> 0.9941291667 | AB51: =AVERAGE(OFFSET(Cat4DCwall!$E$10,12*($A51-1),4*(PlotControl!$C$6-1),12,1)) -> 3.786141667 | AC51: =AVERAGE(OFFSET(Orewall!$C$10,12*($A51-1),4*(PlotControl!$C$6-1),12,1)) -> 8.684983333 | AD51: =AVERAGE(OFFSET(Orewall!$D$10,12*($A51-1),4*(PlotControl!$C$6-1),12,1)) -> 31.08716667 | AE51: =AVERAGE(OFFSET(Orewall!$E$10,12*($A51-1),4*(PlotControl!$C$6-1),12,1)) -> 123.2891667 | AF51: =AVERAGE(OFFSET(Cat4VFwall!$C$10,12*($A51-1),4*(PlotControl!$C$6-1),12,1)) -> 233.0641667 | AG51: =AVERAGE(OFFSET(Cat4VFwall!$D$10,12*($A51-1),4*(PlotControl!$C$6-1),12,1)) -> 514.37 | AH51: =AVERAGE(OFFSET(Cat4VFwall!$E$10,12*($A51-1),4*(PlotControl!$C$6-1),12,1)) -> 1086.268333 | AI51: =AVERAGE(OFFSET(Cat1Bkf!$C$10,12*($A51-1),4*(PlotControl!$C$6-1),12,1)) -> 0 | AJ51: =AVERAGE(OFFSET(Cat1Bkf!$D$10,12*($A51-1),4*(PlotControl!$C$6-1),12,1)) -> 0 | AK51: =AVERAGE(OFFSET(Cat1Bkf!$E$10,12*($A51-1),4*(PlotControl!$C$6-1),12,1)) -> 0 | AL51: =AVERAGE(OFFSET(Cat23Bkf!$C$10,12*($A51-1),4*(PlotControl!$C$6-1),12,1)) -> 0 | AM51: =AVERAGE(OFFSET(Cat23Bkf!$D$10,12*($A51-1),4*(PlotControl!$C$6-1),12,1)) -> 0 | AN51: =AVERAGE(OFFSET(Cat23Bkf!$E$10,12*($A51-1),4*(PlotControl!$C$6-1),12,1)) -> 0 | AO51: =AVERAGE(OFFSET(Cat4DCBkf!$C$10,12*($A51-1),4*(PlotControl!$C$6-1),12,1)) -> 0 | AP51: =AVERAGE(OFFSET(Cat4DCBkf!$D$10,12*($A51-1),4*(PlotControl!$C$6-1),12,1)) -> 0 | AQ51: =AVERAGE(OFFSET(Cat4DCBkf!$E$10,12*($A51-1),4*(PlotControl!$C$6-1),12,1)) -> 0 | AR51: =AVERAGE(OFFSET(Cat4VFBkf!$C$10,12*($A51-1),4*(PlotControl!$C$6-1),12,1)) -> 0 | AS51: =AVERAGE(OFFSET(Cat4VFBkf!$D$10,12*($A51-1),4*(PlotControl!$C$6-1),12,1)) -> 0 | AT51: =AVERAGE(OFFSET(Cat4VFBkf!$E$10,12*($A51-1),4*(PlotControl!$C$6-1),12,1)) -> 0
